Workbook

Sheet COVER
C2: Cover
C4: NAVIGATION
C6: COMMENTS
C9: Bonneville Power Administration
C10: 6P Energy Conservation Standards Savings Model
C11: EXTERNAL POWER SUPPLIES
C13: Product Description
C14: The term "external power supply" means an external power supply circuit that is used to convert household electric current into DC current or lower-voltage AC current to operate a consumer product. (42 U.S.C. 6291(36)(A))
C16: Standard Compliance Year
C17: 2016 (Source: DOE External Power Supplies 2014 Final Rule, Federal Register Notice, page 7846, "Dates" section, http://www.regulations.gov/#!documentDetail;D=EERE-2008-BT-STD-0005-0219)
C19: Major changes from previous rulemaking (2008 effective standard for Class A EPS)
C20: Expanded scope to cover all direct operation EPS. Class A EPSs efficiency standards remain in effect.
C22: 6P Baseline
C23: External power supplies were not included in the 6P baseline or savings estimate.
C25: Prepared By:
C26: Navigant Consulting | D26: Cadeo Group
C27: One Market Street | Spear Street Tower, Suite 1200 | D27: 840 First Street, Suite 300
C28: San Francisco, CA 94105 | D28: Washington, DC 20002

Sheet Definitions
C2: Definitions
C4: NAVIGATION
C6: COMMENTS
C9: Average Megawatt (aMW) | D9: The average number of megawatts over a specified time period
C10: Adjustment to 6P Baseline | D10: Adjustment to reconcile the 6P projected energy consumption and the modeled consumption calculated using best available data.
C11: Department of Energy Aggregate Lifecycle Savings | D11: Sum of 'Total First Year Savings'. This accounts for the cumulative savings in accordance with DOE Carbon Accounting Practices.
C12: Department of Energy Notice of Proposed Rulemaking (DOE NOPR) | D12: Federal Register notice detailing analyses conducted by the DOE to establish proposed energy conservation standards.
C13: Efficiency Level (EL) | D13: The discrete efficiency ratings of a product. Each efficiency level is associated with a different UEC.
C14: Efficiency Level Distribution | D14: The mix of various equipment efficiencies shipped in a given year.
C15: Incremental Savings | D15: Savings due to the higher standards for units installed in a particular year. First year savings are highest following the standards compliance year while the stock turns over, after which first year savings are only attributed to shipments associated with new construction.
C16: Governmental Regulatory Impact Model (GRIM) | D16: The industry cash flow model used by DOE to assess impacts on manufacturers due to proposed energy conservation standards
C17: Installed Unit Energy Consumption (Installed UEC) | D17: The average annual unit energy consumption of all installed units in a given year.
C18: Market Unit Energy Consumption (Market UEC) | D18: The average annual unit energy consumption of units shipped in a given year.
C19: National Impact Analysis (NIA) | D19: The energy impact analysis used by DOE to calculate energy savings associated with each standard.
C20: Pre-case | D20: The case representing 6P baseline assumptions where energy consumption due to the product accounts for shipment and shipment UEC by year, without the affect of standards announced following the development of the 6P.
C21: Post-case | D21: The case in which standards are implemented. If the 6P already captured the analyzed standard, the post-case will be the same as the pre-case.
C22: Product Class | D22: Product classificiation determined by product configuration, size, application, location, and other attributes that contribute to consumer utility. DOE is allowed to establish different standards for each product class.
C23: Product Class Distribution | D23: Market share/mix of each product class shipped in a given year.
C24: Product Lifetime | D24: The average time a given class of products stays in the field as part of the installed stock. Some products will last longer (delaying replacement) whereas others will fail and be retired earlier (accelerating replacement), but the lifetime represents the market average.
C25: Shipments | D25: Sales of products. This may be presented by product class, efficiency distribution, or delineated by other metrics. Shipments may be attributed to new construction and/or replacements and retrofits.
C26: Sixth Power Plan (6P) | D26: The Pacific Northwest Resource Plan published by the Northwest Power Conservation Council. The 6P timeframe is from 2010-2015.
C27: Sixth Power Plan Baseline (6P Baseline) | D27: The 6P assumes equipment efficiency and shipment units in the region. When available, the 6P assumptions are the baseline for each standard impact analysis.
C28: Standard Compliance Year | D28: The year when the appliance standard goes into effect.
C29: Stock | D29: All units installed in previous years which remain in operation.
C30: Technical Support Document (TSD) | D30: TSDs are published by the DOE as companion documents to Federal Register notices (e.g., ANOPRs/preliminary analyses and NOPRs). The TSDs include technical detail that supports the notices. The final rule TSD includes the discussion of the Manufacturer Impact Analysis (MIA) and National Impact Analysis (NIA).
C31: Cumulative Savings through 2034 | D31: The sum of incremental savings from 2010 through 2034
C32: Trial Standard Level (TSL) | D32: A proposed efficiency standard evaluated by DOE during the NOPR and Final Rule phase analyses. A TSL may specify different standard efficiency levels for each product class included in the rulemaking.

Sheet Comments
C2: Comments
C4: NAVIGATION
C7: Tab | D7: Comment
C8: Example | D8: Please use this space to document your comments as you review the model. We look forward to receiving your feedback. Thank you.

Sheet Navigation
C2: NAVIGATION
C4: COMMENTS
C7: INFORMATION TABS | E7: INPUT TABS | G7: UEC CALCULATIONS | I7: RESULTS | K7: CHARTS
C9: COVER | E9: PRODUCT CLASSES
C11: DEFINITIONS | E11: EFFICIENCY LEVELS | G11: UEC DEVELOPMENT
C13: COMMENTS | E13: PRODUCT CLASS DISTRIBUTION | G13: UEC
C15: NAVIGATION | E15: EFFICIENCY DISTRIBUTION
E17: STOCK MODEL | I17: RESULTS | K17: CHARTS
E19: 6P UEC DEVELOPMENT
I21: SUMMARY RESULTS

Sheet Product Classes
C2: Selection of Product Classes for Model
C4: NAVIGATION
C6: COMMENTS
C9: All Product Classes | D9: DOE 2014 FR PCs1 | E9: Representative PCs2 | F9: 6th Plan PCs | H9: Model PCs | I9: Rationale
C10: AC-DC, Basic Voltage 2.5 W Rep. Unit | D10: 2014 -DOE-B | E10: 2014 -DOE-B 2.5 W | F10: N/A | H10: B 2.5 W | I10: Modeled in DOE 2014 Final Rule NIA
C11: AC-DC, Basic Voltage 18 W Rep. Unit | E11: 2014 -DOE-B 18 W | H11: B 18 W | I11: Modeled in DOE 2014 Final Rule NIA
C12: AC-DC, Basic Voltage 60 W Rep. Unit | E12: 2014 -DOE-B 60 W | H12: B 60 W | I12: Modeled in DOE 2014 Final Rule NIA
C13: AC-DC, Basic Voltage 120 W Rep. Unit | E13: 2014 -DOE-B 120 W | H13: B 120 W | I13: Modeled in DOE 2014 Final Rule NIA
C14: AC-DC, Low Voltage | D14: 2014 -DOE-C | E14: 2014 -DOE-C | H14: C | I14: Modeled in DOE 2014 Final Rule NIA
C15: AC-AC, Basic Voltage | D15: 2014 -DOE-D | E15: 2014 -DOE-D | H15: D | I15: Modeled in DOE 2014 Final Rule NIA
C16: AC-AC, Low Voltage | D16: 2014 -DOE-E | E16: 2014 -DOE-E | H16: E | I16: Modeled in DOE 2014 Final Rule NIA
C17: Multiple-voltage EPSs | D17: 2014 -DOE-X | E17: 2014 -DOE-X | H17: X | I17: Modeled in DOE 2014 Final Rule NIA
C18: High Power EPSs | D18: 2014 -DOE-H | E18: 2014 -DOE-H | H18: H | I18: Modeled in DOE 2014 Final Rule NIA
C19: AC-DC, Low Voltage, <3V, >= 1000 mA | D19: 2014 -DOE-C1
C20: Indirect Operation External Power Supplies | D20: 2014 -DOE-N
C22: Sources | D22: 1. DOE External Power Supplies 2014 Final Rule, Technical Support Document Chapter 3: Market and Technology Assessment, Table 3-18 EPS Product Classes (page 3-40)
D23: 2. DOE External Power Supplies 2014 Final Rule, Technical Support Document: National Impact Analysis Spreadsheet, 'CSL Results' tab, cells A21:A30

Sheet Efficiency Levels
C2: Efficiency Levels and Standards for Each Product Class
C4: NAVIGATION
C6: COMMENTS
C9: ='Product Classes'!H10 -> B 2.5 W | D9: =OFFSET('Product Classes'!$C$9,MATCH(C9,'Product Classes'!$H$10:$H$18,0),0) -> AC-DC, Basic Voltage 2.5 W Rep. Unit
C11: Model ELs1 | E11: Compliance Year2 | F11: Model Efficiency Levels
C12: EL0 | D12: EISA | F12: EISA
C13: EL1 | D13: Energy Star 2.0 | F13: Energy Star 2.0
C14: EL2 | D14: Intermediate | F14: Intermediate
C15: EL3 | D15: Best in Market | E15: 2016 | F15: Best in Market
C16: EL4 | D16: Max Tech | F16: Max Tech
C20: Sources | D20: 1. DOE External Power Supplies 2014 Final Rule, Technical Support Document: National Impact Analysis Spreadsheet, 'EPS Inputs' tab, cells C14:I15
D21: 2. For TSL Selection: DOE External Power Supplies 2014 Final Rule, Federal Register Notice, page 7918, "Benefits and Burdens of Trial Standard Levels Considered for EPS Product Class B" section, http://www.regulations.gov/#!documentDetail;D=EERE-2008-BT-STD-0005-0219) For TSL to CSL Mapping: DOE External Power Supplies 2014 Final Rule, Technical Support Document: National Impact Analysis Spreadsheet, 'TSL Results' tab, cells L6:L13 For Compliance Year: DOE External Power Supplies 2014 Final Rule, Federal Register Notice, page 7846, "Dates" section, http://www.regulations.gov/#!documentDetail;D=EERE-2008-BT-STD-0005-0219
C25: ='Product Classes'!H11 -> B 18 W | D25: =OFFSET('Product Classes'!$C$9,MATCH(C25,'Product Classes'!$H$10:$H$18,0),0) -> AC-DC, Basic Voltage 18 W Rep. Unit
C27: Model ELs1 | E27: Compliance Year2 | F27: Model Efficiency Levels
C28: EL0 | D28: EISA | F28: EISA
C29: EL1 | D29: Energy Star 2.0 | F29: Energy Star 2.0
C30: EL2 | D30: Intermediate | F30: Intermediate
C31: EL3 | D31: Best in Market | E31: 2016 | F31: Best in Market
C32: EL4 | D32: Max Tech | F32: Max Tech
C36: Sources | D36: 1. DOE External Power Supplies 2014 Final Rule, Technical Support Document: National Impact Analysis Spreadsheet, 'EPS Inputs' tab, cells C66:I67
D37: 2. For TSL Selection: DOE External Power Supplies 2014 Final Rule, Federal Register Notice, page 7918, "Benefits and Burdens of Trial Standard Levels Considered for EPS Product Class B" section, http://www.regulations.gov/#!documentDetail;D=EERE-2008-BT-STD-0005-0219) For TSL to CSL Mapping: DOE External Power Supplies 2014 Final Rule, Technical Support Document: National Impact Analysis Spreadsheet, 'TSL Results' tab, cells L6:L13 For Compliance Year: DOE External Power Supplies 2014 Final Rule, Federal Register Notice, page 7846, "Dates" section, http://www.regulations.gov/#!documentDetail;D=EERE-2008-BT-STD-0005-0219
C41: ='Product Classes'!H12 -> B 60 W | D41: =OFFSET('Product Classes'!$C$9,MATCH(C41,'Product Classes'!$H$10:$H$18,0),0) -> AC-DC, Basic Voltage 60 W Rep. Unit
C43: Model ELs1 | E43: Compliance Year2 | F43: Model Efficiency Levels
C44: EL0 | D44: EISA | F44: EISA
C45: EL1 | D45: Energy Star 2.0 | F45: Energy Star 2.0
C46: EL2 | D46: Intermediate | F46: Intermediate
C47: EL3 | D47: Best in Market | E47: 2016 | F47: Best in Market
C48: EL4 | D48: Max Tech | F48: Max Tech
C52: Sources | D52: 1. DOE External Power Supplies 2014 Final Rule, Technical Support Document: National Impact Analysis Spreadsheet, 'EPS Inputs' tab, cells C118:I119
D53: 2. For TSL Selection: DOE External Power Supplies 2014 Final Rule, Federal Register Notice, page 7918, "Benefits and Burdens of Trial Standard Levels Considered for EPS Product Class B" section, http://www.regulations.gov/#!documentDetail;D=EERE-2008-BT-STD-0005-0219) For TSL to CSL Mapping: DOE External Power Supplies 2014 Final Rule, Technical Support Document: National Impact Analysis Spreadsheet, 'TSL Results' tab, cells L6:L13 For Compliance Year: DOE External Power Supplies 2014 Final Rule, Federal Register Notice, page 7846, "Dates" section, http://www.regulations.gov/#!documentDetail;D=EERE-2008-BT-STD-0005-0219
C57: ='Product Classes'!H13 -> B 120 W | D57: =OFFSET('Product Classes'!$C$9,MATCH(C57,'Product Classes'!$H$10:$H$18,0),0) -> AC-DC, Basic Voltage 120 W Rep. Unit
C59: Model ELs1 | E59: Compliance Year2 | F59: Model Efficiency Levels
C60: EL0 | D60: EISA | F60: EISA
C61: EL1 | D61: Energy Star 2.0 | F61: Energy Star 2.0
C62: EL2 | D62: Intermediate | F62: Intermediate
C63: EL3 | D63: Best in Market | E63: 2016 | F63: Best in Market
C64: EL4 | D64: Max Tech | F64: Max Tech
C68: Sources | D68: 1. DOE External Power Supplies 2014 Final Rule, Technical Support Document: National Impact Analysis Spreadsheet, 'EPS Inputs' tab, cells C170:I171
D69: 2. For TSL Selection: DOE External Power Supplies 2014 Final Rule, Federal Register Notice, page 7918, "Benefits and Burdens of Trial Standard Levels Considered for EPS Product Class B" section, http://www.regulations.gov/#!documentDetail;D=EERE-2008-BT-STD-0005-0219) For TSL to CSL Mapping: DOE External Power Supplies 2014 Final Rule, Technical Support Document: National Impact Analysis Spreadsheet, 'TSL Results' tab, cells L6:L13 For Compliance Year: DOE External Power Supplies 2014 Final Rule, Federal Register Notice, page 7846, "Dates" section, http://www.regulations.gov/#!documentDetail;D=EERE-2008-BT-STD-0005-0219
C73: ='Product Classes'!H14 -> C | D73: =OFFSET('Product Classes'!$C$9,MATCH(C73,'Product Classes'!$H$10:$H$18,0),0) -> AC-DC, Low Voltage
C75: Model ELs1 | E75: Compliance Year2 | F75: Model Efficiency Levels
C76: EL0 | D76: EISA | F76: EISA
C77: EL1 | D77: Energy Star 2.0 | F77: Energy Star 2.0
C78: EL2 | D78: Intermediate | F78: Intermediate
C79: EL3 | D79: Best in Market | E79: 2016 | F79: Best in Market
C80: EL4 | D80: Max Tech | F80: Max Tech
C84: Sources | D84: 1. DOE External Power Supplies 2014 Final Rule, Technical Support Document: National Impact Analysis Spreadsheet, 'EPS Inputs' tab, cells C222:I223
D85: 2. For TSL Selection: DOE External Power Supplies 2014 Final Rule, Federal Register Notice, page 7918, "Benefits and Burdens of Trial Standard Levels Considered for EPS Product Class B" section, http://www.regulations.gov/#!documentDetail;D=EERE-2008-BT-STD-0005-0219) For TSL to CSL Mapping: DOE External Power Supplies 2014 Final Rule, Technical Support Document: National Impact Analysis Spreadsheet, 'TSL Results' tab, cells L6:L13 For Compliance Year: DOE External Power Supplies 2014 Final Rule, Federal Register Notice, page 7846, "Dates" section, http://www.regulations.gov/#!documentDetail;D=EERE-2008-BT-STD-0005-0219
C89: ='Product Classes'!H15 -> D | D89: =OFFSET('Product Classes'!$C$9,MATCH(C89,'Product Classes'!$H$10:$H$18,0),0) -> AC-AC, Basic Voltage
C91: Model ELs1 | E91: Compliance Year2 | F91: Model Efficiency Levels
C92: EL0 | D92: EISA | F92: EISA
C93: EL1 | D93: Energy Star 2.0 | F93: Energy Star 2.0
C94: EL2 | D94: Intermediate | F94: Intermediate
C95: EL3 | D95: Best in Market | E95: 2016 | F95: Best in Market
C96: EL4 | D96: Max Tech | F96: Max Tech
C100: Sources | D100: 1. DOE External Power Supplies 2014 Final Rule, Technical Support Document: National Impact Analysis Spreadsheet, 'EPS Inputs' tab, cells C274:I275
D101: 2. For TSL Selection: DOE External Power Supplies 2014 Final Rule, Federal Register Notice, page 7918, "Benefits and Burdens of Trial Standard Levels Considered for EPS Product Class B" section, http://www.regulations.gov/#!documentDetail;D=EERE-2008-BT-STD-0005-0219) For TSL to CSL Mapping: DOE External Power Supplies 2014 Final Rule, Technical Support Document: National Impact Analysis Spreadsheet, 'TSL Results' tab, cells L6:L13 For Compliance Year: DOE External Power Supplies 2014 Final Rule, Federal Register Notice, page 7846, "Dates" section, http://www.regulations.gov/#!documentDetail;D=EERE-2008-BT-STD-0005-0219
C105: ='Product Classes'!H16 -> E | D105: =OFFSET('Product Classes'!$C$9,MATCH(C105,'Product Classes'!$H$10:$H$18,0),0) -> AC-AC, Low Voltage
C107: Model ELs1 | E107: Compliance Year2 | F107: Model Efficiency Levels
C108: EL0 | D108: EISA | F108: EISA
C109: EL1 | D109: Energy Star 2.0 | F109: Energy Star 2.0
C110: EL2 | D110: Intermediate | F110: Intermediate
C111: EL3 | D111: Best in Market | E111: 2016 | F111: Best in Market
C112: EL4 | D112: Max Tech | F112: Max Tech
C116: Sources | D116: 1. DOE External Power Supplies 2014 Final Rule, Technical Support Document: National Impact Analysis Spreadsheet, 'EPS Inputs' tab, cells C326:I327
D117: 2. For TSL Selection: DOE External Power Supplies 2014 Final Rule, Federal Register Notice, page 7918, "Benefits and Burdens of Trial Standard Levels Considered for EPS Product Class B" section, http://www.regulations.gov/#!documentDetail;D=EERE-2008-BT-STD-0005-0219) For TSL to CSL Mapping: DOE External Power Supplies 2014 Final Rule, Technical Support Document: National Impact Analysis Spreadsheet, 'TSL Results' tab, cells L6:L13 For Compliance Year: DOE External Power Supplies 2014 Final Rule, Federal Register Notice, page 7846, "Dates" section, http://www.regulations.gov/#!documentDetail;D=EERE-2008-BT-STD-0005-0219
C121: ='Product Classes'!H17 -> X | D121: =OFFSET('Product Classes'!$C$9,MATCH(C121,'Product Classes'!$H$10:$H$18,0),0) -> Multiple-voltage EPSs
C123: Model ELs1 | E123: Compliance Year2 | F123: Model Efficiency Levels
C124: EL0 | D124: Generic Replacement | F124: Generic Replacement
C125: EL1 | D125: Manufacturer Provided | F125: Manufacturer Provided
C126: EL2 | D126: EU Qualified Level | E126: 2016 | F126: EU Qualified Level
C127: EL3 | D127: Higher level | F127: Higher level
C132: Sources | D132: 1. DOE External Power Supplies 2014 Final Rule, Technical Support Document: National Impact Analysis Spreadsheet, 'EPS Inputs' tab, cells C794:I795
D133: 2. For TSL Selection: DOE External Power Supplies 2014 Final Rule, Federal Register Notice, page 7921, "Benefits and Burdens of Trial Standard Levels Considered for EPS Product Class X" section, http://www.regulations.gov/#!documentDetail;D=EERE-2008-BT-STD-0005-0219) For TSL to CSL Mapping: DOE External Power Supplies 2014 Final Rule, Technical Support Document: National Impact Analysis Spreadsheet, 'TSL Results' tab, cells L16 For Compliance Year: DOE External Power Supplies 2014 Final Rule, Federal Register Notice, page 7846, "Dates" section, http://www.regulations.gov/#!documentDetail;D=EERE-2008-BT-STD-0005-0219
C137: ='Product Classes'!H18 -> H | D137: =OFFSET('Product Classes'!$C$9,MATCH(C137,'Product Classes'!$H$10:$H$18,0),0) -> High Power EPSs
C139: Model ELs1 | E139: Compliance Year2 | F139: Model Efficiency Levels
C140: EL0 | D140: Line Frequency | F140: Line Frequency
C141: EL1 | D141: Switched-mode - Low Level | F141: Switched-mode - Low Level
C142: EL2 | D142: Switched-mode - Mid Level | F142: Switched-mode - Mid Level
C143: EL3 | D143: Best-In-Market | E143: 2016 | F143: Best-In-Market
C144: EL4 | D144: Max Tech | F144: Max Tech
C148: Sources | D148: 1. DOE External Power Supplies 2014 Final Rule, Technical Support Document: National Impact Analysis Spreadsheet, 'EPS Inputs' tab, cells C846:I847
D149: 2. For TSL Selection: DOE External Power Supplies 2014 Final Rule, Federal Register Notice, page 7923, "Benefits and Burdens of Trial Standard Levels Considered for EPS Product Class H" section, http://www.regulations.gov/#!documentDetail;D=EERE-2008-BT-STD-0005-0219) For TSL to CSL Mapping: DOE External Power Supplies 2014 Final Rule, Technical Support Document: National Impact Analysis Spreadsheet, 'TSL Results' tab, cells L18 For Compliance Year: DOE External Power Supplies 2014 Final Rule, Federal Register Notice, page 7846, "Dates" section, http://www.regulations.gov/#!documentDetail;D=EERE-2008-BT-STD-0005-0219

Sheet Data by Building Type (hidden)
C2: Market and Usage Attributes by Building Type
C4: NAVIGATION
C7: Market Representation | D7: Single Family | E7: Multi-Family | F7: Manufactured Homes | G7: All Segments (TOTAL) | H7: Source
C8: Percent of Total Housing Units (PNW) | D8: 0.7198079355 | E8: 0.1747856712 | F8: 0.1054063933 | G8: =SUM(D8:F8) -> 1
C12: Market Penetration | D12: Single Family | E12: Multi-Family | F12: Manufactured Homes | G12: All Segments (AVERAGE) | H12: Source
C13: Clothes Dryer Market Penetration (PNW) | D13: =G13 -> 0.82 | E13: =G13 -> 0.82 | F13: =G13 -> 0.82 | G13: 0.82
C17: Fuel Allocation | D17: Single Family | E17: Multi-Family | F17: Manufactured Homes | G17: All Segments (WTD AVG) | H17: Source
C18: Electric (% of Segment) | D18: 0.95 | E18: 0.99 | F18: 0.95 | G18: =SUMPRODUCT($D$8:$F$8,$D$13:$F$13,D18:F18)/$G$13 -> 0.9569914268
C19: Gas (% of Segment) | D19: =1-D18 -> 0.05 | E19: 0.01 | F19: =1-F18 -> 0.05 | G19: =SUMPRODUCT($D$8:$F$8,$D$13:$F$13,D19:F19)/$G$13 -> 0.04300857315
C23: Usage Data | D23: Single Family | E23: Multi-Family | F23: Manufactured Homes | G23: All Segments (WTD AVG) | H23: Source
C24: Cycles per Year | D24: =(0.892*4.92)*365.25/7 -> 228.9929657 | E24: =(4.51*0.916)*365.25/7 -> 215.5580271 | F24: =(4.47*0.888)*365.25/7 -> 207.1155343 | G24: =SUMPRODUCT($D$8:$F$8,$D$13:$F$13,D24:F24)/$G$13 -> 224.3387098 | H24: RBSA 2012-Single Family/RBSA 2012-Manufactured Housing
C28: Product Data | D28: Single Family | E28: Multi-Family | F28: Manufactured Homes | G28: All Segments (AVERAGE) | H28: Source
C29: Dryer Capacity (cu.ft) | D29: =$G29 -> 7 | E29: 7 | F29: 7 | G29: 7 | H29: NW Council Clothes Washers Supply Curve
C30: Test Load Size (lbs/load) | D30: 8.45 | E30: 8.45 | F30: 8.45 | G30: 8.45 | H30: DOE TSD Chapter 5: average loads for standard-size units range from 3.8 lbs. to 13.7 lbs., with a mean value of 8.45 lbs
C31: Lifetime (years) | D31: 16 | E31: =$D31 -> 16 | F31: =$D31 -> 16 | G31: =SUMPRODUCT($D$8:$F$8,$D$13:$F$13,D31:F31)/$G$13 -> 16 | H31: DOE Residential Clothes Dryer NIA

Sheet Constants
C2: Constants
C4: NAVIGATION
C6: COMMENTS
C10: Hours/Day | D10: 24
C11: Days/Week | D11: 7
C12: Days/Year | D12: 365.25
C13: kW/MW | D13: 1000
C14: Hours/Year | D14: 8760

Sheet Efficiency Dist - SF (hidden)
C2: Efficiency Distributions by Product Class - Single Family
C4: =Navigation!$C$15 -> NAVIGATION
D7: ='Product Classes'!H10&" - "&OFFSET('Product Classes'!$C$9,MATCH('Product Classes'!H10,MODEL_PCS,0),0) -> B 2.5 W - AC-DC, Basic Voltage 2.5 W Rep. Unit
D9: PRE-Case | F9: Static Distribution
D10: Efficiency Level | E10: ='Efficiency Levels'!D$11 -> 0 | F10: 2015 | H10: 1990 | I10: =H10+1 -> 1991 | J10: =I10+1 -> 1992 | K10: 1993 | L10: 1994 | M10: 1995 | N10: 1996 | O10: 1997 | P10: 1998 | Q10: 1999 | R10: 2000 | S10: 2001 | T10: 2002 | U10: 2003 | V10: 2004 | W10: 2005 | X10: 2006 | Y10: 2007 | Z10: 2008 | AA10: 2009 | AB10: 2010 | AC10: 2011 | AD10: 2012 | AE10: 2013 | AF10: 2014 | AG10: 2015 | AH10: 2016 | AI10: 2017 | AJ10: 2018 | AK10: 2019 | AL10: 2020 | AM10: 2021 | AN10: 2022 | AO10: 2023 | AP10: 2024 | AQ10: 2025 | AR10: 2026 | AS10: 2027 | AT10: 2028 | AU10: 2029 | AV10: 2030 | AW10: 2031 | AX10: 2032 | AY10: 2033 | AZ10: 2034
D11: ='Efficiency Levels'!C12 -> EL0 | E11: ='Efficiency Levels'!D12 -> EISA | F11: 0.44 | H11: =$F11 -> 0.44 | I11: =$F11 -> 0.44 | J11: 0.44 | K11: 0.44 | L11: 0.44 | M11: 0.44 | N11: 0.44 | O11: 0.44 | P11: 0.44 | Q11: 0.44 | R11: 0.44 | S11: 0.44 | T11: 0.44 | U11: 0.44 | V11: 0.44 | W11: 0.44 | X11: 0.44 | Y11: 0.44 | Z11: 0.44 | AA11: 0.44 | AB11: 0.44 | AC11: 0.44 | AD11: 0.44 | AE11: 0.44 | AF11: 0.44 | AG11: 0.44 | AH11: 0.44 | AI11: 0.44 | AJ11: 0.44 | AK11: 0.44 | AL11: 0.44 | AM11: 0.44 | AN11: 0.44 | AO11: 0.44 | AP11: 0.44 | AQ11: 0.44 | AR11: 0.44 | AS11: 0.44 | AT11: 0.44 | AU11: 0.44 | AV11: 0.44 | AW11: 0.44 | AX11: 0.44 | AY11: 0.44 | AZ11: 0.44
D12: ='Efficiency Levels'!C13 -> EL1 | E12: ='Efficiency Levels'!D13 -> Energy Star 2.0 | F12: 0.49 | H12: =$F12 -> 0.49 | I12: 0.49 | J12: 0.49 | K12: 0.49 | L12: 0.49 | M12: 0.49 | N12: 0.49 | O12: 0.49 | P12: 0.49 | Q12: 0.49 | R12: 0.49 | S12: 0.49 | T12: 0.49 | U12: 0.49 | V12: 0.49 | W12: 0.49 | X12: 0.49 | Y12: 0.49 | Z12: 0.49 | AA12: 0.49 | AB12: 0.49 | AC12: 0.49 | AD12: 0.49 | AE12: 0.49 | AF12: 0.49 | AG12: 0.49 | AH12: 0.49 | AI12: 0.49 | AJ12: 0.49 | AK12: 0.49 | AL12: 0.49 | AM12: 0.49 | AN12: 0.49 | AO12: 0.49 | AP12: 0.49 | AQ12: 0.49 | AR12: 0.49 | AS12: 0.49 | AT12: 0.49 | AU12: 0.49 | AV12: 0.49 | AW12: 0.49 | AX12: 0.49 | AY12: 0.49 | AZ12: 0.49
D13: ='Efficiency Levels'!C14 -> EL2 | E13: ='Efficiency Levels'!D14 -> Intermediate | F13: 0.05 | H13: 0.05 | I13: 0.05 | J13: 0.05 | K13: 0.05 | L13: 0.05 | M13: 0.05 | N13: 0.05 | O13: 0.05 | P13: 0.05 | Q13: 0.05 | R13: 0.05 | S13: 0.05 | T13: 0.05 | U13: 0.05 | V13: 0.05 | W13: 0.05 | X13: 0.05 | Y13: 0.05 | Z13: 0.05 | AA13: 0.05 | AB13: 0.05 | AC13: 0.05 | AD13: 0.05 | AE13: 0.05 | AF13: 0.05 | AG13: 0.05 | AH13: 0.05 | AI13: 0.05 | AJ13: 0.05 | AK13: 0.05 | AL13: 0.05 | AM13: 0.05 | AN13: 0.05 | AO13: 0.05 | AP13: 0.05 | AQ13: 0.05 | AR13: 0.05 | AS13: 0.05 | AT13: 0.05 | AU13: 0.05 | AV13: 0.05 | AW13: 0.05 | AX13: 0.05 | AY13: 0.05 | AZ13: 0.05
D14: ='Efficiency Levels'!C15 -> EL3 | E14: ='Efficiency Levels'!D15 -> Best in Market | F14: 0.02 | H14: 0.02 | I14: 0.02 | J14: 0.02 | K14: 0.02 | L14: 0.02 | M14: 0.02 | N14: 0.02 | O14: 0.02 | P14: 0.02 | Q14: 0.02 | R14: 0.02 | S14: 0.02 | T14: 0.02 | U14: 0.02 | V14: 0.02 | W14: 0.02 | X14: 0.02 | Y14: 0.02 | Z14: 0.02 | AA14: 0.02 | AB14: 0.02 | AC14: 0.02 | AD14: 0.02 | AE14: 0.02 | AF14: 0.02 | AG14: 0.02 | AH14: 0.02 | AI14: 0.02 | AJ14: 0.02 | AK14: 0.02 | AL14: 0.02 | AM14: 0.02 | AN14: 0.02 | AO14: 0.02 | AP14: 0.02 | AQ14: 0.02 | AR14: 0.02 | AS14: 0.02 | AT14: 0.02 | AU14: 0.02 | AV14: 0.02 | AW14: 0.02 | AX14: 0.02 | AY14: 0.02 | AZ14: 0.02
D16: TOTAL | F16: =SUM(F11:F14) -> 1 | H16: =SUM(H11:H14) -> 1 | I16: 1 | J16: 1 | K16: 1 | L16: 1 | M16: 1 | N16: 1 | O16: 1 | P16: 1 | Q16: 1 | R16: 1 | S16: 1 | T16: 1 | U16: 1 | V16: 1 | W16: 1 | X16: 1 | Y16: 1 | Z16: 1 | AA16: 1 | AB16: 1 | AC16: 1 | AD16: 1 | AE16: 1 | AF16: 1 | AG16: 1 | AH16: 1 | AI16: 1 | AJ16: 1 | AK16: 1 | AL16: 1 | AM16: 1 | AN16: 1 | AO16: 1 | AP16: 1 | AQ16: 1 | AR16: 1 | AS16: 1 | AT16: 1 | AU16: 1 | AV16: 1 | AW16: 1 | AX16: 1 | AY16: 1 | AZ16: 1
D18: POST-Case
D19: Efficiency Level | E19: =$E$10 -> 0 | H19: 1990 | I19: =H19+1 -> 1991 | J19: =I19+1 -> 1992 | K19: 1993 | L19: 1994 | M19: 1995 | N19: 1996 | O19: 1997 | P19: 1998 | Q19: 1999 | R19: 2000 | S19: 2001 | T19: 2002 | U19: 2003 | V19: 2004 | W19: 2005 | X19: =X10 -> 2006 | Y19: 2007 | Z19: 2008 | AA19: 2009 | AB19: 2010 | AC19: 2011 | AD19: 2012 | AE19: 2013 | AF19: 2014 | AG19: 2015 | AH19: 2016 | AI19: 2017 | AJ19: 2018 | AK19: 2019 | AL19: 2020 | AM19: 2021 | AN19: 2022 | AO19: 2023 | AP19: 2024 | AQ19: 2025 | AR19: 2026 | AS19: 2027 | AT19: 2028 | AU19: 2029 | AV19: 2030 | AW19: 2031 | AX19: 2032 | AY19: 2033 | AZ19: 2034
D20: ='Efficiency Levels'!C12 -> EL0 | E20: ='Efficiency Levels'!D12 -> EISA | H20: =H11 -> 0.44 | I20: 0.44 | J20: 0.44 | K20: 0.44 | L20: 0.44 | M20: 0.44 | N20: 0.44 | O20: 0.44 | P20: 0.44 | Q20: 0.44 | R20: 0.44 | S20: 0.44 | T20: 0.44 | U20: 0.44 | V20: 0.44 | W20: 0.44 | X20: 0.44 | Y20: 0.44 | Z20: 0.44 | AA20: 0.44 | AB20: 0.44 | AC20: 0.44 | AD20: 0.44 | AE20: 0.44 | AF20: 0.44 | AG20: 0 | AH20: 0 | AI20: 0 | AJ20: 0 | AK20: 0 | AL20: 0 | AM20: 0 | AN20: 0 | AO20: 0 | AP20: 0 | AQ20: 0 | AR20: 0 | AS20: 0 | AT20: 0 | AU20: 0 | AV20: 0 | AW20: 0 | AX20: 0 | AY20: 0 | AZ20: 0
D21: ='Efficiency Levels'!C13 -> EL1 | E21: ='Efficiency Levels'!D13 -> Energy Star 2.0 | H21: =H12 -> 0.49 | I21: 0.49 | J21: 0.49 | K21: 0.49 | L21: 0.49 | M21: 0.49 | N21: 0.49 | O21: 0.49 | P21: 0.49 | Q21: 0.49 | R21: 0.49 | S21: 0.49 | T21: 0.49 | U21: 0.49 | V21: 0.49 | W21: 0.49 | X21: 0.49 | Y21: 0.49 | Z21: 0.49 | AA21: 0.49 | AB21: 0.49 | AC21: 0.49 | AD21: 0.49 | AE21: 0.49 | AF21: 0.49 | AG21: 0 | AH21: 0 | AI21: 0 | AJ21: 0 | AK21: 0 | AL21: 0 | AM21: 0 | AN21: 0 | AO21: 0 | AP21: 0 | AQ21: 0 | AR21: 0 | AS21: 0 | AT21: 0 | AU21: 0 | AV21: 0 | AW21: 0 | AX21: 0 | AY21: 0 | AZ21: 0
D22: ='Efficiency Levels'!C14 -> EL2 | E22: ='Efficiency Levels'!D14 -> Intermediate | H22: =H13 -> 0.05 | I22: 0.05 | J22: 0.05 | K22: 0.05 | L22: 0.05 | M22: 0.05 | N22: 0.05 | O22: 0.05 | P22: 0.05 | Q22: 0.05 | R22: 0.05 | S22: 0.05 | T22: 0.05 | U22: 0.05 | V22: 0.05 | W22: 0.05 | X22: 0.05 | Y22: 0.05 | Z22: 0.05 | AA22: 0.05 | AB22: 0.05 | AC22: 0.05 | AD22: 0.05 | AE22: 0.05 | AF22: 0.05 | AG22: 0 | AH22: 0 | AI22: 0 | AJ22: 0 | AK22: 0 | AL22: 0 | AM22: 0 | AN22: 0 | AO22: 0 | AP22: 0 | AQ22: 0 | AR22: 0 | AS22: 0 | AT22: 0 | AU22: 0 | AV22: 0 | AW22: 0 | AX22: 0 | AY22: 0 | AZ22: 0
D23: ='Efficiency Levels'!C15 -> EL3 | E23: ='Efficiency Levels'!D15 -> Best in Market | H23: =H14 -> 0.02 | I23: 0.02 | J23: 0.02 | K23: 0.02 | L23: 0.02 | M23: 0.02 | N23: 0.02 | O23: 0.02 | P23: 0.02 | Q23: 0.02 | R23: 0.02 | S23: 0.02 | T23: 0.02 | U23: 0.02 | V23: 0.02 | W23: 0.02 | X23: 0.02 | Y23: 0.02 | Z23: 0.02 | AA23: 0.02 | AB23: 0.02 | AC23: 0.02 | AD23: 0.02 | AE23: 0.02 | AF23: 0.02 | AG23: =SUM(AG11:AG14) -> 1 | AH23: 1 | AI23: 1 | AJ23: 1 | AK23: 1 | AL23: 1 | AM23: 1 | AN23: 1 | AO23: 1 | AP23: 1 | AQ23: 1 | AR23: 1 | AS23: 1 | AT23: 1 | AU23: 1 | AV23: 1 | AW23: 1 | AX23: 1 | AY23: 1 | AZ23: 1
D24: TOTAL | H24: =SUM(H20:H23) -> 1 | I24: 1 | J24: 1 | K24: 1 | L24: 1 | M24: 1 | N24: 1 | O24: 1 | P24: 1 | Q24: 1 | R24: 1 | S24: 1 | T24: 1 | U24: 1 | V24: 1 | W24: 1 | X24: 1 | Y24: 1 | Z24: 1 | AA24: 1 | AB24: 1 | AC24: 1 | AD24: 1 | AE24: 1 | AF24: 1 | AG24: 1 | AH24: 1 | AI24: 1 | AJ24: 1 | AK24: 1 | AL24: 1 | AM24: 1 | AN24: 1 | AO24: 1 | AP24: 1 | AQ24: 1 | AR24: 1 | AS24: 1 | AT24: 1 | AU24: 1 | AV24: 1 | AW24: 1 | AX24: 1 | AY24: 1 | AZ24: 1
D26: Sources | E26: DOE 2014 Final Rule NIA Model
D30: ='Product Classes'!H11&" - "&OFFSET('Product Classes'!$C$9,MATCH('Product Classes'!H11,MODEL_PCS,0),0) -> B 18 W - AC-DC, Basic Voltage 18 W Rep. Unit
D32: PRE-Case | F32: Static Distribution
D33: Efficiency Level | E33: ='Efficiency Levels'!D$11 -> 0 | F33: 2015 | H33: 1990 | I33: =H33+1 -> 1991 | J33: =I33+1 -> 1992 | K33: =J33+1 -> 1993 | L33: =K33+1 -> 1994 | M33: =L33+1 -> 1995 | N33: =M33+1 -> 1996 | O33: =N33+1 -> 1997 | P33: =O33+1 -> 1998 | Q33: =P33+1 -> 1999 | R33: =Q33+1 -> 2000 | S33: =R33+1 -> 2001 | T33: =S33+1 -> 2002 | U33: =T33+1 -> 2003 | V33: =U33+1 -> 2004 | W33: =V33+1 -> 2005 | X33: =W33+1 -> 2006 | Y33: =X33+1 -> 2007 | Z33: =Y33+1 -> 2008 | AA33: =Z33+1 -> 2009 | AB33: =AA33+1 -> 2010 | AC33: =AB33+1 -> 2011 | AD33: =AC33+1 -> 2012 | AE33: =AD33+1 -> 2013 | AF33: =AE33+1 -> 2014 | AG33: =AF33+1 -> 2015 | AH33: =AG33+1 -> 2016 | AI33: =AH33+1 -> 2017 | AJ33: =AI33+1 -> 2018 | AK33: =AJ33+1 -> 2019 | AL33: =AK33+1 -> 2020 | AM33: =AL33+1 -> 2021 | AN33: =AM33+1 -> 2022 | AO33: =AN33+1 -> 2023 | AP33: =AO33+1 -> 2024 | AQ33: =AP33+1 -> 2025 | AR33: =AQ33+1 -> 2026 | AS33: =AR33+1 -> 2027 | AT33: =AS33+1 -> 2028 | AU33: =AT33+1 -> 2029 | AV33: =AU33+1 -> 2030 | AW33: =AV33+1 -> 2031 | AX33: =AW33+1 -> 2032 | AY33: =AX33+1 -> 2033 | AZ33: =AY33+1 -> 2034
D34: ='Efficiency Levels'!C34 -> 0 | E34: ='Efficiency Levels'!D34 -> 0 | F34: 0.19 | H34: =$F34 -> 0.19 | I34: =$F34 -> 0.19 | J34: 0.19 | K34: 0.19 | L34: 0.19 | M34: 0.19 | N34: 0.19 | O34: 0.19 | P34: 0.19 | Q34: 0.19 | R34: 0.19 | S34: 0.19 | T34: 0.19 | U34: 0.19 | V34: 0.19 | W34: 0.19 | X34: 0.19 | Y34: 0.19 | Z34: 0.19 | AA34: 0.19 | AB34: 0.19 | AC34: 0.19 | AD34: 0.19 | AE34: 0.19 | AF34: 0.19 | AG34: 0.19 | AH34: 0.19 | AI34: 0.19 | AJ34: 0.19 | AK34: 0.19 | AL34: 0.19 | AM34: 0.19 | AN34: 0.19 | AO34: 0.19 | AP34: 0.19 | AQ34: 0.19 | AR34: 0.19 | AS34: 0.19 | AT34: 0.19 | AU34: 0.19 | AV34: 0.19 | AW34: 0.19 | AX34: 0.19 | AY34: 0.19 | AZ34: 0.19
D35: ='Efficiency Levels'!C35 -> 0 | E35: ='Efficiency Levels'!D35 -> 0 | F35: 0.52 | H35: =$F35 -> 0.52 | I35: 0.52 | J35: 0.52 | K35: 0.52 | L35: 0.52 | M35: 0.52 | N35: 0.52 | O35: 0.52 | P35: 0.52 | Q35: 0.52 | R35: 0.52 | S35: 0.52 | T35: 0.52 | U35: 0.52 | V35: 0.52 | W35: 0.52 | X35: 0.52 | Y35: 0.52 | Z35: 0.52 | AA35: 0.52 | AB35: 0.52 | AC35: 0.52 | AD35: 0.52 | AE35: 0.52 | AF35: 0.52 | AG35: 0.52 | AH35: 0.52 | AI35: 0.52 | AJ35: 0.52 | AK35: 0.52 | AL35: 0.52 | AM35: 0.52 | AN35: 0.52 | AO35: 0.52 | AP35: 0.52 | AQ35: 0.52 | AR35: 0.52 | AS35: 0.52 | AT35: 0.52 | AU35: 0.52 | AV35: 0.52 | AW35: 0.52 | AX35: 0.52 | AY35: 0.52 | AZ35: 0.52
D36: ='Efficiency Levels'!C36 -> Sources | E36: ='Efficiency Levels'!D36 -> 1. DOE External Power Supplies 2014 Final Rule, Technical Support Document: National Impact Analysis Spreadsheet, 'EPS Inputs' tab, cells C66:I67 | F36: 0.18 | H36: 0.18 | I36: 0.18 | J36: 0.18 | K36: 0.18 | L36: 0.18 | M36: 0.18 | N36: 0.18 | O36: 0.18 | P36: 0.18 | Q36: 0.18 | R36: 0.18 | S36: 0.18 | T36: 0.18 | U36: 0.18 | V36: 0.18 | W36: 0.18 | X36: 0.18 | Y36: 0.18 | Z36: 0.18 | AA36: 0.18 | AB36: 0.18 | AC36: 0.18 | AD36: 0.18 | AE36: 0.18 | AF36: 0.18 | AG36: 0.18 | AH36: 0.18 | AI36: 0.18 | AJ36: 0.18 | AK36: 0.18 | AL36: 0.18 | AM36: 0.18 | AN36: 0.18 | AO36: 0.18 | AP36: 0.18 | AQ36: 0.18 | AR36: 0.18 | AS36: 0.18 | AT36: 0.18 | AU36: 0.18 | AV36: 0.18 | AW36: 0.18 | AX36: 0.18 | AY36: 0.18 | AZ36: 0.18
D37: ='Efficiency Levels'!C37 -> 0 | E37: ='Efficiency Levels'!D37 -> 2. For TSL Selection: DOE External Power Supplies 2014 Final Rule, Federal Register Notice, page 7918, "Benefits and Burdens of Trial Standard Levels Considered for EPS Product Class B" section, http://www.regulations.gov/#!documentDetail;D=EERE-2008-BT-STD-0005-0219) For TSL to CSL Mapping: DOE External Power Supplies 2014 Final Rule, Technical Support Document: National Impact Analysis Spreadsheet, 'TSL Results' tab, cells L6:L13 For Compliance Year: DOE External Power Supplies 2014 Final Rule, Federal Register Notice, page 7846, "Dates" section, http://www.regulations.gov/#!documentDetail;D=EERE-2008-BT-STD-0005-0219 | F37: 0.11 | H37: 0.11 | I37: 0.11 | J37: 0.11 | K37: 0.11 | L37: 0.11 | M37: 0.11 | N37: 0.11 | O37: 0.11 | P37: 0.11 | Q37: 0.11 | R37: 0.11 | S37: 0.11 | T37: 0.11 | U37: 0.11 | V37: 0.11 | W37: 0.11 | X37: 0.11 | Y37: 0.11 | Z37: 0.11 | AA37: 0.11 | AB37: 0.11 | AC37: 0.11 | AD37: 0.11 | AE37: 0.11 | AF37: 0.11 | AG37: 0.11 | AH37: 0.11 | AI37: 0.11 | AJ37: 0.11 | AK37: 0.11 | AL37: 0.11 | AM37: 0.11 | AN37: 0.11 | AO37: 0.11 | AP37: 0.11 | AQ37: 0.11 | AR37: 0.11 | AS37: 0.11 | AT37: 0.11 | AU37: 0.11 | AV37: 0.11 | AW37: 0.11 | AX37: 0.11 | AY37: 0.11 | AZ37: 0.11
D38: TOTAL | F38: =SUM(F34:F37) -> 1 | H38: =SUM(H34:H37) -> 1 | I38: 1 | J38: 1 | K38: 1 | L38: 1 | M38: 1 | N38: 1 | O38: 1 | P38: 1 | Q38: 1 | R38: 1 | S38: 1 | T38: 1 | U38: 1 | V38: 1 | W38: 1 | X38: 1 | Y38: 1 | Z38: 1 | AA38: 1 | AB38: 1 | AC38: 1 | AD38: 1 | AE38: 1 | AF38: 1 | AG38: 1 | AH38: 1 | AI38: 1 | AJ38: 1 | AK38: 1 | AL38: 1 | AM38: 1 | AN38: 1 | AO38: 1 | AP38: 1 | AQ38: 1 | AR38: 1 | AS38: 1 | AT38: 1 | AU38: 1 | AV38: 1 | AW38: 1 | AX38: 1 | AY38: 1 | AZ38: 1
D40: POST-Case
D41: Efficiency Level | E41: =$E$10 -> 0 | H41: 1990 | I41: =H41+1 -> 1991 | J41: =I41+1 -> 1992 | K41: =J41+1 -> 1993 | L41: =K41+1 -> 1994 | M41: =L41+1 -> 1995 | N41: =M41+1 -> 1996 | O41: =N41+1 -> 1997 | P41: =O41+1 -> 1998 | Q41: =P41+1 -> 1999 | R41: =Q41+1 -> 2000 | S41: =R41+1 -> 2001 | T41: =S41+1 -> 2002 | U41: =T41+1 -> 2003 | V41: =U41+1 -> 2004 | W41: =V41+1 -> 2005 | X41: =X33 -> 2006 | Y41: 2007 | Z41: 2008 | AA41: 2009 | AB41: 2010 | AC41: 2011 | AD41: 2012 | AE41: 2013 | AF41: 2014 | AG41: 2015 | AH41: 2016 | AI41: 2017 | AJ41: 2018 | AK41: 2019 | AL41: 2020 | AM41: 2021 | AN41: 2022 | AO41: 2023 | AP41: 2024 | AQ41: 2025 | AR41: 2026 | AS41: 2027 | AT41: 2028 | AU41: 2029 | AV41: 2030 | AW41: 2031 | AX41: 2032 | AY41: 2033 | AZ41: 2034
D42: ='Efficiency Levels'!C34 -> 0 | E42: ='Efficiency Levels'!D34 -> 0 | H42: =H34 -> 0.19 | I42: 0.19 | J42: 0.19 | K42: 0.19 | L42: 0.19 | M42: 0.19 | N42: 0.19 | O42: 0.19 | P42: 0.19 | Q42: 0.19 | R42: 0.19 | S42: 0.19 | T42: 0.19 | U42: 0.19 | V42: 0.19 | W42: 0.19 | X42: 0.19 | Y42: 0.19 | Z42: 0.19 | AA42: 0.19 | AB42: 0.19 | AC42: 0.19 | AD42: 0.19 | AE42: 0.19 | AF42: 0.19 | AG42: 0 | AH42: 0 | AI42: 0 | AJ42: 0 | AK42: 0 | AL42: 0 | AM42: 0 | AN42: 0 | AO42: 0 | AP42: 0 | AQ42: 0 | AR42: 0 | AS42: 0 | AT42: 0 | AU42: 0 | AV42: 0 | AW42: 0 | AX42: 0 | AY42: 0 | AZ42: 0
D43: ='Efficiency Levels'!C35 -> 0 | E43: ='Efficiency Levels'!D35 -> 0 | H43: =H35 -> 0.52 | I43: 0.52 | J43: 0.52 | K43: 0.52 | L43: 0.52 | M43: 0.52 | N43: 0.52 | O43: 0.52 | P43: 0.52 | Q43: 0.52 | R43: 0.52 | S43: 0.52 | T43: 0.52 | U43: 0.52 | V43: 0.52 | W43: 0.52 | X43: 0.52 | Y43: 0.52 | Z43: 0.52 | AA43: 0.52 | AB43: 0.52 | AC43: 0.52 | AD43: 0.52 | AE43: 0.52 | AF43: 0.52 | AG43: 0 | AH43: 0 | AI43: 0 | AJ43: 0 | AK43: 0 | AL43: 0 | AM43: 0 | AN43: 0 | AO43: 0 | AP43: 0 | AQ43: 0 | AR43: 0 | AS43: 0 | AT43: 0 | AU43: 0 | AV43: 0 | AW43: 0 | AX43: 0 | AY43: 0 | AZ43: 0
D44: ='Efficiency Levels'!C36 -> Sources | E44: ='Efficiency Levels'!D36 -> 1. DOE External Power Supplies 2014 Final Rule, Technical Support Document: National Impact Analysis Spreadsheet, 'EPS Inputs' tab, cells C66:I67 | H44: =H36 -> 0.18 | I44: 0.18 | J44: 0.18 | K44: 0.18 | L44: 0.18 | M44: 0.18 | N44: 0.18 | O44: 0.18 | P44: 0.18 | Q44: 0.18 | R44: 0.18 | S44: 0.18 | T44: 0.18 | U44: 0.18 | V44: 0.18 | W44: 0.18 | X44: 0.18 | Y44: 0.18 | Z44: 0.18 | AA44: 0.18 | AB44: 0.18 | AC44: 0.18 | AD44: 0.18 | AE44: 0.18 | AF44: 0.18 | AG44: 0 | AH44: 0 | AI44: 0 | AJ44: 0 | AK44: 0 | AL44: 0 | AM44: 0 | AN44: 0 | AO44: 0 | AP44: 0 | AQ44: 0 | AR44: 0 | AS44: 0 | AT44: 0 | AU44: 0 | AV44: 0 | AW44: 0 | AX44: 0 | AY44: 0 | AZ44: 0
D45: ='Efficiency Levels'!C37 -> 0 | E45: ='Efficiency Levels'!D37 -> 2. For TSL Selection: DOE External Power Supplies 2014 Final Rule, Federal Register Notice, page 7918, "Benefits and Burdens of Trial Standard Levels Considered for EPS Product Class B" section, http://www.regulations.gov/#!documentDetail;D=EERE-2008-BT-STD-0005-0219) For TSL to CSL Mapping: DOE External Power Supplies 2014 Final Rule, Technical Support Document: National Impact Analysis Spreadsheet, 'TSL Results' tab, cells L6:L13 For Compliance Year: DOE External Power Supplies 2014 Final Rule, Federal Register Notice, page 7846, "Dates" section, http://www.regulations.gov/#!documentDetail;D=EERE-2008-BT-STD-0005-0219 | H45: =H37 -> 0.11 | I45: 0.11 | J45: 0.11 | K45: 0.11 | L45: 0.11 | M45: 0.11 | N45: 0.11 | O45: 0.11 | P45: 0.11 | Q45: 0.11 | R45: 0.11 | S45: 0.11 | T45: 0.11 | U45: 0.11 | V45: 0.11 | W45: 0.11 | X45: 0.11 | Y45: 0.11 | Z45: 0.11 | AA45: 0.11 | AB45: 0.11 | AC45: 0.11 | AD45: 0.11 | AE45: 0.11 | AF45: 0.11 | AG45: =SUM(AG34:AG37) -> 1 | AH45: 1 | AI45: 1 | AJ45: 1 | AK45: 1 | AL45: 1 | AM45: 1 | AN45: 1 | AO45: 1 | AP45: 1 | AQ45: 1 | AR45: 1 | AS45: 1 | AT45: 1 | AU45: 1 | AV45: 1 | AW45: 1 | AX45: 1 | AY45: 1 | AZ45: 1
D46: TOTAL | H46: =SUM(H42:H45) -> 1 | I46: 1 | J46: 1 | K46: 1 | L46: 1 | M46: 1 | N46: 1 | O46: 1 | P46: 1 | Q46: 1 | R46: 1 | S46: 1 | T46: 1 | U46: 1 | V46: 1 | W46: 1 | X46: 1 | Y46: 1 | Z46: 1 | AA46: 1 | AB46: 1 | AC46: 1 | AD46: 1 | AE46: 1 | AF46: 1 | AG46: 1 | AH46: 1 | AI46: 1 | AJ46: 1 | AK46: 1 | AL46: 1 | AM46: 1 | AN46: 1 | AO46: 1 | AP46: 1 | AQ46: 1 | AR46: 1 | AS46: 1 | AT46: 1 | AU46: 1 | AV46: 1 | AW46: 1 | AX46: 1 | AY46: 1 | AZ46: 1
D48: Sources | E48: DOE 2014 Final Rule NIA Model
D52: ='Product Classes'!H12&" - "&OFFSET('Product Classes'!$C$9,MATCH('Product Classes'!H12,MODEL_PCS,0),0) -> B 60 W - AC-DC, Basic Voltage 60 W Rep. Unit
D54: PRE-Case | F54: Static Distribution
D55: Efficiency Level | E55: ='Efficiency Levels'!D$11 -> 0 | F55: 2015 | H55: 1990 | I55: =H55+1 -> 1991 | J55: =I55+1 -> 1992 | K55: =J55+1 -> 1993 | L55: =K55+1 -> 1994 | M55: =L55+1 -> 1995 | N55: =M55+1 -> 1996 | O55: =N55+1 -> 1997 | P55: =O55+1 -> 1998 | Q55: =P55+1 -> 1999 | R55: =Q55+1 -> 2000 | S55: =R55+1 -> 2001 | T55: =S55+1 -> 2002 | U55: =T55+1 -> 2003 | V55: =U55+1 -> 2004 | W55: =V55+1 -> 2005 | X55: =W55+1 -> 2006 | Y55: =X55+1 -> 2007 | Z55: =Y55+1 -> 2008 | AA55: =Z55+1 -> 2009 | AB55: =AA55+1 -> 2010 | AC55: =AB55+1 -> 2011 | AD55: =AC55+1 -> 2012 | AE55: =AD55+1 -> 2013 | AF55: =AE55+1 -> 2014 | AG55: =AF55+1 -> 2015 | AH55: =AG55+1 -> 2016 | AI55: =AH55+1 -> 2017 | AJ55: =AI55+1 -> 2018 | AK55: =AJ55+1 -> 2019 | AL55: =AK55+1 -> 2020 | AM55: =AL55+1 -> 2021 | AN55: =AM55+1 -> 2022 | AO55: =AN55+1 -> 2023 | AP55: =AO55+1 -> 2024 | AQ55: =AP55+1 -> 2025 | AR55: =AQ55+1 -> 2026 | AS55: =AR55+1 -> 2027 | AT55: =AS55+1 -> 2028 | AU55: =AT55+1 -> 2029 | AV55: =AU55+1 -> 2030 | AW55: =AV55+1 -> 2031 | AX55: =AW55+1 -> 2032 | AY55: =AX55+1 -> 2033 | AZ55: =AY55+1 -> 2034
D56: ='Efficiency Levels'!C56 -> 0 | E56: ='Efficiency Levels'!D56 -> 0 | F56: 0.19 | H56: =$F56 -> 0.19 | I56: =$F56 -> 0.19 | J56: 0.19 | K56: 0.19 | L56: 0.19 | M56: 0.19 | N56: 0.19 | O56: 0.19 | P56: 0.19 | Q56: 0.19 | R56: 0.19 | S56: 0.19 | T56: 0.19 | U56: 0.19 | V56: 0.19 | W56: 0.19 | X56: 0.19 | Y56: 0.19 | Z56: 0.19 | AA56: 0.19 | AB56: 0.19 | AC56: 0.19 | AD56: 0.19 | AE56: 0.19 | AF56: 0.19 | AG56: 0.19 | AH56: 0.19 | AI56: 0.19 | AJ56: 0.19 | AK56: 0.19 | AL56: 0.19 | AM56: 0.19 | AN56: 0.19 | AO56: 0.19 | AP56: 0.19 | AQ56: 0.19 | AR56: 0.19 | AS56: 0.19 | AT56: 0.19 | AU56: 0.19 | AV56: 0.19 | AW56: 0.19 | AX56: 0.19 | AY56: 0.19 | AZ56: 0.19
D57: ='Efficiency Levels'!C57 -> B 120 W | E57: ='Efficiency Levels'!D57 -> AC-DC, Basic Voltage 120 W Rep. Unit | F57: 0.63 | H57: =$F57 -> 0.63 | I57: 0.63 | J57: 0.63 | K57: 0.63 | L57: 0.63 | M57: 0.63 | N57: 0.63 | O57: 0.63 | P57: 0.63 | Q57: 0.63 | R57: 0.63 | S57: 0.63 | T57: 0.63 | U57: 0.63 | V57: 0.63 | W57: 0.63 | X57: 0.63 | Y57: 0.63 | Z57: 0.63 | AA57: 0.63 | AB57: 0.63 | AC57: 0.63 | AD57: 0.63 | AE57: 0.63 | AF57: 0.63 | AG57: 0.63 | AH57: 0.63 | AI57: 0.63 | AJ57: 0.63 | AK57: 0.63 | AL57: 0.63 | AM57: 0.63 | AN57: 0.63 | AO57: 0.63 | AP57: 0.63 | AQ57: 0.63 | AR57: 0.63 | AS57: 0.63 | AT57: 0.63 | AU57: 0.63 | AV57: 0.63 | AW57: 0.63 | AX57: 0.63 | AY57: 0.63 | AZ57: 0.63
D58: ='Efficiency Levels'!C58 -> 0 | E58: ='Efficiency Levels'!D58 -> 0 | F58: 0.17 | H58: 0.17 | I58: 0.17 | J58: 0.17 | K58: 0.17 | L58: 0.17 | M58: 0.17 | N58: 0.17 | O58: 0.17 | P58: 0.17 | Q58: 0.17 | R58: 0.17 | S58: 0.17 | T58: 0.17 | U58: 0.17 | V58: 0.17 | W58: 0.17 | X58: 0.17 | Y58: 0.17 | Z58: 0.17 | AA58: 0.17 | AB58: 0.17 | AC58: 0.17 | AD58: 0.17 | AE58: 0.17 | AF58: 0.17 | AG58: 0.17 | AH58: 0.17 | AI58: 0.17 | AJ58: 0.17 | AK58: 0.17 | AL58: 0.17 | AM58: 0.17 | AN58: 0.17 | AO58: 0.17 | AP58: 0.17 | AQ58: 0.17 | AR58: 0.17 | AS58: 0.17 | AT58: 0.17 | AU58: 0.17 | AV58: 0.17 | AW58: 0.17 | AX58: 0.17 | AY58: 0.17 | AZ58: 0.17
D59: ='Efficiency Levels'!C59 -> Model ELs1 | E59: ='Efficiency Levels'!D59 -> 0 | F59: 0.01 | H59: 0.01 | I59: 0.01 | J59: 0.01 | K59: 0.01 | L59: 0.01 | M59: 0.01 | N59: 0.01 | O59: 0.01 | P59: 0.01 | Q59: 0.01 | R59: 0.01 | S59: 0.01 | T59: 0.01 | U59: 0.01 | V59: 0.01 | W59: 0.01 | X59: 0.01 | Y59: 0.01 | Z59: 0.01 | AA59: 0.01 | AB59: 0.01 | AC59: 0.01 | AD59: 0.01 | AE59: 0.01 | AF59: 0.01 | AG59: 0.01 | AH59: 0.01 | AI59: 0.01 | AJ59: 0.01 | AK59: 0.01 | AL59: 0.01 | AM59: 0.01 | AN59: 0.01 | AO59: 0.01 | AP59: 0.01 | AQ59: 0.01 | AR59: 0.01 | AS59: 0.01 | AT59: 0.01 | AU59: 0.01 | AV59: 0.01 | AW59: 0.01 | AX59: 0.01 | AY59: 0.01 | AZ59: 0.01
D60: TOTAL | F60: =SUM(F56:F59) -> 1 | H60: =SUM(H56:H59) -> 1 | I60: 1 | J60: 1 | K60: 1 | L60: 1 | M60: 1 | N60: 1 | O60: 1 | P60: 1 | Q60: 1 | R60: 1 | S60: 1 | T60: 1 | U60: 1 | V60: 1 | W60: 1 | X60: 1 | Y60: 1 | Z60: 1 | AA60: 1 | AB60: 1 | AC60: 1 | AD60: 1 | AE60: 1 | AF60: 1 | AG60: 1 | AH60: 1 | AI60: 1 | AJ60: 1 | AK60: 1 | AL60: 1 | AM60: 1 | AN60: 1 | AO60: 1 | AP60: 1 | AQ60: 1 | AR60: 1 | AS60: 1 | AT60: 1 | AU60: 1 | AV60: 1 | AW60: 1 | AX60: 1 | AY60: 1 | AZ60: 1
D62: POST-Case
D63: Efficiency Level | E63: =$E$10 -> 0 | H63: 1990 | I63: =H63+1 -> 1991 | J63: =I63+1 -> 1992 | K63: =J63+1 -> 1993 | L63: =K63+1 -> 1994 | M63: =L63+1 -> 1995 | N63: =M63+1 -> 1996 | O63: =N63+1 -> 1997 | P63: =O63+1 -> 1998 | Q63: =P63+1 -> 1999 | R63: =Q63+1 -> 2000 | S63: =R63+1 -> 2001 | T63: =S63+1 -> 2002 | U63: =T63+1 -> 2003 | V63: =U63+1 -> 2004 | W63: =V63+1 -> 2005 | X63: =X55 -> 2006 | Y63: 2007 | Z63: 2008 | AA63: 2009 | AB63: 2010 | AC63: 2011 | AD63: 2012 | AE63: 2013 | AF63: 2014 | AG63: 2015 | AH63: 2016 | AI63: 2017 | AJ63: 2018 | AK63: 2019 | AL63: 2020 | AM63: 2021 | AN63: 2022 | AO63: 2023 | AP63: 2024 | AQ63: 2025 | AR63: 2026 | AS63: 2027 | AT63: 2028 | AU63: 2029 | AV63: 2030 | AW63: 2031 | AX63: 2032 | AY63: 2033 | AZ63: 2034
D64: ='Efficiency Levels'!C56 -> 0 | E64: ='Efficiency Levels'!D56 -> 0 | H64: =H56 -> 0.19 | I64: 0.19 | J64: 0.19 | K64: 0.19 | L64: 0.19 | M64: 0.19 | N64: 0.19 | O64: 0.19 | P64: 0.19 | Q64: 0.19 | R64: 0.19 | S64: 0.19 | T64: 0.19 | U64: 0.19 | V64: 0.19 | W64: 0.19 | X64: 0.19 | Y64: 0.19 | Z64: 0.19 | AA64: 0.19 | AB64: 0.19 | AC64: 0.19 | AD64: 0.19 | AE64: 0.19 | AF64: 0.19 | AG64: 0 | AH64: 0 | AI64: 0 | AJ64: 0 | AK64: 0 | AL64: 0 | AM64: 0 | AN64: 0 | AO64: 0 | AP64: 0 | AQ64: 0 | AR64: 0 | AS64: 0 | AT64: 0 | AU64: 0 | AV64: 0 | AW64: 0 | AX64: 0 | AY64: 0 | AZ64: 0
D65: ='Efficiency Levels'!C57 -> B 120 W | E65: ='Efficiency Levels'!D57 -> AC-DC, Basic Voltage 120 W Rep. Unit | H65: =H57 -> 0.63 | I65: 0.63 | J65: 0.63 | K65: 0.63 | L65: 0.63 | M65: 0.63 | N65: 0.63 | O65: 0.63 | P65: 0.63 | Q65: 0.63 | R65: 0.63 | S65: 0.63 | T65: 0.63 | U65: 0.63 | V65: 0.63 | W65: 0.63 | X65: 0.63 | Y65: 0.63 | Z65: 0.63 | AA65: 0.63 | AB65: 0.63 | AC65: 0.63 | AD65: 0.63 | AE65: 0.63 | AF65: 0.63 | AG65: 0 | AH65: 0 | AI65: 0 | AJ65: 0 | AK65: 0 | AL65: 0 | AM65: 0 | AN65: 0 | AO65: 0 | AP65: 0 | AQ65: 0 | AR65: 0 | AS65: 0 | AT65: 0 | AU65: 0 | AV65: 0 | AW65: 0 | AX65: 0 | AY65: 0 | AZ65: 0
D66: ='Efficiency Levels'!C58 -> 0 | E66: ='Efficiency Levels'!D58 -> 0 | H66: =H58 -> 0.17 | I66: 0.17 | J66: 0.17 | K66: 0.17 | L66: 0.17 | M66: 0.17 | N66: 0.17 | O66: 0.17 | P66: 0.17 | Q66: 0.17 | R66: 0.17 | S66: 0.17 | T66: 0.17 | U66: 0.17 | V66: 0.17 | W66: 0.17 | X66: 0.17 | Y66: 0.17 | Z66: 0.17 | AA66: 0.17 | AB66: 0.17 | AC66: 0.17 | AD66: 0.17 | AE66: 0.17 | AF66: 0.17 | AG66: 0 | AH66: 0 | AI66: 0 | AJ66: 0 | AK66: 0 | AL66: 0 | AM66: 0 | AN66: 0 | AO66: 0 | AP66: 0 | AQ66: 0 | AR66: 0 | AS66: 0 | AT66: 0 | AU66: 0 | AV66: 0 | AW66: 0 | AX66: 0 | AY66: 0 | AZ66: 0
D67: ='Efficiency Levels'!C59 -> Model ELs1 | E67: ='Efficiency Levels'!D59 -> 0 | H67: =H59 -> 0.01 | I67: 0.01 | J67: 0.01 | K67: 0.01 | L67: 0.01 | M67: 0.01 | N67: 0.01 | O67: 0.01 | P67: 0.01 | Q67: 0.01 | R67: 0.01 | S67: 0.01 | T67: 0.01 | U67: 0.01 | V67: 0.01 | W67: 0.01 | X67: 0.01 | Y67: 0.01 | Z67: 0.01 | AA67: 0.01 | AB67: 0.01 | AC67: 0.01 | AD67: 0.01 | AE67: 0.01 | AF67: 0.01 | AG67: =SUM(AG56:AG59) -> 1 | AH67: 1 | AI67: 1 | AJ67: 1 | AK67: 1 | AL67: 1 | AM67: 1 | AN67: 1 | AO67: 1 | AP67: 1 | AQ67: 1 | AR67: 1 | AS67: 1 | AT67: 1 | AU67: 1 | AV67: 1 | AW67: 1 | AX67: 1 | AY67: 1 | AZ67: 1
D68: TOTAL | H68: =SUM(H64:H67) -> 1 | I68: 1 | J68: 1 | K68: 1 | L68: 1 | M68: 1 | N68: 1 | O68: 1 | P68: 1 | Q68: 1 | R68: 1 | S68: 1 | T68: 1 | U68: 1 | V68: 1 | W68: 1 | X68: 1 | Y68: 1 | Z68: 1 | AA68: 1 | AB68: 1 | AC68: 1 | AD68: 1 | AE68: 1 | AF68: 1 | AG68: 1 | AH68: 1 | AI68: 1 | AJ68: 1 | AK68: 1 | AL68: 1 | AM68: 1 | AN68: 1 | AO68: 1 | AP68: 1 | AQ68: 1 | AR68: 1 | AS68: 1 | AT68: 1 | AU68: 1 | AV68: 1 | AW68: 1 | AX68: 1 | AY68: 1 | AZ68: 1
D70: Sources | E70: DOE 2014 Final Rule NIA Model
D74: ='Product Classes'!H13&" - "&OFFSET('Product Classes'!$C$9,MATCH('Product Classes'!H13,MODEL_PCS,0),0) -> B 120 W - AC-DC, Basic Voltage 120 W Rep. Unit
D76: PRE-Case | F76: Static Distribution
D77: Efficiency Level | E77: ='Efficiency Levels'!D$11 -> 0 | F77: 2015 | H77: 1990 | I77: =H77+1 -> 1991 | J77: =I77+1 -> 1992 | K77: =J77+1 -> 1993 | L77: =K77+1 -> 1994 | M77: =L77+1 -> 1995 | N77: =M77+1 -> 1996 | O77: =N77+1 -> 1997 | P77: =O77+1 -> 1998 | Q77: =P77+1 -> 1999 | R77: =Q77+1 -> 2000 | S77: =R77+1 -> 2001 | T77: =S77+1 -> 2002 | U77: =T77+1 -> 2003 | V77: =U77+1 -> 2004 | W77: =V77+1 -> 2005 | X77: =W77+1 -> 2006 | Y77: =X77+1 -> 2007 | Z77: =Y77+1 -> 2008 | AA77: =Z77+1 -> 2009 | AB77: =AA77+1 -> 2010 | AC77: =AB77+1 -> 2011 | AD77: =AC77+1 -> 2012 | AE77: =AD77+1 -> 2013 | AF77: =AE77+1 -> 2014 | AG77: =AF77+1 -> 2015 | AH77: =AG77+1 -> 2016 | AI77: =AH77+1 -> 2017 | AJ77: =AI77+1 -> 2018 | AK77: =AJ77+1 -> 2019 | AL77: =AK77+1 -> 2020 | AM77: =AL77+1 -> 2021 | AN77: =AM77+1 -> 2022 | AO77: =AN77+1 -> 2023 | AP77: =AO77+1 -> 2024 | AQ77: =AP77+1 -> 2025 | AR77: =AQ77+1 -> 2026 | AS77: =AR77+1 -> 2027 | AT77: =AS77+1 -> 2028 | AU77: =AT77+1 -> 2029 | AV77: =AU77+1 -> 2030 | AW77: =AV77+1 -> 2031 | AX77: =AW77+1 -> 2032 | AY77: =AX77+1 -> 2033 | AZ77: =AY77+1 -> 2034
D78: ='Efficiency Levels'!C78 -> EL2 | E78: ='Efficiency Levels'!D78 -> Intermediate | F78: 0.26 | H78: =$F78 -> 0.26 | I78: =$F78 -> 0.26 | J78: 0.26 | K78: 0.26 | L78: 0.26 | M78: 0.26 | N78: 0.26 | O78: 0.26 | P78: 0.26 | Q78: 0.26 | R78: 0.26 | S78: 0.26 | T78: 0.26 | U78: 0.26 | V78: 0.26 | W78: 0.26 | X78: 0.26 | Y78: 0.26 | Z78: 0.26 | AA78: 0.26 | AB78: 0.26 | AC78: 0.26 | AD78: 0.26 | AE78: 0.26 | AF78: 0.26 | AG78: 0.26 | AH78: 0.26 | AI78: 0.26 | AJ78: 0.26 | AK78: 0.26 | AL78: 0.26 | AM78: 0.26 | AN78: 0.26 | AO78: 0.26 | AP78: 0.26 | AQ78: 0.26 | AR78: 0.26 | AS78: 0.26 | AT78: 0.26 | AU78: 0.26 | AV78: 0.26 | AW78: 0.26 | AX78: 0.26 | AY78: 0.26 | AZ78: 0.26
D79: ='Efficiency Levels'!C79 -> EL3 | E79: ='Efficiency Levels'!D79 -> Best in Market | F79: 0.53 | H79: =$F79 -> 0.53 | I79: 0.53 | J79: 0.53 | K79: 0.53 | L79: 0.53 | M79: 0.53 | N79: 0.53 | O79: 0.53 | P79: 0.53 | Q79: 0.53 | R79: 0.53 | S79: 0.53 | T79: 0.53 | U79: 0.53 | V79: 0.53 | W79: 0.53 | X79: 0.53 | Y79: 0.53 | Z79: 0.53 | AA79: 0.53 | AB79: 0.53 | AC79: 0.53 | AD79: 0.53 | AE79: 0.53 | AF79: 0.53 | AG79: 0.53 | AH79: 0.53 | AI79: 0.53 | AJ79: 0.53 | AK79: 0.53 | AL79: 0.53 | AM79: 0.53 | AN79: 0.53 | AO79: 0.53 | AP79: 0.53 | AQ79: 0.53 | AR79: 0.53 | AS79: 0.53 | AT79: 0.53 | AU79: 0.53 | AV79: 0.53 | AW79: 0.53 | AX79: 0.53 | AY79: 0.53 | AZ79: 0.53
D80: ='Efficiency Levels'!C80 -> EL4 | E80: ='Efficiency Levels'!D80 -> Max Tech | F80: 0.18 | H80: 0.18 | I80: 0.18 | J80: 0.18 | K80: 0.18 | L80: 0.18 | M80: 0.18 | N80: 0.18 | O80: 0.18 | P80: 0.18 | Q80: 0.18 | R80: 0.18 | S80: 0.18 | T80: 0.18 | U80: 0.18 | V80: 0.18 | W80: 0.18 | X80: 0.18 | Y80: 0.18 | Z80: 0.18 | AA80: 0.18 | AB80: 0.18 | AC80: 0.18 | AD80: 0.18 | AE80: 0.18 | AF80: 0.18 | AG80: 0.18 | AH80: 0.18 | AI80: 0.18 | AJ80: 0.18 | AK80: 0.18 | AL80: 0.18 | AM80: 0.18 | AN80: 0.18 | AO80: 0.18 | AP80: 0.18 | AQ80: 0.18 | AR80: 0.18 | AS80: 0.18 | AT80: 0.18 | AU80: 0.18 | AV80: 0.18 | AW80: 0.18 | AX80: 0.18 | AY80: 0.18 | AZ80: 0.18
D81: ='Efficiency Levels'!C81 -> 0 | E81: ='Efficiency Levels'!D81 -> 0 | F81: 0.03 | H81: 0.03 | I81: 0.03 | J81: 0.03 | K81: 0.03 | L81: 0.03 | M81: 0.03 | N81: 0.03 | O81: 0.03 | P81: 0.03 | Q81: 0.03 | R81: 0.03 | S81: 0.03 | T81: 0.03 | U81: 0.03 | V81: 0.03 | W81: 0.03 | X81: 0.03 | Y81: 0.03 | Z81: 0.03 | AA81: 0.03 | AB81: 0.03 | AC81: 0.03 | AD81: 0.03 | AE81: 0.03 | AF81: 0.03 | AG81: 0.03 | AH81: 0.03 | AI81: 0.03 | AJ81: 0.03 | AK81: 0.03 | AL81: 0.03 | AM81: 0.03 | AN81: 0.03 | AO81: 0.03 | AP81: 0.03 | AQ81: 0.03 | AR81: 0.03 | AS81: 0.03 | AT81: 0.03 | AU81: 0.03 | AV81: 0.03 | AW81: 0.03 | AX81: 0.03 | AY81: 0.03 | AZ81: 0.03
D82: TOTAL | F82: =SUM(F78:F81) -> 1 | H82: =SUM(H78:H81) -> 1 | I82: 1 | J82: 1 | K82: 1 | L82: 1 | M82: 1 | N82: 1 | O82: 1 | P82: 1 | Q82: 1 | R82: 1 | S82: 1 | T82: 1 | U82: 1 | V82: 1 | W82: 1 | X82: 1 | Y82: 1 | Z82: 1 | AA82: 1 | AB82: 1 | AC82: 1 | AD82: 1 | AE82: 1 | AF82: 1 | AG82: 1 | AH82: 1 | AI82: 1 | AJ82: 1 | AK82: 1 | AL82: 1 | AM82: 1 | AN82: 1 | AO82: 1 | AP82: 1 | AQ82: 1 | AR82: 1 | AS82: 1 | AT82: 1 | AU82: 1 | AV82: 1 | AW82: 1 | AX82: 1 | AY82: 1 | AZ82: 1
D84: POST-Case
D85: Efficiency Level | E85: =$E$10 -> 0 | H85: 1990 | I85: =H85+1 -> 1991 | J85: =I85+1 -> 1992 | K85: =J85+1 -> 1993 | L85: =K85+1 -> 1994 | M85: =L85+1 -> 1995 | N85: =M85+1 -> 1996 | O85: =N85+1 -> 1997 | P85: =O85+1 -> 1998 | Q85: =P85+1 -> 1999 | R85: =Q85+1 -> 2000 | S85: =R85+1 -> 2001 | T85: =S85+1 -> 2002 | U85: =T85+1 -> 2003 | V85: =U85+1 -> 2004 | W85: =V85+1 -> 2005 | X85: =X77 -> 2006 | Y85: 2007 | Z85: 2008 | AA85: 2009 | AB85: 2010 | AC85: 2011 | AD85: 2012 | AE85: 2013 | AF85: 2014 | AG85: 2015 | AH85: 2016 | AI85: 2017 | AJ85: 2018 | AK85: 2019 | AL85: 2020 | AM85: 2021 | AN85: 2022 | AO85: 2023 | AP85: 2024 | AQ85: 2025 | AR85: 2026 | AS85: 2027 | AT85: 2028 | AU85: 2029 | AV85: 2030 | AW85: 2031 | AX85: 2032 | AY85: 2033 | AZ85: 2034
D86: ='Efficiency Levels'!C78 -> EL2 | E86: ='Efficiency Levels'!D78 -> Intermediate | H86: =H78 -> 0.26 | I86: 0.26 | J86: 0.26 | K86: 0.26 | L86: 0.26 | M86: 0.26 | N86: 0.26 | O86: 0.26 | P86: 0.26 | Q86: 0.26 | R86: 0.26 | S86: 0.26 | T86: 0.26 | U86: 0.26 | V86: 0.26 | W86: 0.26 | X86: 0.26 | Y86: 0.26 | Z86: 0.26 | AA86: 0.26 | AB86: 0.26 | AC86: 0.26 | AD86: 0.26 | AE86: 0.26 | AF86: 0.26 | AG86: 0 | AH86: 0 | AI86: 0 | AJ86: 0 | AK86: 0 | AL86: 0 | AM86: 0 | AN86: 0 | AO86: 0 | AP86: 0 | AQ86: 0 | AR86: 0 | AS86: 0 | AT86: 0 | AU86: 0 | AV86: 0 | AW86: 0 | AX86: 0 | AY86: 0 | AZ86: 0
D87: ='Efficiency Levels'!C79 -> EL3 | E87: ='Efficiency Levels'!D79 -> Best in Market | H87: =H79 -> 0.53 | I87: 0.53 | J87: 0.53 | K87: 0.53 | L87: 0.53 | M87: 0.53 | N87: 0.53 | O87: 0.53 | P87: 0.53 | Q87: 0.53 | R87: 0.53 | S87: 0.53 | T87: 0.53 | U87: 0.53 | V87: 0.53 | W87: 0.53 | X87: 0.53 | Y87: 0.53 | Z87: 0.53 | AA87: 0.53 | AB87: 0.53 | AC87: 0.53 | AD87: 0.53 | AE87: 0.53 | AF87: 0.53 | AG87: 0 | AH87: 0 | AI87: 0 | AJ87: 0 | AK87: 0 | AL87: 0 | AM87: 0 | AN87: 0 | AO87: 0 | AP87: 0 | AQ87: 0 | AR87: 0 | AS87: 0 | AT87: 0 | AU87: 0 | AV87: 0 | AW87: 0 | AX87: 0 | AY87: 0 | AZ87: 0
D88: ='Efficiency Levels'!C80 -> EL4 | E88: ='Efficiency Levels'!D80 -> Max Tech | H88: =H80 -> 0.18 | I88: 0.18 | J88: 0.18 | K88: 0.18 | L88: 0.18 | M88: 0.18 | N88: 0.18 | O88: 0.18 | P88: 0.18 | Q88: 0.18 | R88: 0.18 | S88: 0.18 | T88: 0.18 | U88: 0.18 | V88: 0.18 | W88: 0.18 | X88: 0.18 | Y88: 0.18 | Z88: 0.18 | AA88: 0.18 | AB88: 0.18 | AC88: 0.18 | AD88: 0.18 | AE88: 0.18 | AF88: 0.18 | AG88: 0 | AH88: 0 | AI88: 0 | AJ88: 0 | AK88: 0 | AL88: 0 | AM88: 0 | AN88: 0 | AO88: 0 | AP88: 0 | AQ88: 0 | AR88: 0 | AS88: 0 | AT88: 0 | AU88: 0 | AV88: 0 | AW88: 0 | AX88: 0 | AY88: 0 | AZ88: 0
D89: ='Efficiency Levels'!C81 -> 0 | E89: ='Efficiency Levels'!D81 -> 0 | H89: =H81 -> 0.03 | I89: 0.03 | J89: 0.03 | K89: 0.03 | L89: 0.03 | M89: 0.03 | N89: 0.03 | O89: 0.03 | P89: 0.03 | Q89: 0.03 | R89: 0.03 | S89: 0.03 | T89: 0.03 | U89: 0.03 | V89: 0.03 | W89: 0.03 | X89: 0.03 | Y89: 0.03 | Z89: 0.03 | AA89: 0.03 | AB89: 0.03 | AC89: 0.03 | AD89: 0.03 | AE89: 0.03 | AF89: 0.03 | AG89: =SUM(AG78:AG81) -> 1 | AH89: 1 | AI89: 1 | AJ89: 1 | AK89: 1 | AL89: 1 | AM89: 1 | AN89: 1 | AO89: 1 | AP89: 1 | AQ89: 1 | AR89: 1 | AS89: 1 | AT89: 1 | AU89: 1 | AV89: 1 | AW89: 1 | AX89: 1 | AY89: 1 | AZ89: 1
D90: TOTAL | H90: =SUM(H86:H89) -> 1 | I90: 1 | J90: 1 | K90: 1 | L90: 1 | M90: 1 | N90: 1 | O90: 1 | P90: 1 | Q90: 1 | R90: 1 | S90: 1 | T90: 1 | U90: 1 | V90: 1 | W90: 1 | X90: 1 | Y90: 1 | Z90: 1 | AA90: 1 | AB90: 1 | AC90: 1 | AD90: 1 | AE90: 1 | AF90: 1 | AG90: 1 | AH90: 1 | AI90: 1 | AJ90: 1 | AK90: 1 | AL90: 1 | AM90: 1 | AN90: 1 | AO90: 1 | AP90: 1 | AQ90: 1 | AR90: 1 | AS90: 1 | AT90: 1 | AU90: 1 | AV90: 1 | AW90: 1 | AX90: 1 | AY90: 1 | AZ90: 1
D92: Sources | E92: DOE 2014 Final Rule NIA Model
D96: ='Product Classes'!H14&" - "&OFFSET('Product Classes'!$C$9,MATCH('Product Classes'!H14,MODEL_PCS,0),0) -> C - AC-DC, Low Voltage
D98: PRE-Case | F98: Static Distribution
D99: Efficiency Level | E99: ='Efficiency Levels'!D$11 -> 0 | F99: 2015 | H99: 1990 | I99: =H99+1 -> 1991 | J99: =I99+1 -> 1992 | K99: =J99+1 -> 1993 | L99: =K99+1 -> 1994 | M99: =L99+1 -> 1995 | N99: =M99+1 -> 1996 | O99: =N99+1 -> 1997 | P99: =O99+1 -> 1998 | Q99: =P99+1 -> 1999 | R99: =Q99+1 -> 2000 | S99: =R99+1 -> 2001 | T99: =S99+1 -> 2002 | U99: =T99+1 -> 2003 | V99: =U99+1 -> 2004 | W99: =V99+1 -> 2005 | X99: =W99+1 -> 2006 | Y99: =X99+1 -> 2007 | Z99: =Y99+1 -> 2008 | AA99: =Z99+1 -> 2009 | AB99: =AA99+1 -> 2010 | AC99: =AB99+1 -> 2011 | AD99: =AC99+1 -> 2012 | AE99: =AD99+1 -> 2013 | AF99: =AE99+1 -> 2014 | AG99: =AF99+1 -> 2015 | AH99: =AG99+1 -> 2016 | AI99: =AH99+1 -> 2017 | AJ99: =AI99+1 -> 2018 | AK99: =AJ99+1 -> 2019 | AL99: =AK99+1 -> 2020 | AM99: =AL99+1 -> 2021 | AN99: =AM99+1 -> 2022 | AO99: =AN99+1 -> 2023 | AP99: =AO99+1 -> 2024 | AQ99: =AP99+1 -> 2025 | AR99: =AQ99+1 -> 2026 | AS99: =AR99+1 -> 2027 | AT99: =AS99+1 -> 2028 | AU99: =AT99+1 -> 2029 | AV99: =AU99+1 -> 2030 | AW99: =AV99+1 -> 2031 | AX99: =AW99+1 -> 2032 | AY99: =AX99+1 -> 2033 | AZ99: =AY99+1 -> 2034
D100: ='Efficiency Levels'!C100 -> Sources | E100: ='Efficiency Levels'!D100 -> 1. DOE External Power Supplies 2014 Final Rule, Technical Support Document: National Impact Analysis Spreadsheet, 'EPS Inputs' tab, cells C274:I275 | F100: 0.42 | H100: =$F100 -> 0.42 | I100: =$F100 -> 0.42 | J100: 0.42 | K100: 0.42 | L100: 0.42 | M100: 0.42 | N100: 0.42 | O100: 0.42 | P100: 0.42 | Q100: 0.42 | R100: 0.42 | S100: 0.42 | T100: 0.42 | U100: 0.42 | V100: 0.42 | W100: 0.42 | X100: 0.42 | Y100: 0.42 | Z100: 0.42 | AA100: 0.42 | AB100: 0.42 | AC100: 0.42 | AD100: 0.42 | AE100: 0.42 | AF100: 0.42 | AG100: 0.42 | AH100: 0.42 | AI100: 0.42 | AJ100: 0.42 | AK100: 0.42 | AL100: 0.42 | AM100: 0.42 | AN100: 0.42 | AO100: 0.42 | AP100: 0.42 | AQ100: 0.42 | AR100: 0.42 | AS100: 0.42 | AT100: 0.42 | AU100: 0.42 | AV100: 0.42 | AW100: 0.42 | AX100: 0.42 | AY100: 0.42 | AZ100: 0.42
D101: ='Efficiency Levels'!C101 -> 0 | E101: ='Efficiency Levels'!D101 -> 2. For TSL Selection: DOE External Power Supplies 2014 Final Rule, Federal Register Notice, page 7918, "Benefits and Burdens of Trial Standard Levels Considered for EPS Product Class B" section, http://www.regulations.gov/#!documentDetail;D=EERE-2008-BT-STD-0005-0219) For TSL to CSL Mapping: DOE External Power Supplies 2014 Final Rule, Technical Support Document: National Impact Analysis Spreadsheet, 'TSL Results' tab, cells L6:L13 For Compliance Year: DOE External Power Supplies 2014 Final Rule, Federal Register Notice, page 7846, "Dates" section, http://www.regulations.gov/#!documentDetail;D=EERE-2008-BT-STD-0005-0219 | F101: 0.53 | H101: =$F101 -> 0.53 | I101: 0.53 | J101: 0.53 | K101: 0.53 | L101: 0.53 | M101: 0.53 | N101: 0.53 | O101: 0.53 | P101: 0.53 | Q101: 0.53 | R101: 0.53 | S101: 0.53 | T101: 0.53 | U101: 0.53 | V101: 0.53 | W101: 0.53 | X101: 0.53 | Y101: 0.53 | Z101: 0.53 | AA101: 0.53 | AB101: 0.53 | AC101: 0.53 | AD101: 0.53 | AE101: 0.53 | AF101: 0.53 | AG101: 0.53 | AH101: 0.53 | AI101: 0.53 | AJ101: 0.53 | AK101: 0.53 | AL101: 0.53 | AM101: 0.53 | AN101: 0.53 | AO101: 0.53 | AP101: 0.53 | AQ101: 0.53 | AR101: 0.53 | AS101: 0.53 | AT101: 0.53 | AU101: 0.53 | AV101: 0.53 | AW101: 0.53 | AX101: 0.53 | AY101: 0.53 | AZ101: 0.53
D102: ='Efficiency Levels'!C102 -> 0 | E102: ='Efficiency Levels'!D102 -> 0 | F102: 0.02 | H102: 0.02 | I102: 0.02 | J102: 0.02 | K102: 0.02 | L102: 0.02 | M102: 0.02 | N102: 0.02 | O102: 0.02 | P102: 0.02 | Q102: 0.02 | R102: 0.02 | S102: 0.02 | T102: 0.02 | U102: 0.02 | V102: 0.02 | W102: 0.02 | X102: 0.02 | Y102: 0.02 | Z102: 0.02 | AA102: 0.02 | AB102: 0.02 | AC102: 0.02 | AD102: 0.02 | AE102: 0.02 | AF102: 0.02 | AG102: 0.02 | AH102: 0.02 | AI102: 0.02 | AJ102: 0.02 | AK102: 0.02 | AL102: 0.02 | AM102: 0.02 | AN102: 0.02 | AO102: 0.02 | AP102: 0.02 | AQ102: 0.02 | AR102: 0.02 | AS102: 0.02 | AT102: 0.02 | AU102: 0.02 | AV102: 0.02 | AW102: 0.02 | AX102: 0.02 | AY102: 0.02 | AZ102: 0.02
D103: ='Efficiency Levels'!C103 -> 0 | E103: ='Efficiency Levels'!D103 -> 0 | F103: 0.03 | H103: 0.03 | I103: 0.03 | J103: 0.03 | K103: 0.03 | L103: 0.03 | M103: 0.03 | N103: 0.03 | O103: 0.03 | P103: 0.03 | Q103: 0.03 | R103: 0.03 | S103: 0.03 | T103: 0.03 | U103: 0.03 | V103: 0.03 | W103: 0.03 | X103: 0.03 | Y103: 0.03 | Z103: 0.03 | AA103: 0.03 | AB103: 0.03 | AC103: 0.03 | AD103: 0.03 | AE103: 0.03 | AF103: 0.03 | AG103: 0.03 | AH103: 0.03 | AI103: 0.03 | AJ103: 0.03 | AK103: 0.03 | AL103: 0.03 | AM103: 0.03 | AN103: 0.03 | AO103: 0.03 | AP103: 0.03 | AQ103: 0.03 | AR103: 0.03 | AS103: 0.03 | AT103: 0.03 | AU103: 0.03 | AV103: 0.03 | AW103: 0.03 | AX103: 0.03 | AY103: 0.03 | AZ103: 0.03
D104: TOTAL | F104: =SUM(F100:F103) -> 1 | H104: =SUM(H100:H103) -> 1 | I104: 1 | J104: 1 | K104: 1 | L104: 1 | M104: 1 | N104: 1 | O104: 1 | P104: 1 | Q104: 1 | R104: 1 | S104: 1 | T104: 1 | U104: 1 | V104: 1 | W104: 1 | X104: 1 | Y104: 1 | Z104: 1 | AA104: 1 | AB104: 1 | AC104: 1 | AD104: 1 | AE104: 1 | AF104: 1 | AG104: 1 | AH104: 1 | AI104: 1 | AJ104: 1 | AK104: 1 | AL104: 1 | AM104: 1 | AN104: 1 | AO104: 1 | AP104: 1 | AQ104: 1 | AR104: 1 | AS104: 1 | AT104: 1 | AU104: 1 | AV104: 1 | AW104: 1 | AX104: 1 | AY104: 1 | AZ104: 1
D106: POST-Case
D107: Efficiency Level | E107: =$E$10 -> 0 | H107: 1990 | I107: =H107+1 -> 1991 | J107: =I107+1 -> 1992 | K107: =J107+1 -> 1993 | L107: =K107+1 -> 1994 | M107: =L107+1 -> 1995 | N107: =M107+1 -> 1996 | O107: =N107+1 -> 1997 | P107: =O107+1 -> 1998 | Q107: =P107+1 -> 1999 | R107: =Q107+1 -> 2000 | S107: =R107+1 -> 2001 | T107: =S107+1 -> 2002 | U107: =T107+1 -> 2003 | V107: =U107+1 -> 2004 | W107: =V107+1 -> 2005 | X107: =X99 -> 2006 | Y107: 2007 | Z107: 2008 | AA107: 2009 | AB107: 2010 | AC107: 2011 | AD107: 2012 | AE107: 2013 | AF107: 2014 | AG107: 2015 | AH107: 2016 | AI107: 2017 | AJ107: 2018 | AK107: 2019 | AL107: 2020 | AM107: 2021 | AN107: 2022 | AO107: 2023 | AP107: 2024 | AQ107: 2025 | AR107: 2026 | AS107: 2027 | AT107: 2028 | AU107: 2029 | AV107: 2030 | AW107: 2031 | AX107: 2032 | AY107: 2033 | AZ107: 2034
D108: ='Efficiency Levels'!C100 -> Sources | E108: ='Efficiency Levels'!D100 -> 1. DOE External Power Supplies 2014 Final Rule, Technical Support Document: National Impact Analysis Spreadsheet, 'EPS Inputs' tab, cells C274:I275 | H108: =H100 -> 0.42 | I108: 0.42 | J108: 0.42 | K108: 0.42 | L108: 0.42 | M108: 0.42 | N108: 0.42 | O108: 0.42 | P108: 0.42 | Q108: 0.42 | R108: 0.42 | S108: 0.42 | T108: 0.42 | U108: 0.42 | V108: 0.42 | W108: 0.42 | X108: 0.42 | Y108: 0.42 | Z108: 0.42 | AA108: 0.42 | AB108: 0.42 | AC108: 0.42 | AD108: 0.42 | AE108: 0.42 | AF108: 0.42 | AG108: 0 | AH108: 0 | AI108: 0 | AJ108: 0 | AK108: 0 | AL108: 0 | AM108: 0 | AN108: 0 | AO108: 0 | AP108: 0 | AQ108: 0 | AR108: 0 | AS108: 0 | AT108: 0 | AU108: 0 | AV108: 0 | AW108: 0 | AX108: 0 | AY108: 0 | AZ108: 0
D109: ='Efficiency Levels'!C101 -> 0 | E109: ='Efficiency Levels'!D101 -> 2. For TSL Selection: DOE External Power Supplies 2014 Final Rule, Federal Register Notice, page 7918, "Benefits and Burdens of Trial Standard Levels Considered for EPS Product Class B" section, http://www.regulations.gov/#!documentDetail;D=EERE-2008-BT-STD-0005-0219) For TSL to CSL Mapping: DOE External Power Supplies 2014 Final Rule, Technical Support Document: National Impact Analysis Spreadsheet, 'TSL Results' tab, cells L6:L13 For Compliance Year: DOE External Power Supplies 2014 Final Rule, Federal Register Notice, page 7846, "Dates" section, http://www.regulations.gov/#!documentDetail;D=EERE-2008-BT-STD-0005-0219 | H109: =H101 -> 0.53 | I109: 0.53 | J109: 0.53 | K109: 0.53 | L109: 0.53 | M109: 0.53 | N109: 0.53 | O109: 0.53 | P109: 0.53 | Q109: 0.53 | R109: 0.53 | S109: 0.53 | T109: 0.53 | U109: 0.53 | V109: 0.53 | W109: 0.53 | X109: 0.53 | Y109: 0.53 | Z109: 0.53 | AA109: 0.53 | AB109: 0.53 | AC109: 0.53 | AD109: 0.53 | AE109: 0.53 | AF109: 0.53 | AG109: 0 | AH109: 0 | AI109: 0 | AJ109: 0 | AK109: 0 | AL109: 0 | AM109: 0 | AN109: 0 | AO109: 0 | AP109: 0 | AQ109: 0 | AR109: 0 | AS109: 0 | AT109: 0 | AU109: 0 | AV109: 0 | AW109: 0 | AX109: 0 | AY109: 0 | AZ109: 0
D110: ='Efficiency Levels'!C102 -> 0 | E110: ='Efficiency Levels'!D102 -> 0 | H110: =H102 -> 0.02 | I110: 0.02 | J110: 0.02 | K110: 0.02 | L110: 0.02 | M110: 0.02 | N110: 0.02 | O110: 0.02 | P110: 0.02 | Q110: 0.02 | R110: 0.02 | S110: 0.02 | T110: 0.02 | U110: 0.02 | V110: 0.02 | W110: 0.02 | X110: 0.02 | Y110: 0.02 | Z110: 0.02 | AA110: 0.02 | AB110: 0.02 | AC110: 0.02 | AD110: 0.02 | AE110: 0.02 | AF110: 0.02 | AG110: 0 | AH110: 0 | AI110: 0 | AJ110: 0 | AK110: 0 | AL110: 0 | AM110: 0 | AN110: 0 | AO110: 0 | AP110: 0 | AQ110: 0 | AR110: 0 | AS110: 0 | AT110: 0 | AU110: 0 | AV110: 0 | AW110: 0 | AX110: 0 | AY110: 0 | AZ110: 0
D111: ='Efficiency Levels'!C103 -> 0 | E111: ='Efficiency Levels'!D103 -> 0 | H111: =H103 -> 0.03 | I111: 0.03 | J111: 0.03 | K111: 0.03 | L111: 0.03 | M111: 0.03 | N111: 0.03 | O111: 0.03 | P111: 0.03 | Q111: 0.03 | R111: 0.03 | S111: 0.03 | T111: 0.03 | U111: 0.03 | V111: 0.03 | W111: 0.03 | X111: 0.03 | Y111: 0.03 | Z111: 0.03 | AA111: 0.03 | AB111: 0.03 | AC111: 0.03 | AD111: 0.03 | AE111: 0.03 | AF111: 0.03 | AG111: =SUM(AG100:AG103) -> 1 | AH111: 1 | AI111: 1 | AJ111: 1 | AK111: 1 | AL111: 1 | AM111: 1 | AN111: 1 | AO111: 1 | AP111: 1 | AQ111: 1 | AR111: 1 | AS111: 1 | AT111: 1 | AU111: 1 | AV111: 1 | AW111: 1 | AX111: 1 | AY111: 1 | AZ111: 1
D112: TOTAL | H112: =SUM(H108:H111) -> 1 | I112: 1 | J112: 1 | K112: 1 | L112: 1 | M112: 1 | N112: 1 | O112: 1 | P112: 1 | Q112: 1 | R112: 1 | S112: 1 | T112: 1 | U112: 1 | V112: 1 | W112: 1 | X112: 1 | Y112: 1 | Z112: 1 | AA112: 1 | AB112: 1 | AC112: 1 | AD112: 1 | AE112: 1 | AF112: 1 | AG112: 1 | AH112: 1 | AI112: 1 | AJ112: 1 | AK112: 1 | AL112: 1 | AM112: 1 | AN112: 1 | AO112: 1 | AP112: 1 | AQ112: 1 | AR112: 1 | AS112: 1 | AT112: 1 | AU112: 1 | AV112: 1 | AW112: 1 | AX112: 1 | AY112: 1 | AZ112: 1
D114: Sources | E114: DOE 2014 Final Rule NIA Model
D118: ='Product Classes'!H15&" - "&OFFSET('Product Classes'!$C$9,MATCH('Product Classes'!H15,MODEL_PCS,0),0) -> D - AC-AC, Basic Voltage
D120: PRE-Case | F120: Static Distribution
D121: Efficiency Level | E121: ='Efficiency Levels'!D$11 -> 0 | F121: 2015 | H121: 1990 | I121: =H121+1 -> 1991 | J121: =I121+1 -> 1992 | K121: =J121+1 -> 1993 | L121: =K121+1 -> 1994 | M121: =L121+1 -> 1995 | N121: =M121+1 -> 1996 | O121: =N121+1 -> 1997 | P121: =O121+1 -> 1998 | Q121: =P121+1 -> 1999 | R121: =Q121+1 -> 2000 | S121: =R121+1 -> 2001 | T121: =S121+1 -> 2002 | U121: =T121+1 -> 2003 | V121: =U121+1 -> 2004 | W121: =V121+1 -> 2005 | X121: =W121+1 -> 2006 | Y121: =X121+1 -> 2007 | Z121: =Y121+1 -> 2008 | AA121: =Z121+1 -> 2009 | AB121: =AA121+1 -> 2010 | AC121: =AB121+1 -> 2011 | AD121: =AC121+1 -> 2012 | AE121: =AD121+1 -> 2013 | AF121: =AE121+1 -> 2014 | AG121: =AF121+1 -> 2015 | AH121: =AG121+1 -> 2016 | AI121: =AH121+1 -> 2017 | AJ121: =AI121+1 -> 2018 | AK121: =AJ121+1 -> 2019 | AL121: =AK121+1 -> 2020 | AM121: =AL121+1 -> 2021 | AN121: =AM121+1 -> 2022 | AO121: =AN121+1 -> 2023 | AP121: =AO121+1 -> 2024 | AQ121: =AP121+1 -> 2025 | AR121: =AQ121+1 -> 2026 | AS121: =AR121+1 -> 2027 | AT121: =AS121+1 -> 2028 | AU121: =AT121+1 -> 2029 | AV121: =AU121+1 -> 2030 | AW121: =AV121+1 -> 2031 | AX121: =AW121+1 -> 2032 | AY121: =AX121+1 -> 2033 | AZ121: =AY121+1 -> 2034
D122: ='Efficiency Levels'!C122 -> 0 | E122: ='Efficiency Levels'!D122 -> 0 | F122: 0.24 | H122: =$F122 -> 0.24 | I122: =$F122 -> 0.24 | J122: 0.24 | K122: 0.24 | L122: 0.24 | M122: 0.24 | N122: 0.24 | O122: 0.24 | P122: 0.24 | Q122: 0.24 | R122: 0.24 | S122: 0.24 | T122: 0.24 | U122: 0.24 | V122: 0.24 | W122: 0.24 | X122: 0.24 | Y122: 0.24 | Z122: 0.24 | AA122: 0.24 | AB122: 0.24 | AC122: 0.24 | AD122: 0.24 | AE122: 0.24 | AF122: 0.24 | AG122: 0.24 | AH122: 0.24 | AI122: 0.24 | AJ122: 0.24 | AK122: 0.24 | AL122: 0.24 | AM122: 0.24 | AN122: 0.24 | AO122: 0.24 | AP122: 0.24 | AQ122: 0.24 | AR122: 0.24 | AS122: 0.24 | AT122: 0.24 | AU122: 0.24 | AV122: 0.24 | AW122: 0.24 | AX122: 0.24 | AY122: 0.24 | AZ122: 0.24
D123: ='Efficiency Levels'!C123 -> Model ELs1 | E123: ='Efficiency Levels'!D123 -> 0 | F123: 0.55 | H123: =$F123 -> 0.55 | I123: 0.55 | J123: 0.55 | K123: 0.55 | L123: 0.55 | M123: 0.55 | N123: 0.55 | O123: 0.55 | P123: 0.55 | Q123: 0.55 | R123: 0.55 | S123: 0.55 | T123: 0.55 | U123: 0.55 | V123: 0.55 | W123: 0.55 | X123: 0.55 | Y123: 0.55 | Z123: 0.55 | AA123: 0.55 | AB123: 0.55 | AC123: 0.55 | AD123: 0.55 | AE123: 0.55 | AF123: 0.55 | AG123: 0.55 | AH123: 0.55 | AI123: 0.55 | AJ123: 0.55 | AK123: 0.55 | AL123: 0.55 | AM123: 0.55 | AN123: 0.55 | AO123: 0.55 | AP123: 0.55 | AQ123: 0.55 | AR123: 0.55 | AS123: 0.55 | AT123: 0.55 | AU123: 0.55 | AV123: 0.55 | AW123: 0.55 | AX123: 0.55 | AY123: 0.55 | AZ123: 0.55
D124: ='Efficiency Levels'!C124 -> EL0 | E124: ='Efficiency Levels'!D124 -> Generic Replacement | F124: 0.17 | H124: 0.17 | I124: 0.17 | J124: 0.17 | K124: 0.17 | L124: 0.17 | M124: 0.17 | N124: 0.17 | O124: 0.17 | P124: 0.17 | Q124: 0.17 | R124: 0.17 | S124: 0.17 | T124: 0.17 | U124: 0.17 | V124: 0.17 | W124: 0.17 | X124: 0.17 | Y124: 0.17 | Z124: 0.17 | AA124: 0.17 | AB124: 0.17 | AC124: 0.17 | AD124: 0.17 | AE124: 0.17 | AF124: 0.17 | AG124: 0.17 | AH124: 0.17 | AI124: 0.17 | AJ124: 0.17 | AK124: 0.17 | AL124: 0.17 | AM124: 0.17 | AN124: 0.17 | AO124: 0.17 | AP124: 0.17 | AQ124: 0.17 | AR124: 0.17 | AS124: 0.17 | AT124: 0.17 | AU124: 0.17 | AV124: 0.17 | AW124: 0.17 | AX124: 0.17 | AY124: 0.17 | AZ124: 0.17
D125: ='Efficiency Levels'!C125 -> EL1 | E125: ='Efficiency Levels'!D125 -> Manufacturer Provided | F125: 0.04 | H125: 0.04 | I125: 0.04 | J125: 0.04 | K125: 0.04 | L125: 0.04 | M125: 0.04 | N125: 0.04 | O125: 0.04 | P125: 0.04 | Q125: 0.04 | R125: 0.04 | S125: 0.04 | T125: 0.04 | U125: 0.04 | V125: 0.04 | W125: 0.04 | X125: 0.04 | Y125: 0.04 | Z125: 0.04 | AA125: 0.04 | AB125: 0.04 | AC125: 0.04 | AD125: 0.04 | AE125: 0.04 | AF125: 0.04 | AG125: 0.04 | AH125: 0.04 | AI125: 0.04 | AJ125: 0.04 | AK125: 0.04 | AL125: 0.04 | AM125: 0.04 | AN125: 0.04 | AO125: 0.04 | AP125: 0.04 | AQ125: 0.04 | AR125: 0.04 | AS125: 0.04 | AT125: 0.04 | AU125: 0.04 | AV125: 0.04 | AW125: 0.04 | AX125: 0.04 | AY125: 0.04 | AZ125: 0.04
D126: TOTAL | F126: =SUM(F122:F125) -> 1 | H126: =SUM(H122:H125) -> 1 | I126: 1 | J126: 1 | K126: 1 | L126: 1 | M126: 1 | N126: 1 | O126: 1 | P126: 1 | Q126: 1 | R126: 1 | S126: 1 | T126: 1 | U126: 1 | V126: 1 | W126: 1 | X126: 1 | Y126: 1 | Z126: 1 | AA126: 1 | AB126: 1 | AC126: 1 | AD126: 1 | AE126: 1 | AF126: 1 | AG126: 1 | AH126: 1 | AI126: 1 | AJ126: 1 | AK126: 1 | AL126: 1 | AM126: 1 | AN126: 1 | AO126: 1 | AP126: 1 | AQ126: 1 | AR126: 1 | AS126: 1 | AT126: 1 | AU126: 1 | AV126: 1 | AW126: 1 | AX126: 1 | AY126: 1 | AZ126: 1
D128: POST-Case
D129: Efficiency Level | E129: =$E$10 -> 0 | H129: 1990 | I129: =H129+1 -> 1991 | J129: =I129+1 -> 1992 | K129: =J129+1 -> 1993 | L129: =K129+1 -> 1994 | M129: =L129+1 -> 1995 | N129: =M129+1 -> 1996 | O129: =N129+1 -> 1997 | P129: =O129+1 -> 1998 | Q129: =P129+1 -> 1999 | R129: =Q129+1 -> 2000 | S129: =R129+1 -> 2001 | T129: =S129+1 -> 2002 | U129: =T129+1 -> 2003 | V129: =U129+1 -> 2004 | W129: =V129+1 -> 2005 | X129: =X121 -> 2006 | Y129: 2007 | Z129: 2008 | AA129: 2009 | AB129: 2010 | AC129: 2011 | AD129: 2012 | AE129: 2013 | AF129: 2014 | AG129: 2015 | AH129: 2016 | AI129: 2017 | AJ129: 2018 | AK129: 2019 | AL129: 2020 | AM129: 2021 | AN129: 2022 | AO129: 2023 | AP129: 2024 | AQ129: 2025 | AR129: 2026 | AS129: 2027 | AT129: 2028 | AU129: 2029 | AV129: 2030 | AW129: 2031 | AX129: 2032 | AY129: 2033 | AZ129: 2034
D130: ='Efficiency Levels'!C122 -> 0 | E130: ='Efficiency Levels'!D122 -> 0 | H130: =H122 -> 0.24 | I130: 0.24 | J130: 0.24 | K130: 0.24 | L130: 0.24 | M130: 0.24 | N130: 0.24 | O130: 0.24 | P130: 0.24 | Q130: 0.24 | R130: 0.24 | S130: 0.24 | T130: 0.24 | U130: 0.24 | V130: 0.24 | W130: 0.24 | X130: 0.24 | Y130: 0.24 | Z130: 0.24 | AA130: 0.24 | AB130: 0.24 | AC130: 0.24 | AD130: 0.24 | AE130: 0.24 | AF130: 0.24 | AG130: 0 | AH130: 0 | AI130: 0 | AJ130: 0 | AK130: 0 | AL130: 0 | AM130: 0 | AN130: 0 | AO130: 0 | AP130: 0 | AQ130: 0 | AR130: 0 | AS130: 0 | AT130: 0 | AU130: 0 | AV130: 0 | AW130: 0 | AX130: 0 | AY130: 0 | AZ130: 0
D131: ='Efficiency Levels'!C123 -> Model ELs1 | E131: ='Efficiency Levels'!D123 -> 0 | H131: =H123 -> 0.55 | I131: 0.55 | J131: 0.55 | K131: 0.55 | L131: 0.55 | M131: 0.55 | N131: 0.55 | O131: 0.55 | P131: 0.55 | Q131: 0.55 | R131: 0.55 | S131: 0.55 | T131: 0.55 | U131: 0.55 | V131: 0.55 | W131: 0.55 | X131: 0.55 | Y131: 0.55 | Z131: 0.55 | AA131: 0.55 | AB131: 0.55 | AC131: 0.55 | AD131: 0.55 | AE131: 0.55 | AF131: 0.55 | AG131: 0 | AH131: 0 | AI131: 0 | AJ131: 0 | AK131: 0 | AL131: 0 | AM131: 0 | AN131: 0 | AO131: 0 | AP131: 0 | AQ131: 0 | AR131: 0 | AS131: 0 | AT131: 0 | AU131: 0 | AV131: 0 | AW131: 0 | AX131: 0 | AY131: 0 | AZ131: 0
D132: ='Efficiency Levels'!C124 -> EL0 | E132: ='Efficiency Levels'!D124 -> Generic Replacement | H132: =H124 -> 0.17 | I132: 0.17 | J132: 0.17 | K132: 0.17 | L132: 0.17 | M132: 0.17 | N132: 0.17 | O132: 0.17 | P132: 0.17 | Q132: 0.17 | R132: 0.17 | S132: 0.17 | T132: 0.17 | U132: 0.17 | V132: 0.17 | W132: 0.17 | X132: 0.17 | Y132: 0.17 | Z132: 0.17 | AA132: 0.17 | AB132: 0.17 | AC132: 0.17 | AD132: 0.17 | AE132: 0.17 | AF132: 0.17 | AG132: 0 | AH132: 0 | AI132: 0 | AJ132: 0 | AK132: 0 | AL132: 0 | AM132: 0 | AN132: 0 | AO132: 0 | AP132: 0 | AQ132: 0 | AR132: 0 | AS132: 0 | AT132: 0 | AU132: 0 | AV132: 0 | AW132: 0 | AX132: 0 | AY132: 0 | AZ132: 0
D133: ='Efficiency Levels'!C125 -> EL1 | E133: ='Efficiency Levels'!D125 -> Manufacturer Provided | H133: =H125 -> 0.04 | I133: 0.04 | J133: 0.04 | K133: 0.04 | L133: 0.04 | M133: 0.04 | N133: 0.04 | O133: 0.04 | P133: 0.04 | Q133: 0.04 | R133: 0.04 | S133: 0.04 | T133: 0.04 | U133: 0.04 | V133: 0.04 | W133: 0.04 | X133: 0.04 | Y133: 0.04 | Z133: 0.04 | AA133: 0.04 | AB133: 0.04 | AC133: 0.04 | AD133: 0.04 | AE133: 0.04 | AF133: 0.04 | AG133: =SUM(AG122:AG125) -> 1 | AH133: 1 | AI133: 1 | AJ133: 1 | AK133: 1 | AL133: 1 | AM133: 1 | AN133: 1 | AO133: 1 | AP133: 1 | AQ133: 1 | AR133: 1 | AS133: 1 | AT133: 1 | AU133: 1 | AV133: 1 | AW133: 1 | AX133: 1 | AY133: 1 | AZ133: 1
D134: TOTAL | H134: =SUM(H130:H133) -> 1 | I134: 1 | J134: 1 | K134: 1 | L134: 1 | M134: 1 | N134: 1 | O134: 1 | P134: 1 | Q134: 1 | R134: 1 | S134: 1 | T134: 1 | U134: 1 | V134: 1 | W134: 1 | X134: 1 | Y134: 1 | Z134: 1 | AA134: 1 | AB134: 1 | AC134: 1 | AD134: 1 | AE134: 1 | AF134: 1 | AG134: 1 | AH134: 1 | AI134: 1 | AJ134: 1 | AK134: 1 | AL134: 1 | AM134: 1 | AN134: 1 | AO134: 1 | AP134: 1 | AQ134: 1 | AR134: 1 | AS134: 1 | AT134: 1 | AU134: 1 | AV134: 1 | AW134: 1 | AX134: 1 | AY134: 1 | AZ134: 1
D136: Sources | E136: DOE 2014 Final Rule NIA Model
D140: ='Product Classes'!H16&" - "&OFFSET('Product Classes'!$C$9,MATCH('Product Classes'!H16,MODEL_PCS,0),0) -> E - AC-AC, Low Voltage
D142: PRE-Case | F142: Static Distribution
D143: Efficiency Level | E143: ='Efficiency Levels'!D$11 -> 0 | F143: 2015 | H143: 1990 | I143: =H143+1 -> 1991 | J143: =I143+1 -> 1992 | K143: =J143+1 -> 1993 | L143: =K143+1 -> 1994 | M143: =L143+1 -> 1995 | N143: =M143+1 -> 1996 | O143: =N143+1 -> 1997 | P143: =O143+1 -> 1998 | Q143: =P143+1 -> 1999 | R143: =Q143+1 -> 2000 | S143: =R143+1 -> 2001 | T143: =S143+1 -> 2002 | U143: =T143+1 -> 2003 | V143: =U143+1 -> 2004 | W143: =V143+1 -> 2005 | X143: =W143+1 -> 2006 | Y143: =X143+1 -> 2007 | Z143: =Y143+1 -> 2008 | AA143: =Z143+1 -> 2009 | AB143: =AA143+1 -> 2010 | AC143: =AB143+1 -> 2011 | AD143: =AC143+1 -> 2012 | AE143: =AD143+1 -> 2013 | AF143: =AE143+1 -> 2014 | AG143: =AF143+1 -> 2015 | AH143: =AG143+1 -> 2016 | AI143: =AH143+1 -> 2017 | AJ143: =AI143+1 -> 2018 | AK143: =AJ143+1 -> 2019 | AL143: =AK143+1 -> 2020 | AM143: =AL143+1 -> 2021 | AN143: =AM143+1 -> 2022 | AO143: =AN143+1 -> 2023 | AP143: =AO143+1 -> 2024 | AQ143: =AP143+1 -> 2025 | AR143: =AQ143+1 -> 2026 | AS143: =AR143+1 -> 2027 | AT143: =AS143+1 -> 2028 | AU143: =AT143+1 -> 2029 | AV143: =AU143+1 -> 2030 | AW143: =AV143+1 -> 2031 | AX143: =AW143+1 -> 2032 | AY143: =AX143+1 -> 2033 | AZ143: =AY143+1 -> 2034
D144: ='Efficiency Levels'!C144 -> EL4 | E144: ='Efficiency Levels'!D144 -> Max Tech | F144: 0.3 | H144: =$F144 -> 0.3 | I144: =$F144 -> 0.3 | J144: 0.3 | K144: 0.3 | L144: 0.3 | M144: 0.3 | N144: 0.3 | O144: 0.3 | P144: 0.3 | Q144: 0.3 | R144: 0.3 | S144: 0.3 | T144: 0.3 | U144: 0.3 | V144: 0.3 | W144: 0.3 | X144: 0.3 | Y144: 0.3 | Z144: 0.3 | AA144: 0.3 | AB144: 0.3 | AC144: 0.3 | AD144: 0.3 | AE144: 0.3 | AF144: 0.3 | AG144: 0.3 | AH144: 0.3 | AI144: 0.3 | AJ144: 0.3 | AK144: 0.3 | AL144: 0.3 | AM144: 0.3 | AN144: 0.3 | AO144: 0.3 | AP144: 0.3 | AQ144: 0.3 | AR144: 0.3 | AS144: 0.3 | AT144: 0.3 | AU144: 0.3 | AV144: 0.3 | AW144: 0.3 | AX144: 0.3 | AY144: 0.3 | AZ144: 0.3
D145: ='Efficiency Levels'!C145 -> 0 | E145: ='Efficiency Levels'!D145 -> 0 | F145: 0.53 | H145: =$F145 -> 0.53 | I145: 0.53 | J145: 0.53 | K145: 0.53 | L145: 0.53 | M145: 0.53 | N145: 0.53 | O145: 0.53 | P145: 0.53 | Q145: 0.53 | R145: 0.53 | S145: 0.53 | T145: 0.53 | U145: 0.53 | V145: 0.53 | W145: 0.53 | X145: 0.53 | Y145: 0.53 | Z145: 0.53 | AA145: 0.53 | AB145: 0.53 | AC145: 0.53 | AD145: 0.53 | AE145: 0.53 | AF145: 0.53 | AG145: 0.53 | AH145: 0.53 | AI145: 0.53 | AJ145: 0.53 | AK145: 0.53 | AL145: 0.53 | AM145: 0.53 | AN145: 0.53 | AO145: 0.53 | AP145: 0.53 | AQ145: 0.53 | AR145: 0.53 | AS145: 0.53 | AT145: 0.53 | AU145: 0.53 | AV145: 0.53 | AW145: 0.53 | AX145: 0.53 | AY145: 0.53 | AZ145: 0.53
D146: ='Efficiency Levels'!C146 -> 0 | E146: ='Efficiency Levels'!D146 -> 0 | F146: 0.13 | H146: 0.13 | I146: 0.13 | J146: 0.13 | K146: 0.13 | L146: 0.13 | M146: 0.13 | N146: 0.13 | O146: 0.13 | P146: 0.13 | Q146: 0.13 | R146: 0.13 | S146: 0.13 | T146: 0.13 | U146: 0.13 | V146: 0.13 | W146: 0.13 | X146: 0.13 | Y146: 0.13 | Z146: 0.13 | AA146: 0.13 | AB146: 0.13 | AC146: 0.13 | AD146: 0.13 | AE146: 0.13 | AF146: 0.13 | AG146: 0.13 | AH146: 0.13 | AI146: 0.13 | AJ146: 0.13 | AK146: 0.13 | AL146: 0.13 | AM146: 0.13 | AN146: 0.13 | AO146: 0.13 | AP146: 0.13 | AQ146: 0.13 | AR146: 0.13 | AS146: 0.13 | AT146: 0.13 | AU146: 0.13 | AV146: 0.13 | AW146: 0.13 | AX146: 0.13 | AY146: 0.13 | AZ146: 0.13
D147: ='Efficiency Levels'!C147 -> 0 | E147: ='Efficiency Levels'!D147 -> 0 | F147: 0.04 | H147: 0.04 | I147: 0.04 | J147: 0.04 | K147: 0.04 | L147: 0.04 | M147: 0.04 | N147: 0.04 | O147: 0.04 | P147: 0.04 | Q147: 0.04 | R147: 0.04 | S147: 0.04 | T147: 0.04 | U147: 0.04 | V147: 0.04 | W147: 0.04 | X147: 0.04 | Y147: 0.04 | Z147: 0.04 | AA147: 0.04 | AB147: 0.04 | AC147: 0.04 | AD147: 0.04 | AE147: 0.04 | AF147: 0.04 | AG147: 0.04 | AH147: 0.04 | AI147: 0.04 | AJ147: 0.04 | AK147: 0.04 | AL147: 0.04 | AM147: 0.04 | AN147: 0.04 | AO147: 0.04 | AP147: 0.04 | AQ147: 0.04 | AR147: 0.04 | AS147: 0.04 | AT147: 0.04 | AU147: 0.04 | AV147: 0.04 | AW147: 0.04 | AX147: 0.04 | AY147: 0.04 | AZ147: 0.04
D148: TOTAL | F148: =SUM(F144:F147) -> 1 | H148: =SUM(H144:H147) -> 1 | I148: 1 | J148: 1 | K148: 1 | L148: 1 | M148: 1 | N148: 1 | O148: 1 | P148: 1 | Q148: 1 | R148: 1 | S148: 1 | T148: 1 | U148: 1 | V148: 1 | W148: 1 | X148: 1 | Y148: 1 | Z148: 1 | AA148: 1 | AB148: 1 | AC148: 1 | AD148: 1 | AE148: 1 | AF148: 1 | AG148: 1 | AH148: 1 | AI148: 1 | AJ148: 1 | AK148: 1 | AL148: 1 | AM148: 1 | AN148: 1 | AO148: 1 | AP148: 1 | AQ148: 1 | AR148: 1 | AS148: 1 | AT148: 1 | AU148: 1 | AV148: 1 | AW148: 1 | AX148: 1 | AY148: 1 | AZ148: 1
D150: POST-Case
D151: Efficiency Level | E151: =$E$10 -> 0 | H151: 1990 | I151: =H151+1 -> 1991 | J151: =I151+1 -> 1992 | K151: =J151+1 -> 1993 | L151: =K151+1 -> 1994 | M151: =L151+1 -> 1995 | N151: =M151+1 -> 1996 | O151: =N151+1 -> 1997 | P151: =O151+1 -> 1998 | Q151: =P151+1 -> 1999 | R151: =Q151+1 -> 2000 | S151: =R151+1 -> 2001 | T151: =S151+1 -> 2002 | U151: =T151+1 -> 2003 | V151: =U151+1 -> 2004 | W151: =V151+1 -> 2005 | X151: =X143 -> 2006 | Y151: 2007 | Z151: 2008 | AA151: 2009 | AB151: 2010 | AC151: 2011 | AD151: 2012 | AE151: 2013 | AF151: 2014 | AG151: 2015 | AH151: 2016 | AI151: 2017 | AJ151: 2018 | AK151: 2019 | AL151: 2020 | AM151: 2021 | AN151: 2022 | AO151: 2023 | AP151: 2024 | AQ151: 2025 | AR151: 2026 | AS151: 2027 | AT151: 2028 | AU151: 2029 | AV151: 2030 | AW151: 2031 | AX151: 2032 | AY151: 2033 | AZ151: 2034
D152: ='Efficiency Levels'!C144 -> EL4 | E152: ='Efficiency Levels'!D144 -> Max Tech | H152: =H144 -> 0.3 | I152: 0.3 | J152: 0.3 | K152: 0.3 | L152: 0.3 | M152: 0.3 | N152: 0.3 | O152: 0.3 | P152: 0.3 | Q152: 0.3 | R152: 0.3 | S152: 0.3 | T152: 0.3 | U152: 0.3 | V152: 0.3 | W152: 0.3 | X152: 0.3 | Y152: 0.3 | Z152: 0.3 | AA152: 0.3 | AB152: 0.3 | AC152: 0.3 | AD152: 0.3 | AE152: 0.3 | AF152: 0.3 | AG152: 0 | AH152: 0 | AI152: 0 | AJ152: 0 | AK152: 0 | AL152: 0 | AM152: 0 | AN152: 0 | AO152: 0 | AP152: 0 | AQ152: 0 | AR152: 0 | AS152: 0 | AT152: 0 | AU152: 0 | AV152: 0 | AW152: 0 | AX152: 0 | AY152: 0 | AZ152: 0
D153: ='Efficiency Levels'!C145 -> 0 | E153: ='Efficiency Levels'!D145 -> 0 | H153: =H145 -> 0.53 | I153: 0.53 | J153: 0.53 | K153: 0.53 | L153: 0.53 | M153: 0.53 | N153: 0.53 | O153: 0.53 | P153: 0.53 | Q153: 0.53 | R153: 0.53 | S153: 0.53 | T153: 0.53 | U153: 0.53 | V153: 0.53 | W153: 0.53 | X153: 0.53 | Y153: 0.53 | Z153: 0.53 | AA153: 0.53 | AB153: 0.53 | AC153: 0.53 | AD153: 0.53 | AE153: 0.53 | AF153: 0.53 | AG153: 0 | AH153: 0 | AI153: 0 | AJ153: 0 | AK153: 0 | AL153: 0 | AM153: 0 | AN153: 0 | AO153: 0 | AP153: 0 | AQ153: 0 | AR153: 0 | AS153: 0 | AT153: 0 | AU153: 0 | AV153: 0 | AW153: 0 | AX153: 0 | AY153: 0 | AZ153: 0
D154: ='Efficiency Levels'!C146 -> 0 | E154: ='Efficiency Levels'!D146 -> 0 | H154: =H146 -> 0.13 | I154: 0.13 | J154: 0.13 | K154: 0.13 | L154: 0.13 | M154: 0.13 | N154: 0.13 | O154: 0.13 | P154: 0.13 | Q154: 0.13 | R154: 0.13 | S154: 0.13 | T154: 0.13 | U154: 0.13 | V154: 0.13 | W154: 0.13 | X154: 0.13 | Y154: 0.13 | Z154: 0.13 | AA154: 0.13 | AB154: 0.13 | AC154: 0.13 | AD154: 0.13 | AE154: 0.13 | AF154: 0.13 | AG154: 0 | AH154: 0 | AI154: 0 | AJ154: 0 | AK154: 0 | AL154: 0 | AM154: 0 | AN154: 0 | AO154: 0 | AP154: 0 | AQ154: 0 | AR154: 0 | AS154: 0 | AT154: 0 | AU154: 0 | AV154: 0 | AW154: 0 | AX154: 0 | AY154: 0 | AZ154: 0
D155: ='Efficiency Levels'!C147 -> 0 | E155: ='Efficiency Levels'!D147 -> 0 | H155: =H147 -> 0.04 | I155: 0.04 | J155: 0.04 | K155: 0.04 | L155: 0.04 | M155: 0.04 | N155: 0.04 | O155: 0.04 | P155: 0.04 | Q155: 0.04 | R155: 0.04 | S155: 0.04 | T155: 0.04 | U155: 0.04 | V155: 0.04 | W155: 0.04 | X155: 0.04 | Y155: 0.04 | Z155: 0.04 | AA155: 0.04 | AB155: 0.04 | AC155: 0.04 | AD155: 0.04 | AE155: 0.04 | AF155: 0.04 | AG155: =SUM(AG144:AG147) -> 1 | AH155: 1 | AI155: 1 | AJ155: 1 | AK155: 1 | AL155: 1 | AM155: 1 | AN155: 1 | AO155: 1 | AP155: 1 | AQ155: 1 | AR155: 1 | AS155: 1 | AT155: 1 | AU155: 1 | AV155: 1 | AW155: 1 | AX155: 1 | AY155: 1 | AZ155: 1
D156: TOTAL | H156: =SUM(H152:H155) -> 1 | I156: 1 | J156: 1 | K156: 1 | L156: 1 | M156: 1 | N156: 1 | O156: 1 | P156: 1 | Q156: 1 | R156: 1 | S156: 1 | T156: 1 | U156: 1 | V156: 1 | W156: 1 | X156: 1 | Y156: 1 | Z156: 1 | AA156: 1 | AB156: 1 | AC156: 1 | AD156: 1 | AE156: 1 | AF156: 1 | AG156: 1 | AH156: 1 | AI156: 1 | AJ156: 1 | AK156: 1 | AL156: 1 | AM156: 1 | AN156: 1 | AO156: 1 | AP156: 1 | AQ156: 1 | AR156: 1 | AS156: 1 | AT156: 1 | AU156: 1 | AV156: 1 | AW156: 1 | AX156: 1 | AY156: 1 | AZ156: 1
D158: Sources | E158: DOE 2014 Final Rule NIA Model
D162: ='Product Classes'!H17&" - "&OFFSET('Product Classes'!$C$9,MATCH('Product Classes'!H17,MODEL_PCS,0),0) -> X - Multiple-voltage EPSs
D164: PRE-Case | F164: Static Distribution
D165: Efficiency Level | E165: ='Efficiency Levels'!D$11 -> 0 | F165: 2015 | H165: 1990 | I165: =H165+1 -> 1991 | J165: =I165+1 -> 1992 | K165: =J165+1 -> 1993 | L165: =K165+1 -> 1994 | M165: =L165+1 -> 1995 | N165: =M165+1 -> 1996 | O165: =N165+1 -> 1997 | P165: =O165+1 -> 1998 | Q165: =P165+1 -> 1999 | R165: =Q165+1 -> 2000 | S165: =R165+1 -> 2001 | T165: =S165+1 -> 2002 | U165: =T165+1 -> 2003 | V165: =U165+1 -> 2004 | W165: =V165+1 -> 2005 | X165: =W165+1 -> 2006 | Y165: =X165+1 -> 2007 | Z165: =Y165+1 -> 2008 | AA165: =Z165+1 -> 2009 | AB165: =AA165+1 -> 2010 | AC165: =AB165+1 -> 2011 | AD165: =AC165+1 -> 2012 | AE165: =AD165+1 -> 2013 | AF165: =AE165+1 -> 2014 | AG165: =AF165+1 -> 2015 | AH165: =AG165+1 -> 2016 | AI165: =AH165+1 -> 2017 | AJ165: =AI165+1 -> 2018 | AK165: =AJ165+1 -> 2019 | AL165: =AK165+1 -> 2020 | AM165: =AL165+1 -> 2021 | AN165: =AM165+1 -> 2022 | AO165: =AN165+1 -> 2023 | AP165: =AO165+1 -> 2024 | AQ165: =AP165+1 -> 2025 | AR165: =AQ165+1 -> 2026 | AS165: =AR165+1 -> 2027 | AT165: =AS165+1 -> 2028 | AU165: =AT165+1 -> 2029 | AV165: =AU165+1 -> 2030 | AW165: =AV165+1 -> 2031 | AX165: =AW165+1 -> 2032 | AY165: =AX165+1 -> 2033 | AZ165: =AY165+1 -> 2034
D166: ='Efficiency Levels'!C166 -> 0 | E166: ='Efficiency Levels'!D166 -> 0 | F166: 0.05 | H166: =$F166 -> 0.05 | I166: =$F166 -> 0.05 | J166: 0.05 | K166: 0.05 | L166: 0.05 | M166: 0.05 | N166: 0.05 | O166: 0.05 | P166: 0.05 | Q166: 0.05 | R166: 0.05 | S166: 0.05 | T166: 0.05 | U166: 0.05 | V166: 0.05 | W166: 0.05 | X166: 0.05 | Y166: 0.05 | Z166: 0.05 | AA166: 0.05 | AB166: 0.05 | AC166: 0.05 | AD166: 0.05 | AE166: 0.05 | AF166: 0.05 | AG166: 0.05 | AH166: 0.05 | AI166: 0.05 | AJ166: 0.05 | AK166: 0.05 | AL166: 0.05 | AM166: 0.05 | AN166: 0.05 | AO166: 0.05 | AP166: 0.05 | AQ166: 0.05 | AR166: 0.05 | AS166: 0.05 | AT166: 0.05 | AU166: 0.05 | AV166: 0.05 | AW166: 0.05 | AX166: 0.05 | AY166: 0.05 | AZ166: 0.05
D167: ='Efficiency Levels'!C167 -> 0 | E167: ='Efficiency Levels'!D167 -> 0 | F167: 0.95 | H167: =$F167 -> 0.95 | I167: 0.95 | J167: 0.95 | K167: 0.95 | L167: 0.95 | M167: 0.95 | N167: 0.95 | O167: 0.95 | P167: 0.95 | Q167: 0.95 | R167: 0.95 | S167: 0.95 | T167: 0.95 | U167: 0.95 | V167: 0.95 | W167: 0.95 | X167: 0.95 | Y167: 0.95 | Z167: 0.95 | AA167: 0.95 | AB167: 0.95 | AC167: 0.95 | AD167: 0.95 | AE167: 0.95 | AF167: 0.95 | AG167: 0.95 | AH167: 0.95 | AI167: 0.95 | AJ167: 0.95 | AK167: 0.95 | AL167: 0.95 | AM167: 0.95 | AN167: 0.95 | AO167: 0.95 | AP167: 0.95 | AQ167: 0.95 | AR167: 0.95 | AS167: 0.95 | AT167: 0.95 | AU167: 0.95 | AV167: 0.95 | AW167: 0.95 | AX167: 0.95 | AY167: 0.95 | AZ167: 0.95
D168: ='Efficiency Levels'!C168 -> 0 | E168: ='Efficiency Levels'!D168 -> 0 | F168: 0 | H168: 0 | I168: 0 | J168: 0 | K168: 0 | L168: 0 | M168: 0 | N168: 0 | O168: 0 | P168: 0 | Q168: 0 | R168: 0 | S168: 0 | T168: 0 | U168: 0 | V168: 0 | W168: 0 | X168: 0 | Y168: 0 | Z168: 0 | AA168: 0 | AB168: 0 | AC168: 0 | AD168: 0 | AE168: 0 | AF168: 0 | AG168: 0 | AH168: 0 | AI168: 0 | AJ168: 0 | AK168: 0 | AL168: 0 | AM168: 0 | AN168: 0 | AO168: 0 | AP168: 0 | AQ168: 0 | AR168: 0 | AS168: 0 | AT168: 0 | AU168: 0 | AV168: 0 | AW168: 0 | AX168: 0 | AY168: 0 | AZ168: 0
D169: TOTAL | F169: =SUM(F166:F168) -> 1 | H169: =SUM(H166:H168) -> 1 | I169: 1 | J169: 1 | K169: 1 | L169: 1 | M169: 1 | N169: 1 | O169: 1 | P169: 1 | Q169: 1 | R169: 1 | S169: 1 | T169: 1 | U169: 1 | V169: 1 | W169: 1 | X169: 1 | Y169: 1 | Z169: 1 | AA169: 1 | AB169: 1 | AC169: 1 | AD169: 1 | AE169: 1 | AF169: 1 | AG169: 1 | AH169: 1 | AI169: 1 | AJ169: 1 | AK169: 1 | AL169: 1 | AM169: 1 | AN169: 1 | AO169: 1 | AP169: 1 | AQ169: 1 | AR169: 1 | AS169: 1 | AT169: 1 | AU169: 1 | AV169: 1 | AW169: 1 | AX169: 1 | AY169: 1 | AZ169: 1
D171: POST-Case
D172: Efficiency Level | E172: =$E$10 -> 0 | H172: 1990 | I172: =H172+1 -> 1991 | J172: =I172+1 -> 1992 | K172: =J172+1 -> 1993 | L172: =K172+1 -> 1994 | M172: =L172+1 -> 1995 | N172: =M172+1 -> 1996 | O172: =N172+1 -> 1997 | P172: =O172+1 -> 1998 | Q172: =P172+1 -> 1999 | R172: =Q172+1 -> 2000 | S172: =R172+1 -> 2001 | T172: =S172+1 -> 2002 | U172: =T172+1 -> 2003 | V172: =U172+1 -> 2004 | W172: =V172+1 -> 2005 | X172: =X165 -> 2006 | Y172: 2007 | Z172: 2008 | AA172: 2009 | AB172: 2010 | AC172: 2011 | AD172: 2012 | AE172: 2013 | AF172: 2014 | AG172: 2015 | AH172: 2016 | AI172: 2017 | AJ172: 2018 | AK172: 2019 | AL172: 2020 | AM172: 2021 | AN172: 2022 | AO172: 2023 | AP172: 2024 | AQ172: 2025 | AR172: 2026 | AS172: 2027 | AT172: 2028 | AU172: 2029 | AV172: 2030 | AW172: 2031 | AX172: 2032 | AY172: 2033 | AZ172: 2034
D173: ='Efficiency Levels'!C166 -> 0 | E173: ='Efficiency Levels'!D166 -> 0 | H173: =H166 -> 0.05 | I173: 0.05 | J173: 0.05 | K173: 0.05 | L173: 0.05 | M173: 0.05 | N173: 0.05 | O173: 0.05 | P173: 0.05 | Q173: 0.05 | R173: 0.05 | S173: 0.05 | T173: 0.05 | U173: 0.05 | V173: 0.05 | W173: 0.05 | X173: 0.05 | Y173: 0.05 | Z173: 0.05 | AA173: 0.05 | AB173: 0.05 | AC173: 0.05 | AD173: 0.05 | AE173: 0.05 | AF173: 0.05 | AG173: 0 | AH173: 0 | AI173: 0 | AJ173: 0 | AK173: 0 | AL173: 0 | AM173: 0 | AN173: 0 | AO173: 0 | AP173: 0 | AQ173: 0 | AR173: 0 | AS173: 0 | AT173: 0 | AU173: 0 | AV173: 0 | AW173: 0 | AX173: 0 | AY173: 0 | AZ173: 0
D174: ='Efficiency Levels'!C167 -> 0 | E174: ='Efficiency Levels'!D167 -> 0 | H174: =H167 -> 0.95 | I174: 0.95 | J174: 0.95 | K174: 0.95 | L174: 0.95 | M174: 0.95 | N174: 0.95 | O174: 0.95 | P174: 0.95 | Q174: 0.95 | R174: 0.95 | S174: 0.95 | T174: 0.95 | U174: 0.95 | V174: 0.95 | W174: 0.95 | X174: 0.95 | Y174: 0.95 | Z174: 0.95 | AA174: 0.95 | AB174: 0.95 | AC174: 0.95 | AD174: 0.95 | AE174: 0.95 | AF174: 0.95 | AG174: 0 | AH174: 0 | AI174: 0 | AJ174: 0 | AK174: 0 | AL174: 0 | AM174: 0 | AN174: 0 | AO174: 0 | AP174: 0 | AQ174: 0 | AR174: 0 | AS174: 0 | AT174: 0 | AU174: 0 | AV174: 0 | AW174: 0 | AX174: 0 | AY174: 0 | AZ174: 0
D175: ='Efficiency Levels'!C168 -> 0 | E175: ='Efficiency Levels'!D168 -> 0 | H175: =H168 -> 0 | I175: 0 | J175: 0 | K175: 0 | L175: 0 | M175: 0 | N175: 0 | O175: 0 | P175: 0 | Q175: 0 | R175: 0 | S175: 0 | T175: 0 | U175: 0 | V175: 0 | W175: 0 | X175: 0 | Y175: 0 | Z175: 0 | AA175: 0 | AB175: 0 | AC175: 0 | AD175: 0 | AE175: 0 | AF175: 0 | AG175: =SUM(AG166:AG168) -> 1 | AH175: =SUM(AH166:AH168) -> 1 | AI175: 1 | AJ175: 1 | AK175: 1 | AL175: 1 | AM175: 1 | AN175: 1 | AO175: 1 | AP175: 1 | AQ175: 1 | AR175: 1 | AS175: 1 | AT175: 1 | AU175: 1 | AV175: 1 | AW175: 1 | AX175: 1 | AY175: 1 | AZ175: 1
D176: TOTAL | H176: =SUM(H173:H175) -> 1 | I176: 1 | J176: 1 | K176: 1 | L176: 1 | M176: 1 | N176: 1 | O176: 1 | P176: 1 | Q176: 1 | R176: 1 | S176: 1 | T176: 1 | U176: 1 | V176: 1 | W176: 1 | X176: 1 | Y176: 1 | Z176: 1 | AA176: 1 | AB176: 1 | AC176: 1 | AD176: 1 | AE176: 1 | AF176: 1 | AG176: 1 | AH176: 1 | AI176: 1 | AJ176: 1 | AK176: 1 | AL176: 1 | AM176: 1 | AN176: 1 | AO176: 1 | AP176: 1 | AQ176: 1 | AR176: 1 | AS176: 1 | AT176: 1 | AU176: 1 | AV176: 1 | AW176: 1 | AX176: 1 | AY176: 1 | AZ176: 1
D178: Sources | E178: DOE 2014 Final Rule NIA Model
D182: ='Product Classes'!H18&" - "&OFFSET('Product Classes'!$C$9,MATCH('Product Classes'!H18,MODEL_PCS,0),0) -> H - High Power EPSs
D184: PRE-Case | F184: Static Distribution
D185: Efficiency Level | E185: ='Efficiency Levels'!D$11 -> 0 | F185: 2015 | H185: 1990 | I185: =H185+1 -> 1991 | J185: =I185+1 -> 1992 | K185: =J185+1 -> 1993 | L185: =K185+1 -> 1994 | M185: =L185+1 -> 1995 | N185: =M185+1 -> 1996 | O185: =N185+1 -> 1997 | P185: =O185+1 -> 1998 | Q185: =P185+1 -> 1999 | R185: =Q185+1 -> 2000 | S185: =R185+1 -> 2001 | T185: =S185+1 -> 2002 | U185: =T185+1 -> 2003 | V185: =U185+1 -> 2004 | W185: =V185+1 -> 2005 | X185: =W185+1 -> 2006 | Y185: =X185+1 -> 2007 | Z185: =Y185+1 -> 2008 | AA185: =Z185+1 -> 2009 | AB185: =AA185+1 -> 2010 | AC185: =AB185+1 -> 2011 | AD185: =AC185+1 -> 2012 | AE185: =AD185+1 -> 2013 | AF185: =AE185+1 -> 2014 | AG185: =AF185+1 -> 2015 | AH185: =AG185+1 -> 2016 | AI185: =AH185+1 -> 2017 | AJ185: =AI185+1 -> 2018 | AK185: =AJ185+1 -> 2019 | AL185: =AK185+1 -> 2020 | AM185: =AL185+1 -> 2021 | AN185: =AM185+1 -> 2022 | AO185: =AN185+1 -> 2023 | AP185: =AO185+1 -> 2024 | AQ185: =AP185+1 -> 2025 | AR185: =AQ185+1 -> 2026 | AS185: =AR185+1 -> 2027 | AT185: =AS185+1 -> 2028 | AU185: =AT185+1 -> 2029 | AV185: =AU185+1 -> 2030 | AW185: =AV185+1 -> 2031 | AX185: =AW185+1 -> 2032 | AY185: =AX185+1 -> 2033 | AZ185: =AY185+1 -> 2034
D186: ='Efficiency Levels'!C188 -> 0 | E186: ='Efficiency Levels'!D188 -> 0 | F186: 0.5 | H186: =$F186 -> 0.5 | I186: =$F186 -> 0.5 | J186: 0.5 | K186: 0.5 | L186: 0.5 | M186: 0.5 | N186: 0.5 | O186: 0.5 | P186: 0.5 | Q186: 0.5 | R186: 0.5 | S186: 0.5 | T186: 0.5 | U186: 0.5 | V186: 0.5 | W186: 0.5 | X186: 0.5 | Y186: 0.5 | Z186: 0.5 | AA186: 0.5 | AB186: 0.5 | AC186: 0.5 | AD186: 0.5 | AE186: 0.5 | AF186: 0.5 | AG186: 0.5 | AH186: 0.5 | AI186: 0.5 | AJ186: 0.5 | AK186: 0.5 | AL186: 0.5 | AM186: 0.5 | AN186: 0.5 | AO186: 0.5 | AP186: 0.5 | AQ186: 0.5 | AR186: 0.5 | AS186: 0.5 | AT186: 0.5 | AU186: 0.5 | AV186: 0.5 | AW186: 0.5 | AX186: 0.5 | AY186: 0.5 | AZ186: 0.5
D187: ='Efficiency Levels'!C189 -> 0 | E187: ='Efficiency Levels'!D189 -> 0 | F187: 0.5 | H187: =$F187 -> 0.5 | I187: 0.5 | J187: 0.5 | K187: 0.5 | L187: 0.5 | M187: 0.5 | N187: 0.5 | O187: 0.5 | P187: 0.5 | Q187: 0.5 | R187: 0.5 | S187: 0.5 | T187: 0.5 | U187: 0.5 | V187: 0.5 | W187: 0.5 | X187: 0.5 | Y187: 0.5 | Z187: 0.5 | AA187: 0.5 | AB187: 0.5 | AC187: 0.5 | AD187: 0.5 | AE187: 0.5 | AF187: 0.5 | AG187: 0.5 | AH187: 0.5 | AI187: 0.5 | AJ187: 0.5 | AK187: 0.5 | AL187: 0.5 | AM187: 0.5 | AN187: 0.5 | AO187: 0.5 | AP187: 0.5 | AQ187: 0.5 | AR187: 0.5 | AS187: 0.5 | AT187: 0.5 | AU187: 0.5 | AV187: 0.5 | AW187: 0.5 | AX187: 0.5 | AY187: 0.5 | AZ187: 0.5
D188: ='Efficiency Levels'!C190 -> 0 | E188: ='Efficiency Levels'!D190 -> 0 | F188: 0 | H188: 0 | I188: 0 | J188: 0 | K188: 0 | L188: 0 | M188: 0 | N188: 0 | O188: 0 | P188: 0 | Q188: 0 | R188: 0 | S188: 0 | T188: 0 | U188: 0 | V188: 0 | W188: 0 | X188: 0 | Y188: 0 | Z188: 0 | AA188: 0 | AB188: 0 | AC188: 0 | AD188: 0 | AE188: 0 | AF188: 0 | AG188: 0 | AH188: 0 | AI188: 0 | AJ188: 0 | AK188: 0 | AL188: 0 | AM188: 0 | AN188: 0 | AO188: 0 | AP188: 0 | AQ188: 0 | AR188: 0 | AS188: 0 | AT188: 0 | AU188: 0 | AV188: 0 | AW188: 0 | AX188: 0 | AY188: 0 | AZ188: 0
D189: ='Efficiency Levels'!C191 -> 0 | E189: ='Efficiency Levels'!D191 -> 0 | F189: 0 | H189: 0 | I189: 0 | J189: 0 | K189: 0 | L189: 0 | M189: 0 | N189: 0 | O189: 0 | P189: 0 | Q189: 0 | R189: 0 | S189: 0 | T189: 0 | U189: 0 | V189: 0 | W189: 0 | X189: 0 | Y189: 0 | Z189: 0 | AA189: 0 | AB189: 0 | AC189: 0 | AD189: 0 | AE189: 0 | AF189: 0 | AG189: 0 | AH189: 0 | AI189: 0 | AJ189: 0 | AK189: 0 | AL189: 0 | AM189: 0 | AN189: 0 | AO189: 0 | AP189: 0 | AQ189: 0 | AR189: 0 | AS189: 0 | AT189: 0 | AU189: 0 | AV189: 0 | AW189: 0 | AX189: 0 | AY189: 0 | AZ189: 0
D191: TOTAL | F191: =SUM(F186:F189) -> 1 | H191: =SUM(H186:H189) -> 1 | I191: 1 | J191: 1 | K191: 1 | L191: 1 | M191: 1 | N191: 1 | O191: 1 | P191: 1 | Q191: 1 | R191: 1 | S191: 1 | T191: 1 | U191: 1 | V191: 1 | W191: 1 | X191: 1 | Y191: 1 | Z191: 1 | AA191: 1 | AB191: 1 | AC191: 1 | AD191: 1 | AE191: 1 | AF191: 1 | AG191: 1 | AH191: 1 | AI191: 1 | AJ191: 1 | AK191: 1 | AL191: 1 | AM191: 1 | AN191: 1 | AO191: 1 | AP191: 1 | AQ191: 1 | AR191: 1 | AS191: 1 | AT191: 1 | AU191: 1 | AV191: 1 | AW191: 1 | AX191: 1 | AY191: 1 | AZ191: 1
D193: POST-Case
D194: Efficiency Level | E194: =$E$10 -> 0 | H194: 1990 | I194: =H194+1 -> 1991 | J194: =I194+1 -> 1992 | K194: =J194+1 -> 1993 | L194: =K194+1 -> 1994 | M194: =L194+1 -> 1995 | N194: =M194+1 -> 1996 | O194: =N194+1 -> 1997 | P194: =O194+1 -> 1998 | Q194: =P194+1 -> 1999 | R194: =Q194+1 -> 2000 | S194: =R194+1 -> 2001 | T194: =S194+1 -> 2002 | U194: =T194+1 -> 2003 | V194: =U194+1 -> 2004 | W194: =V194+1 -> 2005 | X194: =X185 -> 2006 | Y194: 2007 | Z194: 2008 | AA194: 2009 | AB194: 2010 | AC194: 2011 | AD194: 2012 | AE194: 2013 | AF194: 2014 | AG194: 2015 | AH194: 2016 | AI194: 2017 | AJ194: 2018 | AK194: 2019 | AL194: 2020 | AM194: 2021 | AN194: 2022 | AO194: 2023 | AP194: 2024 | AQ194: 2025 | AR194: 2026 | AS194: 2027 | AT194: 2028 | AU194: 2029 | AV194: 2030 | AW194: 2031 | AX194: 2032 | AY194: 2033 | AZ194: 2034
D195: ='Efficiency Levels'!C188 -> 0 | E195: ='Efficiency Levels'!D188 -> 0 | H195: =H186 -> 0.5 | I195: 0.5 | J195: 0.5 | K195: 0.5 | L195: 0.5 | M195: 0.5 | N195: 0.5 | O195: 0.5 | P195: 0.5 | Q195: 0.5 | R195: 0.5 | S195: 0.5 | T195: 0.5 | U195: 0.5 | V195: 0.5 | W195: 0.5 | X195: 0.5 | Y195: 0.5 | Z195: 0.5 | AA195: 0.5 | AB195: 0.5 | AC195: 0.5 | AD195: 0.5 | AE195: 0.5 | AF195: 0.5 | AG195: 0 | AH195: 0 | AI195: 0 | AJ195: 0 | AK195: 0 | AL195: 0 | AM195: 0 | AN195: 0 | AO195: 0 | AP195: 0 | AQ195: 0 | AR195: 0 | AS195: 0 | AT195: 0 | AU195: 0 | AV195: 0 | AW195: 0 | AX195: 0 | AY195: 0 | AZ195: 0
D196: ='Efficiency Levels'!C189 -> 0 | E196: ='Efficiency Levels'!D189 -> 0 | H196: =H187 -> 0.5 | I196: 0.5 | J196: 0.5 | K196: 0.5 | L196: 0.5 | M196: 0.5 | N196: 0.5 | O196: 0.5 | P196: 0.5 | Q196: 0.5 | R196: 0.5 | S196: 0.5 | T196: 0.5 | U196: 0.5 | V196: 0.5 | W196: 0.5 | X196: 0.5 | Y196: 0.5 | Z196: 0.5 | AA196: 0.5 | AB196: 0.5 | AC196: 0.5 | AD196: 0.5 | AE196: 0.5 | AF196: 0.5 | AG196: 0 | AH196: 0 | AI196: 0 | AJ196: 0 | AK196: 0 | AL196: 0 | AM196: 0 | AN196: 0 | AO196: 0 | AP196: 0 | AQ196: 0 | AR196: 0 | AS196: 0 | AT196: 0 | AU196: 0 | AV196: 0 | AW196: 0 | AX196: 0 | AY196: 0 | AZ196: 0
D197: ='Efficiency Levels'!C190 -> 0 | E197: ='Efficiency Levels'!D190 -> 0 | H197: =H188 -> 0 | I197: 0 | J197: 0 | K197: 0 | L197: 0 | M197: 0 | N197: 0 | O197: 0 | P197: 0 | Q197: 0 | R197: 0 | S197: 0 | T197: 0 | U197: 0 | V197: 0 | W197: 0 | X197: 0 | Y197: 0 | Z197: 0 | AA197: 0 | AB197: 0 | AC197: 0 | AD197: 0 | AE197: 0 | AF197: 0 | AG197: 0 | AH197: 0 | AI197: 0 | AJ197: 0 | AK197: 0 | AL197: 0 | AM197: 0 | AN197: 0 | AO197: 0 | AP197: 0 | AQ197: 0 | AR197: 0 | AS197: 0 | AT197: 0 | AU197: 0 | AV197: 0 | AW197: 0 | AX197: 0 | AY197: 0 | AZ197: 0
D198: ='Efficiency Levels'!C191 -> 0 | E198: ='Efficiency Levels'!D191 -> 0 | H198: =H189 -> 0 | I198: 0 | J198: 0 | K198: 0 | L198: 0 | M198: 0 | N198: 0 | O198: 0 | P198: 0 | Q198: 0 | R198: 0 | S198: 0 | T198: 0 | U198: 0 | V198: 0 | W198: 0 | X198: 0 | Y198: 0 | Z198: 0 | AA198: 0 | AB198: 0 | AC198: 0 | AD198: 0 | AE198: 0 | AF198: 0 | AG198: =SUM(AG186:AG189) -> 1 | AH198: 1 | AI198: 1 | AJ198: 1 | AK198: 1 | AL198: 1 | AM198: 1 | AN198: 1 | AO198: 1 | AP198: 1 | AQ198: 1 | AR198: 1 | AS198: 1 | AT198: 1 | AU198: 1 | AV198: 1 | AW198: 1 | AX198: 1 | AY198: 1 | AZ198: 1
D200: TOTAL | H200: =SUM(H195:H198) -> 1 | I200: 1 | J200: 1 | K200: 1 | L200: 1 | M200: 1 | N200: 1 | O200: 1 | P200: 1 | Q200: 1 | R200: 1 | S200: 1 | T200: 1 | U200: 1 | V200: 1 | W200: 1 | X200: 1 | Y200: 1 | Z200: 1 | AA200: 1 | AB200: 1 | AC200: 1 | AD200: 1 | AE200: 1 | AF200: 1 | AG200: 1 | AH200: 1 | AI200: 1 | AJ200: 1 | AK200: 1 | AL200: 1 | AM200: 1 | AN200: 1 | AO200: 1 | AP200: 1 | AQ200: 1 | AR200: 1 | AS200: 1 | AT200: 1 | AU200: 1 | AV200: 1 | AW200: 1 | AX200: 1 | AY200: 1 | AZ200: 1
D202: Sources | E202: DOE 2014 Final Rule NIA Model

Sheet Efficiency Dist
C2: Efficiency Distributions by Product Class
C4: =Navigation!$C$15 -> NAVIGATION
C6: COMMENTS
D9: ='Product Classes'!H10&" - "&OFFSET('Product Classes'!$C$9,MATCH('Product Classes'!H10,MODEL_PCS,0),0) -> B 2.5 W - AC-DC, Basic Voltage 2.5 W Rep. Unit
D11: PRE-Case | F11: Static Distribution
D12: Efficiency Level | F12: 2015 | H12: 1990 | I12: =H12+1 -> 1991 | J12: =I12+1 -> 1992 | K12: 1993 | L12: 1994 | M12: 1995 | N12: 1996 | O12: 1997 | P12: 1998 | Q12: 1999 | R12: 2000 | S12: 2001 | T12: 2002 | U12: 2003 | V12: 2004 | W12: 2005 | X12: 2006 | Y12: 2007 | Z12: 2008 | AA12: 2009 | AB12: 2010 | AC12: 2011 | AD12: 2012 | AE12: 2013 | AF12: 2014 | AG12: 2015 | AH12: 2016 | AI12: 2017 | AJ12: 2018 | AK12: 2019 | AL12: 2020 | AM12: 2021 | AN12: 2022 | AO12: 2023 | AP12: 2024 | AQ12: 2025 | AR12: 2026 | AS12: 2027 | AT12: 2028 | AU12: 2029 | AV12: 2030 | AW12: 2031 | AX12: 2032 | AY12: 2033 | AZ12: 2034
D13: ='Efficiency Levels'!C12 -> EL0 | E13: ='Efficiency Levels'!D12 -> EISA | F13: 0.44 | H13: =$F13 -> 0.44 | I13: =$F13 -> 0.44 | J13: 0.44 | K13: 0.44 | L13: 0.44 | M13: 0.44 | N13: 0.44 | O13: 0.44 | P13: 0.44 | Q13: 0.44 | R13: 0.44 | S13: 0.44 | T13: 0.44 | U13: 0.44 | V13: 0.44 | W13: 0.44 | X13: 0.44 | Y13: 0.44 | Z13: 0.44 | AA13: 0.44 | AB13: 0.44 | AC13: 0.44 | AD13: 0.44 | AE13: 0.44 | AF13: 0.44 | AG13: 0.44 | AH13: 0.44 | AI13: 0.44 | AJ13: 0.44 | AK13: 0.44 | AL13: 0.44 | AM13: 0.44 | AN13: 0.44 | AO13: 0.44 | AP13: 0.44 | AQ13: 0.44 | AR13: 0.44 | AS13: 0.44 | AT13: 0.44 | AU13: 0.44 | AV13: 0.44 | AW13: 0.44 | AX13: 0.44 | AY13: 0.44 | AZ13: 0.44
D14: ='Efficiency Levels'!C13 -> EL1 | E14: ='Efficiency Levels'!D13 -> Energy Star 2.0 | F14: 0.49 | H14: =$F14 -> 0.49 | I14: 0.49 | J14: 0.49 | K14: 0.49 | L14: 0.49 | M14: 0.49 | N14: 0.49 | O14: 0.49 | P14: 0.49 | Q14: 0.49 | R14: 0.49 | S14: 0.49 | T14: 0.49 | U14: 0.49 | V14: 0.49 | W14: 0.49 | X14: 0.49 | Y14: 0.49 | Z14: 0.49 | AA14: 0.49 | AB14: 0.49 | AC14: 0.49 | AD14: 0.49 | AE14: 0.49 | AF14: 0.49 | AG14: 0.49 | AH14: 0.49 | AI14: 0.49 | AJ14: 0.49 | AK14: 0.49 | AL14: 0.49 | AM14: 0.49 | AN14: 0.49 | AO14: 0.49 | AP14: 0.49 | AQ14: 0.49 | AR14: 0.49 | AS14: 0.49 | AT14: 0.49 | AU14: 0.49 | AV14: 0.49 | AW14: 0.49 | AX14: 0.49 | AY14: 0.49 | AZ14: 0.49
D15: ='Efficiency Levels'!C14 -> EL2 | E15: ='Efficiency Levels'!D14 -> Intermediate | F15: 0.05 | H15: 0.05 | I15: 0.05 | J15: 0.05 | K15: 0.05 | L15: 0.05 | M15: 0.05 | N15: 0.05 | O15: 0.05 | P15: 0.05 | Q15: 0.05 | R15: 0.05 | S15: 0.05 | T15: 0.05 | U15: 0.05 | V15: 0.05 | W15: 0.05 | X15: 0.05 | Y15: 0.05 | Z15: 0.05 | AA15: 0.05 | AB15: 0.05 | AC15: 0.05 | AD15: 0.05 | AE15: 0.05 | AF15: 0.05 | AG15: 0.05 | AH15: 0.05 | AI15: 0.05 | AJ15: 0.05 | AK15: 0.05 | AL15: 0.05 | AM15: 0.05 | AN15: 0.05 | AO15: 0.05 | AP15: 0.05 | AQ15: 0.05 | AR15: 0.05 | AS15: 0.05 | AT15: 0.05 | AU15: 0.05 | AV15: 0.05 | AW15: 0.05 | AX15: 0.05 | AY15: 0.05 | AZ15: 0.05
D16: ='Efficiency Levels'!C15 -> EL3 | E16: ='Efficiency Levels'!D15 -> Best in Market | F16: 0.02 | H16: 0.02 | I16: 0.02 | J16: 0.02 | K16: 0.02 | L16: 0.02 | M16: 0.02 | N16: 0.02 | O16: 0.02 | P16: 0.02 | Q16: 0.02 | R16: 0.02 | S16: 0.02 | T16: 0.02 | U16: 0.02 | V16: 0.02 | W16: 0.02 | X16: 0.02 | Y16: 0.02 | Z16: 0.02 | AA16: 0.02 | AB16: 0.02 | AC16: 0.02 | AD16: 0.02 | AE16: 0.02 | AF16: 0.02 | AG16: 0.02 | AH16: 0.02 | AI16: 0.02 | AJ16: 0.02 | AK16: 0.02 | AL16: 0.02 | AM16: 0.02 | AN16: 0.02 | AO16: 0.02 | AP16: 0.02 | AQ16: 0.02 | AR16: 0.02 | AS16: 0.02 | AT16: 0.02 | AU16: 0.02 | AV16: 0.02 | AW16: 0.02 | AX16: 0.02 | AY16: 0.02 | AZ16: 0.02
D17: ='Efficiency Levels'!C16 -> EL4 | E17: ='Efficiency Levels'!D16 -> Max Tech | F17: 0 | H17: 0 | I17: 0 | J17: 0 | K17: 0 | L17: 0 | M17: 0 | N17: 0 | O17: 0 | P17: 0 | Q17: 0 | R17: 0 | S17: 0 | T17: 0 | U17: 0 | V17: 0 | W17: 0 | X17: 0 | Y17: 0 | Z17: 0 | AA17: 0 | AB17: 0 | AC17: 0 | AD17: 0 | AE17: 0 | AF17: 0 | AG17: 0 | AH17: 0 | AI17: 0 | AJ17: 0 | AK17: 0 | AL17: 0 | AM17: 0 | AN17: 0 | AO17: 0 | AP17: 0 | AQ17: 0 | AR17: 0 | AS17: 0 | AT17: 0 | AU17: 0 | AV17: 0 | AW17: 0 | AX17: 0 | AY17: 0 | AZ17: 0
D18: TOTAL | F18: =SUM(F13:F17) -> 1 | H18: =SUM(H13:H17) -> 1 | I18: 1 | J18: 1 | K18: 1 | L18: 1 | M18: 1 | N18: 1 | O18: 1 | P18: 1 | Q18: 1 | R18: 1 | S18: 1 | T18: 1 | U18: 1 | V18: 1 | W18: 1 | X18: 1 | Y18: 1 | Z18: 1 | AA18: 1 | AB18: 1 | AC18: 1 | AD18: 1 | AE18: 1 | AF18: 1 | AG18: 1 | AH18: 1 | AI18: 1 | AJ18: 1 | AK18: 1 | AL18: 1 | AM18: 1 | AN18: 1 | AO18: 1 | AP18: 1 | AQ18: 1 | AR18: 1 | AS18: 1 | AT18: 1 | AU18: 1 | AV18: 1 | AW18: 1 | AX18: 1 | AY18: 1 | AZ18: 1
D20: POST-Case
D21: Efficiency Level | H21: 1990 | I21: =H21+1 -> 1991 | J21: =I21+1 -> 1992 | K21: 1993 | L21: 1994 | M21: 1995 | N21: 1996 | O21: 1997 | P21: 1998 | Q21: 1999 | R21: 2000 | S21: 2001 | T21: 2002 | U21: 2003 | V21: 2004 | W21: 2005 | X21: =X12 -> 2006 | Y21: 2007 | Z21: 2008 | AA21: 2009 | AB21: 2010 | AC21: 2011 | AD21: 2012 | AE21: 2013 | AF21: 2014 | AG21: 2015 | AH21: 2016 | AI21: 2017 | AJ21: 2018 | AK21: 2019 | AL21: 2020 | AM21: 2021 | AN21: 2022 | AO21: 2023 | AP21: 2024 | AQ21: 2025 | AR21: 2026 | AS21: 2027 | AT21: 2028 | AU21: 2029 | AV21: 2030 | AW21: 2031 | AX21: 2032 | AY21: 2033 | AZ21: 2034
D22: =D13 -> EL0 | E22: ='Efficiency Levels'!D12 -> EISA | H22: =H13 -> 0.44 | I22: 0.44 | J22: 0.44 | K22: 0.44 | L22: 0.44 | M22: 0.44 | N22: 0.44 | O22: 0.44 | P22: 0.44 | Q22: 0.44 | R22: 0.44 | S22: 0.44 | T22: 0.44 | U22: 0.44 | V22: 0.44 | W22: 0.44 | X22: 0.44 | Y22: 0.44 | Z22: 0.44 | AA22: 0.44 | AB22: 0.44 | AC22: 0.44 | AD22: 0.44 | AE22: 0.44 | AF22: 0.44 | AG22: =AG13 -> 0.44 | AH22: 0 | AI22: 0 | AJ22: 0 | AK22: 0 | AL22: 0 | AM22: 0 | AN22: 0 | AO22: 0 | AP22: 0 | AQ22: 0 | AR22: 0 | AS22: 0 | AT22: 0 | AU22: 0 | AV22: 0 | AW22: 0 | AX22: 0 | AY22: 0 | AZ22: 0
D23: =D14 -> EL1 | E23: ='Efficiency Levels'!D13 -> Energy Star 2.0 | H23: =H14 -> 0.49 | I23: 0.49 | J23: 0.49 | K23: 0.49 | L23: 0.49 | M23: 0.49 | N23: 0.49 | O23: 0.49 | P23: 0.49 | Q23: 0.49 | R23: 0.49 | S23: 0.49 | T23: 0.49 | U23: 0.49 | V23: 0.49 | W23: 0.49 | X23: 0.49 | Y23: 0.49 | Z23: 0.49 | AA23: 0.49 | AB23: 0.49 | AC23: 0.49 | AD23: 0.49 | AE23: 0.49 | AF23: 0.49 | AG23: =AG14 -> 0.49 | AH23: 0 | AI23: 0 | AJ23: 0 | AK23: 0 | AL23: 0 | AM23: 0 | AN23: 0 | AO23: 0 | AP23: 0 | AQ23: 0 | AR23: 0 | AS23: 0 | AT23: 0 | AU23: 0 | AV23: 0 | AW23: 0 | AX23: 0 | AY23: 0 | AZ23: 0
D24: EL2 | E24: ='Efficiency Levels'!D14 -> Intermediate | H24: =H15 -> 0.05 | I24: 0.05 | J24: 0.05 | K24: 0.05 | L24: 0.05 | M24: 0.05 | N24: 0.05 | O24: 0.05 | P24: 0.05 | Q24: 0.05 | R24: 0.05 | S24: 0.05 | T24: 0.05 | U24: 0.05 | V24: 0.05 | W24: 0.05 | X24: 0.05 | Y24: 0.05 | Z24: 0.05 | AA24: 0.05 | AB24: 0.05 | AC24: 0.05 | AD24: 0.05 | AE24: 0.05 | AF24: 0.05 | AG24: =AG15 -> 0.05 | AH24: 0 | AI24: 0 | AJ24: 0 | AK24: 0 | AL24: 0 | AM24: 0 | AN24: 0 | AO24: 0 | AP24: 0 | AQ24: 0 | AR24: 0 | AS24: 0 | AT24: 0 | AU24: 0 | AV24: 0 | AW24: 0 | AX24: 0 | AY24: 0 | AZ24: 0
D25: EL3 | E25: ='Efficiency Levels'!D15 -> Best in Market | H25: =H16 -> 0.02 | I25: 0.02 | J25: 0.02 | K25: 0.02 | L25: 0.02 | M25: 0.02 | N25: 0.02 | O25: 0.02 | P25: 0.02 | Q25: 0.02 | R25: 0.02 | S25: 0.02 | T25: 0.02 | U25: 0.02 | V25: 0.02 | W25: 0.02 | X25: 0.02 | Y25: 0.02 | Z25: 0.02 | AA25: 0.02 | AB25: 0.02 | AC25: 0.02 | AD25: 0.02 | AE25: 0.02 | AF25: 0.02 | AG25: =AG16 -> 0.02 | AH25: =SUM(AH13:AH16) -> 1 | AI25: 1 | AJ25: 1 | AK25: 1 | AL25: 1 | AM25: 1 | AN25: 1 | AO25: 1 | AP25: 1 | AQ25: 1 | AR25: 1 | AS25: 1 | AT25: 1 | AU25: 1 | AV25: 1 | AW25: 1 | AX25: 1 | AY25: 1 | AZ25: 1
D26: EL4 | E26: ='Efficiency Levels'!D16 -> Max Tech | H26: =H17 -> 0 | I26: 0 | J26: 0 | K26: 0 | L26: 0 | M26: 0 | N26: 0 | O26: 0 | P26: 0 | Q26: 0 | R26: 0 | S26: 0 | T26: 0 | U26: 0 | V26: 0 | W26: 0 | X26: 0 | Y26: 0 | Z26: 0 | AA26: 0 | AB26: 0 | AC26: 0 | AD26: 0 | AE26: 0 | AF26: 0 | AG26: =AG17 -> 0 | AH26: =AH17 -> 0 | AI26: 0 | AJ26: 0 | AK26: 0 | AL26: 0 | AM26: 0 | AN26: 0 | AO26: 0 | AP26: 0 | AQ26: 0 | AR26: 0 | AS26: 0 | AT26: 0 | AU26: 0 | AV26: 0 | AW26: 0 | AX26: 0 | AY26: 0 | AZ26: 0
D27: TOTAL | H27: =SUM(H22:H26) -> 1 | I27: 1 | J27: 1 | K27: 1 | L27: 1 | M27: 1 | N27: 1 | O27: 1 | P27: 1 | Q27: 1 | R27: 1 | S27: 1 | T27: 1 | U27: 1 | V27: 1 | W27: 1 | X27: 1 | Y27: 1 | Z27: 1 | AA27: 1 | AB27: 1 | AC27: 1 | AD27: 1 | AE27: 1 | AF27: 1 | AG27: =SUM(AG22:AG26) -> 1 | AH27: 1 | AI27: 1 | AJ27: 1 | AK27: 1 | AL27: 1 | AM27: 1 | AN27: 1 | AO27: 1 | AP27: 1 | AQ27: 1 | AR27: 1 | AS27: 1 | AT27: 1 | AU27: 1 | AV27: 1 | AW27: 1 | AX27: 1 | AY27: 1 | AZ27: 1
D29: Sources | E29: DOE External Power Supplies 2014 Final Rule, Technical Support Document: National Impact Analysis Spreadsheet, 'Inputs' tab, cells E78:K86
D33: ='Product Classes'!H11&" - "&OFFSET('Product Classes'!$C$9,MATCH('Product Classes'!H11,MODEL_PCS,0),0) -> B 18 W - AC-DC, Basic Voltage 18 W Rep. Unit
D35: PRE-Case | F35: Static Distribution
D36: Efficiency Level | F36: 2015 | H36: 1990 | I36: =H36+1 -> 1991 | J36: =I36+1 -> 1992 | K36: =J36+1 -> 1993 | L36: =K36+1 -> 1994 | M36: =L36+1 -> 1995 | N36: =M36+1 -> 1996 | O36: =N36+1 -> 1997 | P36: =O36+1 -> 1998 | Q36: =P36+1 -> 1999 | R36: =Q36+1 -> 2000 | S36: =R36+1 -> 2001 | T36: =S36+1 -> 2002 | U36: =T36+1 -> 2003 | V36: =U36+1 -> 2004 | W36: =V36+1 -> 2005 | X36: =W36+1 -> 2006 | Y36: =X36+1 -> 2007 | Z36: =Y36+1 -> 2008 | AA36: =Z36+1 -> 2009 | AB36: =AA36+1 -> 2010 | AC36: =AB36+1 -> 2011 | AD36: =AC36+1 -> 2012 | AE36: =AD36+1 -> 2013 | AF36: =AE36+1 -> 2014 | AG36: =AF36+1 -> 2015 | AH36: =AG36+1 -> 2016 | AI36: =AH36+1 -> 2017 | AJ36: =AI36+1 -> 2018 | AK36: =AJ36+1 -> 2019 | AL36: =AK36+1 -> 2020 | AM36: =AL36+1 -> 2021 | AN36: =AM36+1 -> 2022 | AO36: =AN36+1 -> 2023 | AP36: =AO36+1 -> 2024 | AQ36: =AP36+1 -> 2025 | AR36: =AQ36+1 -> 2026 | AS36: =AR36+1 -> 2027 | AT36: =AS36+1 -> 2028 | AU36: =AT36+1 -> 2029 | AV36: =AU36+1 -> 2030 | AW36: =AV36+1 -> 2031 | AX36: =AW36+1 -> 2032 | AY36: =AX36+1 -> 2033 | AZ36: =AY36+1 -> 2034
D37: ='Efficiency Levels'!C28 -> EL0 | E37: ='Efficiency Levels'!D28 -> EISA | F37: 0.19 | H37: =$F37 -> 0.19 | I37: =$F37 -> 0.19 | J37: 0.19 | K37: 0.19 | L37: 0.19 | M37: 0.19 | N37: 0.19 | O37: 0.19 | P37: 0.19 | Q37: 0.19 | R37: 0.19 | S37: 0.19 | T37: 0.19 | U37: 0.19 | V37: 0.19 | W37: 0.19 | X37: 0.19 | Y37: 0.19 | Z37: 0.19 | AA37: 0.19 | AB37: 0.19 | AC37: 0.19 | AD37: 0.19 | AE37: 0.19 | AF37: 0.19 | AG37: 0.19 | AH37: 0.19 | AI37: 0.19 | AJ37: 0.19 | AK37: 0.19 | AL37: 0.19 | AM37: 0.19 | AN37: 0.19 | AO37: 0.19 | AP37: 0.19 | AQ37: 0.19 | AR37: 0.19 | AS37: 0.19 | AT37: 0.19 | AU37: 0.19 | AV37: 0.19 | AW37: 0.19 | AX37: 0.19 | AY37: 0.19 | AZ37: 0.19
D38: ='Efficiency Levels'!C29 -> EL1 | E38: ='Efficiency Levels'!D29 -> Energy Star 2.0 | F38: 0.52 | H38: =$F38 -> 0.52 | I38: 0.52 | J38: 0.52 | K38: 0.52 | L38: 0.52 | M38: 0.52 | N38: 0.52 | O38: 0.52 | P38: 0.52 | Q38: 0.52 | R38: 0.52 | S38: 0.52 | T38: 0.52 | U38: 0.52 | V38: 0.52 | W38: 0.52 | X38: 0.52 | Y38: 0.52 | Z38: 0.52 | AA38: 0.52 | AB38: 0.52 | AC38: 0.52 | AD38: 0.52 | AE38: 0.52 | AF38: 0.52 | AG38: 0.52 | AH38: 0.52 | AI38: 0.52 | AJ38: 0.52 | AK38: 0.52 | AL38: 0.52 | AM38: 0.52 | AN38: 0.52 | AO38: 0.52 | AP38: 0.52 | AQ38: 0.52 | AR38: 0.52 | AS38: 0.52 | AT38: 0.52 | AU38: 0.52 | AV38: 0.52 | AW38: 0.52 | AX38: 0.52 | AY38: 0.52 | AZ38: 0.52
D39: ='Efficiency Levels'!C30 -> EL2 | E39: ='Efficiency Levels'!D30 -> Intermediate | F39: 0.18 | H39: 0.18 | I39: 0.18 | J39: 0.18 | K39: 0.18 | L39: 0.18 | M39: 0.18 | N39: 0.18 | O39: 0.18 | P39: 0.18 | Q39: 0.18 | R39: 0.18 | S39: 0.18 | T39: 0.18 | U39: 0.18 | V39: 0.18 | W39: 0.18 | X39: 0.18 | Y39: 0.18 | Z39: 0.18 | AA39: 0.18 | AB39: 0.18 | AC39: 0.18 | AD39: 0.18 | AE39: 0.18 | AF39: 0.18 | AG39: 0.18 | AH39: 0.18 | AI39: 0.18 | AJ39: 0.18 | AK39: 0.18 | AL39: 0.18 | AM39: 0.18 | AN39: 0.18 | AO39: 0.18 | AP39: 0.18 | AQ39: 0.18 | AR39: 0.18 | AS39: 0.18 | AT39: 0.18 | AU39: 0.18 | AV39: 0.18 | AW39: 0.18 | AX39: 0.18 | AY39: 0.18 | AZ39: 0.18
D40: ='Efficiency Levels'!C31 -> EL3 | E40: ='Efficiency Levels'!D31 -> Best in Market | F40: 0.11 | H40: 0.11 | I40: 0.11 | J40: 0.11 | K40: 0.11 | L40: 0.11 | M40: 0.11 | N40: 0.11 | O40: 0.11 | P40: 0.11 | Q40: 0.11 | R40: 0.11 | S40: 0.11 | T40: 0.11 | U40: 0.11 | V40: 0.11 | W40: 0.11 | X40: 0.11 | Y40: 0.11 | Z40: 0.11 | AA40: 0.11 | AB40: 0.11 | AC40: 0.11 | AD40: 0.11 | AE40: 0.11 | AF40: 0.11 | AG40: 0.11 | AH40: 0.11 | AI40: 0.11 | AJ40: 0.11 | AK40: 0.11 | AL40: 0.11 | AM40: 0.11 | AN40: 0.11 | AO40: 0.11 | AP40: 0.11 | AQ40: 0.11 | AR40: 0.11 | AS40: 0.11 | AT40: 0.11 | AU40: 0.11 | AV40: 0.11 | AW40: 0.11 | AX40: 0.11 | AY40: 0.11 | AZ40: 0.11
D41: ='Efficiency Levels'!C32 -> EL4 | E41: ='Efficiency Levels'!D32 -> Max Tech | F41: 0 | H41: 0 | I41: 0 | J41: 0 | K41: 0 | L41: 0 | M41: 0 | N41: 0 | O41: 0 | P41: 0 | Q41: 0 | R41: 0 | S41: 0 | T41: 0 | U41: 0 | V41: 0 | W41: 0 | X41: 0 | Y41: 0 | Z41: 0 | AA41: 0 | AB41: 0 | AC41: 0 | AD41: 0 | AE41: 0 | AF41: 0 | AG41: 0 | AH41: 0 | AI41: 0 | AJ41: 0 | AK41: 0 | AL41: 0 | AM41: 0 | AN41: 0 | AO41: 0 | AP41: 0 | AQ41: 0 | AR41: 0 | AS41: 0 | AT41: 0 | AU41: 0 | AV41: 0 | AW41: 0 | AX41: 0 | AY41: 0 | AZ41: 0
D42: TOTAL | F42: =SUM(F37:F41) -> 1 | H42: =SUM(H37:H41) -> 1 | I42: 1 | J42: 1 | K42: 1 | L42: 1 | M42: 1 | N42: 1 | O42: 1 | P42: 1 | Q42: 1 | R42: 1 | S42: 1 | T42: 1 | U42: 1 | V42: 1 | W42: 1 | X42: 1 | Y42: 1 | Z42: 1 | AA42: 1 | AB42: 1 | AC42: 1 | AD42: 1 | AE42: 1 | AF42: 1 | AG42: 1 | AH42: 1 | AI42: 1 | AJ42: 1 | AK42: 1 | AL42: 1 | AM42: 1 | AN42: 1 | AO42: 1 | AP42: 1 | AQ42: 1 | AR42: 1 | AS42: 1 | AT42: 1 | AU42: 1 | AV42: 1 | AW42: 1 | AX42: 1 | AY42: 1 | AZ42: 1
D44: POST-Case
D45: Efficiency Level | H45: 1990 | I45: =H45+1 -> 1991 | J45: =I45+1 -> 1992 | K45: =J45+1 -> 1993 | L45: =K45+1 -> 1994 | M45: =L45+1 -> 1995 | N45: =M45+1 -> 1996 | O45: =N45+1 -> 1997 | P45: =O45+1 -> 1998 | Q45: =P45+1 -> 1999 | R45: =Q45+1 -> 2000 | S45: =R45+1 -> 2001 | T45: =S45+1 -> 2002 | U45: =T45+1 -> 2003 | V45: =U45+1 -> 2004 | W45: =V45+1 -> 2005 | X45: =X36 -> 2006 | Y45: 2007 | Z45: 2008 | AA45: 2009 | AB45: 2010 | AC45: 2011 | AD45: 2012 | AE45: 2013 | AF45: 2014 | AG45: 2015 | AH45: 2016 | AI45: 2017 | AJ45: 2018 | AK45: 2019 | AL45: 2020 | AM45: 2021 | AN45: 2022 | AO45: 2023 | AP45: 2024 | AQ45: 2025 | AR45: 2026 | AS45: 2027 | AT45: 2028 | AU45: 2029 | AV45: 2030 | AW45: 2031 | AX45: 2032 | AY45: 2033 | AZ45: 2034
D46: =D37 -> EL0 | E46: =E37 -> EISA | H46: =H37 -> 0.19 | I46: 0.19 | J46: 0.19 | K46: 0.19 | L46: 0.19 | M46: 0.19 | N46: 0.19 | O46: 0.19 | P46: 0.19 | Q46: 0.19 | R46: 0.19 | S46: 0.19 | T46: 0.19 | U46: 0.19 | V46: 0.19 | W46: 0.19 | X46: 0.19 | Y46: 0.19 | Z46: 0.19 | AA46: 0.19 | AB46: 0.19 | AC46: 0.19 | AD46: 0.19 | AE46: 0.19 | AF46: 0.19 | AG46: =AG37 -> 0.19 | AH46: 0 | AI46: 0 | AJ46: 0 | AK46: 0 | AL46: 0 | AM46: 0 | AN46: 0 | AO46: 0 | AP46: 0 | AQ46: 0 | AR46: 0 | AS46: 0 | AT46: 0 | AU46: 0 | AV46: 0 | AW46: 0 | AX46: 0 | AY46: 0 | AZ46: 0
D47: =D38 -> EL1 | E47: Energy Star 2.0 | H47: =H38 -> 0.52 | I47: 0.52 | J47: 0.52 | K47: 0.52 | L47: 0.52 | M47: 0.52 | N47: 0.52 | O47: 0.52 | P47: 0.52 | Q47: 0.52 | R47: 0.52 | S47: 0.52 | T47: 0.52 | U47: 0.52 | V47: 0.52 | W47: 0.52 | X47: 0.52 | Y47: 0.52 | Z47: 0.52 | AA47: 0.52 | AB47: 0.52 | AC47: 0.52 | AD47: 0.52 | AE47: 0.52 | AF47: 0.52 | AG47: =AG38 -> 0.52 | AH47: 0 | AI47: 0 | AJ47: 0 | AK47: 0 | AL47: 0 | AM47: 0 | AN47: 0 | AO47: 0 | AP47: 0 | AQ47: 0 | AR47: 0 | AS47: 0 | AT47: 0 | AU47: 0 | AV47: 0 | AW47: 0 | AX47: 0 | AY47: 0 | AZ47: 0
D48: EL2 | E48: Intermediate | H48: =H39 -> 0.18 | I48: 0.18 | J48: 0.18 | K48: 0.18 | L48: 0.18 | M48: 0.18 | N48: 0.18 | O48: 0.18 | P48: 0.18 | Q48: 0.18 | R48: 0.18 | S48: 0.18 | T48: 0.18 | U48: 0.18 | V48: 0.18 | W48: 0.18 | X48: 0.18 | Y48: 0.18 | Z48: 0.18 | AA48: 0.18 | AB48: 0.18 | AC48: 0.18 | AD48: 0.18 | AE48: 0.18 | AF48: 0.18 | AG48: =AG39 -> 0.18 | AH48: 0 | AI48: 0 | AJ48: 0 | AK48: 0 | AL48: 0 | AM48: 0 | AN48: 0 | AO48: 0 | AP48: 0 | AQ48: 0 | AR48: 0 | AS48: 0 | AT48: 0 | AU48: 0 | AV48: 0 | AW48: 0 | AX48: 0 | AY48: 0 | AZ48: 0
D49: EL3 | E49: Best in Market | H49: =H40 -> 0.11 | I49: 0.11 | J49: 0.11 | K49: 0.11 | L49: 0.11 | M49: 0.11 | N49: 0.11 | O49: 0.11 | P49: 0.11 | Q49: 0.11 | R49: 0.11 | S49: 0.11 | T49: 0.11 | U49: 0.11 | V49: 0.11 | W49: 0.11 | X49: 0.11 | Y49: 0.11 | Z49: 0.11 | AA49: 0.11 | AB49: 0.11 | AC49: 0.11 | AD49: 0.11 | AE49: 0.11 | AF49: 0.11 | AG49: =AG40 -> 0.11 | AH49: =SUM(AH37:AH40) -> 1 | AI49: 1 | AJ49: 1 | AK49: 1 | AL49: 1 | AM49: 1 | AN49: 1 | AO49: 1 | AP49: 1 | AQ49: 1 | AR49: 1 | AS49: 1 | AT49: 1 | AU49: 1 | AV49: 1 | AW49: 1 | AX49: 1 | AY49: 1 | AZ49: 1
D50: EL4 | E50: Max Tech | H50: =H41 -> 0 | I50: 0 | J50: 0 | K50: 0 | L50: 0 | M50: 0 | N50: 0 | O50: 0 | P50: 0 | Q50: 0 | R50: 0 | S50: 0 | T50: 0 | U50: 0 | V50: 0 | W50: 0 | X50: 0 | Y50: 0 | Z50: 0 | AA50: 0 | AB50: 0 | AC50: 0 | AD50: 0 | AE50: 0 | AF50: 0 | AG50: =AG41 -> 0 | AH50: =AH41 -> 0 | AI50: 0 | AJ50: 0 | AK50: 0 | AL50: 0 | AM50: 0 | AN50: 0 | AO50: 0 | AP50: 0 | AQ50: 0 | AR50: 0 | AS50: 0 | AT50: 0 | AU50: 0 | AV50: 0 | AW50: 0 | AX50: 0 | AY50: 0 | AZ50: 0
D51: TOTAL | H51: =SUM(H46:H50) -> 1 | I51: 1 | J51: 1 | K51: 1 | L51: 1 | M51: 1 | N51: 1 | O51: 1 | P51: 1 | Q51: 1 | R51: 1 | S51: 1 | T51: 1 | U51: 1 | V51: 1 | W51: 1 | X51: 1 | Y51: 1 | Z51: 1 | AA51: 1 | AB51: 1 | AC51: 1 | AD51: 1 | AE51: 1 | AF51: 1 | AG51: =SUM(AG46:AG50) -> 1 | AH51: 1 | AI51: 1 | AJ51: 1 | AK51: 1 | AL51: 1 | AM51: 1 | AN51: 1 | AO51: 1 | AP51: 1 | AQ51: 1 | AR51: 1 | AS51: 1 | AT51: 1 | AU51: 1 | AV51: 1 | AW51: 1 | AX51: 1 | AY51: 1 | AZ51: 1
D53: Sources | E53: DOE External Power Supplies 2014 Final Rule, Technical Support Document: National Impact Analysis Spreadsheet, 'Inputs' tab, cells E78:K86
D57: ='Product Classes'!H12&" - "&OFFSET('Product Classes'!$C$9,MATCH('Product Classes'!H12,MODEL_PCS,0),0) -> B 60 W - AC-DC, Basic Voltage 60 W Rep. Unit
D59: PRE-Case | F59: Static Distribution
D60: Efficiency Level | F60: 2015 | H60: 1990 | I60: =H60+1 -> 1991 | J60: =I60+1 -> 1992 | K60: =J60+1 -> 1993 | L60: =K60+1 -> 1994 | M60: =L60+1 -> 1995 | N60: =M60+1 -> 1996 | O60: =N60+1 -> 1997 | P60: =O60+1 -> 1998 | Q60: =P60+1 -> 1999 | R60: =Q60+1 -> 2000 | S60: =R60+1 -> 2001 | T60: =S60+1 -> 2002 | U60: =T60+1 -> 2003 | V60: =U60+1 -> 2004 | W60: =V60+1 -> 2005 | X60: =W60+1 -> 2006 | Y60: =X60+1 -> 2007 | Z60: =Y60+1 -> 2008 | AA60: =Z60+1 -> 2009 | AB60: =AA60+1 -> 2010 | AC60: =AB60+1 -> 2011 | AD60: =AC60+1 -> 2012 | AE60: =AD60+1 -> 2013 | AF60: =AE60+1 -> 2014 | AG60: =AF60+1 -> 2015 | AH60: =AG60+1 -> 2016 | AI60: =AH60+1 -> 2017 | AJ60: =AI60+1 -> 2018 | AK60: =AJ60+1 -> 2019 | AL60: =AK60+1 -> 2020 | AM60: =AL60+1 -> 2021 | AN60: =AM60+1 -> 2022 | AO60: =AN60+1 -> 2023 | AP60: =AO60+1 -> 2024 | AQ60: =AP60+1 -> 2025 | AR60: =AQ60+1 -> 2026 | AS60: =AR60+1 -> 2027 | AT60: =AS60+1 -> 2028 | AU60: =AT60+1 -> 2029 | AV60: =AU60+1 -> 2030 | AW60: =AV60+1 -> 2031 | AX60: =AW60+1 -> 2032 | AY60: =AX60+1 -> 2033 | AZ60: =AY60+1 -> 2034
D61: ='Efficiency Levels'!C44 -> EL0 | E61: ='Efficiency Levels'!D44 -> EISA | F61: 0.19 | H61: =$F61 -> 0.19 | I61: =$F61 -> 0.19 | J61: 0.19 | K61: 0.19 | L61: 0.19 | M61: 0.19 | N61: 0.19 | O61: 0.19 | P61: 0.19 | Q61: 0.19 | R61: 0.19 | S61: 0.19 | T61: 0.19 | U61: 0.19 | V61: 0.19 | W61: 0.19 | X61: 0.19 | Y61: 0.19 | Z61: 0.19 | AA61: 0.19 | AB61: 0.19 | AC61: 0.19 | AD61: 0.19 | AE61: 0.19 | AF61: 0.19 | AG61: 0.19 | AH61: 0.19 | AI61: 0.19 | AJ61: 0.19 | AK61: 0.19 | AL61: 0.19 | AM61: 0.19 | AN61: 0.19 | AO61: 0.19 | AP61: 0.19 | AQ61: 0.19 | AR61: 0.19 | AS61: 0.19 | AT61: 0.19 | AU61: 0.19 | AV61: 0.19 | AW61: 0.19 | AX61: 0.19 | AY61: 0.19 | AZ61: 0.19
D62: ='Efficiency Levels'!C45 -> EL1 | E62: ='Efficiency Levels'!D45 -> Energy Star 2.0 | F62: 0.63 | H62: =$F62 -> 0.63 | I62: 0.63 | J62: 0.63 | K62: 0.63 | L62: 0.63 | M62: 0.63 | N62: 0.63 | O62: 0.63 | P62: 0.63 | Q62: 0.63 | R62: 0.63 | S62: 0.63 | T62: 0.63 | U62: 0.63 | V62: 0.63 | W62: 0.63 | X62: 0.63 | Y62: 0.63 | Z62: 0.63 | AA62: 0.63 | AB62: 0.63 | AC62: 0.63 | AD62: 0.63 | AE62: 0.63 | AF62: 0.63 | AG62: 0.63 | AH62: 0.63 | AI62: 0.63 | AJ62: 0.63 | AK62: 0.63 | AL62: 0.63 | AM62: 0.63 | AN62: 0.63 | AO62: 0.63 | AP62: 0.63 | AQ62: 0.63 | AR62: 0.63 | AS62: 0.63 | AT62: 0.63 | AU62: 0.63 | AV62: 0.63 | AW62: 0.63 | AX62: 0.63 | AY62: 0.63 | AZ62: 0.63
D63: ='Efficiency Levels'!C46 -> EL2 | E63: ='Efficiency Levels'!D46 -> Intermediate | F63: 0.17 | H63: 0.17 | I63: 0.17 | J63: 0.17 | K63: 0.17 | L63: 0.17 | M63: 0.17 | N63: 0.17 | O63: 0.17 | P63: 0.17 | Q63: 0.17 | R63: 0.17 | S63: 0.17 | T63: 0.17 | U63: 0.17 | V63: 0.17 | W63: 0.17 | X63: 0.17 | Y63: 0.17 | Z63: 0.17 | AA63: 0.17 | AB63: 0.17 | AC63: 0.17 | AD63: 0.17 | AE63: 0.17 | AF63: 0.17 | AG63: 0.17 | AH63: 0.17 | AI63: 0.17 | AJ63: 0.17 | AK63: 0.17 | AL63: 0.17 | AM63: 0.17 | AN63: 0.17 | AO63: 0.17 | AP63: 0.17 | AQ63: 0.17 | AR63: 0.17 | AS63: 0.17 | AT63: 0.17 | AU63: 0.17 | AV63: 0.17 | AW63: 0.17 | AX63: 0.17 | AY63: 0.17 | AZ63: 0.17
D64: ='Efficiency Levels'!C47 -> EL3 | E64: ='Efficiency Levels'!D47 -> Best in Market | F64: 0.01 | H64: 0.01 | I64: 0.01 | J64: 0.01 | K64: 0.01 | L64: 0.01 | M64: 0.01 | N64: 0.01 | O64: 0.01 | P64: 0.01 | Q64: 0.01 | R64: 0.01 | S64: 0.01 | T64: 0.01 | U64: 0.01 | V64: 0.01 | W64: 0.01 | X64: 0.01 | Y64: 0.01 | Z64: 0.01 | AA64: 0.01 | AB64: 0.01 | AC64: 0.01 | AD64: 0.01 | AE64: 0.01 | AF64: 0.01 | AG64: 0.01 | AH64: 0.01 | AI64: 0.01 | AJ64: 0.01 | AK64: 0.01 | AL64: 0.01 | AM64: 0.01 | AN64: 0.01 | AO64: 0.01 | AP64: 0.01 | AQ64: 0.01 | AR64: 0.01 | AS64: 0.01 | AT64: 0.01 | AU64: 0.01 | AV64: 0.01 | AW64: 0.01 | AX64: 0.01 | AY64: 0.01 | AZ64: 0.01
D65: ='Efficiency Levels'!C48 -> EL4 | E65: ='Efficiency Levels'!D48 -> Max Tech | F65: 0 | H65: 0 | I65: 0 | J65: 0 | K65: 0 | L65: 0 | M65: 0 | N65: 0 | O65: 0 | P65: 0 | Q65: 0 | R65: 0 | S65: 0 | T65: 0 | U65: 0 | V65: 0 | W65: 0 | X65: 0 | Y65: 0 | Z65: 0 | AA65: 0 | AB65: 0 | AC65: 0 | AD65: 0 | AE65: 0 | AF65: 0 | AG65: 0 | AH65: 0 | AI65: 0 | AJ65: 0 | AK65: 0 | AL65: 0 | AM65: 0 | AN65: 0 | AO65: 0 | AP65: 0 | AQ65: 0 | AR65: 0 | AS65: 0 | AT65: 0 | AU65: 0 | AV65: 0 | AW65: 0 | AX65: 0 | AY65: 0 | AZ65: 0
D66: TOTAL | F66: =SUM(F61:F65) -> 1 | H66: =SUM(H61:H65) -> 1 | I66: 1 | J66: 1 | K66: 1 | L66: 1 | M66: 1 | N66: 1 | O66: 1 | P66: 1 | Q66: 1 | R66: 1 | S66: 1 | T66: 1 | U66: 1 | V66: 1 | W66: 1 | X66: 1 | Y66: 1 | Z66: 1 | AA66: 1 | AB66: 1 | AC66: 1 | AD66: 1 | AE66: 1 | AF66: 1 | AG66: 1 | AH66: 1 | AI66: 1 | AJ66: 1 | AK66: 1 | AL66: 1 | AM66: 1 | AN66: 1 | AO66: 1 | AP66: 1 | AQ66: 1 | AR66: 1 | AS66: 1 | AT66: 1 | AU66: 1 | AV66: 1 | AW66: 1 | AX66: 1 | AY66: 1 | AZ66: 1
D68: POST-Case
D69: Efficiency Level | H69: 1990 | I69: =H69+1 -> 1991 | J69: =I69+1 -> 1992 | K69: =J69+1 -> 1993 | L69: =K69+1 -> 1994 | M69: =L69+1 -> 1995 | N69: =M69+1 -> 1996 | O69: =N69+1 -> 1997 | P69: =O69+1 -> 1998 | Q69: =P69+1 -> 1999 | R69: =Q69+1 -> 2000 | S69: =R69+1 -> 2001 | T69: =S69+1 -> 2002 | U69: =T69+1 -> 2003 | V69: =U69+1 -> 2004 | W69: =V69+1 -> 2005 | X69: =X60 -> 2006 | Y69: 2007 | Z69: 2008 | AA69: 2009 | AB69: 2010 | AC69: 2011 | AD69: 2012 | AE69: 2013 | AF69: 2014 | AG69: 2015 | AH69: 2016 | AI69: 2017 | AJ69: 2018 | AK69: 2019 | AL69: 2020 | AM69: 2021 | AN69: 2022 | AO69: 2023 | AP69: 2024 | AQ69: 2025 | AR69: 2026 | AS69: 2027 | AT69: 2028 | AU69: 2029 | AV69: 2030 | AW69: 2031 | AX69: 2032 | AY69: 2033 | AZ69: 2034
D70: =D61 -> EL0 | E70: =E61 -> EISA | H70: =H61 -> 0.19 | I70: 0.19 | J70: 0.19 | K70: 0.19 | L70: 0.19 | M70: 0.19 | N70: 0.19 | O70: 0.19 | P70: 0.19 | Q70: 0.19 | R70: 0.19 | S70: 0.19 | T70: 0.19 | U70: 0.19 | V70: 0.19 | W70: 0.19 | X70: 0.19 | Y70: 0.19 | Z70: 0.19 | AA70: 0.19 | AB70: 0.19 | AC70: 0.19 | AD70: 0.19 | AE70: 0.19 | AF70: 0.19 | AG70: =AG61 -> 0.19 | AH70: 0 | AI70: 0 | AJ70: 0 | AK70: 0 | AL70: 0 | AM70: 0 | AN70: 0 | AO70: 0 | AP70: 0 | AQ70: 0 | AR70: 0 | AS70: 0 | AT70: 0 | AU70: 0 | AV70: 0 | AW70: 0 | AX70: 0 | AY70: 0 | AZ70: 0
D71: =D62 -> EL1 | E71: Energy Star 2.0 | H71: =H62 -> 0.63 | I71: 0.63 | J71: 0.63 | K71: 0.63 | L71: 0.63 | M71: 0.63 | N71: 0.63 | O71: 0.63 | P71: 0.63 | Q71: 0.63 | R71: 0.63 | S71: 0.63 | T71: 0.63 | U71: 0.63 | V71: 0.63 | W71: 0.63 | X71: 0.63 | Y71: 0.63 | Z71: 0.63 | AA71: 0.63 | AB71: 0.63 | AC71: 0.63 | AD71: 0.63 | AE71: 0.63 | AF71: 0.63 | AG71: =AG62 -> 0.63 | AH71: 0 | AI71: 0 | AJ71: 0 | AK71: 0 | AL71: 0 | AM71: 0 | AN71: 0 | AO71: 0 | AP71: 0 | AQ71: 0 | AR71: 0 | AS71: 0 | AT71: 0 | AU71: 0 | AV71: 0 | AW71: 0 | AX71: 0 | AY71: 0 | AZ71: 0
D72: =D63 -> EL2 | E72: Intermediate | H72: =H63 -> 0.17 | I72: 0.17 | J72: 0.17 | K72: 0.17 | L72: 0.17 | M72: 0.17 | N72: 0.17 | O72: 0.17 | P72: 0.17 | Q72: 0.17 | R72: 0.17 | S72: 0.17 | T72: 0.17 | U72: 0.17 | V72: 0.17 | W72: 0.17 | X72: 0.17 | Y72: 0.17 | Z72: 0.17 | AA72: 0.17 | AB72: 0.17 | AC72: 0.17 | AD72: 0.17 | AE72: 0.17 | AF72: 0.17 | AG72: =AG63 -> 0.17 | AH72: 0 | AI72: 0 | AJ72: 0 | AK72: 0 | AL72: 0 | AM72: 0 | AN72: 0 | AO72: 0 | AP72: 0 | AQ72: 0 | AR72: 0 | AS72: 0 | AT72: 0 | AU72: 0 | AV72: 0 | AW72: 0 | AX72: 0 | AY72: 0 | AZ72: 0
D73: =D64 -> EL3 | E73: Best in Market | H73: =H64 -> 0.01 | I73: 0.01 | J73: 0.01 | K73: 0.01 | L73: 0.01 | M73: 0.01 | N73: 0.01 | O73: 0.01 | P73: 0.01 | Q73: 0.01 | R73: 0.01 | S73: 0.01 | T73: 0.01 | U73: 0.01 | V73: 0.01 | W73: 0.01 | X73: 0.01 | Y73: 0.01 | Z73: 0.01 | AA73: 0.01 | AB73: 0.01 | AC73: 0.01 | AD73: 0.01 | AE73: 0.01 | AF73: 0.01 | AG73: =AG64 -> 0.01 | AH73: =SUM(AH61:AH64) -> 1 | AI73: 1 | AJ73: 1 | AK73: 1 | AL73: 1 | AM73: 1 | AN73: 1 | AO73: 1 | AP73: 1 | AQ73: 1 | AR73: 1 | AS73: 1 | AT73: 1 | AU73: 1 | AV73: 1 | AW73: 1 | AX73: 1 | AY73: 1 | AZ73: 1
D74: =D65 -> EL4 | E74: Max Tech | H74: =H65 -> 0 | I74: 0 | J74: 0 | K74: 0 | L74: 0 | M74: 0 | N74: 0 | O74: 0 | P74: 0 | Q74: 0 | R74: 0 | S74: 0 | T74: 0 | U74: 0 | V74: 0 | W74: 0 | X74: 0 | Y74: 0 | Z74: 0 | AA74: 0 | AB74: 0 | AC74: 0 | AD74: 0 | AE74: 0 | AF74: 0 | AG74: =AG65 -> 0 | AH74: =AH65 -> 0 | AI74: 0 | AJ74: 0 | AK74: 0 | AL74: 0 | AM74: 0 | AN74: 0 | AO74: 0 | AP74: 0 | AQ74: 0 | AR74: 0 | AS74: 0 | AT74: 0 | AU74: 0 | AV74: 0 | AW74: 0 | AX74: 0 | AY74: 0 | AZ74: 0
D75: TOTAL | H75: =SUM(H70:H74) -> 1 | I75: 1 | J75: 1 | K75: 1 | L75: 1 | M75: 1 | N75: 1 | O75: 1 | P75: 1 | Q75: 1 | R75: 1 | S75: 1 | T75: 1 | U75: 1 | V75: 1 | W75: 1 | X75: 1 | Y75: 1 | Z75: 1 | AA75: 1 | AB75: 1 | AC75: 1 | AD75: 1 | AE75: 1 | AF75: 1 | AG75: =SUM(AG70:AG74) -> 1 | AH75: 1 | AI75: 1 | AJ75: 1 | AK75: 1 | AL75: 1 | AM75: 1 | AN75: 1 | AO75: 1 | AP75: 1 | AQ75: 1 | AR75: 1 | AS75: 1 | AT75: 1 | AU75: 1 | AV75: 1 | AW75: 1 | AX75: 1 | AY75: 1 | AZ75: 1
D77: Sources | E77: DOE External Power Supplies 2014 Final Rule, Technical Support Document: National Impact Analysis Spreadsheet, 'Inputs' tab, cells E78:K86
D81: ='Product Classes'!H13&" - "&OFFSET('Product Classes'!$C$9,MATCH('Product Classes'!H13,MODEL_PCS,0),0) -> B 120 W - AC-DC, Basic Voltage 120 W Rep. Unit
D83: PRE-Case | F83: Static Distribution
D84: Efficiency Level | F84: 2015 | H84: 1990 | I84: =H84+1 -> 1991 | J84: =I84+1 -> 1992 | K84: =J84+1 -> 1993 | L84: =K84+1 -> 1994 | M84: =L84+1 -> 1995 | N84: =M84+1 -> 1996 | O84: =N84+1 -> 1997 | P84: =O84+1 -> 1998 | Q84: =P84+1 -> 1999 | R84: =Q84+1 -> 2000 | S84: =R84+1 -> 2001 | T84: =S84+1 -> 2002 | U84: =T84+1 -> 2003 | V84: =U84+1 -> 2004 | W84: =V84+1 -> 2005 | X84: =W84+1 -> 2006 | Y84: =X84+1 -> 2007 | Z84: =Y84+1 -> 2008 | AA84: =Z84+1 -> 2009 | AB84: =AA84+1 -> 2010 | AC84: =AB84+1 -> 2011 | AD84: =AC84+1 -> 2012 | AE84: =AD84+1 -> 2013 | AF84: =AE84+1 -> 2014 | AG84: =AF84+1 -> 2015 | AH84: =AG84+1 -> 2016 | AI84: =AH84+1 -> 2017 | AJ84: =AI84+1 -> 2018 | AK84: =AJ84+1 -> 2019 | AL84: =AK84+1 -> 2020 | AM84: =AL84+1 -> 2021 | AN84: =AM84+1 -> 2022 | AO84: =AN84+1 -> 2023 | AP84: =AO84+1 -> 2024 | AQ84: =AP84+1 -> 2025 | AR84: =AQ84+1 -> 2026 | AS84: =AR84+1 -> 2027 | AT84: =AS84+1 -> 2028 | AU84: =AT84+1 -> 2029 | AV84: =AU84+1 -> 2030 | AW84: =AV84+1 -> 2031 | AX84: =AW84+1 -> 2032 | AY84: =AX84+1 -> 2033 | AZ84: =AY84+1 -> 2034
D85: ='Efficiency Levels'!C60 -> EL0 | E85: ='Efficiency Levels'!D60 -> EISA | F85: 0.26 | H85: =$F85 -> 0.26 | I85: =$F85 -> 0.26 | J85: 0.26 | K85: 0.26 | L85: 0.26 | M85: 0.26 | N85: 0.26 | O85: 0.26 | P85: 0.26 | Q85: 0.26 | R85: 0.26 | S85: 0.26 | T85: 0.26 | U85: 0.26 | V85: 0.26 | W85: 0.26 | X85: 0.26 | Y85: 0.26 | Z85: 0.26 | AA85: 0.26 | AB85: 0.26 | AC85: 0.26 | AD85: 0.26 | AE85: 0.26 | AF85: 0.26 | AG85: 0.26 | AH85: 0.26 | AI85: 0.26 | AJ85: 0.26 | AK85: 0.26 | AL85: 0.26 | AM85: 0.26 | AN85: 0.26 | AO85: 0.26 | AP85: 0.26 | AQ85: 0.26 | AR85: 0.26 | AS85: 0.26 | AT85: 0.26 | AU85: 0.26 | AV85: 0.26 | AW85: 0.26 | AX85: 0.26 | AY85: 0.26 | AZ85: 0.26
D86: ='Efficiency Levels'!C61 -> EL1 | E86: ='Efficiency Levels'!D61 -> Energy Star 2.0 | F86: 0.53 | H86: =$F86 -> 0.53 | I86: 0.53 | J86: 0.53 | K86: 0.53 | L86: 0.53 | M86: 0.53 | N86: 0.53 | O86: 0.53 | P86: 0.53 | Q86: 0.53 | R86: 0.53 | S86: 0.53 | T86: 0.53 | U86: 0.53 | V86: 0.53 | W86: 0.53 | X86: 0.53 | Y86: 0.53 | Z86: 0.53 | AA86: 0.53 | AB86: 0.53 | AC86: 0.53 | AD86: 0.53 | AE86: 0.53 | AF86: 0.53 | AG86: 0.53 | AH86: 0.53 | AI86: 0.53 | AJ86: 0.53 | AK86: 0.53 | AL86: 0.53 | AM86: 0.53 | AN86: 0.53 | AO86: 0.53 | AP86: 0.53 | AQ86: 0.53 | AR86: 0.53 | AS86: 0.53 | AT86: 0.53 | AU86: 0.53 | AV86: 0.53 | AW86: 0.53 | AX86: 0.53 | AY86: 0.53 | AZ86: 0.53
D87: ='Efficiency Levels'!C62 -> EL2 | E87: ='Efficiency Levels'!D62 -> Intermediate | F87: 0.18 | H87: 0.18 | I87: 0.18 | J87: 0.18 | K87: 0.18 | L87: 0.18 | M87: 0.18 | N87: 0.18 | O87: 0.18 | P87: 0.18 | Q87: 0.18 | R87: 0.18 | S87: 0.18 | T87: 0.18 | U87: 0.18 | V87: 0.18 | W87: 0.18 | X87: 0.18 | Y87: 0.18 | Z87: 0.18 | AA87: 0.18 | AB87: 0.18 | AC87: 0.18 | AD87: 0.18 | AE87: 0.18 | AF87: 0.18 | AG87: 0.18 | AH87: 0.18 | AI87: 0.18 | AJ87: 0.18 | AK87: 0.18 | AL87: 0.18 | AM87: 0.18 | AN87: 0.18 | AO87: 0.18 | AP87: 0.18 | AQ87: 0.18 | AR87: 0.18 | AS87: 0.18 | AT87: 0.18 | AU87: 0.18 | AV87: 0.18 | AW87: 0.18 | AX87: 0.18 | AY87: 0.18 | AZ87: 0.18
D88: ='Efficiency Levels'!C63 -> EL3 | E88: ='Efficiency Levels'!D63 -> Best in Market | F88: 0.03 | H88: 0.03 | I88: 0.03 | J88: 0.03 | K88: 0.03 | L88: 0.03 | M88: 0.03 | N88: 0.03 | O88: 0.03 | P88: 0.03 | Q88: 0.03 | R88: 0.03 | S88: 0.03 | T88: 0.03 | U88: 0.03 | V88: 0.03 | W88: 0.03 | X88: 0.03 | Y88: 0.03 | Z88: 0.03 | AA88: 0.03 | AB88: 0.03 | AC88: 0.03 | AD88: 0.03 | AE88: 0.03 | AF88: 0.03 | AG88: 0.03 | AH88: 0.03 | AI88: 0.03 | AJ88: 0.03 | AK88: 0.03 | AL88: 0.03 | AM88: 0.03 | AN88: 0.03 | AO88: 0.03 | AP88: 0.03 | AQ88: 0.03 | AR88: 0.03 | AS88: 0.03 | AT88: 0.03 | AU88: 0.03 | AV88: 0.03 | AW88: 0.03 | AX88: 0.03 | AY88: 0.03 | AZ88: 0.03
D89: ='Efficiency Levels'!C64 -> EL4 | E89: ='Efficiency Levels'!D64 -> Max Tech | F89: 0 | H89: 0 | I89: 0 | J89: 0 | K89: 0 | L89: 0 | M89: 0 | N89: 0 | O89: 0 | P89: 0 | Q89: 0 | R89: 0 | S89: 0 | T89: 0 | U89: 0 | V89: 0 | W89: 0 | X89: 0 | Y89: 0 | Z89: 0 | AA89: 0 | AB89: 0 | AC89: 0 | AD89: 0 | AE89: 0 | AF89: 0 | AG89: 0 | AH89: 0 | AI89: 0 | AJ89: 0 | AK89: 0 | AL89: 0 | AM89: 0 | AN89: 0 | AO89: 0 | AP89: 0 | AQ89: 0 | AR89: 0 | AS89: 0 | AT89: 0 | AU89: 0 | AV89: 0 | AW89: 0 | AX89: 0 | AY89: 0 | AZ89: 0
D90: TOTAL | F90: =SUM(F85:F89) -> 1 | H90: =SUM(H85:H89) -> 1 | I90: 1 | J90: 1 | K90: 1 | L90: 1 | M90: 1 | N90: 1 | O90: 1 | P90: 1 | Q90: 1 | R90: 1 | S90: 1 | T90: 1 | U90: 1 | V90: 1 | W90: 1 | X90: 1 | Y90: 1 | Z90: 1 | AA90: 1 | AB90: 1 | AC90: 1 | AD90: 1 | AE90: 1 | AF90: 1 | AG90: 1 | AH90: 1 | AI90: 1 | AJ90: 1 | AK90: 1 | AL90: 1 | AM90: 1 | AN90: 1 | AO90: 1 | AP90: 1 | AQ90: 1 | AR90: 1 | AS90: 1 | AT90: 1 | AU90: 1 | AV90: 1 | AW90: 1 | AX90: 1 | AY90: 1 | AZ90: 1
D92: POST-Case
D93: Efficiency Level | H93: 1990 | I93: =H93+1 -> 1991 | J93: =I93+1 -> 1992 | K93: =J93+1 -> 1993 | L93: =K93+1 -> 1994 | M93: =L93+1 -> 1995 | N93: =M93+1 -> 1996 | O93: =N93+1 -> 1997 | P93: =O93+1 -> 1998 | Q93: =P93+1 -> 1999 | R93: =Q93+1 -> 2000 | S93: =R93+1 -> 2001 | T93: =S93+1 -> 2002 | U93: =T93+1 -> 2003 | V93: =U93+1 -> 2004 | W93: =V93+1 -> 2005 | X93: =X84 -> 2006 | Y93: 2007 | Z93: 2008 | AA93: 2009 | AB93: 2010 | AC93: 2011 | AD93: 2012 | AE93: 2013 | AF93: 2014 | AG93: 2015 | AH93: 2016 | AI93: 2017 | AJ93: 2018 | AK93: 2019 | AL93: 2020 | AM93: 2021 | AN93: 2022 | AO93: 2023 | AP93: 2024 | AQ93: 2025 | AR93: 2026 | AS93: 2027 | AT93: 2028 | AU93: 2029 | AV93: 2030 | AW93: 2031 | AX93: 2032 | AY93: 2033 | AZ93: 2034
D94: =D85 -> EL0 | E94: =E85 -> EISA | H94: =H85 -> 0.26 | I94: 0.26 | J94: 0.26 | K94: 0.26 | L94: 0.26 | M94: 0.26 | N94: 0.26 | O94: 0.26 | P94: 0.26 | Q94: 0.26 | R94: 0.26 | S94: 0.26 | T94: 0.26 | U94: 0.26 | V94: 0.26 | W94: 0.26 | X94: 0.26 | Y94: 0.26 | Z94: 0.26 | AA94: 0.26 | AB94: 0.26 | AC94: 0.26 | AD94: 0.26 | AE94: 0.26 | AF94: 0.26 | AG94: =AG85 -> 0.26 | AH94: 0 | AI94: 0 | AJ94: 0 | AK94: 0 | AL94: 0 | AM94: 0 | AN94: 0 | AO94: 0 | AP94: 0 | AQ94: 0 | AR94: 0 | AS94: 0 | AT94: 0 | AU94: 0 | AV94: 0 | AW94: 0 | AX94: 0 | AY94: 0 | AZ94: 0
D95: =D86 -> EL1 | E95: Energy Star 2.0 | H95: =H86 -> 0.53 | I95: 0.53 | J95: 0.53 | K95: 0.53 | L95: 0.53 | M95: 0.53 | N95: 0.53 | O95: 0.53 | P95: 0.53 | Q95: 0.53 | R95: 0.53 | S95: 0.53 | T95: 0.53 | U95: 0.53 | V95: 0.53 | W95: 0.53 | X95: 0.53 | Y95: 0.53 | Z95: 0.53 | AA95: 0.53 | AB95: 0.53 | AC95: 0.53 | AD95: 0.53 | AE95: 0.53 | AF95: 0.53 | AG95: =AG86 -> 0.53 | AH95: 0 | AI95: 0 | AJ95: 0 | AK95: 0 | AL95: 0 | AM95: 0 | AN95: 0 | AO95: 0 | AP95: 0 | AQ95: 0 | AR95: 0 | AS95: 0 | AT95: 0 | AU95: 0 | AV95: 0 | AW95: 0 | AX95: 0 | AY95: 0 | AZ95: 0
D96: =D87 -> EL2 | E96: Intermediate | H96: =H87 -> 0.18 | I96: 0.18 | J96: 0.18 | K96: 0.18 | L96: 0.18 | M96: 0.18 | N96: 0.18 | O96: 0.18 | P96: 0.18 | Q96: 0.18 | R96: 0.18 | S96: 0.18 | T96: 0.18 | U96: 0.18 | V96: 0.18 | W96: 0.18 | X96: 0.18 | Y96: 0.18 | Z96: 0.18 | AA96: 0.18 | AB96: 0.18 | AC96: 0.18 | AD96: 0.18 | AE96: 0.18 | AF96: 0.18 | AG96: =AG87 -> 0.18 | AH96: 0 | AI96: 0 | AJ96: 0 | AK96: 0 | AL96: 0 | AM96: 0 | AN96: 0 | AO96: 0 | AP96: 0 | AQ96: 0 | AR96: 0 | AS96: 0 | AT96: 0 | AU96: 0 | AV96: 0 | AW96: 0 | AX96: 0 | AY96: 0 | AZ96: 0
D97: =D88 -> EL3 | E97: Best in Market | H97: =H88 -> 0.03 | I97: 0.03 | J97: 0.03 | K97: 0.03 | L97: 0.03 | M97: 0.03 | N97: 0.03 | O97: 0.03 | P97: 0.03 | Q97: 0.03 | R97: 0.03 | S97: 0.03 | T97: 0.03 | U97: 0.03 | V97: 0.03 | W97: 0.03 | X97: 0.03 | Y97: 0.03 | Z97: 0.03 | AA97: 0.03 | AB97: 0.03 | AC97: 0.03 | AD97: 0.03 | AE97: 0.03 | AF97: 0.03 | AG97: =AG88 -> 0.03 | AH97: =SUM(AH85:AH88) -> 1 | AI97: 1 | AJ97: 1 | AK97: 1 | AL97: 1 | AM97: 1 | AN97: 1 | AO97: 1 | AP97: 1 | AQ97: 1 | AR97: 1 | AS97: 1 | AT97: 1 | AU97: 1 | AV97: 1 | AW97: 1 | AX97: 1 | AY97: 1 | AZ97: 1
D98: =D89 -> EL4 | E98: Max Tech | H98: =H89 -> 0 | I98: 0 | J98: 0 | K98: 0 | L98: 0 | M98: 0 | N98: 0 | O98: 0 | P98: 0 | Q98: 0 | R98: 0 | S98: 0 | T98: 0 | U98: 0 | V98: 0 | W98: 0 | X98: 0 | Y98: 0 | Z98: 0 | AA98: 0 | AB98: 0 | AC98: 0 | AD98: 0 | AE98: 0 | AF98: 0 | AG98: =AG89 -> 0 | AH98: =AH89 -> 0 | AI98: 0 | AJ98: 0 | AK98: 0 | AL98: 0 | AM98: 0 | AN98: 0 | AO98: 0 | AP98: 0 | AQ98: 0 | AR98: 0 | AS98: 0 | AT98: 0 | AU98: 0 | AV98: 0 | AW98: 0 | AX98: 0 | AY98: 0 | AZ98: 0
D99: TOTAL | H99: =SUM(H94:H98) -> 1 | I99: 1 | J99: 1 | K99: 1 | L99: 1 | M99: 1 | N99: 1 | O99: 1 | P99: 1 | Q99: 1 | R99: 1 | S99: 1 | T99: 1 | U99: 1 | V99: 1 | W99: 1 | X99: 1 | Y99: 1 | Z99: 1 | AA99: 1 | AB99: 1 | AC99: 1 | AD99: 1 | AE99: 1 | AF99: 1 | AG99: =SUM(AG94:AG98) -> 1 | AH99: 1 | AI99: 1 | AJ99: 1 | AK99: 1 | AL99: 1 | AM99: 1 | AN99: 1 | AO99: 1 | AP99: 1 | AQ99: 1 | AR99: 1 | AS99: 1 | AT99: 1 | AU99: 1 | AV99: 1 | AW99: 1 | AX99: 1 | AY99: 1 | AZ99: 1
D101: Sources | E101: DOE External Power Supplies 2014 Final Rule, Technical Support Document: National Impact Analysis Spreadsheet, 'Inputs' tab, cells E78:K86
D105: ='Product Classes'!H14&" - "&OFFSET('Product Classes'!$C$9,MATCH('Product Classes'!H14,MODEL_PCS,0),0) -> C - AC-DC, Low Voltage
D107: PRE-Case | F107: Static Distribution
D108: Efficiency Level | F108: 2015 | H108: 1990 | I108: =H108+1 -> 1991 | J108: =I108+1 -> 1992 | K108: =J108+1 -> 1993 | L108: =K108+1 -> 1994 | M108: =L108+1 -> 1995 | N108: =M108+1 -> 1996 | O108: =N108+1 -> 1997 | P108: =O108+1 -> 1998 | Q108: =P108+1 -> 1999 | R108: =Q108+1 -> 2000 | S108: =R108+1 -> 2001 | T108: =S108+1 -> 2002 | U108: =T108+1 -> 2003 | V108: =U108+1 -> 2004 | W108: =V108+1 -> 2005 | X108: =W108+1 -> 2006 | Y108: =X108+1 -> 2007 | Z108: =Y108+1 -> 2008 | AA108: =Z108+1 -> 2009 | AB108: =AA108+1 -> 2010 | AC108: =AB108+1 -> 2011 | AD108: =AC108+1 -> 2012 | AE108: =AD108+1 -> 2013 | AF108: =AE108+1 -> 2014 | AG108: =AF108+1 -> 2015 | AH108: =AG108+1 -> 2016 | AI108: =AH108+1 -> 2017 | AJ108: =AI108+1 -> 2018 | AK108: =AJ108+1 -> 2019 | AL108: =AK108+1 -> 2020 | AM108: =AL108+1 -> 2021 | AN108: =AM108+1 -> 2022 | AO108: =AN108+1 -> 2023 | AP108: =AO108+1 -> 2024 | AQ108: =AP108+1 -> 2025 | AR108: =AQ108+1 -> 2026 | AS108: =AR108+1 -> 2027 | AT108: =AS108+1 -> 2028 | AU108: =AT108+1 -> 2029 | AV108: =AU108+1 -> 2030 | AW108: =AV108+1 -> 2031 | AX108: =AW108+1 -> 2032 | AY108: =AX108+1 -> 2033 | AZ108: =AY108+1 -> 2034
D109: ='Efficiency Levels'!C76 -> EL0 | E109: ='Efficiency Levels'!D76 -> EISA | F109: 0.42 | H109: =$F109 -> 0.42 | I109: =$F109 -> 0.42 | J109: 0.42 | K109: 0.42 | L109: 0.42 | M109: 0.42 | N109: 0.42 | O109: 0.42 | P109: 0.42 | Q109: 0.42 | R109: 0.42 | S109: 0.42 | T109: 0.42 | U109: 0.42 | V109: 0.42 | W109: 0.42 | X109: 0.42 | Y109: 0.42 | Z109: 0.42 | AA109: 0.42 | AB109: 0.42 | AC109: 0.42 | AD109: 0.42 | AE109: 0.42 | AF109: 0.42 | AG109: 0.42 | AH109: 0.42 | AI109: 0.42 | AJ109: 0.42 | AK109: 0.42 | AL109: 0.42 | AM109: 0.42 | AN109: 0.42 | AO109: 0.42 | AP109: 0.42 | AQ109: 0.42 | AR109: 0.42 | AS109: 0.42 | AT109: 0.42 | AU109: 0.42 | AV109: 0.42 | AW109: 0.42 | AX109: 0.42 | AY109: 0.42 | AZ109: 0.42
D110: ='Efficiency Levels'!C77 -> EL1 | E110: ='Efficiency Levels'!D77 -> Energy Star 2.0 | F110: 0.53 | H110: =$F110 -> 0.53 | I110: 0.53 | J110: 0.53 | K110: 0.53 | L110: 0.53 | M110: 0.53 | N110: 0.53 | O110: 0.53 | P110: 0.53 | Q110: 0.53 | R110: 0.53 | S110: 0.53 | T110: 0.53 | U110: 0.53 | V110: 0.53 | W110: 0.53 | X110: 0.53 | Y110: 0.53 | Z110: 0.53 | AA110: 0.53 | AB110: 0.53 | AC110: 0.53 | AD110: 0.53 | AE110: 0.53 | AF110: 0.53 | AG110: 0.53 | AH110: 0.53 | AI110: 0.53 | AJ110: 0.53 | AK110: 0.53 | AL110: 0.53 | AM110: 0.53 | AN110: 0.53 | AO110: 0.53 | AP110: 0.53 | AQ110: 0.53 | AR110: 0.53 | AS110: 0.53 | AT110: 0.53 | AU110: 0.53 | AV110: 0.53 | AW110: 0.53 | AX110: 0.53 | AY110: 0.53 | AZ110: 0.53
D111: ='Efficiency Levels'!C78 -> EL2 | E111: ='Efficiency Levels'!D78 -> Intermediate | F111: 0.02 | H111: 0.02 | I111: 0.02 | J111: 0.02 | K111: 0.02 | L111: 0.02 | M111: 0.02 | N111: 0.02 | O111: 0.02 | P111: 0.02 | Q111: 0.02 | R111: 0.02 | S111: 0.02 | T111: 0.02 | U111: 0.02 | V111: 0.02 | W111: 0.02 | X111: 0.02 | Y111: 0.02 | Z111: 0.02 | AA111: 0.02 | AB111: 0.02 | AC111: 0.02 | AD111: 0.02 | AE111: 0.02 | AF111: 0.02 | AG111: 0.02 | AH111: 0.02 | AI111: 0.02 | AJ111: 0.02 | AK111: 0.02 | AL111: 0.02 | AM111: 0.02 | AN111: 0.02 | AO111: 0.02 | AP111: 0.02 | AQ111: 0.02 | AR111: 0.02 | AS111: 0.02 | AT111: 0.02 | AU111: 0.02 | AV111: 0.02 | AW111: 0.02 | AX111: 0.02 | AY111: 0.02 | AZ111: 0.02
D112: ='Efficiency Levels'!C79 -> EL3 | E112: ='Efficiency Levels'!D79 -> Best in Market | F112: 0.03 | H112: 0.03 | I112: 0.03 | J112: 0.03 | K112: 0.03 | L112: 0.03 | M112: 0.03 | N112: 0.03 | O112: 0.03 | P112: 0.03 | Q112: 0.03 | R112: 0.03 | S112: 0.03 | T112: 0.03 | U112: 0.03 | V112: 0.03 | W112: 0.03 | X112: 0.03 | Y112: 0.03 | Z112: 0.03 | AA112: 0.03 | AB112: 0.03 | AC112: 0.03 | AD112: 0.03 | AE112: 0.03 | AF112: 0.03 | AG112: 0.03 | AH112: 0.03 | AI112: 0.03 | AJ112: 0.03 | AK112: 0.03 | AL112: 0.03 | AM112: 0.03 | AN112: 0.03 | AO112: 0.03 | AP112: 0.03 | AQ112: 0.03 | AR112: 0.03 | AS112: 0.03 | AT112: 0.03 | AU112: 0.03 | AV112: 0.03 | AW112: 0.03 | AX112: 0.03 | AY112: 0.03 | AZ112: 0.03
D113: ='Efficiency Levels'!C80 -> EL4 | E113: ='Efficiency Levels'!D80 -> Max Tech | F113: 0 | H113: 0 | I113: 0 | J113: 0 | K113: 0 | L113: 0 | M113: 0 | N113: 0 | O113: 0 | P113: 0 | Q113: 0 | R113: 0 | S113: 0 | T113: 0 | U113: 0 | V113: 0 | W113: 0 | X113: 0 | Y113: 0 | Z113: 0 | AA113: 0 | AB113: 0 | AC113: 0 | AD113: 0 | AE113: 0 | AF113: 0 | AG113: 0 | AH113: 0 | AI113: 0 | AJ113: 0 | AK113: 0 | AL113: 0 | AM113: 0 | AN113: 0 | AO113: 0 | AP113: 0 | AQ113: 0 | AR113: 0 | AS113: 0 | AT113: 0 | AU113: 0 | AV113: 0 | AW113: 0 | AX113: 0 | AY113: 0 | AZ113: 0
D114: TOTAL | F114: =SUM(F109:F113) -> 1 | H114: =SUM(H109:H113) -> 1 | I114: 1 | J114: 1 | K114: 1 | L114: 1 | M114: 1 | N114: 1 | O114: 1 | P114: 1 | Q114: 1 | R114: 1 | S114: 1 | T114: 1 | U114: 1 | V114: 1 | W114: 1 | X114: 1 | Y114: 1 | Z114: 1 | AA114: 1 | AB114: 1 | AC114: 1 | AD114: 1 | AE114: 1 | AF114: 1 | AG114: 1 | AH114: 1 | AI114: 1 | AJ114: 1 | AK114: 1 | AL114: 1 | AM114: 1 | AN114: 1 | AO114: 1 | AP114: 1 | AQ114: 1 | AR114: 1 | AS114: 1 | AT114: 1 | AU114: 1 | AV114: 1 | AW114: 1 | AX114: 1 | AY114: 1 | AZ114: 1
D116: POST-Case
D117: Efficiency Level | H117: 1990 | I117: =H117+1 -> 1991 | J117: =I117+1 -> 1992 | K117: =J117+1 -> 1993 | L117: =K117+1 -> 1994 | M117: =L117+1 -> 1995 | N117: =M117+1 -> 1996 | O117: =N117+1 -> 1997 | P117: =O117+1 -> 1998 | Q117: =P117+1 -> 1999 | R117: =Q117+1 -> 2000 | S117: =R117+1 -> 2001 | T117: =S117+1 -> 2002 | U117: =T117+1 -> 2003 | V117: =U117+1 -> 2004 | W117: =V117+1 -> 2005 | X117: =X108 -> 2006 | Y117: 2007 | Z117: 2008 | AA117: 2009 | AB117: 2010 | AC117: 2011 | AD117: 2012 | AE117: 2013 | AF117: 2014 | AG117: 2015 | AH117: 2016 | AI117: 2017 | AJ117: 2018 | AK117: 2019 | AL117: 2020 | AM117: 2021 | AN117: 2022 | AO117: 2023 | AP117: 2024 | AQ117: 2025 | AR117: 2026 | AS117: 2027 | AT117: 2028 | AU117: 2029 | AV117: 2030 | AW117: 2031 | AX117: 2032 | AY117: 2033 | AZ117: 2034
D118: =D109 -> EL0 | E118: =E109 -> EISA | H118: =H109 -> 0.42 | I118: 0.42 | J118: 0.42 | K118: 0.42 | L118: 0.42 | M118: 0.42 | N118: 0.42 | O118: 0.42 | P118: 0.42 | Q118: 0.42 | R118: 0.42 | S118: 0.42 | T118: 0.42 | U118: 0.42 | V118: 0.42 | W118: 0.42 | X118: 0.42 | Y118: 0.42 | Z118: 0.42 | AA118: 0.42 | AB118: 0.42 | AC118: 0.42 | AD118: 0.42 | AE118: 0.42 | AF118: 0.42 | AG118: =AG109 -> 0.42 | AH118: 0 | AI118: 0 | AJ118: 0 | AK118: 0 | AL118: 0 | AM118: 0 | AN118: 0 | AO118: 0 | AP118: 0 | AQ118: 0 | AR118: 0 | AS118: 0 | AT118: 0 | AU118: 0 | AV118: 0 | AW118: 0 | AX118: 0 | AY118: 0 | AZ118: 0
D119: =D110 -> EL1 | E119: Energy Star 2.0 | H119: =H110 -> 0.53 | I119: 0.53 | J119: 0.53 | K119: 0.53 | L119: 0.53 | M119: 0.53 | N119: 0.53 | O119: 0.53 | P119: 0.53 | Q119: 0.53 | R119: 0.53 | S119: 0.53 | T119: 0.53 | U119: 0.53 | V119: 0.53 | W119: 0.53 | X119: 0.53 | Y119: 0.53 | Z119: 0.53 | AA119: 0.53 | AB119: 0.53 | AC119: 0.53 | AD119: 0.53 | AE119: 0.53 | AF119: 0.53 | AG119: =AG110 -> 0.53 | AH119: 0 | AI119: 0 | AJ119: 0 | AK119: 0 | AL119: 0 | AM119: 0 | AN119: 0 | AO119: 0 | AP119: 0 | AQ119: 0 | AR119: 0 | AS119: 0 | AT119: 0 | AU119: 0 | AV119: 0 | AW119: 0 | AX119: 0 | AY119: 0 | AZ119: 0
D120: =D111 -> EL2 | E120: Intermediate | H120: =H111 -> 0.02 | I120: 0.02 | J120: 0.02 | K120: 0.02 | L120: 0.02 | M120: 0.02 | N120: 0.02 | O120: 0.02 | P120: 0.02 | Q120: 0.02 | R120: 0.02 | S120: 0.02 | T120: 0.02 | U120: 0.02 | V120: 0.02 | W120: 0.02 | X120: 0.02 | Y120: 0.02 | Z120: 0.02 | AA120: 0.02 | AB120: 0.02 | AC120: 0.02 | AD120: 0.02 | AE120: 0.02 | AF120: 0.02 | AG120: =AG111 -> 0.02 | AH120: 0 | AI120: 0 | AJ120: 0 | AK120: 0 | AL120: 0 | AM120: 0 | AN120: 0 | AO120: 0 | AP120: 0 | AQ120: 0 | AR120: 0 | AS120: 0 | AT120: 0 | AU120: 0 | AV120: 0 | AW120: 0 | AX120: 0 | AY120: 0 | AZ120: 0
D121: =D112 -> EL3 | E121: Best in Market | H121: =H112 -> 0.03 | I121: 0.03 | J121: 0.03 | K121: 0.03 | L121: 0.03 | M121: 0.03 | N121: 0.03 | O121: 0.03 | P121: 0.03 | Q121: 0.03 | R121: 0.03 | S121: 0.03 | T121: 0.03 | U121: 0.03 | V121: 0.03 | W121: 0.03 | X121: 0.03 | Y121: 0.03 | Z121: 0.03 | AA121: 0.03 | AB121: 0.03 | AC121: 0.03 | AD121: 0.03 | AE121: 0.03 | AF121: 0.03 | AG121: =AG112 -> 0.03 | AH121: =SUM(AH109:AH112) -> 1 | AI121: 1 | AJ121: 1 | AK121: 1 | AL121: 1 | AM121: 1 | AN121: 1 | AO121: 1 | AP121: 1 | AQ121: 1 | AR121: 1 | AS121: 1 | AT121: 1 | AU121: 1 | AV121: 1 | AW121: 1 | AX121: 1 | AY121: 1 | AZ121: 1
D122: =D113 -> EL4 | E122: Max Tech | H122: =H113 -> 0 | I122: 0 | J122: 0 | K122: 0 | L122: 0 | M122: 0 | N122: 0 | O122: 0 | P122: 0 | Q122: 0 | R122: 0 | S122: 0 | T122: 0 | U122: 0 | V122: 0 | W122: 0 | X122: 0 | Y122: 0 | Z122: 0 | AA122: 0 | AB122: 0 | AC122: 0 | AD122: 0 | AE122: 0 | AF122: 0 | AG122: =AG113 -> 0 | AH122: =AH113 -> 0 | AI122: 0 | AJ122: 0 | AK122: 0 | AL122: 0 | AM122: 0 | AN122: 0 | AO122: 0 | AP122: 0 | AQ122: 0 | AR122: 0 | AS122: 0 | AT122: 0 | AU122: 0 | AV122: 0 | AW122: 0 | AX122: 0 | AY122: 0 | AZ122: 0
D123: TOTAL | H123: =SUM(H118:H122) -> 1 | I123: 1 | J123: 1 | K123: 1 | L123: 1 | M123: 1 | N123: 1 | O123: 1 | P123: 1 | Q123: 1 | R123: 1 | S123: 1 | T123: 1 | U123: 1 | V123: 1 | W123: 1 | X123: 1 | Y123: 1 | Z123: 1 | AA123: 1 | AB123: 1 | AC123: 1 | AD123: 1 | AE123: 1 | AF123: 1 | AG123: =SUM(AG118:AG122) -> 1 | AH123: 1 | AI123: 1 | AJ123: 1 | AK123: 1 | AL123: 1 | AM123: 1 | AN123: 1 | AO123: 1 | AP123: 1 | AQ123: 1 | AR123: 1 | AS123: 1 | AT123: 1 | AU123: 1 | AV123: 1 | AW123: 1 | AX123: 1 | AY123: 1 | AZ123: 1
D125: Sources | E125: DOE External Power Supplies 2014 Final Rule, Technical Support Document: National Impact Analysis Spreadsheet, 'Inputs' tab, cells E78:K86
D129: ='Product Classes'!H15&" - "&OFFSET('Product Classes'!$C$9,MATCH('Product Classes'!H15,MODEL_PCS,0),0) -> D - AC-AC, Basic Voltage
D131: PRE-Case | F131: Static Distribution
D132: Efficiency Level | F132: 2015 | H132: 1990 | I132: =H132+1 -> 1991 | J132: =I132+1 -> 1992 | K132: =J132+1 -> 1993 | L132: =K132+1 -> 1994 | M132: =L132+1 -> 1995 | N132: =M132+1 -> 1996 | O132: =N132+1 -> 1997 | P132: =O132+1 -> 1998 | Q132: =P132+1 -> 1999 | R132: =Q132+1 -> 2000 | S132: =R132+1 -> 2001 | T132: =S132+1 -> 2002 | U132: =T132+1 -> 2003 | V132: =U132+1 -> 2004 | W132: =V132+1 -> 2005 | X132: =W132+1 -> 2006 | Y132: =X132+1 -> 2007 | Z132: =Y132+1 -> 2008 | AA132: =Z132+1 -> 2009 | AB132: =AA132+1 -> 2010 | AC132: =AB132+1 -> 2011 | AD132: =AC132+1 -> 2012 | AE132: =AD132+1 -> 2013 | AF132: =AE132+1 -> 2014 | AG132: =AF132+1 -> 2015 | AH132: =AG132+1 -> 2016 | AI132: =AH132+1 -> 2017 | AJ132: =AI132+1 -> 2018 | AK132: =AJ132+1 -> 2019 | AL132: =AK132+1 -> 2020 | AM132: =AL132+1 -> 2021 | AN132: =AM132+1 -> 2022 | AO132: =AN132+1 -> 2023 | AP132: =AO132+1 -> 2024 | AQ132: =AP132+1 -> 2025 | AR132: =AQ132+1 -> 2026 | AS132: =AR132+1 -> 2027 | AT132: =AS132+1 -> 2028 | AU132: =AT132+1 -> 2029 | AV132: =AU132+1 -> 2030 | AW132: =AV132+1 -> 2031 | AX132: =AW132+1 -> 2032 | AY132: =AX132+1 -> 2033 | AZ132: =AY132+1 -> 2034
D133: ='Efficiency Levels'!C92 -> EL0 | E133: ='Efficiency Levels'!D92 -> EISA | F133: 0.24 | H133: =$F133 -> 0.24 | I133: =$F133 -> 0.24 | J133: 0.24 | K133: 0.24 | L133: 0.24 | M133: 0.24 | N133: 0.24 | O133: 0.24 | P133: 0.24 | Q133: 0.24 | R133: 0.24 | S133: 0.24 | T133: 0.24 | U133: 0.24 | V133: 0.24 | W133: 0.24 | X133: 0.24 | Y133: 0.24 | Z133: 0.24 | AA133: 0.24 | AB133: 0.24 | AC133: 0.24 | AD133: 0.24 | AE133: 0.24 | AF133: 0.24 | AG133: 0.24 | AH133: 0.24 | AI133: 0.24 | AJ133: 0.24 | AK133: 0.24 | AL133: 0.24 | AM133: 0.24 | AN133: 0.24 | AO133: 0.24 | AP133: 0.24 | AQ133: 0.24 | AR133: 0.24 | AS133: 0.24 | AT133: 0.24 | AU133: 0.24 | AV133: 0.24 | AW133: 0.24 | AX133: 0.24 | AY133: 0.24 | AZ133: 0.24
D134: ='Efficiency Levels'!C93 -> EL1 | E134: ='Efficiency Levels'!D93 -> Energy Star 2.0 | F134: 0.55 | H134: =$F134 -> 0.55 | I134: 0.55 | J134: 0.55 | K134: 0.55 | L134: 0.55 | M134: 0.55 | N134: 0.55 | O134: 0.55 | P134: 0.55 | Q134: 0.55 | R134: 0.55 | S134: 0.55 | T134: 0.55 | U134: 0.55 | V134: 0.55 | W134: 0.55 | X134: 0.55 | Y134: 0.55 | Z134: 0.55 | AA134: 0.55 | AB134: 0.55 | AC134: 0.55 | AD134: 0.55 | AE134: 0.55 | AF134: 0.55 | AG134: 0.55 | AH134: 0.55 | AI134: 0.55 | AJ134: 0.55 | AK134: 0.55 | AL134: 0.55 | AM134: 0.55 | AN134: 0.55 | AO134: 0.55 | AP134: 0.55 | AQ134: 0.55 | AR134: 0.55 | AS134: 0.55 | AT134: 0.55 | AU134: 0.55 | AV134: 0.55 | AW134: 0.55 | AX134: 0.55 | AY134: 0.55 | AZ134: 0.55
D135: ='Efficiency Levels'!C94 -> EL2 | E135: ='Efficiency Levels'!D94 -> Intermediate | F135: 0.17 | H135: 0.17 | I135: 0.17 | J135: 0.17 | K135: 0.17 | L135: 0.17 | M135: 0.17 | N135: 0.17 | O135: 0.17 | P135: 0.17 | Q135: 0.17 | R135: 0.17 | S135: 0.17 | T135: 0.17 | U135: 0.17 | V135: 0.17 | W135: 0.17 | X135: 0.17 | Y135: 0.17 | Z135: 0.17 | AA135: 0.17 | AB135: 0.17 | AC135: 0.17 | AD135: 0.17 | AE135: 0.17 | AF135: 0.17 | AG135: 0.17 | AH135: 0.17 | AI135: 0.17 | AJ135: 0.17 | AK135: 0.17 | AL135: 0.17 | AM135: 0.17 | AN135: 0.17 | AO135: 0.17 | AP135: 0.17 | AQ135: 0.17 | AR135: 0.17 | AS135: 0.17 | AT135: 0.17 | AU135: 0.17 | AV135: 0.17 | AW135: 0.17 | AX135: 0.17 | AY135: 0.17 | AZ135: 0.17
D136: ='Efficiency Levels'!C95 -> EL3 | E136: ='Efficiency Levels'!D95 -> Best in Market | F136: 0.04 | H136: 0.04 | I136: 0.04 | J136: 0.04 | K136: 0.04 | L136: 0.04 | M136: 0.04 | N136: 0.04 | O136: 0.04 | P136: 0.04 | Q136: 0.04 | R136: 0.04 | S136: 0.04 | T136: 0.04 | U136: 0.04 | V136: 0.04 | W136: 0.04 | X136: 0.04 | Y136: 0.04 | Z136: 0.04 | AA136: 0.04 | AB136: 0.04 | AC136: 0.04 | AD136: 0.04 | AE136: 0.04 | AF136: 0.04 | AG136: 0.04 | AH136: 0.04 | AI136: 0.04 | AJ136: 0.04 | AK136: 0.04 | AL136: 0.04 | AM136: 0.04 | AN136: 0.04 | AO136: 0.04 | AP136: 0.04 | AQ136: 0.04 | AR136: 0.04 | AS136: 0.04 | AT136: 0.04 | AU136: 0.04 | AV136: 0.04 | AW136: 0.04 | AX136: 0.04 | AY136: 0.04 | AZ136: 0.04
D137: ='Efficiency Levels'!C96 -> EL4 | E137: ='Efficiency Levels'!D96 -> Max Tech | F137: 0 | H137: 0 | I137: 0 | J137: 0 | K137: 0 | L137: 0 | M137: 0 | N137: 0 | O137: 0 | P137: 0 | Q137: 0 | R137: 0 | S137: 0 | T137: 0 | U137: 0 | V137: 0 | W137: 0 | X137: 0 | Y137: 0 | Z137: 0 | AA137: 0 | AB137: 0 | AC137: 0 | AD137: 0 | AE137: 0 | AF137: 0 | AG137: 0 | AH137: 0 | AI137: 0 | AJ137: 0 | AK137: 0 | AL137: 0 | AM137: 0 | AN137: 0 | AO137: 0 | AP137: 0 | AQ137: 0 | AR137: 0 | AS137: 0 | AT137: 0 | AU137: 0 | AV137: 0 | AW137: 0 | AX137: 0 | AY137: 0 | AZ137: 0
D138: TOTAL | F138: =SUM(F133:F137) -> 1 | H138: =SUM(H133:H137) -> 1 | I138: 1 | J138: 1 | K138: 1 | L138: 1 | M138: 1 | N138: 1 | O138: 1 | P138: 1 | Q138: 1 | R138: 1 | S138: 1 | T138: 1 | U138: 1 | V138: 1 | W138: 1 | X138: 1 | Y138: 1 | Z138: 1 | AA138: 1 | AB138: 1 | AC138: 1 | AD138: 1 | AE138: 1 | AF138: 1 | AG138: 1 | AH138: 1 | AI138: 1 | AJ138: 1 | AK138: 1 | AL138: 1 | AM138: 1 | AN138: 1 | AO138: 1 | AP138: 1 | AQ138: 1 | AR138: 1 | AS138: 1 | AT138: 1 | AU138: 1 | AV138: 1 | AW138: 1 | AX138: 1 | AY138: 1 | AZ138: 1
D140: POST-Case
D141: Efficiency Level | H141: 1990 | I141: =H141+1 -> 1991 | J141: =I141+1 -> 1992 | K141: =J141+1 -> 1993 | L141: =K141+1 -> 1994 | M141: =L141+1 -> 1995 | N141: =M141+1 -> 1996 | O141: =N141+1 -> 1997 | P141: =O141+1 -> 1998 | Q141: =P141+1 -> 1999 | R141: =Q141+1 -> 2000 | S141: =R141+1 -> 2001 | T141: =S141+1 -> 2002 | U141: =T141+1 -> 2003 | V141: =U141+1 -> 2004 | W141: =V141+1 -> 2005 | X141: =X132 -> 2006 | Y141: 2007 | Z141: 2008 | AA141: 2009 | AB141: 2010 | AC141: 2011 | AD141: 2012 | AE141: 2013 | AF141: 2014 | AG141: 2015 | AH141: 2016 | AI141: 2017 | AJ141: 2018 | AK141: 2019 | AL141: 2020 | AM141: 2021 | AN141: 2022 | AO141: 2023 | AP141: 2024 | AQ141: 2025 | AR141: 2026 | AS141: 2027 | AT141: 2028 | AU141: 2029 | AV141: 2030 | AW141: 2031 | AX141: 2032 | AY141: 2033 | AZ141: 2034
D142: =D133 -> EL0 | E142: =E133 -> EISA | H142: =H133 -> 0.24 | I142: 0.24 | J142: 0.24 | K142: 0.24 | L142: 0.24 | M142: 0.24 | N142: 0.24 | O142: 0.24 | P142: 0.24 | Q142: 0.24 | R142: 0.24 | S142: 0.24 | T142: 0.24 | U142: 0.24 | V142: 0.24 | W142: 0.24 | X142: 0.24 | Y142: 0.24 | Z142: 0.24 | AA142: 0.24 | AB142: 0.24 | AC142: 0.24 | AD142: 0.24 | AE142: 0.24 | AF142: 0.24 | AG142: =AG133 -> 0.24 | AH142: 0 | AI142: 0 | AJ142: 0 | AK142: 0 | AL142: 0 | AM142: 0 | AN142: 0 | AO142: 0 | AP142: 0 | AQ142: 0 | AR142: 0 | AS142: 0 | AT142: 0 | AU142: 0 | AV142: 0 | AW142: 0 | AX142: 0 | AY142: 0 | AZ142: 0
D143: =D134 -> EL1 | E143: Energy Star 2.0 | H143: =H134 -> 0.55 | I143: 0.55 | J143: 0.55 | K143: 0.55 | L143: 0.55 | M143: 0.55 | N143: 0.55 | O143: 0.55 | P143: 0.55 | Q143: 0.55 | R143: 0.55 | S143: 0.55 | T143: 0.55 | U143: 0.55 | V143: 0.55 | W143: 0.55 | X143: 0.55 | Y143: 0.55 | Z143: 0.55 | AA143: 0.55 | AB143: 0.55 | AC143: 0.55 | AD143: 0.55 | AE143: 0.55 | AF143: 0.55 | AG143: =AG134 -> 0.55 | AH143: 0 | AI143: 0 | AJ143: 0 | AK143: 0 | AL143: 0 | AM143: 0 | AN143: 0 | AO143: 0 | AP143: 0 | AQ143: 0 | AR143: 0 | AS143: 0 | AT143: 0 | AU143: 0 | AV143: 0 | AW143: 0 | AX143: 0 | AY143: 0 | AZ143: 0
D144: =D135 -> EL2 | E144: Intermediate | H144: =H135 -> 0.17 | I144: 0.17 | J144: 0.17 | K144: 0.17 | L144: 0.17 | M144: 0.17 | N144: 0.17 | O144: 0.17 | P144: 0.17 | Q144: 0.17 | R144: 0.17 | S144: 0.17 | T144: 0.17 | U144: 0.17 | V144: 0.17 | W144: 0.17 | X144: 0.17 | Y144: 0.17 | Z144: 0.17 | AA144: 0.17 | AB144: 0.17 | AC144: 0.17 | AD144: 0.17 | AE144: 0.17 | AF144: 0.17 | AG144: =AG135 -> 0.17 | AH144: 0 | AI144: 0 | AJ144: 0 | AK144: 0 | AL144: 0 | AM144: 0 | AN144: 0 | AO144: 0 | AP144: 0 | AQ144: 0 | AR144: 0 | AS144: 0 | AT144: 0 | AU144: 0 | AV144: 0 | AW144: 0 | AX144: 0 | AY144: 0 | AZ144: 0
D145: =D136 -> EL3 | E145: Best in Market | H145: =H136 -> 0.04 | I145: 0.04 | J145: 0.04 | K145: 0.04 | L145: 0.04 | M145: 0.04 | N145: 0.04 | O145: 0.04 | P145: 0.04 | Q145: 0.04 | R145: 0.04 | S145: 0.04 | T145: 0.04 | U145: 0.04 | V145: 0.04 | W145: 0.04 | X145: 0.04 | Y145: 0.04 | Z145: 0.04 | AA145: 0.04 | AB145: 0.04 | AC145: 0.04 | AD145: 0.04 | AE145: 0.04 | AF145: 0.04 | AG145: =AG136 -> 0.04 | AH145: =SUM(AH133:AH136) -> 1 | AI145: 1 | AJ145: 1 | AK145: 1 | AL145: 1 | AM145: 1 | AN145: 1 | AO145: 1 | AP145: 1 | AQ145: 1 | AR145: 1 | AS145: 1 | AT145: 1 | AU145: 1 | AV145: 1 | AW145: 1 | AX145: 1 | AY145: 1 | AZ145: 1
D146: =D137 -> EL4 | E146: Max Tech | H146: =H137 -> 0 | I146: 0 | J146: 0 | K146: 0 | L146: 0 | M146: 0 | N146: 0 | O146: 0 | P146: 0 | Q146: 0 | R146: 0 | S146: 0 | T146: 0 | U146: 0 | V146: 0 | W146: 0 | X146: 0 | Y146: 0 | Z146: 0 | AA146: 0 | AB146: 0 | AC146: 0 | AD146: 0 | AE146: 0 | AF146: 0 | AG146: =AG137 -> 0 | AH146: =AH137 -> 0 | AI146: 0 | AJ146: 0 | AK146: 0 | AL146: 0 | AM146: 0 | AN146: 0 | AO146: 0 | AP146: 0 | AQ146: 0 | AR146: 0 | AS146: 0 | AT146: 0 | AU146: 0 | AV146: 0 | AW146: 0 | AX146: 0 | AY146: 0 | AZ146: 0
D147: TOTAL | H147: =SUM(H142:H146) -> 1 | I147: 1 | J147: 1 | K147: 1 | L147: 1 | M147: 1 | N147: 1 | O147: 1 | P147: 1 | Q147: 1 | R147: 1 | S147: 1 | T147: 1 | U147: 1 | V147: 1 | W147: 1 | X147: 1 | Y147: 1 | Z147: 1 | AA147: 1 | AB147: 1 | AC147: 1 | AD147: 1 | AE147: 1 | AF147: 1 | AG147: =SUM(AG142:AG146) -> 1 | AH147: 1 | AI147: 1 | AJ147: 1 | AK147: 1 | AL147: 1 | AM147: 1 | AN147: 1 | AO147: 1 | AP147: 1 | AQ147: 1 | AR147: 1 | AS147: 1 | AT147: 1 | AU147: 1 | AV147: 1 | AW147: 1 | AX147: 1 | AY147: 1 | AZ147: 1
D149: Sources | E149: DOE External Power Supplies 2014 Final Rule, Technical Support Document: National Impact Analysis Spreadsheet, 'Inputs' tab, cells E78:K86
D153: ='Product Classes'!H16&" - "&OFFSET('Product Classes'!$C$9,MATCH('Product Classes'!H16,MODEL_PCS,0),0) -> E - AC-AC, Low Voltage
D155: PRE-Case | F155: Static Distribution
D156: Efficiency Level | F156: 2015 | H156: 1990 | I156: =H156+1 -> 1991 | J156: =I156+1 -> 1992 | K156: =J156+1 -> 1993 | L156: =K156+1 -> 1994 | M156: =L156+1 -> 1995 | N156: =M156+1 -> 1996 | O156: =N156+1 -> 1997 | P156: =O156+1 -> 1998 | Q156: =P156+1 -> 1999 | R156: =Q156+1 -> 2000 | S156: =R156+1 -> 2001 | T156: =S156+1 -> 2002 | U156: =T156+1 -> 2003 | V156: =U156+1 -> 2004 | W156: =V156+1 -> 2005 | X156: =W156+1 -> 2006 | Y156: =X156+1 -> 2007 | Z156: =Y156+1 -> 2008 | AA156: =Z156+1 -> 2009 | AB156: =AA156+1 -> 2010 | AC156: =AB156+1 -> 2011 | AD156: =AC156+1 -> 2012 | AE156: =AD156+1 -> 2013 | AF156: =AE156+1 -> 2014 | AG156: =AF156+1 -> 2015 | AH156: =AG156+1 -> 2016 | AI156: =AH156+1 -> 2017 | AJ156: =AI156+1 -> 2018 | AK156: =AJ156+1 -> 2019 | AL156: =AK156+1 -> 2020 | AM156: =AL156+1 -> 2021 | AN156: =AM156+1 -> 2022 | AO156: =AN156+1 -> 2023 | AP156: =AO156+1 -> 2024 | AQ156: =AP156+1 -> 2025 | AR156: =AQ156+1 -> 2026 | AS156: =AR156+1 -> 2027 | AT156: =AS156+1 -> 2028 | AU156: =AT156+1 -> 2029 | AV156: =AU156+1 -> 2030 | AW156: =AV156+1 -> 2031 | AX156: =AW156+1 -> 2032 | AY156: =AX156+1 -> 2033 | AZ156: =AY156+1 -> 2034
D157: ='Efficiency Levels'!C108 -> EL0 | E157: ='Efficiency Levels'!D108 -> EISA | F157: 0.3 | H157: =$F157 -> 0.3 | I157: =$F157 -> 0.3 | J157: 0.3 | K157: 0.3 | L157: 0.3 | M157: 0.3 | N157: 0.3 | O157: 0.3 | P157: 0.3 | Q157: 0.3 | R157: 0.3 | S157: 0.3 | T157: 0.3 | U157: 0.3 | V157: 0.3 | W157: 0.3 | X157: 0.3 | Y157: 0.3 | Z157: 0.3 | AA157: 0.3 | AB157: 0.3 | AC157: 0.3 | AD157: 0.3 | AE157: 0.3 | AF157: 0.3 | AG157: 0.3 | AH157: 0.3 | AI157: 0.3 | AJ157: 0.3 | AK157: 0.3 | AL157: 0.3 | AM157: 0.3 | AN157: 0.3 | AO157: 0.3 | AP157: 0.3 | AQ157: 0.3 | AR157: 0.3 | AS157: 0.3 | AT157: 0.3 | AU157: 0.3 | AV157: 0.3 | AW157: 0.3 | AX157: 0.3 | AY157: 0.3 | AZ157: 0.3
D158: ='Efficiency Levels'!C109 -> EL1 | E158: ='Efficiency Levels'!D109 -> Energy Star 2.0 | F158: 0.53 | H158: =$F158 -> 0.53 | I158: 0.53 | J158: 0.53 | K158: 0.53 | L158: 0.53 | M158: 0.53 | N158: 0.53 | O158: 0.53 | P158: 0.53 | Q158: 0.53 | R158: 0.53 | S158: 0.53 | T158: 0.53 | U158: 0.53 | V158: 0.53 | W158: 0.53 | X158: 0.53 | Y158: 0.53 | Z158: 0.53 | AA158: 0.53 | AB158: 0.53 | AC158: 0.53 | AD158: 0.53 | AE158: 0.53 | AF158: 0.53 | AG158: 0.53 | AH158: 0.53 | AI158: 0.53 | AJ158: 0.53 | AK158: 0.53 | AL158: 0.53 | AM158: 0.53 | AN158: 0.53 | AO158: 0.53 | AP158: 0.53 | AQ158: 0.53 | AR158: 0.53 | AS158: 0.53 | AT158: 0.53 | AU158: 0.53 | AV158: 0.53 | AW158: 0.53 | AX158: 0.53 | AY158: 0.53 | AZ158: 0.53
D159: ='Efficiency Levels'!C110 -> EL2 | E159: ='Efficiency Levels'!D110 -> Intermediate | F159: 0.13 | H159: 0.13 | I159: 0.13 | J159: 0.13 | K159: 0.13 | L159: 0.13 | M159: 0.13 | N159: 0.13 | O159: 0.13 | P159: 0.13 | Q159: 0.13 | R159: 0.13 | S159: 0.13 | T159: 0.13 | U159: 0.13 | V159: 0.13 | W159: 0.13 | X159: 0.13 | Y159: 0.13 | Z159: 0.13 | AA159: 0.13 | AB159: 0.13 | AC159: 0.13 | AD159: 0.13 | AE159: 0.13 | AF159: 0.13 | AG159: 0.13 | AH159: 0.13 | AI159: 0.13 | AJ159: 0.13 | AK159: 0.13 | AL159: 0.13 | AM159: 0.13 | AN159: 0.13 | AO159: 0.13 | AP159: 0.13 | AQ159: 0.13 | AR159: 0.13 | AS159: 0.13 | AT159: 0.13 | AU159: 0.13 | AV159: 0.13 | AW159: 0.13 | AX159: 0.13 | AY159: 0.13 | AZ159: 0.13
D160: ='Efficiency Levels'!C111 -> EL3 | E160: ='Efficiency Levels'!D111 -> Best in Market | F160: 0.04 | H160: 0.04 | I160: 0.04 | J160: 0.04 | K160: 0.04 | L160: 0.04 | M160: 0.04 | N160: 0.04 | O160: 0.04 | P160: 0.04 | Q160: 0.04 | R160: 0.04 | S160: 0.04 | T160: 0.04 | U160: 0.04 | V160: 0.04 | W160: 0.04 | X160: 0.04 | Y160: 0.04 | Z160: 0.04 | AA160: 0.04 | AB160: 0.04 | AC160: 0.04 | AD160: 0.04 | AE160: 0.04 | AF160: 0.04 | AG160: 0.04 | AH160: 0.04 | AI160: 0.04 | AJ160: 0.04 | AK160: 0.04 | AL160: 0.04 | AM160: 0.04 | AN160: 0.04 | AO160: 0.04 | AP160: 0.04 | AQ160: 0.04 | AR160: 0.04 | AS160: 0.04 | AT160: 0.04 | AU160: 0.04 | AV160: 0.04 | AW160: 0.04 | AX160: 0.04 | AY160: 0.04 | AZ160: 0.04
D161: ='Efficiency Levels'!C112 -> EL4 | E161: ='Efficiency Levels'!D112 -> Max Tech | F161: 0 | H161: 0 | I161: 0 | J161: 0 | K161: 0 | L161: 0 | M161: 0 | N161: 0 | O161: 0 | P161: 0 | Q161: 0 | R161: 0 | S161: 0 | T161: 0 | U161: 0 | V161: 0 | W161: 0 | X161: 0 | Y161: 0 | Z161: 0 | AA161: 0 | AB161: 0 | AC161: 0 | AD161: 0 | AE161: 0 | AF161: 0 | AG161: 0 | AH161: 0 | AI161: 0 | AJ161: 0 | AK161: 0 | AL161: 0 | AM161: 0 | AN161: 0 | AO161: 0 | AP161: 0 | AQ161: 0 | AR161: 0 | AS161: 0 | AT161: 0 | AU161: 0 | AV161: 0 | AW161: 0 | AX161: 0 | AY161: 0 | AZ161: 0
D162: TOTAL | F162: =SUM(F157:F161) -> 1 | H162: =SUM(H157:H161) -> 1 | I162: 1 | J162: 1 | K162: 1 | L162: 1 | M162: 1 | N162: 1 | O162: 1 | P162: 1 | Q162: 1 | R162: 1 | S162: 1 | T162: 1 | U162: 1 | V162: 1 | W162: 1 | X162: 1 | Y162: 1 | Z162: 1 | AA162: 1 | AB162: 1 | AC162: 1 | AD162: 1 | AE162: 1 | AF162: 1 | AG162: 1 | AH162: 1 | AI162: 1 | AJ162: 1 | AK162: 1 | AL162: 1 | AM162: 1 | AN162: 1 | AO162: 1 | AP162: 1 | AQ162: 1 | AR162: 1 | AS162: 1 | AT162: 1 | AU162: 1 | AV162: 1 | AW162: 1 | AX162: 1 | AY162: 1 | AZ162: 1
D164: POST-Case
D165: Efficiency Level | H165: 1990 | I165: =H165+1 -> 1991 | J165: =I165+1 -> 1992 | K165: =J165+1 -> 1993 | L165: =K165+1 -> 1994 | M165: =L165+1 -> 1995 | N165: =M165+1 -> 1996 | O165: =N165+1 -> 1997 | P165: =O165+1 -> 1998 | Q165: =P165+1 -> 1999 | R165: =Q165+1 -> 2000 | S165: =R165+1 -> 2001 | T165: =S165+1 -> 2002 | U165: =T165+1 -> 2003 | V165: =U165+1 -> 2004 | W165: =V165+1 -> 2005 | X165: =X156 -> 2006 | Y165: 2007 | Z165: 2008 | AA165: 2009 | AB165: 2010 | AC165: 2011 | AD165: 2012 | AE165: 2013 | AF165: 2014 | AG165: 2015 | AH165: 2016 | AI165: 2017 | AJ165: 2018 | AK165: 2019 | AL165: 2020 | AM165: 2021 | AN165: 2022 | AO165: 2023 | AP165: 2024 | AQ165: 2025 | AR165: 2026 | AS165: 2027 | AT165: 2028 | AU165: 2029 | AV165: 2030 | AW165: 2031 | AX165: 2032 | AY165: 2033 | AZ165: 2034
D166: =D157 -> EL0 | E166: =E157 -> EISA | H166: =H157 -> 0.3 | I166: 0.3 | J166: 0.3 | K166: 0.3 | L166: 0.3 | M166: 0.3 | N166: 0.3 | O166: 0.3 | P166: 0.3 | Q166: 0.3 | R166: 0.3 | S166: 0.3 | T166: 0.3 | U166: 0.3 | V166: 0.3 | W166: 0.3 | X166: 0.3 | Y166: 0.3 | Z166: 0.3 | AA166: 0.3 | AB166: 0.3 | AC166: 0.3 | AD166: 0.3 | AE166: 0.3 | AF166: 0.3 | AG166: =AG157 -> 0.3 | AH166: 0 | AI166: 0 | AJ166: 0 | AK166: 0 | AL166: 0 | AM166: 0 | AN166: 0 | AO166: 0 | AP166: 0 | AQ166: 0 | AR166: 0 | AS166: 0 | AT166: 0 | AU166: 0 | AV166: 0 | AW166: 0 | AX166: 0 | AY166: 0 | AZ166: 0
D167: =D158 -> EL1 | E167: Energy Star 2.0 | H167: =H158 -> 0.53 | I167: 0.53 | J167: 0.53 | K167: 0.53 | L167: 0.53 | M167: 0.53 | N167: 0.53 | O167: 0.53 | P167: 0.53 | Q167: 0.53 | R167: 0.53 | S167: 0.53 | T167: 0.53 | U167: 0.53 | V167: 0.53 | W167: 0.53 | X167: 0.53 | Y167: 0.53 | Z167: 0.53 | AA167: 0.53 | AB167: 0.53 | AC167: 0.53 | AD167: 0.53 | AE167: 0.53 | AF167: 0.53 | AG167: =AG158 -> 0.53 | AH167: 0 | AI167: 0 | AJ167: 0 | AK167: 0 | AL167: 0 | AM167: 0 | AN167: 0 | AO167: 0 | AP167: 0 | AQ167: 0 | AR167: 0 | AS167: 0 | AT167: 0 | AU167: 0 | AV167: 0 | AW167: 0 | AX167: 0 | AY167: 0 | AZ167: 0
D168: =D159 -> EL2 | E168: Intermediate | H168: =H159 -> 0.13 | I168: 0.13 | J168: 0.13 | K168: 0.13 | L168: 0.13 | M168: 0.13 | N168: 0.13 | O168: 0.13 | P168: 0.13 | Q168: 0.13 | R168: 0.13 | S168: 0.13 | T168: 0.13 | U168: 0.13 | V168: 0.13 | W168: 0.13 | X168: 0.13 | Y168: 0.13 | Z168: 0.13 | AA168: 0.13 | AB168: 0.13 | AC168: 0.13 | AD168: 0.13 | AE168: 0.13 | AF168: 0.13 | AG168: =AG159 -> 0.13 | AH168: 0 | AI168: 0 | AJ168: 0 | AK168: 0 | AL168: 0 | AM168: 0 | AN168: 0 | AO168: 0 | AP168: 0 | AQ168: 0 | AR168: 0 | AS168: 0 | AT168: 0 | AU168: 0 | AV168: 0 | AW168: 0 | AX168: 0 | AY168: 0 | AZ168: 0
D169: =D160 -> EL3 | E169: Best in Market | H169: =H160 -> 0.04 | I169: 0.04 | J169: 0.04 | K169: 0.04 | L169: 0.04 | M169: 0.04 | N169: 0.04 | O169: 0.04 | P169: 0.04 | Q169: 0.04 | R169: 0.04 | S169: 0.04 | T169: 0.04 | U169: 0.04 | V169: 0.04 | W169: 0.04 | X169: 0.04 | Y169: 0.04 | Z169: 0.04 | AA169: 0.04 | AB169: 0.04 | AC169: 0.04 | AD169: 0.04 | AE169: 0.04 | AF169: 0.04 | AG169: =AG160 -> 0.04 | AH169: =SUM(AH157:AH160) -> 1 | AI169: 1 | AJ169: 1 | AK169: 1 | AL169: 1 | AM169: 1 | AN169: 1 | AO169: 1 | AP169: 1 | AQ169: 1 | AR169: 1 | AS169: 1 | AT169: 1 | AU169: 1 | AV169: 1 | AW169: 1 | AX169: 1 | AY169: 1 | AZ169: 1
D170: =D161 -> EL4 | E170: Max Tech | H170: =H161 -> 0 | I170: 0 | J170: 0 | K170: 0 | L170: 0 | M170: 0 | N170: 0 | O170: 0 | P170: 0 | Q170: 0 | R170: 0 | S170: 0 | T170: 0 | U170: 0 | V170: 0 | W170: 0 | X170: 0 | Y170: 0 | Z170: 0 | AA170: 0 | AB170: 0 | AC170: 0 | AD170: 0 | AE170: 0 | AF170: 0 | AG170: =AG161 -> 0 | AH170: =AH161 -> 0 | AI170: 0 | AJ170: 0 | AK170: 0 | AL170: 0 | AM170: 0 | AN170: 0 | AO170: 0 | AP170: 0 | AQ170: 0 | AR170: 0 | AS170: 0 | AT170: 0 | AU170: 0 | AV170: 0 | AW170: 0 | AX170: 0 | AY170: 0 | AZ170: 0
D171: TOTAL | H171: =SUM(H166:H170) -> 1 | I171: 1 | J171: 1 | K171: 1 | L171: 1 | M171: 1 | N171: 1 | O171: 1 | P171: 1 | Q171: 1 | R171: 1 | S171: 1 | T171: 1 | U171: 1 | V171: 1 | W171: 1 | X171: 1 | Y171: 1 | Z171: 1 | AA171: 1 | AB171: 1 | AC171: 1 | AD171: 1 | AE171: 1 | AF171: 1 | AG171: =SUM(AG166:AG170) -> 1 | AH171: 1 | AI171: 1 | AJ171: 1 | AK171: 1 | AL171: 1 | AM171: 1 | AN171: 1 | AO171: 1 | AP171: 1 | AQ171: 1 | AR171: 1 | AS171: 1 | AT171: 1 | AU171: 1 | AV171: 1 | AW171: 1 | AX171: 1 | AY171: 1 | AZ171: 1
D173: Sources | E173: DOE External Power Supplies 2014 Final Rule, Technical Support Document: National Impact Analysis Spreadsheet, 'Inputs' tab, cells E78:K86
D177: ='Product Classes'!H17&" - "&OFFSET('Product Classes'!$C$9,MATCH('Product Classes'!H17,MODEL_PCS,0),0) -> X - Multiple-voltage EPSs
D179: PRE-Case | F179: Static Distribution
D180: Efficiency Level | F180: 2015 | H180: 1990 | I180: =H180+1 -> 1991 | J180: =I180+1 -> 1992 | K180: =J180+1 -> 1993 | L180: =K180+1 -> 1994 | M180: =L180+1 -> 1995 | N180: =M180+1 -> 1996 | O180: =N180+1 -> 1997 | P180: =O180+1 -> 1998 | Q180: =P180+1 -> 1999 | R180: =Q180+1 -> 2000 | S180: =R180+1 -> 2001 | T180: =S180+1 -> 2002 | U180: =T180+1 -> 2003 | V180: =U180+1 -> 2004 | W180: =V180+1 -> 2005 | X180: =W180+1 -> 2006 | Y180: =X180+1 -> 2007 | Z180: =Y180+1 -> 2008 | AA180: =Z180+1 -> 2009 | AB180: =AA180+1 -> 2010 | AC180: =AB180+1 -> 2011 | AD180: =AC180+1 -> 2012 | AE180: =AD180+1 -> 2013 | AF180: =AE180+1 -> 2014 | AG180: =AF180+1 -> 2015 | AH180: =AG180+1 -> 2016 | AI180: =AH180+1 -> 2017 | AJ180: =AI180+1 -> 2018 | AK180: =AJ180+1 -> 2019 | AL180: =AK180+1 -> 2020 | AM180: =AL180+1 -> 2021 | AN180: =AM180+1 -> 2022 | AO180: =AN180+1 -> 2023 | AP180: =AO180+1 -> 2024 | AQ180: =AP180+1 -> 2025 | AR180: =AQ180+1 -> 2026 | AS180: =AR180+1 -> 2027 | AT180: =AS180+1 -> 2028 | AU180: =AT180+1 -> 2029 | AV180: =AU180+1 -> 2030 | AW180: =AV180+1 -> 2031 | AX180: =AW180+1 -> 2032 | AY180: =AX180+1 -> 2033 | AZ180: =AY180+1 -> 2034
D181: ='Efficiency Levels'!C124 -> EL0 | E181: ='Efficiency Levels'!D124 -> Generic Replacement | F181: 0.05 | H181: =$F181 -> 0.05 | I181: =$F181 -> 0.05 | J181: 0.05 | K181: 0.05 | L181: 0.05 | M181: 0.05 | N181: 0.05 | O181: 0.05 | P181: 0.05 | Q181: 0.05 | R181: 0.05 | S181: 0.05 | T181: 0.05 | U181: 0.05 | V181: 0.05 | W181: 0.05 | X181: 0.05 | Y181: 0.05 | Z181: 0.05 | AA181: 0.05 | AB181: 0.05 | AC181: 0.05 | AD181: 0.05 | AE181: 0.05 | AF181: 0.05 | AG181: 0.05 | AH181: 0.05 | AI181: 0.05 | AJ181: 0.05 | AK181: 0.05 | AL181: 0.05 | AM181: 0.05 | AN181: 0.05 | AO181: 0.05 | AP181: 0.05 | AQ181: 0.05 | AR181: 0.05 | AS181: 0.05 | AT181: 0.05 | AU181: 0.05 | AV181: 0.05 | AW181: 0.05 | AX181: 0.05 | AY181: 0.05 | AZ181: 0.05
D182: ='Efficiency Levels'!C125 -> EL1 | E182: ='Efficiency Levels'!D125 -> Manufacturer Provided | F182: 0.95 | H182: =$F182 -> 0.95 | I182: 0.95 | J182: 0.95 | K182: 0.95 | L182: 0.95 | M182: 0.95 | N182: 0.95 | O182: 0.95 | P182: 0.95 | Q182: 0.95 | R182: 0.95 | S182: 0.95 | T182: 0.95 | U182: 0.95 | V182: 0.95 | W182: 0.95 | X182: 0.95 | Y182: 0.95 | Z182: 0.95 | AA182: 0.95 | AB182: 0.95 | AC182: 0.95 | AD182: 0.95 | AE182: 0.95 | AF182: 0.95 | AG182: 0.95 | AH182: 0.95 | AI182: 0.95 | AJ182: 0.95 | AK182: 0.95 | AL182: 0.95 | AM182: 0.95 | AN182: 0.95 | AO182: 0.95 | AP182: 0.95 | AQ182: 0.95 | AR182: 0.95 | AS182: 0.95 | AT182: 0.95 | AU182: 0.95 | AV182: 0.95 | AW182: 0.95 | AX182: 0.95 | AY182: 0.95 | AZ182: 0.95
D183: ='Efficiency Levels'!C126 -> EL2 | E183: ='Efficiency Levels'!D126 -> EU Qualified Level | F183: 0 | H183: 0 | I183: 0 | J183: 0 | K183: 0 | L183: 0 | M183: 0 | N183: 0 | O183: 0 | P183: 0 | Q183: 0 | R183: 0 | S183: 0 | T183: 0 | U183: 0 | V183: 0 | W183: 0 | X183: 0 | Y183: 0 | Z183: 0 | AA183: 0 | AB183: 0 | AC183: 0 | AD183: 0 | AE183: 0 | AF183: 0 | AG183: 0 | AH183: 0 | AI183: 0 | AJ183: 0 | AK183: 0 | AL183: 0 | AM183: 0 | AN183: 0 | AO183: 0 | AP183: 0 | AQ183: 0 | AR183: 0 | AS183: 0 | AT183: 0 | AU183: 0 | AV183: 0 | AW183: 0 | AX183: 0 | AY183: 0 | AZ183: 0
D184: ='Efficiency Levels'!C127 -> EL3 | E184: ='Efficiency Levels'!D127 -> Higher level | F184: 0 | H184: 0 | I184: 0 | J184: 0 | K184: 0 | L184: 0 | M184: 0 | N184: 0 | O184: 0 | P184: 0 | Q184: 0 | R184: 0 | S184: 0 | T184: 0 | U184: 0 | V184: 0 | W184: 0 | X184: 0 | Y184: 0 | Z184: 0 | AA184: 0 | AB184: 0 | AC184: 0 | AD184: 0 | AE184: 0 | AF184: 0 | AG184: 0 | AH184: 0 | AI184: 0 | AJ184: 0 | AK184: 0 | AL184: 0 | AM184: 0 | AN184: 0 | AO184: 0 | AP184: 0 | AQ184: 0 | AR184: 0 | AS184: 0 | AT184: 0 | AU184: 0 | AV184: 0 | AW184: 0 | AX184: 0 | AY184: 0 | AZ184: 0
D185: TOTAL | F185: =SUM(F181:F184) -> 1 | H185: =SUM(H181:H184) -> 1 | I185: 1 | J185: 1 | K185: 1 | L185: 1 | M185: 1 | N185: 1 | O185: 1 | P185: 1 | Q185: 1 | R185: 1 | S185: 1 | T185: 1 | U185: 1 | V185: 1 | W185: 1 | X185: 1 | Y185: 1 | Z185: 1 | AA185: 1 | AB185: 1 | AC185: 1 | AD185: 1 | AE185: 1 | AF185: 1 | AG185: 1 | AH185: 1 | AI185: 1 | AJ185: 1 | AK185: 1 | AL185: 1 | AM185: 1 | AN185: 1 | AO185: 1 | AP185: 1 | AQ185: 1 | AR185: 1 | AS185: 1 | AT185: 1 | AU185: 1 | AV185: 1 | AW185: 1 | AX185: 1 | AY185: 1 | AZ185: 1
D187: POST-Case
D188: Efficiency Level | H188: 1990 | I188: =H188+1 -> 1991 | J188: =I188+1 -> 1992 | K188: =J188+1 -> 1993 | L188: =K188+1 -> 1994 | M188: =L188+1 -> 1995 | N188: =M188+1 -> 1996 | O188: =N188+1 -> 1997 | P188: =O188+1 -> 1998 | Q188: =P188+1 -> 1999 | R188: =Q188+1 -> 2000 | S188: =R188+1 -> 2001 | T188: =S188+1 -> 2002 | U188: =T188+1 -> 2003 | V188: =U188+1 -> 2004 | W188: =V188+1 -> 2005 | X188: =X180 -> 2006 | Y188: 2007 | Z188: 2008 | AA188: 2009 | AB188: 2010 | AC188: 2011 | AD188: 2012 | AE188: 2013 | AF188: 2014 | AG188: 2015 | AH188: 2016 | AI188: 2017 | AJ188: 2018 | AK188: 2019 | AL188: 2020 | AM188: 2021 | AN188: 2022 | AO188: 2023 | AP188: 2024 | AQ188: 2025 | AR188: 2026 | AS188: 2027 | AT188: 2028 | AU188: 2029 | AV188: 2030 | AW188: 2031 | AX188: 2032 | AY188: 2033 | AZ188: 2034
D189: =D181 -> EL0 | E189: Generic Replacement | H189: =H181 -> 0.05 | I189: 0.05 | J189: 0.05 | K189: 0.05 | L189: 0.05 | M189: 0.05 | N189: 0.05 | O189: 0.05 | P189: 0.05 | Q189: 0.05 | R189: 0.05 | S189: 0.05 | T189: 0.05 | U189: 0.05 | V189: 0.05 | W189: 0.05 | X189: 0.05 | Y189: 0.05 | Z189: 0.05 | AA189: 0.05 | AB189: 0.05 | AC189: 0.05 | AD189: 0.05 | AE189: 0.05 | AF189: 0.05 | AG189: =AG181 -> 0.05 | AH189: 0 | AI189: 0 | AJ189: 0 | AK189: 0 | AL189: 0 | AM189: 0 | AN189: 0 | AO189: 0 | AP189: 0 | AQ189: 0 | AR189: 0 | AS189: 0 | AT189: 0 | AU189: 0 | AV189: 0 | AW189: 0 | AX189: 0 | AY189: 0 | AZ189: 0
D190: EL1 | E190: Manufacturer Provided | H190: =H182 -> 0.95 | I190: 0.95 | J190: 0.95 | K190: 0.95 | L190: 0.95 | M190: 0.95 | N190: 0.95 | O190: 0.95 | P190: 0.95 | Q190: 0.95 | R190: 0.95 | S190: 0.95 | T190: 0.95 | U190: 0.95 | V190: 0.95 | W190: 0.95 | X190: 0.95 | Y190: 0.95 | Z190: 0.95 | AA190: 0.95 | AB190: 0.95 | AC190: 0.95 | AD190: 0.95 | AE190: 0.95 | AF190: 0.95 | AG190: =AG182 -> 0.95 | AH190: 0 | AI190: 0 | AJ190: 0 | AK190: 0 | AL190: 0 | AM190: 0 | AN190: 0 | AO190: 0 | AP190: 0 | AQ190: 0 | AR190: 0 | AS190: 0 | AT190: 0 | AU190: 0 | AV190: 0 | AW190: 0 | AX190: 0 | AY190: 0 | AZ190: 0
D191: EL2 | E191: EU Qualified Level | H191: =H183 -> 0 | I191: 0 | J191: 0 | K191: 0 | L191: 0 | M191: 0 | N191: 0 | O191: 0 | P191: 0 | Q191: 0 | R191: 0 | S191: 0 | T191: 0 | U191: 0 | V191: 0 | W191: 0 | X191: 0 | Y191: 0 | Z191: 0 | AA191: 0 | AB191: 0 | AC191: 0 | AD191: 0 | AE191: 0 | AF191: 0 | AG191: =AG183 -> 0 | AH191: =SUM(AH181:AH184) -> 1 | AI191: 1 | AJ191: 1 | AK191: 1 | AL191: 1 | AM191: 1 | AN191: 1 | AO191: 1 | AP191: 1 | AQ191: 1 | AR191: 1 | AS191: 1 | AT191: 1 | AU191: 1 | AV191: 1 | AW191: 1 | AX191: 1 | AY191: 1 | AZ191: 1
D192: EL3 | E192: Higher level | H192: =H184 -> 0 | I192: 0 | J192: 0 | K192: 0 | L192: 0 | M192: 0 | N192: 0 | O192: 0 | P192: 0 | Q192: 0 | R192: 0 | S192: 0 | T192: 0 | U192: 0 | V192: 0 | W192: 0 | X192: 0 | Y192: 0 | Z192: 0 | AA192: 0 | AB192: 0 | AC192: 0 | AD192: 0 | AE192: 0 | AF192: 0 | AG192: =AG184 -> 0 | AH192: =AH184 -> 0 | AI192: 0 | AJ192: 0 | AK192: 0 | AL192: 0 | AM192: 0 | AN192: 0 | AO192: 0 | AP192: 0 | AQ192: 0 | AR192: 0 | AS192: 0 | AT192: 0 | AU192: 0 | AV192: 0 | AW192: 0 | AX192: 0 | AY192: 0 | AZ192: 0
D193: TOTAL | H193: =SUM(H189:H192) -> 1 | I193: 1 | J193: 1 | K193: 1 | L193: 1 | M193: 1 | N193: 1 | O193: 1 | P193: 1 | Q193: 1 | R193: 1 | S193: 1 | T193: 1 | U193: 1 | V193: 1 | W193: 1 | X193: 1 | Y193: 1 | Z193: 1 | AA193: 1 | AB193: 1 | AC193: 1 | AD193: 1 | AE193: 1 | AF193: 1 | AG193: =SUM(AG189:AG192) -> 1 | AH193: 1 | AI193: 1 | AJ193: 1 | AK193: 1 | AL193: 1 | AM193: 1 | AN193: 1 | AO193: 1 | AP193: 1 | AQ193: 1 | AR193: 1 | AS193: 1 | AT193: 1 | AU193: 1 | AV193: 1 | AW193: 1 | AX193: 1 | AY193: 1 | AZ193: 1
D195: Sources | E195: DOE External Power Supplies 2014 Final Rule, Technical Support Document: National Impact Analysis Spreadsheet, 'Inputs' tab, cells E78:K86
D199: ='Product Classes'!H18&" - "&OFFSET('Product Classes'!$C$9,MATCH('Product Classes'!H18,MODEL_PCS,0),0) -> H - High Power EPSs
D201: PRE-Case | F201: Static Distribution
D202: Efficiency Level | F202: 2015 | H202: 1990 | I202: =H202+1 -> 1991 | J202: =I202+1 -> 1992 | K202: =J202+1 -> 1993 | L202: =K202+1 -> 1994 | M202: =L202+1 -> 1995 | N202: =M202+1 -> 1996 | O202: =N202+1 -> 1997 | P202: =O202+1 -> 1998 | Q202: =P202+1 -> 1999 | R202: =Q202+1 -> 2000 | S202: =R202+1 -> 2001 | T202: =S202+1 -> 2002 | U202: =T202+1 -> 2003 | V202: =U202+1 -> 2004 | W202: =V202+1 -> 2005 | X202: =W202+1 -> 2006 | Y202: =X202+1 -> 2007 | Z202: =Y202+1 -> 2008 | AA202: =Z202+1 -> 2009 | AB202: =AA202+1 -> 2010 | AC202: =AB202+1 -> 2011 | AD202: =AC202+1 -> 2012 | AE202: =AD202+1 -> 2013 | AF202: =AE202+1 -> 2014 | AG202: =AF202+1 -> 2015 | AH202: =AG202+1 -> 2016 | AI202: =AH202+1 -> 2017 | AJ202: =AI202+1 -> 2018 | AK202: =AJ202+1 -> 2019 | AL202: =AK202+1 -> 2020 | AM202: =AL202+1 -> 2021 | AN202: =AM202+1 -> 2022 | AO202: =AN202+1 -> 2023 | AP202: =AO202+1 -> 2024 | AQ202: =AP202+1 -> 2025 | AR202: =AQ202+1 -> 2026 | AS202: =AR202+1 -> 2027 | AT202: =AS202+1 -> 2028 | AU202: =AT202+1 -> 2029 | AV202: =AU202+1 -> 2030 | AW202: =AV202+1 -> 2031 | AX202: =AW202+1 -> 2032 | AY202: =AX202+1 -> 2033 | AZ202: =AY202+1 -> 2034
D203: ='Efficiency Levels'!C140 -> EL0 | E203: ='Efficiency Levels'!D140 -> Line Frequency | F203: 0.5 | H203: =$F203 -> 0.5 | I203: =$F203 -> 0.5 | J203: 0.5 | K203: 0.5 | L203: 0.5 | M203: 0.5 | N203: 0.5 | O203: 0.5 | P203: 0.5 | Q203: 0.5 | R203: 0.5 | S203: 0.5 | T203: 0.5 | U203: 0.5 | V203: 0.5 | W203: 0.5 | X203: 0.5 | Y203: 0.5 | Z203: 0.5 | AA203: 0.5 | AB203: 0.5 | AC203: 0.5 | AD203: 0.5 | AE203: 0.5 | AF203: 0.5 | AG203: 0.5 | AH203: 0.5 | AI203: 0.5 | AJ203: 0.5 | AK203: 0.5 | AL203: 0.5 | AM203: 0.5 | AN203: 0.5 | AO203: 0.5 | AP203: 0.5 | AQ203: 0.5 | AR203: 0.5 | AS203: 0.5 | AT203: 0.5 | AU203: 0.5 | AV203: 0.5 | AW203: 0.5 | AX203: 0.5 | AY203: 0.5 | AZ203: 0.5
D204: ='Efficiency Levels'!C141 -> EL1 | E204: ='Efficiency Levels'!D141 -> Switched-mode - Low Level | F204: 0.5 | H204: =$F204 -> 0.5 | I204: 0.5 | J204: 0.5 | K204: 0.5 | L204: 0.5 | M204: 0.5 | N204: 0.5 | O204: 0.5 | P204: 0.5 | Q204: 0.5 | R204: 0.5 | S204: 0.5 | T204: 0.5 | U204: 0.5 | V204: 0.5 | W204: 0.5 | X204: 0.5 | Y204: 0.5 | Z204: 0.5 | AA204: 0.5 | AB204: 0.5 | AC204: 0.5 | AD204: 0.5 | AE204: 0.5 | AF204: 0.5 | AG204: 0.5 | AH204: 0.5 | AI204: 0.5 | AJ204: 0.5 | AK204: 0.5 | AL204: 0.5 | AM204: 0.5 | AN204: 0.5 | AO204: 0.5 | AP204: 0.5 | AQ204: 0.5 | AR204: 0.5 | AS204: 0.5 | AT204: 0.5 | AU204: 0.5 | AV204: 0.5 | AW204: 0.5 | AX204: 0.5 | AY204: 0.5 | AZ204: 0.5
D205: ='Efficiency Levels'!C142 -> EL2 | E205: ='Efficiency Levels'!D142 -> Switched-mode - Mid Level | F205: 0 | H205: 0 | I205: 0 | J205: 0 | K205: 0 | L205: 0 | M205: 0 | N205: 0 | O205: 0 | P205: 0 | Q205: 0 | R205: 0 | S205: 0 | T205: 0 | U205: 0 | V205: 0 | W205: 0 | X205: 0 | Y205: 0 | Z205: 0 | AA205: 0 | AB205: 0 | AC205: 0 | AD205: 0 | AE205: 0 | AF205: 0 | AG205: 0 | AH205: 0 | AI205: 0 | AJ205: 0 | AK205: 0 | AL205: 0 | AM205: 0 | AN205: 0 | AO205: 0 | AP205: 0 | AQ205: 0 | AR205: 0 | AS205: 0 | AT205: 0 | AU205: 0 | AV205: 0 | AW205: 0 | AX205: 0 | AY205: 0 | AZ205: 0
D206: ='Efficiency Levels'!C143 -> EL3 | E206: ='Efficiency Levels'!D143 -> Best-In-Market | F206: 0 | H206: 0 | I206: 0 | J206: 0 | K206: 0 | L206: 0 | M206: 0 | N206: 0 | O206: 0 | P206: 0 | Q206: 0 | R206: 0 | S206: 0 | T206: 0 | U206: 0 | V206: 0 | W206: 0 | X206: 0 | Y206: 0 | Z206: 0 | AA206: 0 | AB206: 0 | AC206: 0 | AD206: 0 | AE206: 0 | AF206: 0 | AG206: 0 | AH206: 0 | AI206: 0 | AJ206: 0 | AK206: 0 | AL206: 0 | AM206: 0 | AN206: 0 | AO206: 0 | AP206: 0 | AQ206: 0 | AR206: 0 | AS206: 0 | AT206: 0 | AU206: 0 | AV206: 0 | AW206: 0 | AX206: 0 | AY206: 0 | AZ206: 0
D207: ='Efficiency Levels'!C144 -> EL4 | E207: ='Efficiency Levels'!D144 -> Max Tech | F207: 0 | H207: 0 | I207: 0 | J207: 0 | K207: 0 | L207: 0 | M207: 0 | N207: 0 | O207: 0 | P207: 0 | Q207: 0 | R207: 0 | S207: 0 | T207: 0 | U207: 0 | V207: 0 | W207: 0 | X207: 0 | Y207: 0 | Z207: 0 | AA207: 0 | AB207: 0 | AC207: 0 | AD207: 0 | AE207: 0 | AF207: 0 | AG207: 0 | AH207: 0 | AI207: 0 | AJ207: 0 | AK207: 0 | AL207: 0 | AM207: 0 | AN207: 0 | AO207: 0 | AP207: 0 | AQ207: 0 | AR207: 0 | AS207: 0 | AT207: 0 | AU207: 0 | AV207: 0 | AW207: 0 | AX207: 0 | AY207: 0 | AZ207: 0
D208: TOTAL | F208: =SUM(F203:F207) -> 1 | H208: =SUM(H203:H207) -> 1 | I208: 1 | J208: 1 | K208: 1 | L208: 1 | M208: 1 | N208: 1 | O208: 1 | P208: 1 | Q208: 1 | R208: 1 | S208: 1 | T208: 1 | U208: 1 | V208: 1 | W208: 1 | X208: 1 | Y208: 1 | Z208: 1 | AA208: 1 | AB208: 1 | AC208: 1 | AD208: 1 | AE208: 1 | AF208: 1 | AG208: 1 | AH208: 1 | AI208: 1 | AJ208: 1 | AK208: 1 | AL208: 1 | AM208: 1 | AN208: 1 | AO208: 1 | AP208: 1 | AQ208: 1 | AR208: 1 | AS208: 1 | AT208: 1 | AU208: 1 | AV208: 1 | AW208: 1 | AX208: 1 | AY208: 1 | AZ208: 1
D210: POST-Case
D211: Efficiency Level | H211: 1990 | I211: =H211+1 -> 1991 | J211: =I211+1 -> 1992 | K211: =J211+1 -> 1993 | L211: =K211+1 -> 1994 | M211: =L211+1 -> 1995 | N211: =M211+1 -> 1996 | O211: =N211+1 -> 1997 | P211: =O211+1 -> 1998 | Q211: =P211+1 -> 1999 | R211: =Q211+1 -> 2000 | S211: =R211+1 -> 2001 | T211: =S211+1 -> 2002 | U211: =T211+1 -> 2003 | V211: =U211+1 -> 2004 | W211: =V211+1 -> 2005 | X211: =X202 -> 2006 | Y211: 2007 | Z211: 2008 | AA211: 2009 | AB211: 2010 | AC211: 2011 | AD211: 2012 | AE211: 2013 | AF211: 2014 | AG211: 2015 | AH211: 2016 | AI211: 2017 | AJ211: 2018 | AK211: 2019 | AL211: 2020 | AM211: 2021 | AN211: 2022 | AO211: 2023 | AP211: 2024 | AQ211: 2025 | AR211: 2026 | AS211: 2027 | AT211: 2028 | AU211: 2029 | AV211: 2030 | AW211: 2031 | AX211: 2032 | AY211: 2033 | AZ211: 2034
D212: =D203 -> EL0 | E212: =E203 -> Line Frequency | H212: =H203 -> 0.5 | I212: 0.5 | J212: 0.5 | K212: 0.5 | L212: 0.5 | M212: 0.5 | N212: 0.5 | O212: 0.5 | P212: 0.5 | Q212: 0.5 | R212: 0.5 | S212: 0.5 | T212: 0.5 | U212: 0.5 | V212: 0.5 | W212: 0.5 | X212: 0.5 | Y212: 0.5 | Z212: 0.5 | AA212: 0.5 | AB212: 0.5 | AC212: 0.5 | AD212: 0.5 | AE212: 0.5 | AF212: 0.5 | AG212: =AG203 -> 0.5 | AH212: 0 | AI212: 0 | AJ212: 0 | AK212: 0 | AL212: 0 | AM212: 0 | AN212: 0 | AO212: 0 | AP212: 0 | AQ212: 0 | AR212: 0 | AS212: 0 | AT212: 0 | AU212: 0 | AV212: 0 | AW212: 0 | AX212: 0 | AY212: 0 | AZ212: 0
D213: =D204 -> EL1 | E213: Switched-mode - Low Level | H213: =H204 -> 0.5 | I213: 0.5 | J213: 0.5 | K213: 0.5 | L213: 0.5 | M213: 0.5 | N213: 0.5 | O213: 0.5 | P213: 0.5 | Q213: 0.5 | R213: 0.5 | S213: 0.5 | T213: 0.5 | U213: 0.5 | V213: 0.5 | W213: 0.5 | X213: 0.5 | Y213: 0.5 | Z213: 0.5 | AA213: 0.5 | AB213: 0.5 | AC213: 0.5 | AD213: 0.5 | AE213: 0.5 | AF213: 0.5 | AG213: =AG204 -> 0.5 | AH213: 0 | AI213: 0 | AJ213: 0 | AK213: 0 | AL213: 0 | AM213: 0 | AN213: 0 | AO213: 0 | AP213: 0 | AQ213: 0 | AR213: 0 | AS213: 0 | AT213: 0 | AU213: 0 | AV213: 0 | AW213: 0 | AX213: 0 | AY213: 0 | AZ213: 0
D214: =D205 -> EL2 | E214: Switched-mode - Mid Level | H214: =H205 -> 0 | I214: 0 | J214: 0 | K214: 0 | L214: 0 | M214: 0 | N214: 0 | O214: 0 | P214: 0 | Q214: 0 | R214: 0 | S214: 0 | T214: 0 | U214: 0 | V214: 0 | W214: 0 | X214: 0 | Y214: 0 | Z214: 0 | AA214: 0 | AB214: 0 | AC214: 0 | AD214: 0 | AE214: 0 | AF214: 0 | AG214: =AG205 -> 0 | AH214: 0 | AI214: 0 | AJ214: 0 | AK214: 0 | AL214: 0 | AM214: 0 | AN214: 0 | AO214: 0 | AP214: 0 | AQ214: 0 | AR214: 0 | AS214: 0 | AT214: 0 | AU214: 0 | AV214: 0 | AW214: 0 | AX214: 0 | AY214: 0 | AZ214: 0
D215: =D206 -> EL3 | E215: Best-In-Market | H215: =H206 -> 0 | I215: 0 | J215: 0 | K215: 0 | L215: 0 | M215: 0 | N215: 0 | O215: 0 | P215: 0 | Q215: 0 | R215: 0 | S215: 0 | T215: 0 | U215: 0 | V215: 0 | W215: 0 | X215: 0 | Y215: 0 | Z215: 0 | AA215: 0 | AB215: 0 | AC215: 0 | AD215: 0 | AE215: 0 | AF215: 0 | AG215: =AG206 -> 0 | AH215: =SUM(AH203:AH206) -> 1 | AI215: 1 | AJ215: 1 | AK215: 1 | AL215: 1 | AM215: 1 | AN215: 1 | AO215: 1 | AP215: 1 | AQ215: 1 | AR215: 1 | AS215: 1 | AT215: 1 | AU215: 1 | AV215: 1 | AW215: 1 | AX215: 1 | AY215: 1 | AZ215: 1
D216: =D207 -> EL4 | E216: Max Tech | H216: =H207 -> 0 | I216: 0 | J216: 0 | K216: 0 | L216: 0 | M216: 0 | N216: 0 | O216: 0 | P216: 0 | Q216: 0 | R216: 0 | S216: 0 | T216: 0 | U216: 0 | V216: 0 | W216: 0 | X216: 0 | Y216: 0 | Z216: 0 | AA216: 0 | AB216: 0 | AC216: 0 | AD216: 0 | AE216: 0 | AF216: 0 | AG216: =AG207 -> 0 | AH216: =AH207 -> 0 | AI216: 0 | AJ216: 0 | AK216: 0 | AL216: 0 | AM216: 0 | AN216: 0 | AO216: 0 | AP216: 0 | AQ216: 0 | AR216: 0 | AS216: 0 | AT216: 0 | AU216: 0 | AV216: 0 | AW216: 0 | AX216: 0 | AY216: 0 | AZ216: 0
D217: TOTAL | H217: =SUM(H212:H216) -> 1 | I217: 1 | J217: 1 | K217: 1 | L217: 1 | M217: 1 | N217: 1 | O217: 1 | P217: 1 | Q217: 1 | R217: 1 | S217: 1 | T217: 1 | U217: 1 | V217: 1 | W217: 1 | X217: 1 | Y217: 1 | Z217: 1 | AA217: 1 | AB217: 1 | AC217: 1 | AD217: 1 | AE217: 1 | AF217: 1 | AG217: =SUM(AG212:AG216) -> 1 | AH217: 1 | AI217: 1 | AJ217: 1 | AK217: 1 | AL217: 1 | AM217: 1 | AN217: 1 | AO217: 1 | AP217: 1 | AQ217: 1 | AR217: 1 | AS217: 1 | AT217: 1 | AU217: 1 | AV217: 1 | AW217: 1 | AX217: 1 | AY217: 1 | AZ217: 1
D219: Sources | E219: DOE External Power Supplies 2014 Final Rule, Technical Support Document: National Impact Analysis Spreadsheet, 'Inputs' tab, cells E78:K86

Sheet Efficiency Dist - MH (hidden)
C2: Efficiency Distributions by Product Class - Manufactured Homes
C4: =Navigation!$C$15 -> NAVIGATION
D7: ='Product Classes'!H10&" - "&OFFSET('Product Classes'!$C$9,MATCH('Product Classes'!H10,MODEL_PCS,0),0) -> B 2.5 W - AC-DC, Basic Voltage 2.5 W Rep. Unit
D9: PRE-Case | F9: Static Distribution
D10: Efficiency Level | E10: IEF (lbs/kWh) | F10: 2011 | H10: 1990 | I10: =H10+1 -> 1991 | J10: =I10+1 -> 1992 | K10: 1993 | L10: 1994 | M10: 1995 | N10: 1996 | O10: 1997 | P10: 1998 | Q10: 1999 | R10: 2000 | S10: 2001 | T10: 2002 | U10: 2003 | V10: 2004 | W10: 2005 | X10: 2006 | Y10: 2007 | Z10: 2008 | AA10: 2009 | AB10: 2010 | AC10: 2011 | AD10: 2012 | AE10: 2013 | AF10: 2014 | AG10: 2015 | AH10: 2016 | AI10: 2017 | AJ10: 2018 | AK10: 2019 | AL10: 2020 | AM10: 2021 | AN10: 2022 | AO10: 2023 | AP10: 2024 | AQ10: 2025 | AR10: 2026 | AS10: 2027 | AT10: 2028 | AU10: 2029 | AV10: 2030 | AW10: 2031 | AX10: 2032 | AY10: 2033 | AZ10: 2034
D11: ='Efficiency Levels'!C12 -> EL0 | E11: ='Efficiency Levels'!D12 -> EISA | F11: 0.026 | H11: =$F11 -> 0.026 | I11: =$F11 -> 0.026 | J11: 0.026 | K11: 0.026 | L11: 0.026 | M11: 0.026 | N11: 0.026 | O11: 0.026 | P11: 0.026 | Q11: 0.026 | R11: 0.026 | S11: 0.026 | T11: 0.026 | U11: 0.026 | V11: 0.026 | W11: 0.026 | X11: 0.026 | Y11: 0.026 | Z11: 0.026 | AA11: 0.026 | AB11: 0.026 | AC11: 0.026 | AD11: 0.026 | AE11: 0.026 | AF11: 0.026 | AG11: 0.026 | AH11: 0.026 | AI11: 0.026 | AJ11: 0.026 | AK11: 0.026 | AL11: 0.026 | AM11: 0.026 | AN11: 0.026 | AO11: 0.026 | AP11: 0.026 | AQ11: 0.026 | AR11: 0.026 | AS11: 0.026 | AT11: 0.026 | AU11: 0.026 | AV11: 0.026 | AW11: 0.026 | AX11: 0.026 | AY11: 0.026 | AZ11: 0.026
D12: ='Efficiency Levels'!C13 -> EL1 | E12: ='Efficiency Levels'!D13 -> Energy Star 2.0 | F12: 0.189 | H12: =$F12 -> 0.189 | I12: 0.189 | J12: 0.189 | K12: 0.189 | L12: 0.189 | M12: 0.189 | N12: 0.189 | O12: 0.189 | P12: 0.189 | Q12: 0.189 | R12: 0.189 | S12: 0.189 | T12: 0.189 | U12: 0.189 | V12: 0.189 | W12: 0.189 | X12: 0.189 | Y12: 0.189 | Z12: 0.189 | AA12: 0.189 | AB12: 0.189 | AC12: 0.189 | AD12: 0.189 | AE12: 0.189 | AF12: 0.189 | AG12: 0.189 | AH12: 0.189 | AI12: 0.189 | AJ12: 0.189 | AK12: 0.189 | AL12: 0.189 | AM12: 0.189 | AN12: 0.189 | AO12: 0.189 | AP12: 0.189 | AQ12: 0.189 | AR12: 0.189 | AS12: 0.189 | AT12: 0.189 | AU12: 0.189 | AV12: 0.189 | AW12: 0.189 | AX12: 0.189 | AY12: 0.189 | AZ12: 0.189
D13: ='Efficiency Levels'!C14 -> EL2 | E13: ='Efficiency Levels'!D14 -> Intermediate | F13: 0.535 | H13: 0.535 | I13: 0.535 | J13: 0.535 | K13: 0.535 | L13: 0.535 | M13: 0.535 | N13: 0.535 | O13: 0.535 | P13: 0.535 | Q13: 0.535 | R13: 0.535 | S13: 0.535 | T13: 0.535 | U13: 0.535 | V13: 0.535 | W13: 0.535 | X13: 0.535 | Y13: 0.535 | Z13: 0.535 | AA13: 0.535 | AB13: 0.535 | AC13: 0.535 | AD13: 0.535 | AE13: 0.535 | AF13: 0.535 | AG13: 0.535 | AH13: 0.535 | AI13: 0.535 | AJ13: 0.535 | AK13: 0.535 | AL13: 0.535 | AM13: 0.535 | AN13: 0.535 | AO13: 0.535 | AP13: 0.535 | AQ13: 0.535 | AR13: 0.535 | AS13: 0.535 | AT13: 0.535 | AU13: 0.535 | AV13: 0.535 | AW13: 0.535 | AX13: 0.535 | AY13: 0.535 | AZ13: 0.535
D14: ='Efficiency Levels'!C15 -> EL3 | E14: ='Efficiency Levels'!D15 -> Best in Market | F14: 0.179 | H14: 0.179 | I14: 0.179 | J14: 0.179 | K14: 0.179 | L14: 0.179 | M14: 0.179 | N14: 0.179 | O14: 0.179 | P14: 0.179 | Q14: 0.179 | R14: 0.179 | S14: 0.179 | T14: 0.179 | U14: 0.179 | V14: 0.179 | W14: 0.179 | X14: 0.179 | Y14: 0.179 | Z14: 0.179 | AA14: 0.179 | AB14: 0.179 | AC14: 0.179 | AD14: 0.179 | AE14: 0.179 | AF14: 0.179 | AG14: 0.179 | AH14: 0.179 | AI14: 0.179 | AJ14: 0.179 | AK14: 0.179 | AL14: 0.179 | AM14: 0.179 | AN14: 0.179 | AO14: 0.179 | AP14: 0.179 | AQ14: 0.179 | AR14: 0.179 | AS14: 0.179 | AT14: 0.179 | AU14: 0.179 | AV14: 0.179 | AW14: 0.179 | AX14: 0.179 | AY14: 0.179 | AZ14: 0.179
D15: ='Efficiency Levels'!C16 -> EL4 | E15: ='Efficiency Levels'!D16 -> Max Tech | F15: 0.061 | H15: 0.061 | I15: 0.061 | J15: 0.061 | K15: 0.061 | L15: 0.061 | M15: 0.061 | N15: 0.061 | O15: 0.061 | P15: 0.061 | Q15: 0.061 | R15: 0.061 | S15: 0.061 | T15: 0.061 | U15: 0.061 | V15: 0.061 | W15: 0.061 | X15: 0.061 | Y15: 0.061 | Z15: 0.061 | AA15: 0.061 | AB15: 0.061 | AC15: 0.061 | AD15: 0.061 | AE15: 0.061 | AF15: 0.061 | AG15: 0.061 | AH15: 0.061 | AI15: 0.061 | AJ15: 0.061 | AK15: 0.061 | AL15: 0.061 | AM15: 0.061 | AN15: 0.061 | AO15: 0.061 | AP15: 0.061 | AQ15: 0.061 | AR15: 0.061 | AS15: 0.061 | AT15: 0.061 | AU15: 0.061 | AV15: 0.061 | AW15: 0.061 | AX15: 0.061 | AY15: 0.061 | AZ15: 0.061
D16: ='Efficiency Levels'!C17 -> 0 | E16: ='Efficiency Levels'!D17 -> 0 | F16: 0.01 | H16: 0.01 | I16: 0.01 | J16: 0.01 | K16: 0.01 | L16: 0.01 | M16: 0.01 | N16: 0.01 | O16: 0.01 | P16: 0.01 | Q16: 0.01 | R16: 0.01 | S16: 0.01 | T16: 0.01 | U16: 0.01 | V16: 0.01 | W16: 0.01 | X16: 0.01 | Y16: 0.01 | Z16: 0.01 | AA16: 0.01 | AB16: 0.01 | AC16: 0.01 | AD16: 0.01 | AE16: 0.01 | AF16: 0.01 | AG16: 0.01 | AH16: 0.01 | AI16: 0.01 | AJ16: 0.01 | AK16: 0.01 | AL16: 0.01 | AM16: 0.01 | AN16: 0.01 | AO16: 0.01 | AP16: 0.01 | AQ16: 0.01 | AR16: 0.01 | AS16: 0.01 | AT16: 0.01 | AU16: 0.01 | AV16: 0.01 | AW16: 0.01 | AX16: 0.01 | AY16: 0.01 | AZ16: 0.01
D17: ='Efficiency Levels'!C18 -> 0 | E17: ='Efficiency Levels'!D18 -> 0 | F17: 0 | H17: 0 | I17: 0 | J17: 0 | K17: 0 | L17: 0 | M17: 0 | N17: 0 | O17: =$F17 -> 0 | P17: 0 | Q17: 0 | R17: 0 | S17: 0 | T17: 0 | U17: 0 | V17: 0 | W17: 0 | X17: 0 | Y17: 0 | Z17: 0 | AA17: 0 | AB17: 0 | AC17: 0 | AD17: 0 | AE17: 0 | AF17: 0 | AG17: 0 | AH17: 0 | AI17: 0 | AJ17: 0 | AK17: 0 | AL17: 0 | AM17: 0 | AN17: 0 | AO17: 0 | AP17: 0 | AQ17: 0 | AR17: 0 | AS17: 0 | AT17: 0 | AU17: 0 | AV17: 0 | AW17: 0 | AX17: 0 | AY17: 0 | AZ17: 0
D18: TOTAL | F18: =SUM(F11:F17) -> 1 | H18: =SUM(H11:H17) -> 1 | I18: =SUM(I11:I17) -> 1 | J18: 1 | K18: 1 | L18: 1 | M18: 1 | N18: 1 | O18: 1 | P18: 1 | Q18: 1 | R18: 1 | S18: 1 | T18: 1 | U18: 1 | V18: 1 | W18: 1 | X18: 1 | Y18: 1 | Z18: 1 | AA18: 1 | AB18: 1 | AC18: 1 | AD18: 1 | AE18: 1 | AF18: 1 | AG18: 1 | AH18: 1 | AI18: 1 | AJ18: 1 | AK18: 1 | AL18: 1 | AM18: 1 | AN18: 1 | AO18: 1 | AP18: 1 | AQ18: 1 | AR18: 1 | AS18: 1 | AT18: 1 | AU18: 1 | AV18: 1 | AW18: 1 | AX18: 1 | AY18: 1 | AZ18: 1
D20: POST-Case
D21: Efficiency Level | E21: IEF (lbs/kWh) | H21: 1990 | I21: =H21+1 -> 1991 | J21: =I21+1 -> 1992 | K21: 1993 | L21: 1994 | M21: 1995 | N21: 1996 | O21: 1997 | P21: 1998 | Q21: 1999 | R21: 2000 | S21: 2001 | T21: 2002 | U21: 2003 | V21: 2004 | W21: 2005 | X21: =X10 -> 2006 | Y21: 2007 | Z21: 2008 | AA21: 2009 | AB21: 2010 | AC21: 2011 | AD21: 2012 | AE21: 2013 | AF21: 2014 | AG21: 2015 | AH21: 2016 | AI21: 2017 | AJ21: 2018 | AK21: 2019 | AL21: 2020 | AM21: 2021 | AN21: 2022 | AO21: 2023 | AP21: 2024 | AQ21: 2025 | AR21: 2026 | AS21: 2027 | AT21: 2028 | AU21: 2029 | AV21: 2030 | AW21: 2031 | AX21: 2032 | AY21: 2033 | AZ21: 2034
D22: ='Efficiency Levels'!C12 -> EL0 | E22: ='Efficiency Levels'!D12 -> EISA | H22: =H11 -> 0.026 | I22: =I11 -> 0.026 | J22: 0.026 | K22: 0.026 | L22: 0.026 | M22: 0.026 | N22: 0.026 | O22: 0.026 | P22: 0.026 | Q22: 0.026 | R22: 0.026 | S22: 0.026 | T22: 0.026 | U22: 0.026 | V22: 0.026 | W22: 0.026 | X22: 0.026 | Y22: 0.026 | Z22: 0.026 | AA22: 0.026 | AB22: 0.026 | AC22: 0.026 | AD22: 0.026 | AE22: 0.026 | AF22: 0.026 | AG22: 0 | AH22: 0 | AI22: 0 | AJ22: 0 | AK22: 0 | AL22: 0 | AM22: 0 | AN22: 0 | AO22: 0 | AP22: 0 | AQ22: 0 | AR22: 0 | AS22: 0 | AT22: 0 | AU22: 0 | AV22: 0 | AW22: 0 | AX22: 0 | AY22: 0 | AZ22: 0
D23: ='Efficiency Levels'!C13 -> EL1 | E23: ='Efficiency Levels'!D13 -> Energy Star 2.0 | H23: =H12 -> 0.189 | I23: 0.189 | J23: 0.189 | K23: 0.189 | L23: 0.189 | M23: 0.189 | N23: 0.189 | O23: 0.189 | P23: 0.189 | Q23: 0.189 | R23: 0.189 | S23: 0.189 | T23: 0.189 | U23: 0.189 | V23: 0.189 | W23: 0.189 | X23: 0.189 | Y23: 0.189 | Z23: 0.189 | AA23: 0.189 | AB23: 0.189 | AC23: 0.189 | AD23: 0.189 | AE23: 0.189 | AF23: 0.189 | AG23: 0 | AH23: 0 | AI23: 0 | AJ23: 0 | AK23: 0 | AL23: 0 | AM23: 0 | AN23: 0 | AO23: 0 | AP23: 0 | AQ23: 0 | AR23: 0 | AS23: 0 | AT23: 0 | AU23: 0 | AV23: 0 | AW23: 0 | AX23: 0 | AY23: 0 | AZ23: 0
D24: ='Efficiency Levels'!C14 -> EL2 | E24: ='Efficiency Levels'!D14 -> Intermediate | H24: 0.535 | I24: 0.535 | J24: 0.535 | K24: 0.535 | L24: 0.535 | M24: 0.535 | N24: 0.535 | O24: 0.535 | P24: 0.535 | Q24: 0.535 | R24: 0.535 | S24: 0.535 | T24: 0.535 | U24: 0.535 | V24: 0.535 | W24: 0.535 | X24: 0.535 | Y24: 0.535 | Z24: 0.535 | AA24: 0.535 | AB24: 0.535 | AC24: 0.535 | AD24: 0.535 | AE24: 0.535 | AF24: 0.535 | AG24: 0 | AH24: 0 | AI24: 0 | AJ24: 0 | AK24: 0 | AL24: 0 | AM24: 0 | AN24: 0 | AO24: 0 | AP24: 0 | AQ24: 0 | AR24: 0 | AS24: 0 | AT24: 0 | AU24: 0 | AV24: 0 | AW24: 0 | AX24: 0 | AY24: 0 | AZ24: 0
D25: ='Efficiency Levels'!C15 -> EL3 | E25: ='Efficiency Levels'!D15 -> Best in Market | H25: 0.179 | I25: 0.179 | J25: 0.179 | K25: 0.179 | L25: 0.179 | M25: 0.179 | N25: 0.179 | O25: 0.179 | P25: 0.179 | Q25: 0.179 | R25: 0.179 | S25: 0.179 | T25: 0.179 | U25: 0.179 | V25: 0.179 | W25: 0.179 | X25: 0.179 | Y25: 0.179 | Z25: 0.179 | AA25: 0.179 | AB25: 0.179 | AC25: 0.179 | AD25: 0.179 | AE25: 0.179 | AF25: 0.179 | AG25: =SUM(AG11:AG14) -> 0.929 | AH25: =SUM(AH11:AH14) -> 0.929 | AI25: 0.929 | AJ25: 0.929 | AK25: 0.929 | AL25: 0.929 | AM25: 0.929 | AN25: 0.929 | AO25: 0.929 | AP25: 0.929 | AQ25: 0.929 | AR25: 0.929 | AS25: 0.929 | AT25: 0.929 | AU25: 0.929 | AV25: 0.929 | AW25: 0.929 | AX25: 0.929 | AY25: 0.929 | AZ25: 0.929
D26: ='Efficiency Levels'!C16 -> EL4 | E26: ='Efficiency Levels'!D16 -> Max Tech | H26: 0.061 | I26: 0.061 | J26: 0.061 | K26: 0.061 | L26: 0.061 | M26: 0.061 | N26: 0.061 | O26: 0.061 | P26: 0.061 | Q26: 0.061 | R26: 0.061 | S26: 0.061 | T26: 0.061 | U26: 0.061 | V26: 0.061 | W26: 0.061 | X26: 0.061 | Y26: 0.061 | Z26: 0.061 | AA26: 0.061 | AB26: 0.061 | AC26: 0.061 | AD26: 0.061 | AE26: 0.061 | AF26: 0.061 | AG26: =AG15 -> 0.061 | AH26: =AH15 -> 0.061 | AI26: 0.061 | AJ26: 0.061 | AK26: 0.061 | AL26: 0.061 | AM26: 0.061 | AN26: 0.061 | AO26: 0.061 | AP26: 0.061 | AQ26: 0.061 | AR26: 0.061 | AS26: 0.061 | AT26: 0.061 | AU26: 0.061 | AV26: 0.061 | AW26: 0.061 | AX26: 0.061 | AY26: 0.061 | AZ26: 0.061
D27: ='Efficiency Levels'!C17 -> 0 | E27: ='Efficiency Levels'!D17 -> 0 | H27: 0.01 | I27: 0.01 | J27: 0.01 | K27: 0.01 | L27: 0.01 | M27: 0.01 | N27: 0.01 | O27: 0.01 | P27: 0.01 | Q27: 0.01 | R27: 0.01 | S27: 0.01 | T27: 0.01 | U27: 0.01 | V27: 0.01 | W27: 0.01 | X27: 0.01 | Y27: 0.01 | Z27: 0.01 | AA27: 0.01 | AB27: 0.01 | AC27: 0.01 | AD27: 0.01 | AE27: 0.01 | AF27: 0.01 | AG27: =AG16 -> 0.01 | AH27: 0.01 | AI27: 0.01 | AJ27: 0.01 | AK27: 0.01 | AL27: 0.01 | AM27: 0.01 | AN27: 0.01 | AO27: 0.01 | AP27: 0.01 | AQ27: 0.01 | AR27: 0.01 | AS27: 0.01 | AT27: 0.01 | AU27: 0.01 | AV27: 0.01 | AW27: 0.01 | AX27: 0.01 | AY27: 0.01 | AZ27: 0.01
D28: ='Efficiency Levels'!C18 -> 0 | E28: ='Efficiency Levels'!D18 -> 0 | H28: 0 | I28: 0 | J28: 0 | K28: 0 | L28: 0 | M28: 0 | N28: 0 | O28: 0 | P28: 0 | Q28: 0 | R28: 0 | S28: 0 | T28: 0 | U28: 0 | V28: 0 | W28: 0 | X28: 0 | Y28: 0 | Z28: 0 | AA28: 0 | AB28: 0 | AC28: 0 | AD28: 0 | AE28: 0 | AF28: 0 | AG28: =AG17 -> 0 | AH28: 0 | AI28: 0 | AJ28: 0 | AK28: 0 | AL28: 0 | AM28: 0 | AN28: 0 | AO28: 0 | AP28: 0 | AQ28: 0 | AR28: 0 | AS28: 0 | AT28: 0 | AU28: 0 | AV28: 0 | AW28: 0 | AX28: 0 | AY28: 0 | AZ28: 0
D29: TOTAL | H29: =SUM(H22:H28) -> 1 | I29: =SUM(I22:I28) -> 1 | J29: 1 | K29: 1 | L29: 1 | M29: 1 | N29: 1 | O29: 1 | P29: 1 | Q29: 1 | R29: 1 | S29: 1 | T29: 1 | U29: 1 | V29: 1 | W29: 1 | X29: 1 | Y29: 1 | Z29: 1 | AA29: 1 | AB29: 1 | AC29: 1 | AD29: 1 | AE29: 1 | AF29: 1 | AG29: 1 | AH29: 1 | AI29: 1 | AJ29: 1 | AK29: 1 | AL29: 1 | AM29: 1 | AN29: 1 | AO29: 1 | AP29: 1 | AQ29: 1 | AR29: 1 | AS29: 1 | AT29: 1 | AU29: 1 | AV29: 1 | AW29: 1 | AX29: 1 | AY29: 1 | AZ29: 1
D31: Sources

Sheet Stock Model-SF (hidden)
C2: Stock Model - Single Family
C4: =Navigation!$C$15 -> NAVIGATION
C7: Segment | D7: Initial Year
C8: Single Family | D8: 1980
C10: Quantity of Stock by AGE and YEAR
D11: Unit Age in Years
C12: Year | D12: 18 | E12: 17 | F12: 16 | G12: 15 | H12: 14 | I12: 13 | J12: 12 | K12: 11 | L12: 10 | M12: 9 | N12: 8 | O12: 7 | P12: 6 | Q12: 5 | R12: 4 | S12: 3 | T12: 2 | U12: 1
C13: =C14-1 -> 1990 | D13: 0 | E13: 0 | F13: 0 | G13: 0 | H13: 0 | I13: 0 | J13: 0 | K13: 0 | L13: 170891.2615 | M13: 162688.6621 | N13: 176004.2373 | O13: 175476.5944 | P13: 175772.1704 | Q13: 179871.3172 | R13: 181876.0528 | S13: 187087.5031 | T13: 197428.1459 | U13: 206108.2177
C14: 1991 | D14: 0 | E14: 0 | F14: 0 | G14: 0 | H14: 0 | I14: 0 | J14: 0 | K14: 170891.2615 | L14: 162688.6621 | M14: 176004.2373 | N14: 175476.5944 | O14: 175772.1704 | P14: 179871.3172 | Q14: 181876.0528 | R14: 187087.5031 | S14: 197428.1459 | T14: 206108.2177 | U14: 202601.7445
C15: 1992 | D15: 0 | E15: 0 | F15: 0 | G15: 0 | H15: 0 | I15: 0 | J15: 170891.2615 | K15: 162688.6621 | L15: 176004.2373 | M15: 175476.5944 | N15: 175772.1704 | O15: 179871.3172 | P15: 181876.0528 | Q15: 187087.5031 | R15: 197428.1459 | S15: 206108.2177 | T15: 202601.7445 | U15: 215755.0633
C16: 1993 | D16: 0 | E16: 0 | F16: 0 | G16: 0 | H16: 0 | I16: 170891.2615 | J16: 162688.6621 | K16: 176004.2373 | L16: 175476.5944 | M16: 175772.1704 | N16: 179871.3172 | O16: 181876.0528 | P16: 187087.5031 | Q16: 197428.1459 | R16: 206108.2177 | S16: 202601.7445 | T16: 215755.0633 | U16: 224904.5501
C17: 1994 | D17: 0 | E17: 0 | F17: 0 | G17: 0 | H17: 170891.2615 | I17: 162688.6621 | J17: 176004.2373 | K17: 175476.5944 | L17: 175772.1704 | M17: 179871.3172 | N17: 181876.0528 | O17: 187087.5031 | P17: 197428.1459 | Q17: 206108.2177 | R17: 202601.7445 | S17: 215755.0633 | T17: 224904.5501 | U17: 232013.7376
C18: 1995 | D18: 0 | E18: 0 | F18: 0 | G18: 170891.2615 | H18: 162688.6621 | I18: 176004.2373 | J18: 175476.5944 | K18: 175772.1704 | L18: 179871.3172 | M18: 181876.0528 | N18: 187087.5031 | O18: 197428.1459 | P18: 206108.2177 | Q18: 202601.7445 | R18: 215755.0633 | S18: 224904.5501 | T18: 232013.7376 | U18: 228603.9948
C19: 1996 | D19: 0 | E19: 0 | F19: 170891.2615 | G19: 162688.6621 | H19: 176004.2373 | I19: 175476.5944 | J19: 175772.1704 | K19: 179871.3172 | L19: 181876.0528 | M19: 187087.5031 | N19: 197428.1459 | O19: 206108.2177 | P19: 202601.7445 | Q19: 215755.0633 | R19: 224904.5501 | S19: 232013.7376 | T19: 228603.9948 | U19: 234310.2618
C20: =C21-1 -> 1997 | D20: 0 | E20: 0 | F20: 162688.6621 | G20: 176004.2373 | H20: 175476.5944 | I20: 175772.1704 | J20: 179871.3172 | K20: 181876.0528 | L20: 187087.5031 | M20: 197428.1459 | N20: 206108.2177 | O20: 202601.7445 | P20: 215755.0633 | Q20: 224904.5501 | R20: 232013.7376 | S20: 228603.9948 | T20: 234310.2618 | U20: 237295.6714
C21: 1998 | D21: 0 | E21: 0 | F21: 176004.2373 | G21: 175476.5944 | H21: 175772.1704 | I21: 179871.3172 | J21: 181876.0528 | K21: 187087.5031 | L21: 197428.1459 | M21: 206108.2177 | N21: 202601.7445 | O21: 215755.0633 | P21: 224904.5501 | Q21: 232013.7376 | R21: 228603.9948 | S21: 234310.2618 | T21: 237295.6714 | U21: 242874.169
C22: 1999 | D22: 0 | E22: 0 | F22: 175476.5944 | G22: 175772.1704 | H22: 179871.3172 | I22: 181876.0528 | J22: 187087.5031 | K22: 197428.1459 | L22: 206108.2177 | M22: 202601.7445 | N22: 215755.0633 | O22: 224904.5501 | P22: 232013.7376 | Q22: 228603.9948 | R22: 234310.2618 | S22: 237295.6714 | T22: 242874.169 | U22: 245079.4769
C23: 2000 | D23: 0 | E23: 0 | F23: 175772.1704 | G23: 179871.3172 | H23: 181876.0528 | I23: 187087.5031 | J23: 197428.1459 | K23: 206108.2177 | L23: 202601.7445 | M23: 215755.0633 | N23: 224904.5501 | O23: 232013.7376 | P23: 228603.9948 | Q23: 234310.2618 | R23: 237295.6714 | S23: 242874.169 | T23: 245079.4769 | U23: 243605.1633
C24: 2001 | D24: 0 | E24: 0 | F24: 179871.3172 | G24: 181876.0528 | H24: 187087.5031 | I24: 197428.1459 | J24: 206108.2177 | K24: 202601.7445 | L24: 215755.0633 | M24: 224904.5501 | N24: 232013.7376 | O24: 228603.9948 | P24: 234310.2618 | Q24: 237295.6714 | R24: 242874.169 | S24: 245079.4769 | T24: 243605.1633 | U24: 247985.4681
C25: 2002 | D25: 0 | E25: 0 | F25: 181876.0528 | G25: 187087.5031 | H25: 197428.1459 | I25: 206108.2177 | J25: 202601.7445 | K25: 215755.0633 | L25: 224904.5501 | M25: 232013.7376 | N25: 228603.9948 | O25: 234310.2618 | P25: 237295.6714 | Q25: 242874.169 | R25: 245079.4769 | S25: 243605.1633 | T25: 247985.4681 | U25: 258295.2104
C26: 2003 | D26: 0 | E26: 0 | F26: 187087.5031 | G26: 197428.1459 | H26: 206108.2177 | I26: 202601.7445 | J26: 215755.0633 | K26: 224904.5501 | L26: 232013.7376 | M26: 228603.9948 | N26: 234310.2618 | O26: 237295.6714 | P26: 242874.169 | Q26: 245079.4769 | R26: 243605.1633 | S26: 247985.4681 | T26: 258295.2104 | U26: 268884.2203
C27: =C28-1 -> 2004 | D27: 0 | E27: 0 | F27: 197428.1459 | G27: 206108.2177 | H27: 202601.7445 | I27: 215755.0633 | J27: 224904.5501 | K27: 232013.7376 | L27: 228603.9948 | M27: 234310.2618 | N27: 237295.6714 | O27: 242874.169 | P27: 245079.4769 | Q27: 243605.1633 | R27: 247985.4681 | S27: 258295.2104 | T27: 268884.2203 | U27: 276541.3328
C28: 2005 | D28: 0 | E28: 0 | F28: 206108.2177 | G28: 202601.7445 | H28: 215755.0633 | I28: 224904.5501 | J28: 232013.7376 | K28: 228603.9948 | L28: 234310.2618 | M28: 237295.6714 | N28: 242874.169 | O28: 245079.4769 | P28: 243605.1633 | Q28: 247985.4681 | R28: 258295.2104 | S28: 268884.2203 | T28: 276541.3328 | U28: 289090.4086
C29: =C28+1 -> 2006 | D29: 0 | E29: 0 | F29: 202601.7445 | G29: 215755.0633 | H29: 224904.5501 | I29: 232013.7376 | J29: 228603.9948 | K29: 234310.2618 | L29: 237295.6714 | M29: 242874.169 | N29: 245079.4769 | O29: 243605.1633 | P29: 247985.4681 | Q29: 258295.2104 | R29: 268884.2203 | S29: 276541.3328 | T29: 289090.4086 | U29: 285108.6366
C30: 2007 | D30: 0 | E30: 0 | F30: 215755.0633 | G30: 224904.5501 | H30: 232013.7376 | I30: 228603.9948 | J30: 234310.2618 | K30: 237295.6714 | L30: 242874.169 | M30: 245079.4769 | N30: 243605.1633 | O30: 247985.4681 | P30: 258295.2104 | Q30: 268884.2203 | R30: 276541.3328 | S30: 289090.4086 | T30: 285108.6366 | U30: 271269.9443
C31: 2008 | D31: 0 | E31: 0 | F31: 224904.5501 | G31: 232013.7376 | H31: 228603.9948 | I31: 234310.2618 | J31: 237295.6714 | K31: 242874.169 | L31: 245079.4769 | M31: 243605.1633 | N31: 247985.4681 | O31: 258295.2104 | P31: 268884.2203 | Q31: 276541.3328 | R31: 289090.4086 | S31: 285108.6366 | T31: 271269.9443 | U31: 250725.7849
C32: 2009 | D32: 0 | E32: 0 | F32: 232013.7376 | G32: 228603.9948 | H32: 234310.2618 | I32: 237295.6714 | J32: 242874.169 | K32: 245079.4769 | L32: 243605.1633 | M32: 247985.4681 | N32: 258295.2104 | O32: 268884.2203 | P32: 276541.3328 | Q32: 289090.4086 | R32: 285108.6366 | S32: 271269.9443 | T32: 250725.7849 | U32: 244652.2102
C33: 2010 | D33: 0 | E33: 0 | F33: 228603.9948 | G33: 234310.2618 | H33: 237295.6714 | I33: 242874.169 | J33: 245079.4769 | K33: 243605.1633 | L33: 247985.4681 | M33: 258295.2104 | N33: 268884.2203 | O33: 276541.3328 | P33: 289090.4086 | Q33: 285108.6366 | R33: 271269.9443 | S33: 250725.7849 | T33: 244652.2102 | U33: 262540.0466
C34: 2011 | D34: 0 | E34: 0 | F34: 234310.2618 | G34: 237295.6714 | H34: 242874.169 | I34: 245079.4769 | J34: 243605.1633 | K34: 247985.4681 | L34: 258295.2104 | M34: 268884.2203 | N34: 276541.3328 | O34: 289090.4086 | P34: 285108.6366 | Q34: 271269.9443 | R34: 250725.7849 | S34: 244652.2102 | T34: 262540.0466 | U34: 286754.4265
C35: 2012 | D35: 0 | E35: 0 | F35: 237295.6714 | G35: 242874.169 | H35: 245079.4769 | I35: 243605.1633 | J35: 247985.4681 | K35: 258295.2104 | L35: 268884.2203 | M35: 276541.3328 | N35: 289090.4086 | O35: 285108.6366 | P35: 271269.9443 | Q35: 250725.7849 | R35: 244652.2102 | S35: 262540.0466 | T35: 286754.4265 | U35: 302627.0366
C36: 2013 | D36: 0 | E36: 0 | F36: 242874.169 | G36: 245079.4769 | H36: 243605.1633 | I36: 247985.4681 | J36: 258295.2104 | K36: 268884.2203 | L36: 276541.3328 | M36: 289090.4086 | N36: 285108.6366 | O36: 271269.9443 | P36: 250725.7849 | Q36: 244652.2102 | R36: 262540.0466 | S36: 286754.4265 | T36: 302627.0366 | U36: 307340.7977
C37: 2014 | D37: 0 | E37: 0 | F37: 245079.4769 | G37: 243605.1633 | H37: 247985.4681 | I37: 258295.2104 | J37: 268884.2203 | K37: 276541.3328 | L37: 289090.4086 | M37: 285108.6366 | N37: 271269.9443 | O37: 250725.7849 | P37: 244652.2102 | Q37: 262540.0466 | R37: 286754.4265 | S37: 302627.0366 | T37: 307340.7977 | U37: 312425.2339
C38: 2015 | D38: 0 | E38: 0 | F38: 243605.1633 | G38: 247985.4681 | H38: 258295.2104 | I38: 268884.2203 | J38: 276541.3328 | K38: 289090.4086 | L38: 285108.6366 | M38: 271269.9443 | N38: 250725.7849 | O38: 244652.2102 | P38: 262540.0466 | Q38: 286754.4265 | R38: 302627.0366 | S38: 307340.7977 | T38: 312425.2339 | U38: 314846.6738
C39: 2016 | D39: 0 | E39: 0 | F39: 247985.4681 | G39: 258295.2104 | H39: 268884.2203 | I39: 276541.3328 | J39: 289090.4086 | K39: 285108.6366 | L39: 271269.9443 | M39: 250725.7849 | N39: 244652.2102 | O39: 262540.0466 | P39: 286754.4265 | Q39: 302627.0366 | R39: 307340.7977 | S39: 312425.2339 | T39: 314846.6738 | U39: 313596.9229
C40: 2017 | D40: 0 | E40: 0 | F40: 258295.2104 | G40: 268884.2203 | H40: 276541.3328 | I40: 289090.4086 | J40: 285108.6366 | K40: 271269.9443 | L40: 250725.7849 | M40: 244652.2102 | N40: 262540.0466 | O40: 286754.4265 | P40: 302627.0366 | Q40: 307340.7977 | R40: 312425.2339 | S40: 314846.6738 | T40: 313596.9229 | U40: 316751.083
C41: 2018 | D41: 0 | E41: 0 | F41: 268884.2203 | G41: 276541.3328 | H41: 289090.4086 | I41: 285108.6366 | J41: 271269.9443 | K41: 250725.7849 | L41: 244652.2102 | M41: 262540.0466 | N41: 286754.4265 | O41: 302627.0366 | P41: 307340.7977 | Q41: 312425.2339 | R41: 314846.6738 | S41: 313596.9229 | T41: 316751.083 | U41: 325691.1349
C42: 2019 | D42: 0 | E42: 0 | F42: 276541.3328 | G42: 289090.4086 | H42: 285108.6366 | I42: 271269.9443 | J42: 250725.7849 | K42: 244652.2102 | L42: 262540.0466 | M42: 286754.4265 | N42: 302627.0366 | O42: 307340.7977 | P42: 312425.2339 | Q42: 314846.6738 | R42: 313596.9229 | S42: 316751.083 | T42: 325691.1349 | U42: 334803.9772
C43: 2020 | D43: 0 | E43: 0 | F43: 289090.4086 | G43: 285108.6366 | H43: 271269.9443 | I43: 250725.7849 | J43: 244652.2102 | K43: 262540.0466 | L43: 286754.4265 | M43: 302627.0366 | N43: 307340.7977 | O43: 312425.2339 | P43: 314846.6738 | Q43: 313596.9229 | R43: 316751.083 | S43: 325691.1349 | T43: 334803.9772 | U43: 341346.2817
C44: 2021 | D44: 0 | E44: 0 | F44: 285108.6366 | G44: 271269.9443 | H44: 250725.7849 | I44: 244652.2102 | J44: 262540.0466 | K44: 286754.4265 | L44: 302627.0366 | M44: 307340.7977 | N44: 312425.2339 | O44: 314846.6738 | P44: 313596.9229 | Q44: 316751.083 | R44: 325691.1349 | S44: 334803.9772 | T44: 341346.2817 | U44: 352200.9779
C45: 2022 | D45: 0 | E45: 0 | F45: 271269.9443 | G45: 250725.7849 | H45: 244652.2102 | I45: 262540.0466 | J45: 286754.4265 | K45: 302627.0366 | L45: 307340.7977 | M45: 312425.2339 | N45: 314846.6738 | O45: 313596.9229 | P45: 316751.083 | Q45: 325691.1349 | R45: 334803.9772 | S45: 341346.2817 | T45: 352200.9779 | U45: 347098.0634
C46: 2023 | D46: 0 | E46: 0 | F46: 250725.7849 | G46: 244652.2102 | H46: 262540.0466 | I46: 286754.4265 | J46: 302627.0366 | K46: 307340.7977 | L46: 312425.2339 | M46: 314846.6738 | N46: 313596.9229 | O46: 316751.083 | P46: 325691.1349 | Q46: 334803.9772 | R46: 341346.2817 | S46: 352200.9779 | T46: 347098.0634 | U46: 332451.018
C47: 2024 | D47: 0 | E47: 0 | F47: 244652.2102 | G47: 262540.0466 | H47: 286754.4265 | I47: 302627.0366 | J47: 307340.7977 | K47: 312425.2339 | L47: 314846.6738 | M47: 313596.9229 | N47: 316751.083 | O47: 325691.1349 | P47: 334803.9772 | Q47: 341346.2817 | R47: 352200.9779 | S47: 347098.0634 | T47: 332451.018 | U47: 310980.5521
C48: 2025 | D48: 0 | E48: 0 | F48: 262540.0466 | G48: 286754.4265 | H48: 302627.0366 | I48: 307340.7977 | J48: 312425.2339 | K48: 314846.6738 | L48: 313596.9229 | M48: 316751.083 | N48: 325691.1349 | O48: 334803.9772 | P48: 341346.2817 | Q48: 352200.9779 | R48: 347098.0634 | S48: 332451.018 | T48: 310980.5521 | U48: 304701.456
C49: 2026 | D49: 0 | E49: 0 | F49: 286754.4265 | G49: 302627.0366 | H49: 307340.7977 | I49: 312425.2339 | J49: 314846.6738 | K49: 313596.9229 | L49: 316751.083 | M49: 325691.1349 | N49: 334803.9772 | O49: 341346.2817 | P49: 352200.9779 | Q49: 347098.0634 | R49: 332451.018 | S49: 310980.5521 | T49: 304701.456 | U49: 322043.2307
C50: 2027 | D50: 0 | E50: 0 | F50: 302627.0366 | G50: 307340.7977 | H50: 312425.2339 | I50: 314846.6738 | J50: 313596.9229 | K50: 316751.083 | L50: 325691.1349 | M50: 334803.9772 | N50: 341346.2817 | O50: 352200.9779 | P50: 347098.0634 | Q50: 332451.018 | R50: 310980.5521 | S50: 304701.456 | T50: 322043.2307 | U50: 345090.3244
C51: 2028 | D51: 0 | E51: 0 | F51: 307340.7977 | G51: 312425.2339 | H51: 314846.6738 | I51: 313596.9229 | J51: 316751.083 | K51: 325691.1349 | L51: 334803.9772 | M51: 341346.2817 | N51: 352200.9779 | O51: 347098.0634 | P51: 332451.018 | Q51: 310980.5521 | R51: 304701.456 | S51: 322043.2307 | T51: 345090.3244 | U51: 359443.8764
C52: 2029 | D52: 0 | E52: 0 | F52: 312425.2339 | G52: 314846.6738 | H52: 313596.9229 | I52: 316751.083 | J52: 325691.1349 | K52: 334803.9772 | L52: 341346.2817 | M52: 352200.9779 | N52: 347098.0634 | O52: 332451.018 | P52: 310980.5521 | Q52: 304701.456 | R52: 322043.2307 | S52: 345090.3244 | T52: 359443.8764 | U52: 363121.9079
C53: 2030 | D53: 0 | E53: 0 | F53: 314846.6738 | G53: 313596.9229 | H53: 316751.083 | I53: 325691.1349 | J53: 334803.9772 | K53: 341346.2817 | L53: 352200.9779 | M53: 347098.0634 | N53: 332451.018 | O53: 310980.5521 | P53: 304701.456 | Q53: 322043.2307 | R53: 345090.3244 | S53: 359443.8764 | T53: 363121.9079 | U53: 367982.3471
C54: 2031 | D54: 0 | E54: 0 | F54: 313596.9229 | G54: 316751.083 | H54: 325691.1349 | I54: 334803.9772 | J54: 341346.2817 | K54: 352200.9779 | L54: 347098.0634 | M54: 332451.018 | N54: 310980.5521 | O54: 304701.456 | P54: 322043.2307 | Q54: 345090.3244 | R54: 359443.8764 | S54: 363121.9079 | T54: 367982.3471 | U54: 370959.3582
C55: 2032 | D55: 0 | E55: 0 | F55: 316751.083 | G55: 325691.1349 | H55: 334803.9772 | I55: 341346.2817 | J55: 352200.9779 | K55: 347098.0634 | L55: 332451.018 | M55: 310980.5521 | N55: 304701.456 | O55: 322043.2307 | P55: 345090.3244 | Q55: 359443.8764 | R55: 363121.9079 | S55: 367982.3471 | T55: 370959.3582 | U55: 370270.734
C56: 2033 | D56: 0 | E56: 0 | F56: 325691.1349 | G56: 334803.9772 | H56: 341346.2817 | I56: 352200.9779 | J56: 347098.0634 | K56: 332451.018 | L56: 310980.5521 | M56: 304701.456 | N56: 322043.2307 | O56: 345090.3244 | P56: 359443.8764 | Q56: 363121.9079 | R56: 367982.3471 | S56: 370959.3582 | T56: 370270.734 | U56: 373991.6323
C57: 2034 | D57: 0 | E57: 0 | F57: 334803.9772 | G57: 341346.2817 | H57: 352200.9779 | I57: 347098.0634 | J57: 332451.018 | K57: 310980.5521 | L57: 304701.456 | M57: 322043.2307 | N57: 345090.3244 | O57: 359443.8764 | P57: 363121.9079 | Q57: 367982.3471 | R57: 370959.3582 | S57: 370270.734 | T57: 373991.6323 | U57: 383504.0896

Sheet Product Class Dist
C2: Product Class Distributions
C4: NAVIGATION
C6: COMMENTS
C9: PRE-Case | D9: 1990 | E9: =D9+1 -> 1991 | F9: =E9+1 -> 1992 | G9: 1993 | H9: 1994 | I9: 1995 | J9: 1996 | K9: 1997 | L9: 1998 | M9: 1999 | N9: 2000 | O9: 2001 | P9: 2002 | Q9: 2003 | R9: 2004 | S9: 2005 | T9: 2006 | U9: 2007 | V9: 2008 | W9: =V9+1 -> 2009 | X9: 2010 | Y9: 2011 | Z9: 2012 | AA9: 2013 | AB9: 2014 | AC9: 2015 | AD9: 2016 | AE9: 2017 | AF9: 2018 | AG9: 2019 | AH9: 2020 | AI9: 2021 | AJ9: 2022 | AK9: 2023 | AL9: 2024 | AM9: 2025 | AN9: 2026 | AO9: 2027 | AP9: 2028 | AQ9: 2029 | AR9: 2030 | AS9: 2031 | AT9: 2032 | AU9: 2033 | AV9: 2034
C10: ='Product Classes'!H10&" - "&OFFSET('Product Classes'!$C$9,MATCH('Product Classes'!H10,MODEL_PCS,0),0) -> B 2.5 W - AC-DC, Basic Voltage 2.5 W Rep. Unit | D10: 0.2289566672 | E10: 0.2289566672 | F10: 0.2289566672 | G10: 0.2289566672 | H10: 0.2289566672 | I10: 0.2289566672 | J10: 0.2289566672 | K10: 0.2289566672 | L10: 0.2289566672 | M10: 0.2289566672 | N10: 0.2289566672 | O10: 0.2289566672 | P10: 0.2289566672 | Q10: 0.2289566672 | R10: 0.2289566672 | S10: 0.2289566672 | T10: 0.2289566672 | U10: 0.2289566672 | V10: 0.2289566672 | W10: 0.2289566672 | X10: 0.2289566672 | Y10: 0.2289566672 | Z10: 0.2289566672 | AA10: 0.2289566672 | AB10: 0.2289566672 | AC10: 0.2289566672 | AD10: 0.2289566672 | AE10: 0.2289566672 | AF10: 0.2289566672 | AG10: 0.2289566672 | AH10: 0.2289566672 | AI10: 0.2289566672 | AJ10: 0.2289566672 | AK10: 0.2289566672 | AL10: 0.2289566672 | AM10: 0.2289566672 | AN10: 0.2289566672 | AO10: 0.2289566672 | AP10: 0.2289566672 | AQ10: 0.2289566672 | AR10: 0.2289566672 | AS10: 0.2289566672 | AT10: 0.2289566672 | AU10: 0.2289566672 | AV10: 0.2289566672
C11: ='Product Classes'!H11&" - "&OFFSET('Product Classes'!$C$9,MATCH('Product Classes'!H11,MODEL_PCS,0),0) -> B 18 W - AC-DC, Basic Voltage 18 W Rep. Unit | D11: 0.2651569967 | E11: 0.2651569967 | F11: 0.2651569967 | G11: 0.2651569967 | H11: 0.2651569967 | I11: 0.2651569967 | J11: 0.2651569967 | K11: 0.2651569967 | L11: 0.2651569967 | M11: 0.2651569967 | N11: 0.2651569967 | O11: 0.2651569967 | P11: 0.2651569967 | Q11: 0.2651569967 | R11: 0.2651569967 | S11: 0.2651569967 | T11: 0.2651569967 | U11: 0.2651569967 | V11: 0.2651569967 | W11: 0.2651569967 | X11: 0.2651569967 | Y11: 0.2651569967 | Z11: 0.2651569967 | AA11: 0.2651569967 | AB11: 0.2651569967 | AC11: 0.2651569967 | AD11: 0.2651569967 | AE11: 0.2651569967 | AF11: 0.2651569967 | AG11: 0.2651569967 | AH11: 0.2651569967 | AI11: 0.2651569967 | AJ11: 0.2651569967 | AK11: 0.2651569967 | AL11: 0.2651569967 | AM11: 0.2651569967 | AN11: 0.2651569967 | AO11: 0.2651569967 | AP11: 0.2651569967 | AQ11: 0.2651569967 | AR11: 0.2651569967 | AS11: 0.2651569967 | AT11: 0.2651569967 | AU11: 0.2651569967 | AV11: 0.2651569967
C12: ='Product Classes'!H12&" - "&OFFSET('Product Classes'!$C$9,MATCH('Product Classes'!H12,MODEL_PCS,0),0) -> B 60 W - AC-DC, Basic Voltage 60 W Rep. Unit | D12: 0.1825158667 | E12: 0.1825158667 | F12: 0.1825158667 | G12: 0.1825158667 | H12: 0.1825158667 | I12: 0.1825158667 | J12: 0.1825158667 | K12: 0.1825158667 | L12: 0.1825158667 | M12: 0.1825158667 | N12: 0.1825158667 | O12: 0.1825158667 | P12: 0.1825158667 | Q12: 0.1825158667 | R12: 0.1825158667 | S12: 0.1825158667 | T12: 0.1825158667 | U12: 0.1825158667 | V12: 0.1825158667 | W12: 0.1825158667 | X12: 0.1825158667 | Y12: 0.1825158667 | Z12: 0.1825158667 | AA12: 0.1825158667 | AB12: 0.1825158667 | AC12: 0.1825158667 | AD12: 0.1825158667 | AE12: 0.1825158667 | AF12: 0.1825158667 | AG12: 0.1825158667 | AH12: 0.1825158667 | AI12: 0.1825158667 | AJ12: 0.1825158667 | AK12: 0.1825158667 | AL12: 0.1825158667 | AM12: 0.1825158667 | AN12: 0.1825158667 | AO12: 0.1825158667 | AP12: 0.1825158667 | AQ12: 0.1825158667 | AR12: 0.1825158667 | AS12: 0.1825158667 | AT12: 0.1825158667 | AU12: 0.1825158667 | AV12: 0.1825158667
C13: ='Product Classes'!H13&" - "&OFFSET('Product Classes'!$C$9,MATCH('Product Classes'!H13,MODEL_PCS,0),0) -> B 120 W - AC-DC, Basic Voltage 120 W Rep. Unit | D13: 0.02707866715 | E13: 0.02707866715 | F13: 0.02707866715 | G13: 0.02707866715 | H13: 0.02707866715 | I13: 0.02707866715 | J13: 0.02707866715 | K13: 0.02707866715 | L13: 0.02707866715 | M13: 0.02707866715 | N13: 0.02707866715 | O13: 0.02707866715 | P13: 0.02707866715 | Q13: 0.02707866715 | R13: 0.02707866715 | S13: 0.02707866715 | T13: 0.02707866715 | U13: 0.02707866715 | V13: 0.02707866715 | W13: 0.02707866715 | X13: 0.02707866715 | Y13: 0.02707866715 | Z13: 0.02707866715 | AA13: 0.02707866715 | AB13: 0.02707866715 | AC13: 0.02707866715 | AD13: 0.02707866715 | AE13: 0.02707866715 | AF13: 0.02707866715 | AG13: 0.02707866715 | AH13: 0.02707866715 | AI13: 0.02707866715 | AJ13: 0.02707866715 | AK13: 0.02707866715 | AL13: 0.02707866715 | AM13: 0.02707866715 | AN13: 0.02707866715 | AO13: 0.02707866715 | AP13: 0.02707866715 | AQ13: 0.02707866715 | AR13: 0.02707866715 | AS13: 0.02707866715 | AT13: 0.02707866715 | AU13: 0.02707866715 | AV13: 0.02707866715
C14: ='Product Classes'!H14&" - "&OFFSET('Product Classes'!$C$9,MATCH('Product Classes'!H14,MODEL_PCS,0),0) -> C - AC-DC, Low Voltage | D14: 0.2270697845 | E14: 0.2270697845 | F14: 0.2270697845 | G14: 0.2270697845 | H14: 0.2270697845 | I14: 0.2270697845 | J14: 0.2270697845 | K14: 0.2270697845 | L14: 0.2270697845 | M14: 0.2270697845 | N14: 0.2270697845 | O14: 0.2270697845 | P14: 0.2270697845 | Q14: 0.2270697845 | R14: 0.2270697845 | S14: 0.2270697845 | T14: 0.2270697845 | U14: 0.2270697845 | V14: 0.2270697845 | W14: 0.2270697845 | X14: 0.2270697845 | Y14: 0.2270697845 | Z14: 0.2270697845 | AA14: 0.2270697845 | AB14: 0.2270697845 | AC14: 0.2270697845 | AD14: 0.2270697845 | AE14: 0.2270697845 | AF14: 0.2270697845 | AG14: 0.2270697845 | AH14: 0.2270697845 | AI14: 0.2270697845 | AJ14: 0.2270697845 | AK14: 0.2270697845 | AL14: 0.2270697845 | AM14: 0.2270697845 | AN14: 0.2270697845 | AO14: 0.2270697845 | AP14: 0.2270697845 | AQ14: 0.2270697845 | AR14: 0.2270697845 | AS14: 0.2270697845 | AT14: 0.2270697845 | AU14: 0.2270697845 | AV14: 0.2270697845
C15: ='Product Classes'!H15&" - "&OFFSET('Product Classes'!$C$9,MATCH('Product Classes'!H15,MODEL_PCS,0),0) -> D - AC-AC, Basic Voltage | D15: 0.0308738052 | E15: 0.0308738052 | F15: 0.0308738052 | G15: 0.0308738052 | H15: 0.0308738052 | I15: 0.0308738052 | J15: 0.0308738052 | K15: 0.0308738052 | L15: 0.0308738052 | M15: 0.0308738052 | N15: 0.0308738052 | O15: 0.0308738052 | P15: 0.0308738052 | Q15: 0.0308738052 | R15: 0.0308738052 | S15: 0.0308738052 | T15: 0.0308738052 | U15: 0.0308738052 | V15: 0.0308738052 | W15: 0.0308738052 | X15: 0.0308738052 | Y15: 0.0308738052 | Z15: 0.0308738052 | AA15: 0.0308738052 | AB15: 0.0308738052 | AC15: 0.0308738052 | AD15: 0.0308738052 | AE15: 0.0308738052 | AF15: 0.0308738052 | AG15: 0.0308738052 | AH15: 0.0308738052 | AI15: 0.0308738052 | AJ15: 0.0308738052 | AK15: 0.0308738052 | AL15: 0.0308738052 | AM15: 0.0308738052 | AN15: 0.0308738052 | AO15: 0.0308738052 | AP15: 0.0308738052 | AQ15: 0.0308738052 | AR15: 0.0308738052 | AS15: 0.0308738052 | AT15: 0.0308738052 | AU15: 0.0308738052 | AV15: 0.0308738052
C16: ='Product Classes'!H16&" - "&OFFSET('Product Classes'!$C$9,MATCH('Product Classes'!H16,MODEL_PCS,0),0) -> E - AC-AC, Low Voltage | D16: 0.008689581557 | E16: 0.008689581557 | F16: 0.008689581557 | G16: 0.008689581557 | H16: 0.008689581557 | I16: 0.008689581557 | J16: 0.008689581557 | K16: 0.008689581557 | L16: 0.008689581557 | M16: 0.008689581557 | N16: 0.008689581557 | O16: 0.008689581557 | P16: 0.008689581557 | Q16: 0.008689581557 | R16: 0.008689581557 | S16: 0.008689581557 | T16: 0.008689581557 | U16: 0.008689581557 | V16: 0.008689581557 | W16: 0.008689581557 | X16: 0.008689581557 | Y16: 0.008689581557 | Z16: 0.008689581557 | AA16: 0.008689581557 | AB16: 0.008689581557 | AC16: 0.008689581557 | AD16: 0.008689581557 | AE16: 0.008689581557 | AF16: 0.008689581557 | AG16: 0.008689581557 | AH16: 0.008689581557 | AI16: 0.008689581557 | AJ16: 0.008689581557 | AK16: 0.008689581557 | AL16: 0.008689581557 | AM16: 0.008689581557 | AN16: 0.008689581557 | AO16: 0.008689581557 | AP16: 0.008689581557 | AQ16: 0.008689581557 | AR16: 0.008689581557 | AS16: 0.008689581557 | AT16: 0.008689581557 | AU16: 0.008689581557 | AV16: 0.008689581557
C17: ='Product Classes'!H17&" - "&OFFSET('Product Classes'!$C$9,MATCH('Product Classes'!H17,MODEL_PCS,0),0) -> X - Multiple-voltage EPSs | D17: 0.02964704484 | E17: 0.02964704484 | F17: 0.02964704484 | G17: 0.02964704484 | H17: 0.02964704484 | I17: 0.02964704484 | J17: 0.02964704484 | K17: 0.02964704484 | L17: 0.02964704484 | M17: 0.02964704484 | N17: 0.02964704484 | O17: 0.02964704484 | P17: 0.02964704484 | Q17: 0.02964704484 | R17: 0.02964704484 | S17: 0.02964704484 | T17: 0.02964704484 | U17: 0.02964704484 | V17: 0.02964704484 | W17: 0.02964704484 | X17: 0.02964704484 | Y17: 0.02964704484 | Z17: 0.02964704484 | AA17: 0.02964704484 | AB17: 0.02964704484 | AC17: 0.02964704484 | AD17: 0.02964704484 | AE17: 0.02964704484 | AF17: 0.02964704484 | AG17: 0.02964704484 | AH17: 0.02964704484 | AI17: 0.02964704484 | AJ17: 0.02964704484 | AK17: 0.02964704484 | AL17: 0.02964704484 | AM17: 0.02964704484 | AN17: 0.02964704484 | AO17: 0.02964704484 | AP17: 0.02964704484 | AQ17: 0.02964704484 | AR17: 0.02964704484 | AS17: 0.02964704484 | AT17: 0.02964704484 | AU17: 0.02964704484 | AV17: 0.02964704484
C18: ='Product Classes'!H18&" - "&OFFSET('Product Classes'!$C$9,MATCH('Product Classes'!H18,MODEL_PCS,0),0) -> H - High Power EPSs | D18: 1.158610874e-05 | E18: 1.158610874e-05 | F18: 1.158610874e-05 | G18: 1.158610874e-05 | H18: 1.158610874e-05 | I18: 1.158610874e-05 | J18: 1.158610874e-05 | K18: 1.158610874e-05 | L18: 1.158610874e-05 | M18: 1.158610874e-05 | N18: 1.158610874e-05 | O18: 1.158610874e-05 | P18: 1.158610874e-05 | Q18: 1.158610874e-05 | R18: 1.158610874e-05 | S18: 1.158610874e-05 | T18: 1.158610874e-05 | U18: 1.158610874e-05 | V18: 1.158610874e-05 | W18: 1.158610874e-05 | X18: 1.158610874e-05 | Y18: 1.158610874e-05 | Z18: 1.158610874e-05 | AA18: 1.158610874e-05 | AB18: 1.158610874e-05 | AC18: 1.158610874e-05 | AD18: 1.158610874e-05 | AE18: 1.158610874e-05 | AF18: 1.158610874e-05 | AG18: 1.158610874e-05 | AH18: 1.158610874e-05 | AI18: 1.158610874e-05 | AJ18: 1.158610874e-05 | AK18: 1.158610874e-05 | AL18: 1.158610874e-05 | AM18: 1.158610874e-05 | AN18: 1.158610874e-05 | AO18: 1.158610874e-05 | AP18: 1.158610874e-05 | AQ18: 1.158610874e-05 | AR18: 1.158610874e-05 | AS18: 1.158610874e-05 | AT18: 1.158610874e-05 | AU18: 1.158610874e-05 | AV18: 1.158610874e-05
C20: POST-Case | D20: 1990 | E20: =D20+1 -> 1991 | F20: =E20+1 -> 1992 | G20: =F20+1 -> 1993 | H20: =G20+1 -> 1994 | I20: =H20+1 -> 1995 | J20: =I20+1 -> 1996 | K20: =J20+1 -> 1997 | L20: =K20+1 -> 1998 | M20: =L20+1 -> 1999 | N20: =M20+1 -> 2000 | O20: =N20+1 -> 2001 | P20: =O20+1 -> 2002 | Q20: =P20+1 -> 2003 | R20: =Q20+1 -> 2004 | S20: =R20+1 -> 2005 | T20: =S20+1 -> 2006 | U20: =T20+1 -> 2007 | V20: =U20+1 -> 2008 | W20: =V20+1 -> 2009 | X20: =W20+1 -> 2010 | Y20: =X20+1 -> 2011 | Z20: =Y20+1 -> 2012 | AA20: =Z20+1 -> 2013 | AB20: =AA20+1 -> 2014 | AC20: =AB20+1 -> 2015 | AD20: =AC20+1 -> 2016 | AE20: =AD20+1 -> 2017 | AF20: =AE20+1 -> 2018 | AG20: =AF20+1 -> 2019 | AH20: =AG20+1 -> 2020 | AI20: =AH20+1 -> 2021 | AJ20: =AI20+1 -> 2022 | AK20: =AJ20+1 -> 2023 | AL20: =AK20+1 -> 2024 | AM20: =AL20+1 -> 2025 | AN20: =AM20+1 -> 2026 | AO20: =AN20+1 -> 2027 | AP20: =AO20+1 -> 2028 | AQ20: =AP20+1 -> 2029 | AR20: =AQ20+1 -> 2030 | AS20: =AR20+1 -> 2031 | AT20: =AS20+1 -> 2032 | AU20: =AT20+1 -> 2033 | AV20: =AU20+1 -> 2034
C21: ='Product Classes'!H10&" - "&OFFSET('Product Classes'!$C$9,MATCH('Product Classes'!H10,MODEL_PCS,0),0) -> B 2.5 W - AC-DC, Basic Voltage 2.5 W Rep. Unit | D21: 0.2289566672 | E21: 0.2289566672 | F21: 0.2289566672 | G21: 0.2289566672 | H21: 0.2289566672 | I21: 0.2289566672 | J21: 0.2289566672 | K21: 0.2289566672 | L21: 0.2289566672 | M21: 0.2289566672 | N21: 0.2289566672 | O21: 0.2289566672 | P21: 0.2289566672 | Q21: 0.2289566672 | R21: 0.2289566672 | S21: 0.2289566672 | T21: 0.2289566672 | U21: 0.2289566672 | V21: 0.2289566672 | W21: 0.2289566672 | X21: 0.2289566672 | Y21: 0.2289566672 | Z21: 0.2289566672 | AA21: 0.2289566672 | AB21: 0.2289566672 | AC21: 0.2289566672 | AD21: 0.2289566672 | AE21: 0.2289566672 | AF21: 0.2289566672 | AG21: 0.2289566672 | AH21: 0.2289566672 | AI21: 0.2289566672 | AJ21: 0.2289566672 | AK21: 0.2289566672 | AL21: 0.2289566672 | AM21: 0.2289566672 | AN21: 0.2289566672 | AO21: 0.2289566672 | AP21: 0.2289566672 | AQ21: 0.2289566672 | AR21: 0.2289566672 | AS21: 0.2289566672 | AT21: 0.2289566672 | AU21: 0.2289566672 | AV21: 0.2289566672
C22: ='Product Classes'!H11&" - "&OFFSET('Product Classes'!$C$9,MATCH('Product Classes'!H11,MODEL_PCS,0),0) -> B 18 W - AC-DC, Basic Voltage 18 W Rep. Unit | D22: 0.2651569967 | E22: 0.2651569967 | F22: 0.2651569967 | G22: 0.2651569967 | H22: 0.2651569967 | I22: 0.2651569967 | J22: 0.2651569967 | K22: 0.2651569967 | L22: 0.2651569967 | M22: 0.2651569967 | N22: 0.2651569967 | O22: 0.2651569967 | P22: 0.2651569967 | Q22: 0.2651569967 | R22: 0.2651569967 | S22: 0.2651569967 | T22: 0.2651569967 | U22: 0.2651569967 | V22: 0.2651569967 | W22: 0.2651569967 | X22: 0.2651569967 | Y22: 0.2651569967 | Z22: 0.2651569967 | AA22: 0.2651569967 | AB22: 0.2651569967 | AC22: 0.2651569967 | AD22: 0.2651569967 | AE22: 0.2651569967 | AF22: 0.2651569967 | AG22: 0.2651569967 | AH22: 0.2651569967 | AI22: 0.2651569967 | AJ22: 0.2651569967 | AK22: 0.2651569967 | AL22: 0.2651569967 | AM22: 0.2651569967 | AN22: 0.2651569967 | AO22: 0.2651569967 | AP22: 0.2651569967 | AQ22: 0.2651569967 | AR22: 0.2651569967 | AS22: 0.2651569967 | AT22: 0.2651569967 | AU22: 0.2651569967 | AV22: 0.2651569967
C23: ='Product Classes'!H12&" - "&OFFSET('Product Classes'!$C$9,MATCH('Product Classes'!H12,MODEL_PCS,0),0) -> B 60 W - AC-DC, Basic Voltage 60 W Rep. Unit | D23: 0.1825158667 | E23: 0.1825158667 | F23: 0.1825158667 | G23: 0.1825158667 | H23: 0.1825158667 | I23: 0.1825158667 | J23: 0.1825158667 | K23: 0.1825158667 | L23: 0.1825158667 | M23: 0.1825158667 | N23: 0.1825158667 | O23: 0.1825158667 | P23: 0.1825158667 | Q23: 0.1825158667 | R23: 0.1825158667 | S23: 0.1825158667 | T23: 0.1825158667 | U23: 0.1825158667 | V23: 0.1825158667 | W23: 0.1825158667 | X23: 0.1825158667 | Y23: 0.1825158667 | Z23: 0.1825158667 | AA23: 0.1825158667 | AB23: 0.1825158667 | AC23: 0.1825158667 | AD23: 0.1825158667 | AE23: 0.1825158667 | AF23: 0.1825158667 | AG23: 0.1825158667 | AH23: 0.1825158667 | AI23: 0.1825158667 | AJ23: 0.1825158667 | AK23: 0.1825158667 | AL23: 0.1825158667 | AM23: 0.1825158667 | AN23: 0.1825158667 | AO23: 0.1825158667 | AP23: 0.1825158667 | AQ23: 0.1825158667 | AR23: 0.1825158667 | AS23: 0.1825158667 | AT23: 0.1825158667 | AU23: 0.1825158667 | AV23: 0.1825158667
C24: ='Product Classes'!H13&" - "&OFFSET('Product Classes'!$C$9,MATCH('Product Classes'!H13,MODEL_PCS,0),0) -> B 120 W - AC-DC, Basic Voltage 120 W Rep. Unit | D24: 0.02707866715 | E24: 0.02707866715 | F24: 0.02707866715 | G24: 0.02707866715 | H24: 0.02707866715 | I24: 0.02707866715 | J24: 0.02707866715 | K24: 0.02707866715 | L24: 0.02707866715 | M24: 0.02707866715 | N24: 0.02707866715 | O24: 0.02707866715 | P24: 0.02707866715 | Q24: 0.02707866715 | R24: 0.02707866715 | S24: 0.02707866715 | T24: 0.02707866715 | U24: 0.02707866715 | V24: 0.02707866715 | W24: 0.02707866715 | X24: 0.02707866715 | Y24: 0.02707866715 | Z24: 0.02707866715 | AA24: 0.02707866715 | AB24: 0.02707866715 | AC24: 0.02707866715 | AD24: 0.02707866715 | AE24: 0.02707866715 | AF24: 0.02707866715 | AG24: 0.02707866715 | AH24: 0.02707866715 | AI24: 0.02707866715 | AJ24: 0.02707866715 | AK24: 0.02707866715 | AL24: 0.02707866715 | AM24: 0.02707866715 | AN24: 0.02707866715 | AO24: 0.02707866715 | AP24: 0.02707866715 | AQ24: 0.02707866715 | AR24: 0.02707866715 | AS24: 0.02707866715 | AT24: 0.02707866715 | AU24: 0.02707866715 | AV24: 0.02707866715
C25: ='Product Classes'!H14&" - "&OFFSET('Product Classes'!$C$9,MATCH('Product Classes'!H14,MODEL_PCS,0),0) -> C - AC-DC, Low Voltage | D25: 0.2270697845 | E25: 0.2270697845 | F25: 0.2270697845 | G25: 0.2270697845 | H25: 0.2270697845 | I25: 0.2270697845 | J25: 0.2270697845 | K25: 0.2270697845 | L25: 0.2270697845 | M25: 0.2270697845 | N25: 0.2270697845 | O25: 0.2270697845 | P25: 0.2270697845 | Q25: 0.2270697845 | R25: 0.2270697845 | S25: 0.2270697845 | T25: 0.2270697845 | U25: 0.2270697845 | V25: 0.2270697845 | W25: 0.2270697845 | X25: 0.2270697845 | Y25: 0.2270697845 | Z25: 0.2270697845 | AA25: 0.2270697845 | AB25: 0.2270697845 | AC25: 0.2270697845 | AD25: 0.2270697845 | AE25: 0.2270697845 | AF25: 0.2270697845 | AG25: 0.2270697845 | AH25: 0.2270697845 | AI25: 0.2270697845 | AJ25: 0.2270697845 | AK25: 0.2270697845 | AL25: 0.2270697845 | AM25: 0.2270697845 | AN25: 0.2270697845 | AO25: 0.2270697845 | AP25: 0.2270697845 | AQ25: 0.2270697845 | AR25: 0.2270697845 | AS25: 0.2270697845 | AT25: 0.2270697845 | AU25: 0.2270697845 | AV25: 0.2270697845
C26: ='Product Classes'!H15&" - "&OFFSET('Product Classes'!$C$9,MATCH('Product Classes'!H15,MODEL_PCS,0),0) -> D - AC-AC, Basic Voltage | D26: 0.0308738052 | E26: 0.0308738052 | F26: 0.0308738052 | G26: 0.0308738052 | H26: 0.0308738052 | I26: 0.0308738052 | J26: 0.0308738052 | K26: 0.0308738052 | L26: 0.0308738052 | M26: 0.0308738052 | N26: 0.0308738052 | O26: 0.0308738052 | P26: 0.0308738052 | Q26: 0.0308738052 | R26: 0.0308738052 | S26: 0.0308738052 | T26: 0.0308738052 | U26: 0.0308738052 | V26: 0.0308738052 | W26: 0.0308738052 | X26: 0.0308738052 | Y26: 0.0308738052 | Z26: 0.0308738052 | AA26: 0.0308738052 | AB26: 0.0308738052 | AC26: 0.0308738052 | AD26: 0.0308738052 | AE26: 0.0308738052 | AF26: 0.0308738052 | AG26: 0.0308738052 | AH26: 0.0308738052 | AI26: 0.0308738052 | AJ26: 0.0308738052 | AK26: 0.0308738052 | AL26: 0.0308738052 | AM26: 0.0308738052 | AN26: 0.0308738052 | AO26: 0.0308738052 | AP26: 0.0308738052 | AQ26: 0.0308738052 | AR26: 0.0308738052 | AS26: 0.0308738052 | AT26: 0.0308738052 | AU26: 0.0308738052 | AV26: 0.0308738052
C27: ='Product Classes'!H16&" - "&OFFSET('Product Classes'!$C$9,MATCH('Product Classes'!H16,MODEL_PCS,0),0) -> E - AC-AC, Low Voltage | D27: 0.008689581557 | E27: 0.008689581557 | F27: 0.008689581557 | G27: 0.008689581557 | H27: 0.008689581557 | I27: 0.008689581557 | J27: 0.008689581557 | K27: 0.008689581557 | L27: 0.008689581557 | M27: 0.008689581557 | N27: 0.008689581557 | O27: 0.008689581557 | P27: 0.008689581557 | Q27: 0.008689581557 | R27: 0.008689581557 | S27: 0.008689581557 | T27: 0.008689581557 | U27: 0.008689581557 | V27: 0.008689581557 | W27: 0.008689581557 | X27: 0.008689581557 | Y27: 0.008689581557 | Z27: 0.008689581557 | AA27: 0.008689581557 | AB27: 0.008689581557 | AC27: 0.008689581557 | AD27: 0.008689581557 | AE27: 0.008689581557 | AF27: 0.008689581557 | AG27: 0.008689581557 | AH27: 0.008689581557 | AI27: 0.008689581557 | AJ27: 0.008689581557 | AK27: 0.008689581557 | AL27: 0.008689581557 | AM27: 0.008689581557 | AN27: 0.008689581557 | AO27: 0.008689581557 | AP27: 0.008689581557 | AQ27: 0.008689581557 | AR27: 0.008689581557 | AS27: 0.008689581557 | AT27: 0.008689581557 | AU27: 0.008689581557 | AV27: 0.008689581557
C28: ='Product Classes'!H17&" - "&OFFSET('Product Classes'!$C$9,MATCH('Product Classes'!H17,MODEL_PCS,0),0) -> X - Multiple-voltage EPSs | D28: 0.02964704484 | E28: 0.02964704484 | F28: 0.02964704484 | G28: 0.02964704484 | H28: 0.02964704484 | I28: 0.02964704484 | J28: 0.02964704484 | K28: 0.02964704484 | L28: 0.02964704484 | M28: 0.02964704484 | N28: 0.02964704484 | O28: 0.02964704484 | P28: 0.02964704484 | Q28: 0.02964704484 | R28: 0.02964704484 | S28: 0.02964704484 | T28: 0.02964704484 | U28: 0.02964704484 | V28: 0.02964704484 | W28: 0.02964704484 | X28: 0.02964704484 | Y28: 0.02964704484 | Z28: 0.02964704484 | AA28: 0.02964704484 | AB28: 0.02964704484 | AC28: 0.02964704484 | AD28: 0.02964704484 | AE28: 0.02964704484 | AF28: 0.02964704484 | AG28: 0.02964704484 | AH28: 0.02964704484 | AI28: 0.02964704484 | AJ28: 0.02964704484 | AK28: 0.02964704484 | AL28: 0.02964704484 | AM28: 0.02964704484 | AN28: 0.02964704484 | AO28: 0.02964704484 | AP28: 0.02964704484 | AQ28: 0.02964704484 | AR28: 0.02964704484 | AS28: 0.02964704484 | AT28: 0.02964704484 | AU28: 0.02964704484 | AV28: 0.02964704484
C29: ='Product Classes'!H18&" - "&OFFSET('Product Classes'!$C$9,MATCH('Product Classes'!H18,MODEL_PCS,0),0) -> H - High Power EPSs | D29: 1.158610874e-05 | E29: 1.158610874e-05 | F29: 1.158610874e-05 | G29: 1.158610874e-05 | H29: 1.158610874e-05 | I29: 1.158610874e-05 | J29: 1.158610874e-05 | K29: 1.158610874e-05 | L29: 1.158610874e-05 | M29: 1.158610874e-05 | N29: 1.158610874e-05 | O29: 1.158610874e-05 | P29: 1.158610874e-05 | Q29: 1.158610874e-05 | R29: 1.158610874e-05 | S29: 1.158610874e-05 | T29: 1.158610874e-05 | U29: 1.158610874e-05 | V29: 1.158610874e-05 | W29: 1.158610874e-05 | X29: 1.158610874e-05 | Y29: 1.158610874e-05 | Z29: 1.158610874e-05 | AA29: 1.158610874e-05 | AB29: 1.158610874e-05 | AC29: 1.158610874e-05 | AD29: 1.158610874e-05 | AE29: 1.158610874e-05 | AF29: 1.158610874e-05 | AG29: 1.158610874e-05 | AH29: 1.158610874e-05 | AI29: 1.158610874e-05 | AJ29: 1.158610874e-05 | AK29: 1.158610874e-05 | AL29: 1.158610874e-05 | AM29: 1.158610874e-05 | AN29: 1.158610874e-05 | AO29: 1.158610874e-05 | AP29: 1.158610874e-05 | AQ29: 1.158610874e-05 | AR29: 1.158610874e-05 | AS29: 1.158610874e-05 | AT29: 1.158610874e-05 | AU29: 1.158610874e-05 | AV29: 1.158610874e-05
C31: Source/Rationale | D31: Calculated from 2009 shipments in DOE External Power Supplies 2014 Final Rule, Technical Support Document: National Impact Analysis Spreadsheet, 'EPS Inputs' tab, column N. Calculation divided 'Product Class Totals' for each product class by the sum of the 'Product Class Totals' for all product classes. NIA model does not assume a change in market share with standards.

Sheet Stock Model
C2: Stock Model
C4: NAVIGATION
C6: COMMENTS
C8: =C33 -> All Product Classes
E10: 1981 | F10: 1982 | G10: 1983 | H10: 1984 | I10: 1985 | J10: 1986 | K10: 1987 | L10: 1988 | M10: 1989 | N10: 1990 | O10: 1991 | P10: 1992 | Q10: 1993 | R10: 1994 | S10: 1995 | T10: 1996 | U10: 1997 | V10: 1998 | W10: 1999 | X10: 2000 | Y10: 2001 | Z10: 2002 | AA10: 2003 | AB10: 2004 | AC10: 2005 | AD10: 2006 | AE10: 2007 | AF10: 2008 | AG10: 2009 | AH10: 2010 | AI10: 2011 | AJ10: 2012 | AK10: 2013 | AL10: 2014 | AM10: 2015 | AN10: 2016 | AO10: 2017 | AP10: 2018 | AQ10: 2019 | AR10: 2020 | AS10: 2021 | AT10: 2022 | AU10: 2023 | AV10: 2024 | AW10: 2025 | AX10: 2026 | AY10: 2027 | AZ10: 2028 | BA10: 2029 | BB10: 2030 | BC10: 2031 | BD10: 2032 | BE10: 2033 | BF10: 2034
C11: 6P Shipments | D11: (units) | E11: N/A | F11: N/A | G11: N/A | H11: N/A | I11: N/A | J11: N/A | K11: N/A | L11: N/A | M11: N/A | N11: N/A | O11: N/A | P11: N/A | Q11: N/A | R11: N/A | S11: N/A | T11: N/A | U11: N/A | V11: N/A | W11: N/A | X11: N/A | Y11: N/A | Z11: N/A | AA11: N/A | AB11: N/A | AC11: N/A | AD11: N/A | AE11: N/A | AF11: N/A | AG11: N/A | AH11: N/A | AI11: N/A | AJ11: N/A | AK11: N/A | AL11: N/A | AM11: N/A | AN11: N/A | AO11: N/A | AP11: N/A | AQ11: N/A | AR11: N/A | AS11: N/A | AT11: N/A | AU11: N/A | AV11: N/A | AW11: N/A | AX11: N/A | AY11: N/A | AZ11: N/A | BA11: N/A | BB11: N/A | BC11: N/A | BD11: N/A | BE11: N/A | BF11: N/A
C12: Replacement Shipments | D12: (units) | E12: =SUM(E101,E174,E247,E320,E394,E467,E540,E613,E686) -> 0 | F12: 0 | G12: 0 | H12: 0 | I12: 0 | J12: 0 | K12: 0 | L12: 0 | M12: 0 | N12: 0 | O12: 0 | P12: 0 | Q12: 0 | R12: 0 | S12: 0 | T12: 0 | U12: 0 | V12: 0 | W12: 0 | X12: 0 | Y12: 0 | Z12: 0 | AA12: 0 | AB12: 0 | AC12: 0 | AD12: 0 | AE12: 0 | AF12: 0 | AG12: 0 | AH12: 0 | AI12: 0 | AJ12: 0 | AK12: =SUM(AK101,AK174,AK247,AK320,AK394,AK467,AK540,AK613,AK686) -> 0 | AL12: 0 | AM12: 0 | AN12: 0 | AO12: 0 | AP12: 0 | AQ12: 0 | AR12: 0 | AS12: 0 | AT12: 0 | AU12: 0 | AV12: 0 | AW12: 0 | AX12: 0 | AY12: 0 | AZ12: 0 | BA12: 0 | BB12: 0 | BC12: 0 | BD12: 0 | BE12: 0 | BF12: 0
C13: Net New Shipments | D13: (units) | E13: =SUM(E102,E175,E248,E321,E395,E468,E541,E614,E687) -> 0 | F13: 0 | G13: 0 | H13: 0 | I13: 0 | J13: 0 | K13: 7183428.477 | L13: 8853143.316 | M13: 8919541.891 | N13: 8986438.455 | O13: 9053836.743 | P13: 9121740.519 | Q13: 9190153.573 | R13: 9259079.724 | S13: 9328522.822 | T13: 9398486.744 | U13: 9468975.394 | V13: 9539992.71 | W13: 9611542.655 | X13: 9683629.225 | Y13: 9756256.444 | Z13: 9829428.367 | AA13: 9903149.08 | AB13: 9977422.698 | AC13: 10052253.37 | AD13: 10127645.27 | AE13: 10203602.61 | AF13: 10280129.63 | AG13: 10357230.6 | AH13: 10434909.83 | AI13: 10513171.65 | AJ13: 10592020.44 | AK13: =SUM(AK102,AK175,AK248,AK321,AK395,AK468,AK541,AK614,AK687) -> 10671460.59 | AL13: 10751496.55 | AM13: 10832132.77 | AN13: 10913373.77 | AO13: 10995224.07 | AP13: 11077688.25 | AQ13: 11160770.91 | AR13: 11244476.7 | AS13: 11328810.27 | AT13: 11413776.35 | AU13: 11499379.67 | AV13: 11585625.02 | AW13: 11672517.21 | AX13: 11760061.08 | AY13: 11848261.54 | AZ13: 11937123.5 | BA13: 12026651.93 | BB13: 12116851.82 | BC13: 12207728.21 | BD13: 12299286.17 | BE13: 12391530.82 | BF13: 12484467.3
C14: Total Model Shipments | D14: (units) | E14: =SUM(E103,E176,E249,E322,E396,E469,E542,E615,E688) -> 0 | F14: 0 | G14: 0 | H14: 0 | I14: 0 | J14: 0 | K14: 7183428.477 | L14: 8853143.316 | M14: 8919541.891 | N14: 8986438.455 | O14: 9053836.743 | P14: 9121740.519 | Q14: 9190153.573 | R14: 9259079.724 | S14: 9328522.822 | T14: 9398486.744 | U14: 9468975.394 | V14: 9539992.71 | W14: 9611542.655 | X14: 9683629.225 | Y14: 9756256.444 | Z14: 9829428.367 | AA14: 9903149.08 | AB14: 9977422.698 | AC14: 10052253.37 | AD14: 10127645.27 | AE14: 10203602.61 | AF14: 10280129.63 | AG14: 10357230.6 | AH14: 10434909.83 | AI14: 10513171.65 | AJ14: 10592020.44 | AK14: =SUM(AK103,AK176,AK249,AK322,AK396,AK469,AK542,AK615,AK688) -> 10671460.59 | AL14: 10751496.55 | AM14: 10832132.77 | AN14: 10913373.77 | AO14: 10995224.07 | AP14: 11077688.25 | AQ14: 11160770.91 | AR14: 11244476.7 | AS14: 11328810.27 | AT14: 11413776.35 | AU14: 11499379.67 | AV14: 11585625.02 | AW14: 11672517.21 | AX14: 11760061.08 | AY14: 11848261.54 | AZ14: 11937123.5 | BA14: 12026651.93 | BB14: 12116851.82 | BC14: 12207728.21 | BD14: 12299286.17 | BE14: 12391530.82 | BF14: 12484467.3
C15: Model Installed Stock | D15: (units) | E15: =SUM(E104,E177,E250,E323,E397,E470,E543,E616,E689) -> 0 | F15: 0 | G15: 0 | H15: 0 | I15: 0 | J15: 0 | K15: 8787239.023 | L15: 17640382.34 | M15: 26559924.23 | N15: 35546362.68 | O15: 44600199.43 | P15: 49884866.21 | Q15: 50530400.02 | R15: 51180775.34 | S15: 51836028.47 | T15: 52496196 | U15: 52890019.28 | V15: 53286694.42 | W15: 53686344.63 | X15: 54088992.21 | Y15: 54494659.66 | Z15: 54903369.6 | AA15: 55315144.87 | AB15: 55730008.46 | AC15: 56147983.52 | AD15: 56569093.4 | AE15: 56993361.6 | AF15: 57420811.81 | AG15: 57851467.9 | AH15: 58285353.91 | AI15: 58722494.07 | AJ15: 59162912.77 | AK15: =SUM(AK104,AK177,AK250,AK323,AK397,AK470,AK543,AK616,AK689) -> 59606634.62 | AL15: 60053684.38 | AM15: 60504087.01 | AN15: 60957867.66 | AO15: 61415051.67 | AP15: 61875664.56 | AQ15: 62339732.04 | AR15: 62807280.03 | AS15: 63278334.63 | AT15: 63752922.14 | AU15: 64231069.06 | AV15: 64712802.08 | AW15: 65198148.09 | AX15: 65687134.2 | AY15: 66179787.71 | AZ15: 66676136.12 | BA15: 67176207.14 | BB15: 67680028.69 | BC15: 68187628.91 | BD15: 68699036.12 | BE15: 69214278.89 | BF15: 69733385.99
C33: All Product Classes
C34: Segment | D34: Initial Year
C35: N/A | D35: =Initial_Year -> 1980
C37: Quantity of Stock by AGE and YEAR
D38: Unit Age in Years
C39: Year | D39: 18 | E39: 17 | F39: 16 | G39: 15 | H39: 14 | I39: 13 | J39: 12 | K39: 11 | L39: 10 | M39: 9 | N39: 8 | O39: 7 | P39: 6 | Q39: 5 | R39: 4 | S39: 3 | T39: 2 | U39: 1
C41: =C42-1 -> 1981 | D41: =SUM(D114,D187,D260,D333,D407,D480,D553,D626,D699) -> 0 | E41: 0 | F41: 0 | G41: 0 | H41: 0 | I41: 0 | J41: 0 | K41: 0 | L41: 0 | M41: 0 | N41: 0 | O41: 0 | P41: 0 | Q41: 0 | R41: 0 | S41: 0 | T41: 0 | U41: 0
C42: 1982 | D42: =SUM(D115,D188,D261,D334,D408,D481,D554,D627,D700) -> 0 | E42: 0 | F42: 0 | G42: 0 | H42: 0 | I42: 0 | J42: 0 | K42: 0 | L42: 0 | M42: 0 | N42: 0 | O42: 0 | P42: 0 | Q42: 0 | R42: 0 | S42: 0 | T42: 0 | U42: 0
C43: 1983 | D43: =SUM(D116,D189,D262,D335,D409,D482,D555,D628,D701) -> 0 | E43: 0 | F43: 0 | G43: 0 | H43: 0 | I43: 0 | J43: 0 | K43: 0 | L43: 0 | M43: 0 | N43: 0 | O43: 0 | P43: 0 | Q43: 0 | R43: 0 | S43: 0 | T43: 0 | U43: 0
C44: =C45-1 -> 1984 | D44: =SUM(D117,D190,D263,D336,D410,D483,D556,D629,D702) -> 0 | E44: 0 | F44: 0 | G44: 0 | H44: 0 | I44: 0 | J44: 0 | K44: 0 | L44: 0 | M44: 0 | N44: 0 | O44: 0 | P44: 0 | Q44: 0 | R44: 0 | S44: 0 | T44: 0 | U44: 0
C45: 1985 | D45: =SUM(D118,D191,D264,D337,D411,D484,D557,D630,D703) -> 0 | E45: 0 | F45: 0 | G45: 0 | H45: 0 | I45: 0 | J45: 0 | K45: 0 | L45: 0 | M45: 0 | N45: 0 | O45: 0 | P45: 0 | Q45: 0 | R45: 0 | S45: 0 | T45: 0 | U45: 0
C46: 1986 | D46: =SUM(D119,D192,D265,D338,D412,D485,D558,D631,D704) -> 0 | E46: 0 | F46: 0 | G46: 0 | H46: 0 | I46: 0 | J46: 0 | K46: 0 | L46: 0 | M46: 0 | N46: 0 | O46: 0 | P46: 0 | Q46: 0 | R46: 0 | S46: 0 | T46: 0 | U46: 0
C47: 1987 | D47: =SUM(D120,D193,D266,D339,D413,D486,D559,D632,D705) -> 0 | E47: 0 | F47: 0 | G47: 0 | H47: 0 | I47: 0 | J47: 0 | K47: 0 | L47: 0 | M47: 0 | N47: 0 | O47: 0 | P47: 0 | Q47: 0 | R47: 0 | S47: 0 | T47: 0 | U47: 0
C48: 1988 | D48: =SUM(D121,D194,D267,D340,D414,D487,D560,D633,D706) -> 0 | E48: 0 | F48: 0 | G48: 0 | H48: 0 | I48: 0 | J48: 0 | K48: 0 | L48: 0 | M48: 0 | N48: 0 | O48: 0 | P48: 0 | Q48: 0 | R48: 0 | S48: 0 | T48: 0 | U48: 8787239.023 | X48: Shipment Calculation Inputs
C49: 1989 | D49: =SUM(D122,D195,D268,D341,D415,D488,D561,D634,D707) -> 0 | E49: 0 | F49: 0 | G49: 0 | H49: 0 | I49: 0 | J49: 0 | K49: 0 | L49: 0 | M49: 0 | N49: 0 | O49: 0 | P49: 0 | Q49: 0 | R49: 0 | S49: 0 | T49: 8787239.023 | U49: 8853143.316 | X49: Product Class | Z49: Annual Growth Rate1 | AA49: 2009 Shipments2 | AB49: Average Lifetime3
C50: =C51-1 -> 1990 | D50: =SUM(D123,D196,D269,D342,D416,D489,D562,D635,D708) -> 0 | E50: 0 | F50: 0 | G50: 0 | H50: 0 | I50: 0 | J50: 0 | K50: 0 | L50: 0 | M50: 0 | N50: 0 | O50: 0 | P50: 0 | Q50: 0 | R50: 0 | S50: 8787239.023 | T50: 8853143.316 | U50: 8919541.891 | X50: ='Product Classes'!H10&" - "&OFFSET('Product Classes'!$C$9,MATCH('Product Classes'!H10,MODEL_PCS,0),0) -> B 2.5 W - AC-DC, Basic Voltage 2.5 W Rep. Unit | Z50: 0.0075 | AA50: 59283925 | AB50: 4.8
C51: 1991 | D51: =SUM(D124,D197,D270,D343,D417,D490,D563,D636,D709) -> 0 | E51: 0 | F51: 0 | G51: 0 | H51: 0 | I51: 0 | J51: 0 | K51: 0 | L51: 0 | M51: 0 | N51: 0 | O51: 0 | P51: 0 | Q51: 0 | R51: 8787239.023 | S51: 8853143.316 | T51: 8919541.891 | U51: 8986438.455 | X51: ='Product Classes'!H11&" - "&OFFSET('Product Classes'!$C$9,MATCH('Product Classes'!H11,MODEL_PCS,0),0) -> B 18 W - AC-DC, Basic Voltage 18 W Rep. Unit | Z51: 0.0075 | AA51: 68657304 | AB51: 4.5
C52: 1992 | D52: =SUM(D125,D198,D271,D344,D418,D491,D564,D637,D710) -> 0 | E52: 0 | F52: 0 | G52: 0 | H52: 0 | I52: 0 | J52: 0 | K52: 0 | L52: 0 | M52: 0 | N52: 0 | O52: 0 | P52: 0 | Q52: 4950165.285 | R52: 8853143.316 | S52: 8919541.891 | T52: 8986438.455 | U52: 9053836.743 | X52: ='Product Classes'!H12&" - "&OFFSET('Product Classes'!$C$9,MATCH('Product Classes'!H12,MODEL_PCS,0),0) -> B 60 W - AC-DC, Basic Voltage 60 W Rep. Unit | Z52: 0.0075 | AA52: 47258973 | AB52: 4.1
C53: 1993 | D53: =SUM(D126,D199,D272,D345,D419,D492,D565,D638,D711) -> 0 | E53: 0 | F53: 0 | G53: 0 | H53: 0 | I53: 0 | J53: 0 | K53: 0 | L53: 0 | M53: 0 | N53: 0 | O53: 0 | P53: 271397.3158 | Q53: 4987291.524 | R53: 8919541.891 | S53: 8986438.455 | T53: 9053836.743 | U53: 9121740.519 | X53: ='Product Classes'!H13&" - "&OFFSET('Product Classes'!$C$9,MATCH('Product Classes'!H13,MODEL_PCS,0),0) -> B 120 W - AC-DC, Basic Voltage 120 W Rep. Unit | Z53: 0.0075 | AA53: 7011500 | AB53: 3.7
C54: 1994 | D54: =SUM(D127,D200,D273,D346,D420,D493,D566,D639,D712) -> 0 | E54: 0 | F54: 0 | G54: 0 | H54: 0 | I54: 0 | J54: 0 | K54: 0 | L54: 0 | M54: 0 | N54: 0 | O54: 271397.3158 | P54: 273432.7957 | Q54: 5024696.211 | R54: 8986438.455 | S54: 9053836.743 | T54: 9121740.519 | U54: 9190153.573 | X54: ='Product Classes'!H14&" - "&OFFSET('Product Classes'!$C$9,MATCH('Product Classes'!H14,MODEL_PCS,0),0) -> C - AC-DC, Low Voltage | Z54: 0.0075 | AA54: 58795353 | AB54: 4.2
C55: 1995 | D55: =SUM(D128,D201,D274,D347,D421,D494,D567,D640,D713) -> 0 | E55: 0 | F55: 0 | G55: 0 | H55: 0 | I55: 0 | J55: 0 | K55: 0 | L55: 0 | M55: 0 | N55: 271397.3158 | O55: 273432.7957 | P55: 275483.5416 | Q55: 5062381.432 | R55: 9053836.743 | S55: 9121740.519 | T55: 9190153.573 | U55: 9259079.724 | X55: ='Product Classes'!H15&" - "&OFFSET('Product Classes'!$C$9,MATCH('Product Classes'!H15,MODEL_PCS,0),0) -> D - AC-AC, Basic Voltage | Z55: 0.0075 | AA55: 7994178 | AB55: 8.6
C56: 1996 | D56: =SUM(D129,D202,D275,D348,D422,D495,D568,D641,D714) -> 0 | E56: 0 | F56: 0 | G56: 0 | H56: 0 | I56: 0 | J56: 0 | K56: 0 | L56: 0 | M56: 271397.3158 | N56: 273432.7957 | O56: 275483.5416 | P56: 277549.6682 | Q56: 5100349.293 | R56: 9121740.519 | S56: 9190153.573 | T56: 9259079.724 | U56: 9328522.822 | X56: ='Product Classes'!H16&" - "&OFFSET('Product Classes'!$C$9,MATCH('Product Classes'!H16,MODEL_PCS,0),0) -> E - AC-AC, Low Voltage | Z56: 0.0075 | AA56: 2250000 | AB56: 4.9
C57: 1997 | D57: =SUM(D130,D203,D276,D349,D423,D496,D569,D642,D715) -> 0 | E57: 0 | F57: 0 | G57: 0 | H57: 0 | I57: 0 | J57: 0 | K57: 0 | L57: 101.8099069 | M57: 273432.7957 | N57: 275483.5416 | O57: 277549.6682 | P57: 279631.2907 | Q57: 5138601.913 | R57: 9190153.573 | S57: 9259079.724 | T57: 9328522.822 | U57: 9398486.744 | X57: ='Product Classes'!H17&" - "&OFFSET('Product Classes'!$C$9,MATCH('Product Classes'!H17,MODEL_PCS,0),0) -> X - Multiple-voltage EPSs | Z57: 0.0075 | AA57: 7676532 | AB57: 5
C58: 1998 | D58: =SUM(D131,D204,D277,D350,D424,D497,D570,D643,D716) -> 0 | E58: 0 | F58: 0 | G58: 0 | H58: 0 | I58: 0 | J58: 0 | K58: 0 | L58: 102.5734812 | M58: 275483.5416 | N58: 277549.6682 | O58: 279631.2907 | P58: 281728.5254 | Q58: 5177141.427 | R58: 9259079.724 | S58: 9328522.822 | T58: 9398486.744 | U58: 9468975.394 | X58: ='Product Classes'!H18&" - "&OFFSET('Product Classes'!$C$9,MATCH('Product Classes'!H18,MODEL_PCS,0),0) -> H - High Power EPSs | Z58: 0.0075 | AA58: 3000 | AB58: 10
C59: 1999 | D59: =SUM(D132,D205,D278,D351,D425,D498,D571,D644,D717) -> 0 | E59: 0 | F59: 0 | G59: 0 | H59: 0 | I59: 0 | J59: 0 | K59: 0 | L59: 103.3427823 | M59: 277549.6682 | N59: 279631.2907 | O59: 281728.5254 | P59: 283841.4893 | Q59: 5215969.988 | R59: 9328522.822 | S59: 9398486.744 | T59: 9468975.394 | U59: 9539992.71
C60: 2000 | D60: =SUM(D133,D206,D279,D352,D426,D499,D572,D645,D718) -> 0 | E60: 0 | F60: 0 | G60: 0 | H60: 0 | I60: 0 | J60: 0 | K60: 0 | L60: 104.1178531 | M60: 279631.2907 | N60: 281728.5254 | O60: 283841.4893 | P60: 285970.3005 | Q60: 5255089.763 | R60: 9398486.744 | S60: 9468975.394 | T60: 9539992.71 | U60: 9611542.655 | X60: Sources: 1. DOE External Power Supplies 2014 Final Rule, Technical Support Document: National Impact Analysis Spreadsheet, 'Inputs' tab, cells J52:J60
C61: 2001 | D61: =SUM(D134,D207,D280,D353,D427,D500,D573,D646,D719) -> 0 | E61: 0 | F61: 0 | G61: 0 | H61: 0 | I61: 0 | J61: 0 | K61: 0 | L61: 104.898737 | M61: 281728.5254 | N61: 283841.4893 | O61: 285970.3005 | P61: 288115.0777 | Q61: 5294502.936 | R61: 9468975.394 | S61: 9539992.71 | T61: 9611542.655 | U61: 9683629.225 | X61: 2. DOE External Power Supplies 2014 Final Rule, Technical Support Document: National Impact Analysis Spreadsheet, 'Inputs' tab, cells C52:C60
C62: 2002 | D62: =SUM(D135,D208,D281,D354,D428,D501,D574,D647,D720) -> 0 | E62: 0 | F62: 0 | G62: 0 | H62: 0 | I62: 0 | J62: 0 | K62: 0 | L62: 105.6854776 | M62: 283841.4893 | N62: 285970.3005 | O62: 288115.0777 | P62: 290275.9408 | Q62: 5334211.708 | R62: 9539992.71 | S62: 9611542.655 | T62: 9683629.225 | U62: 9756256.444 | X62: 3. DOE External Power Supplies 2014 Final Rule, Technical Support Document: National Impact Analysis Spreadsheet, 'Inputs' tab, cells AA52:AA60
C63: 2003 | D63: =SUM(D136,D209,D282,D355,D429,D502,D575,D648,D721) -> 0 | E63: 0 | F63: 0 | G63: 0 | H63: 0 | I63: 0 | J63: 0 | K63: 0 | L63: 106.4781187 | M63: 285970.3005 | N63: 288115.0777 | O63: 290275.9408 | P63: 292453.0104 | Q63: 5374218.296 | R63: 9611542.655 | S63: 9683629.225 | T63: 9756256.444 | U63: 9829428.367
C64: =C65-1 -> 2004 | D64: =SUM(D137,D210,D283,D356,D430,D503,D576,D649,D722) -> 0 | E64: 0 | F64: 0 | G64: 0 | H64: 0 | I64: 0 | J64: 0 | K64: 0 | L64: 107.2767045 | M64: 288115.0777 | N64: 290275.9408 | O64: 292453.0104 | P64: 294646.408 | Q64: 5414524.933 | R64: 9683629.225 | S64: 9756256.444 | T64: 9829428.367 | U64: 9903149.08 | X64: Percentage of shipments in NW
C65: 2005 | D65: =SUM(D138,D211,D284,D357,D431,D504,D577,D650,D723) -> 0 | E65: 0 | F65: 0 | G65: 0 | H65: 0 | I65: 0 | J65: 0 | K65: 0 | L65: 108.0812798 | M65: 290275.9408 | N65: 292453.0104 | O65: 294646.408 | P65: 296856.256 | Q65: 5455133.87 | R65: 9756256.444 | S65: 9829428.367 | T65: 9903149.08 | U65: 9977422.698 | X65: 0.04
C66: =C65+1 -> 2006 | D66: =SUM(D139,D212,D285,D358,D432,D505,D578,D651,D724) -> 0 | E66: 0 | F66: 0 | G66: 0 | H66: 0 | I66: 0 | J66: 0 | K66: 0 | L66: 108.8918894 | M66: 292453.0104 | N66: 294646.408 | O66: 296856.256 | P66: 299082.6779 | Q66: 5496047.374 | R66: 9829428.367 | S66: 9903149.08 | T66: 9977422.698 | U66: 10052253.37 | X66: Source: Council assumption based on floor space.
C67: 2007 | D67: =SUM(D140,D213,D286,D359,D433,D506,D579,D652,D725) -> 0 | E67: 0 | F67: 0 | G67: 0 | H67: 0 | I67: 0 | J67: 0 | K67: 0 | L67: 109.7085786 | M67: 294646.408 | N67: 296856.256 | O67: 299082.6779 | P67: 301325.798 | Q67: 5537267.73 | R67: 9903149.08 | S67: 9977422.698 | T67: 10052253.37 | U67: 10127645.27
C68: 2008 | D68: =SUM(D141,D214,D287,D360,D434,D507,D580,D653,D726) -> 0 | E68: 0 | F68: 0 | G68: 0 | H68: 0 | I68: 0 | J68: 0 | K68: 0 | L68: 110.5313929 | M68: 296856.256 | N68: 299082.6779 | O68: 301325.798 | P68: 303585.7415 | Q68: 5578797.237 | R68: 9977422.698 | S68: 10052253.37 | T68: 10127645.27 | U68: 10203602.61
C69: 2009 | D69: =SUM(D142,D215,D288,D361,D435,D508,D581,D654,D727) -> 0 | E69: 0 | F69: 0 | G69: 0 | H69: 0 | I69: 0 | J69: 0 | K69: 0 | L69: 111.3603784 | M69: 299082.6779 | N69: 301325.798 | O69: 303585.7415 | P69: 305862.6346 | Q69: 5620638.217 | R69: 10052253.37 | S69: 10127645.27 | T69: 10203602.61 | U69: 10280129.63
C70: 2010 | D70: =SUM(D143,D216,D289,D362,D436,D509,D582,D655,D728) -> 0 | E70: 0 | F70: 0 | G70: 0 | H70: 0 | I70: 0 | J70: 0 | K70: 0 | L70: 112.1955812 | M70: 301325.798 | N70: 303585.7415 | O70: 305862.6346 | P70: 308156.6043 | Q70: 5662793.003 | R70: 10127645.27 | S70: 10203602.61 | T70: 10280129.63 | U70: 10357230.6
C71: 2011 | D71: =SUM(D144,D217,D290,D363,D437,D510,D583,D656,D729) -> 0 | E71: 0 | F71: 0 | G71: 0 | H71: 0 | I71: 0 | J71: 0 | K71: 0 | L71: 113.0370481 | M71: 303585.7415 | N71: 305862.6346 | O71: 308156.6043 | P71: 310467.7789 | Q71: 5705263.951 | R71: 10203602.61 | S71: 10280129.63 | T71: 10357230.6 | U71: 10434909.83
C72: 2012 | D72: =SUM(D145,D218,D291,D364,D438,D511,D584,D657,D730) -> 0 | E72: 0 | F72: 0 | G72: 0 | H72: 0 | I72: 0 | J72: 0 | K72: 0 | L72: 113.8848259 | M72: 305862.6346 | N72: 308156.6043 | O72: 310467.7789 | P72: 312796.2872 | Q72: 5748053.431 | R72: 10280129.63 | S72: 10357230.6 | T72: 10434909.83 | U72: 10513171.65
C73: 2013 | D73: =SUM(D146,D219,D292,D365,D439,D512,D585,D658,D731) -> 0 | E73: 0 | F73: 0 | G73: 0 | H73: 0 | I73: 0 | J73: 0 | K73: 0 | L73: 114.7389621 | M73: 308156.6043 | N73: 310467.7789 | O73: 312796.2872 | P73: 315142.2594 | Q73: 5791163.831 | R73: 10357230.6 | S73: 10434909.83 | T73: 10513171.65 | U73: 10592020.44
C74: 2014 | D74: =SUM(D147,D220,D293,D366,D440,D513,D586,D659,D732) -> 0 | E74: 0 | F74: 0 | G74: 0 | H74: 0 | I74: 0 | J74: 0 | K74: 0 | L74: 115.5995043 | M74: 310467.7789 | N74: 312796.2872 | O74: 315142.2594 | P74: 317505.8263 | Q74: 5834597.56 | R74: 10434909.83 | S74: 10513171.65 | T74: 10592020.44 | U74: 10671460.59
C75: 2015 | D75: =SUM(D148,D221,D294,D367,D441,D514,D587,D660,D733) -> 0 | E75: 0 | F75: 0 | G75: 0 | H75: 0 | I75: 0 | J75: 0 | K75: 0 | L75: 116.4665006 | M75: 312796.2872 | N75: 315142.2594 | O75: 317505.8263 | P75: 319887.12 | Q75: 5878357.042 | R75: 10513171.65 | S75: 10592020.44 | T75: 10671460.59 | U75: 10751496.55
C76: 2016 | D76: =SUM(D149,D222,D295,D368,D442,D515,D588,D661,D734) -> 0 | E76: 0 | F76: 0 | G76: 0 | H76: 0 | I76: 0 | J76: 0 | K76: 0 | L76: 117.3399994 | M76: 315142.2594 | N76: 317505.8263 | O76: 319887.12 | P76: 322286.2734 | Q76: 5922444.72 | R76: 10592020.44 | S76: 10671460.59 | T76: 10751496.55 | U76: 10832132.77
C77: 2017 | D77: =SUM(D150,D223,D296,D369,D443,D516,D589,D662,D735) -> 0 | E77: 0 | F77: 0 | G77: 0 | H77: 0 | I77: 0 | J77: 0 | K77: 0 | L77: 118.2200494 | M77: 317505.8263 | N77: 319887.12 | O77: 322286.2734 | P77: 324703.4205 | Q77: 5966863.055 | R77: 10671460.59 | S77: 10751496.55 | T77: 10832132.77 | U77: 10913373.77
C78: 2018 | D78: =SUM(D151,D224,D297,D370,D444,D517,D590,D663,D736) -> 0 | E78: 0 | F78: 0 | G78: 0 | H78: 0 | I78: 0 | J78: 0 | K78: 0 | L78: 119.1066998 | M78: 319887.12 | N78: 322286.2734 | O78: 324703.4205 | P78: 327138.6961 | Q78: 6011614.528 | R78: 10751496.55 | S78: 10832132.77 | T78: 10913373.77 | U78: 10995224.07
C79: 2019 | D79: =SUM(D152,D225,D298,D371,D445,D518,D591,D664,D737) -> 0 | E79: 0 | F79: 0 | G79: 0 | H79: 0 | I79: 0 | J79: 0 | K79: 0 | L79: 120 | M79: 322286.2734 | N79: 324703.4205 | O79: 327138.6961 | P79: 329592.2363 | Q79: 6056701.637 | R79: 10832132.77 | S79: 10913373.77 | T79: 10995224.07 | U79: 11077688.25
C80: 2020 | D80: =SUM(D153,D226,D299,D372,D446,D519,D592,D665,D738) -> 0 | E80: 0 | F80: 0 | G80: 0 | H80: 0 | I80: 0 | J80: 0 | K80: 0 | L80: 120.9 | M80: 324703.4205 | N80: 327138.6961 | O80: 329592.2363 | P80: 332064.1781 | Q80: 6102126.899 | R80: 10913373.77 | S80: 10995224.07 | T80: 11077688.25 | U80: 11160770.91
C81: 2021 | D81: =SUM(D154,D227,D300,D373,D447,D520,D593,D666,D739) -> 0 | E81: 0 | F81: 0 | G81: 0 | H81: 0 | I81: 0 | J81: 0 | K81: 0 | L81: 121.80675 | M81: 327138.6961 | N81: 329592.2363 | O81: 332064.1781 | P81: 334554.6594 | Q81: 6147892.851 | R81: 10995224.07 | S81: 11077688.25 | T81: 11160770.91 | U81: 11244476.7
C82: 2022 | D82: =SUM(D155,D228,D301,D374,D448,D521,D594,D667,D740) -> 0 | E82: 0 | F82: 0 | G82: 0 | H82: 0 | I82: 0 | J82: 0 | K82: 0 | L82: 122.7203006 | M82: 329592.2363 | N82: 332064.1781 | O82: 334554.6594 | P82: 337063.8194 | Q82: 6194002.047 | R82: 11077688.25 | S82: 11160770.91 | T82: 11244476.7 | U82: 11328810.27
C83: 2023 | D83: =SUM(D156,D229,D302,D375,D449,D522,D595,D668,D741) -> 0 | E83: 0 | F83: 0 | G83: 0 | H83: 0 | I83: 0 | J83: 0 | K83: 0 | L83: 123.6407029 | M83: 332064.1781 | N83: 334554.6594 | O83: 337063.8194 | P83: 339591.798 | Q83: 6240457.063 | R83: 11160770.91 | S83: 11244476.7 | T83: 11328810.27 | U83: 11413776.35
C84: 2024 | D84: =SUM(D157,D230,D303,D376,D450,D523,D596,D669,D742) -> 0 | E84: 0 | F84: 0 | G84: 0 | H84: 0 | I84: 0 | J84: 0 | K84: 0 | L84: 124.5680082 | M84: 334554.6594 | N84: 337063.8194 | O84: 339591.798 | P84: 342138.7365 | Q84: 6287260.491 | R84: 11244476.7 | S84: 11328810.27 | T84: 11413776.35 | U84: 11499379.67
C85: 2025 | D85: =SUM(D158,D231,D304,D377,D451,D524,D597,D670,D743) -> 0 | E85: 0 | F85: 0 | G85: 0 | H85: 0 | I85: 0 | J85: 0 | K85: 0 | L85: 125.5022682 | M85: 337063.8194 | N85: 339591.798 | O85: 342138.7365 | P85: 344704.777 | Q85: 6334414.944 | R85: 11328810.27 | S85: 11413776.35 | T85: 11499379.67 | U85: 11585625.02
C86: 2026 | D86: =SUM(D159,D232,D305,D378,D452,D525,D598,D671,D744) -> 0 | E86: 0 | F86: 0 | G86: 0 | H86: 0 | I86: 0 | J86: 0 | K86: 0 | L86: 126.4435352 | M86: 339591.798 | N86: 342138.7365 | O86: 344704.777 | P86: 347290.0629 | Q86: 6381923.056 | R86: 11413776.35 | S86: 11499379.67 | T86: 11585625.02 | U86: 11672517.21
C87: 2027 | D87: =SUM(D160,D233,D306,D379,D453,D526,D599,D672,D745) -> 0 | E87: 0 | F87: 0 | G87: 0 | H87: 0 | I87: 0 | J87: 0 | K87: 0 | L87: 127.3918617 | M87: 342138.7365 | N87: 344704.777 | O87: 347290.0629 | P87: 349894.7383 | Q87: 6429787.479 | R87: 11499379.67 | S87: 11585625.02 | T87: 11672517.21 | U87: 11760061.08
C88: 2028 | D88: =SUM(D161,D234,D307,D380,D454,D527,D600,D673,D746) -> 0 | E88: 0 | F88: 0 | G88: 0 | H88: 0 | I88: 0 | J88: 0 | K88: 0 | L88: 128.3473007 | M88: 344704.777 | N88: 347290.0629 | O88: 349894.7383 | P88: 352518.9489 | Q88: 6478010.885 | R88: 11585625.02 | S88: 11672517.21 | T88: 11760061.08 | U88: 11848261.54
C89: 2029 | D89: =SUM(D162,D235,D308,D381,D455,D528,D601,D674,D747) -> 0 | E89: 0 | F89: 0 | G89: 0 | H89: 0 | I89: 0 | J89: 0 | K89: 0 | L89: 129.3099055 | M89: 347290.0629 | N89: 349894.7383 | O89: 352518.9489 | P89: 355162.841 | Q89: 6526595.967 | R89: 11672517.21 | S89: 11760061.08 | T89: 11848261.54 | U89: 11937123.5
C90: 2030 | D90: =SUM(D163,D236,D309,D382,D456,D529,D602,D675,D748) -> 0 | E90: 0 | F90: 0 | G90: 0 | H90: 0 | I90: 0 | J90: 0 | K90: 0 | L90: 130.2797297 | M90: 349894.7383 | N90: 352518.9489 | O90: 355162.841 | P90: 357826.5623 | Q90: 6575545.437 | R90: 11760061.08 | S90: 11848261.54 | T90: 11937123.5 | U90: 12026651.93
C91: 2031 | D91: =SUM(D164,D237,D310,D383,D457,D530,D603,D676,D749) -> 0 | E91: 0 | F91: 0 | G91: 0 | H91: 0 | I91: 0 | J91: 0 | K91: 0 | L91: 131.2568277 | M91: 352518.9489 | N91: 355162.841 | O91: 357826.5623 | P91: 360510.2615 | Q91: 6624862.027 | R91: 11848261.54 | S91: 11937123.5 | T91: 12026651.93 | U91: 12116851.82
C92: 2032 | D92: =SUM(D165,D238,D311,D384,D458,D531,D604,D677,D750) -> 0 | E92: 0 | F92: 0 | G92: 0 | H92: 0 | I92: 0 | J92: 0 | K92: 0 | L92: 132.2412539 | M92: 355162.841 | N92: 357826.5623 | O92: 360510.2615 | P92: 363214.0885 | Q92: 6674548.493 | R92: 11937123.5 | S92: 12026651.93 | T92: 12116851.82 | U92: 12207728.21
C93: 2033 | D93: =SUM(D166,D239,D312,D385,D459,D532,D605,D678,D751) -> 0 | E93: 0 | F93: 0 | G93: 0 | H93: 0 | I93: 0 | J93: 0 | K93: 0 | L93: 133.2330633 | M93: 357826.5623 | N93: 360510.2615 | O93: 363214.0885 | P93: 365938.1941 | Q93: 6724607.606 | R93: 12026651.93 | S93: 12116851.82 | T93: 12207728.21 | U93: 12299286.17
C94: 2034 | D94: =SUM(D167,D240,D313,D386,D460,D533,D606,D679,D752) -> 0 | E94: 0 | F94: 0 | G94: 0 | H94: 0 | I94: 0 | J94: 0 | K94: 0 | L94: 134.2323113 | M94: 360510.2615 | N94: 363214.0885 | O94: 365938.1941 | P94: 368682.7306 | Q94: 6775042.163 | R94: 12116851.82 | S94: 12207728.21 | T94: 12299286.17 | U94: 12391530.82
C97: =C107 -> B 2.5 W - AC-DC, Basic Voltage 2.5 W Rep. Unit
E99: 1981 | F99: 1982 | G99: 1983 | H99: 1984 | I99: 1985 | J99: 1986 | K99: 1987 | L99: 1988 | M99: 1989 | N99: 1990 | O99: 1991 | P99: 1992 | Q99: 1993 | R99: 1994 | S99: 1995 | T99: 1996 | U99: 1997 | V99: 1998 | W99: 1999 | X99: 2000 | Y99: 2001 | Z99: 2002 | AA99: 2003 | AB99: 2004 | AC99: 2005 | AD99: 2006 | AE99: 2007 | AF99: 2008 | AG99: 2009 | AH99: 2010 | AI99: 2011 | AJ99: 2012 | AK99: 2013 | AL99: 2014 | AM99: 2015 | AN99: 2016 | AO99: 2017 | AP99: 2018 | AQ99: 2019 | AR99: 2020 | AS99: 2021 | AT99: 2022 | AU99: 2023 | AV99: 2024 | AW99: 2025 | AX99: 2026 | AY99: 2027 | AZ99: 2028 | BA99: 2029 | BB99: 2030 | BC99: 2031 | BD99: 2032 | BE99: 2033 | BF99: 2034
C100: 6P Shipments | D100: (units) | E100: N/A | F100: N/A | G100: N/A | H100: N/A | I100: N/A | J100: N/A | K100: N/A | L100: N/A | M100: N/A | N100: N/A | O100: N/A | P100: N/A | Q100: N/A | R100: N/A | S100: N/A | T100: N/A | U100: N/A | V100: N/A | W100: N/A | X100: N/A | Y100: N/A | Z100: N/A | AA100: N/A | AB100: N/A | AC100: N/A | AD100: N/A | AE100: N/A | AF100: N/A | AG100: N/A | AH100: N/A | AI100: N/A | AJ100: N/A | AK100: N/A | AL100: N/A | AM100: N/A | AN100: N/A | AO100: N/A | AP100: N/A | AQ100: N/A | AR100: N/A | AS100: N/A | AT100: N/A | AU100: N/A | AV100: N/A | AW100: N/A | AX100: N/A | AY100: N/A | AZ100: N/A | BA100: N/A | BB100: N/A | BC100: N/A | BD100: N/A | BE100: N/A | BF100: N/A
C101: Replacement Shipments | D101: (units) | E101: =TRANSPOSE(AA116:AA169) -> 0 | F101: 0 | G101: 0 | H101: 0 | I101: 0 | J101: 0 | K101: 0 | L101: 0 | M101: 0 | N101: 0 | O101: 0 | P101: 0 | Q101: 0 | R101: 0 | S101: 0 | T101: 0 | U101: 0 | V101: 0 | W101: 0 | X101: 0 | Y101: 0 | Z101: 0 | AA101: 0 | AB101: 0 | AC101: 0 | AD101: 0 | AE101: 0 | AF101: 0 | AG101: 0 | AH101: 0 | AI101: 0 | AJ101: 0 | AK101: 0 | AL101: 0 | AM101: 0 | AN101: 0 | AO101: 0 | AP101: 0 | AQ101: 0 | AR101: 0 | AS101: 0 | AT101: 0 | AU101: 0 | AV101: 0 | AW101: 0 | AX101: 0 | AY101: 0 | AZ101: 0 | BA101: 0 | BB101: 0 | BC101: 0 | BD101: 0 | BE101: 0 | BF101: 0
C102: Net New Shipments | D102: (units) | E102: =TRANSPOSE(AD116:AD169) -> 0 | F102: 0 | G102: 0 | H102: 0 | I102: 0 | J102: 0 | K102: 2011896.961 | L102: 2026986.188 | M102: 2042188.585 | N102: 2057504.999 | O102: 2072936.286 | P102: 2088483.309 | Q102: 2104146.933 | R102: 2119928.035 | S102: 2135827.496 | T102: 2151846.202 | U102: 2167985.048 | V102: 2184244.936 | W102: 2200626.773 | X102: 2217131.474 | Y102: 2233759.96 | Z102: 2250513.16 | AA102: 2267392.009 | AB102: 2284397.449 | AC102: 2301530.429 | AD102: 2318791.908 | AE102: 2336182.847 | AF102: 2353704.218 | AG102: 2371357 | AH102: 2389142.178 | AI102: 2407060.744 | AJ102: 2425113.699 | AK102: 2443302.052 | AL102: 2461626.818 | AM102: 2480089.019 | AN102: 2498689.686 | AO102: 2517429.859 | AP102: 2536310.583 | AQ102: 2555332.912 | AR102: 2574497.909 | AS102: 2593806.643 | AT102: 2613260.193 | AU102: 2632859.645 | AV102: 2652606.092 | AW102: 2672500.638 | AX102: 2692544.393 | AY102: 2712738.475 | AZ102: 2733084.014 | BA102: 2753582.144 | BB102: 2774234.01 | BC102: 2795040.765 | BD102: 2816003.571 | BE102: 2837123.598 | BF102: 2858402.025
C103: Total Model Shipments | D103: (units) | E103: =TRANSPOSE(AD116:AD169) -> 0 | F103: 0 | G103: 0 | H103: 0 | I103: 0 | J103: 0 | K103: 2011896.961 | L103: 2026986.188 | M103: 2042188.585 | N103: 2057504.999 | O103: 2072936.286 | P103: 2088483.309 | Q103: 2104146.933 | R103: 2119928.035 | S103: 2135827.496 | T103: 2151846.202 | U103: 2167985.048 | V103: 2184244.936 | W103: 2200626.773 | X103: 2217131.474 | Y103: 2233759.96 | Z103: 2250513.16 | AA103: 2267392.009 | AB103: 2284397.449 | AC103: 2301530.429 | AD103: 2318791.908 | AE103: 2336182.847 | AF103: 2353704.218 | AG103: 2371357 | AH103: 2389142.178 | AI103: 2407060.744 | AJ103: 2425113.699 | AK103: 2443302.052 | AL103: 2461626.818 | AM103: 2480089.019 | AN103: 2498689.686 | AO103: 2517429.859 | AP103: 2536310.583 | AQ103: 2555332.912 | AR103: 2574497.909 | AS103: 2593806.643 | AT103: 2613260.193 | AU103: 2632859.645 | AV103: 2652606.092 | AW103: 2672500.638 | AX103: 2692544.393 | AY103: 2712738.475 | AZ103: 2733084.014 | BA103: 2753582.144 | BB103: 2774234.01 | BC103: 2795040.765 | BD103: 2816003.571 | BE103: 2837123.598 | BF103: 2858402.025
C104: Model Installed Stock | D104: (units) | E104: =TRANSPOSE(Z116:Z169) -> 0 | F104: 0 | G104: 0 | H104: 0 | I104: 0 | J104: 0 | K104: 2011896.961 | L104: 4038883.149 | M104: 6081071.734 | N104: 8138576.733 | O104: 10211513.02 | P104: 12299996.33 | Q104: 12392246.3 | R104: 12485188.15 | S104: 12578827.06 | T104: 12673168.26 | U104: 12768217.02 | V104: 12863978.65 | W104: 12960458.49 | X104: 13057661.93 | Y104: 13155594.39 | Z104: 13254261.35 | AA104: 13353668.31 | AB104: 13453820.82 | AC104: 13554724.48 | AD104: 13656384.91 | AE104: 13758807.8 | AF104: 13861998.86 | AG104: 13965963.85 | AH104: 14070708.58 | AI104: 14176238.89 | AJ104: 14282560.69 | AK104: 14389679.89 | AL104: 14497602.49 | AM104: 14606334.51 | AN104: 14715882.02 | AO104: 14826251.13 | AP104: 14937448.02 | AQ104: 15049478.88 | AR104: 15162349.97 | AS104: 15276067.59 | AT104: 15390638.1 | AU104: 15506067.89 | AV104: 15622363.39 | AW104: 15739531.12 | AX104: 15857577.6 | AY104: 15976509.44 | AZ104: 16096333.26 | BA104: 16217055.76 | BB104: 16338683.67 | BC104: 16461223.8 | BD104: 16584682.98 | BE104: 16709068.1 | BF104: 16834386.11
C107: ='Product Classes'!H10&" - "&OFFSET('Product Classes'!$C$9,MATCH('Product Classes'!H10,MODEL_PCS,0),0) -> B 2.5 W - AC-DC, Basic Voltage 2.5 W Rep. Unit
C108: Segment | D108: Initial Year
C109: N/A | D109: 1987
C111: Quantity of Stock by AGE and YEAR
D112: Unit Age in Years | Y112: New Shipment | Z112: Stock | AA112: Replacements for Retiring Units | AB112: Shipment due to New Construction | AC112: Shipment due to Stock Buildout | AD112: Total Shipments
C113: Year | D113: 18 | E113: 17 | F113: 16 | G113: 15 | H113: 14 | I113: 13 | J113: 12 | K113: 11 | L113: 10 | M113: 9 | N113: 8 | O113: 7 | P113: 6 | Q113: 5 | R113: 4 | S113: 3 | T113: 2 | U113: 1 | X113: Year
C114: =C115-1 -> 1981 | D114: =IF(AND($C114-D$113>=$D$109,D$113,D$113 <=ROUND($AB$50,0)),OFFSET($Y116, -D$113, 0), 0) -> 0 | E114: 0 | F114: 0 | G114: 0 | H114: 0 | I114: 0 | J114: 0 | K114: 0 | L114: 0 | M114: 0 | N114: 0 | O114: 0 | P114: 0 | Q114: 0 | R114: 0 | S114: 0 | T114: 0 | U114: 0 | X114: =X115-1 -> 1979 | Y114: 0 | Z114: 0 | AA114: 0 | AB114: 0 | AC114: 0 | AD114: 0
C115: 1982 | D115: =IF(AND($C115-D$113>=$D$109,D$113,D$113 <=ROUND($AB$50,0)),OFFSET($Y117, -D$113, 0), 0) -> 0 | E115: 0 | F115: 0 | G115: 0 | H115: 0 | I115: 0 | J115: 0 | K115: 0 | L115: 0 | M115: 0 | N115: 0 | O115: 0 | P115: 0 | Q115: 0 | R115: 0 | S115: 0 | T115: 0 | U115: 0 | X115: 1980 | Y115: 0 | Z115: 0 | AA115: 0 | AB115: 0 | AC115: 0 | AD115: 0
C116: 1983 | D116: =IF(AND($C116-D$113>=$D$109,D$113,D$113 <=ROUND($AB$50,0)),OFFSET($Y118, -D$113, 0), 0) -> 0 | E116: 0 | F116: 0 | G116: 0 | H116: 0 | I116: 0 | J116: 0 | K116: 0 | L116: 0 | M116: 0 | N116: 0 | O116: 0 | P116: 0 | Q116: 0 | R116: 0 | S116: 0 | T116: 0 | U116: 0 | X116: 1981 | Y116: 0 | Z116: 0 | AA116: 0 | AB116: 0 | AC116: 0 | AD116: 0
C117: 1984 | D117: =IF(AND($C117-D$113>=$D$109,D$113,D$113 <=ROUND($AB$50,0)),OFFSET($Y119, -D$113, 0), 0) -> 0 | E117: 0 | F117: 0 | G117: 0 | H117: 0 | I117: 0 | J117: 0 | K117: 0 | L117: 0 | M117: 0 | N117: 0 | O117: 0 | P117: 0 | Q117: 0 | R117: 0 | S117: 0 | T117: 0 | U117: 0 | X117: 1982 | Y117: 0 | Z117: 0 | AA117: 0 | AB117: 0 | AC117: 0 | AD117: 0
C118: 1985 | D118: =IF(AND($C118-D$113>=$D$109,D$113,D$113 <=ROUND($AB$50,0)),OFFSET($Y120, -D$113, 0), 0) -> 0 | E118: 0 | F118: 0 | G118: 0 | H118: 0 | I118: 0 | J118: 0 | K118: 0 | L118: 0 | M118: 0 | N118: 0 | O118: 0 | P118: 0 | Q118: 0 | R118: 0 | S118: 0 | T118: 0 | U118: 0 | X118: 1983 | Y118: 0 | Z118: 0 | AA118: 0 | AB118: 0 | AC118: 0 | AD118: 0
C119: 1986 | D119: =IF(AND($C119-D$113>=$D$109,D$113,D$113 <=ROUND($AB$50,0)),OFFSET($Y121, -D$113, 0), 0) -> 0 | E119: 0 | F119: 0 | G119: 0 | H119: 0 | I119: 0 | J119: 0 | K119: 0 | L119: 0 | M119: 0 | N119: 0 | O119: 0 | P119: 0 | Q119: 0 | R119: 0 | S119: 0 | T119: 0 | U119: 0 | X119: 1984 | Y119: 0 | Z119: 0 | AA119: 0 | AB119: 0 | AC119: 0 | AD119: 0
C120: 1987 | D120: =IF(AND($C120-D$113>=$D$109,D$113,D$113 <=ROUND($AB$50,0)),OFFSET($Y122, -D$113, 0), 0) -> 0 | E120: 0 | F120: 0 | G120: 0 | H120: 0 | I120: 0 | J120: 0 | K120: 0 | L120: 0 | M120: 0 | N120: 0 | O120: 0 | P120: 0 | Q120: 0 | R120: 0 | S120: 0 | T120: 0 | U120: 0 | X120: 1985 | Y120: 0 | Z120: 0 | AA120: 0 | AB120: 0 | AC120: 0 | AD120: 0
C121: 1988 | D121: =IF(AND($C121-D$113>=$D$109,D$113,D$113 <=ROUND($AB$50,0)),OFFSET($Y123, -D$113, 0), 0) -> 0 | E121: 0 | F121: 0 | G121: 0 | H121: 0 | I121: 0 | J121: 0 | K121: 0 | L121: 0 | M121: 0 | N121: 0 | O121: 0 | P121: 0 | Q121: 0 | R121: 0 | S121: 0 | T121: 0 | U121: 2011896.961 | X121: 1986 | Y121: 0 | Z121: 0 | AA121: 0 | AB121: 0 | AC121: 0 | AD121: 0
C122: =C123-1 -> 1989 | D122: =IF(AND($C122-D$113>=$D$109,D$113,D$113 <=ROUND($AB$50,0)),OFFSET($Y124, -D$113, 0), 0) -> 0 | E122: 0 | F122: 0 | G122: 0 | H122: 0 | I122: 0 | J122: 0 | K122: 0 | L122: 0 | M122: 0 | N122: 0 | O122: 0 | P122: 0 | Q122: 0 | R122: 0 | S122: 0 | T122: 2011896.961 | U122: 2026986.188 | X122: 1987 | Y122: =$Y$144/((1+$Z$50)^($X$144-X122)) -> 2011896.961 | Z122: =Y122+SUM(D120:U120) -> 2011896.961 | AA122: 0 | AB122: 0 | AC122: 0 | AD122: =Y122 -> 2011896.961
C123: 1990 | D123: =IF(AND($C123-D$113>=$D$109,D$113,D$113 <=ROUND($AB$50,0)),OFFSET($Y125, -D$113, 0), 0) -> 0 | E123: 0 | F123: 0 | G123: 0 | H123: 0 | I123: 0 | J123: 0 | K123: 0 | L123: 0 | M123: 0 | N123: 0 | O123: 0 | P123: 0 | Q123: 0 | R123: 0 | S123: 2011896.961 | T123: 2026986.188 | U123: 2042188.585 | X123: =X124-1 -> 1988 | Y123: 2026986.188 | Z123: 4038883.149 | AA123: 0 | AB123: 0 | AC123: 0 | AD123: =Y123 -> 2026986.188
C124: 1991 | D124: =IF(AND($C124-D$113>=$D$109,D$113,D$113 <=ROUND($AB$50,0)),OFFSET($Y126, -D$113, 0), 0) -> 0 | E124: 0 | F124: 0 | G124: 0 | H124: 0 | I124: 0 | J124: 0 | K124: 0 | L124: 0 | M124: 0 | N124: 0 | O124: 0 | P124: 0 | Q124: 0 | R124: 2011896.961 | S124: 2026986.188 | T124: 2042188.585 | U124: 2057504.999 | X124: 1989 | Y124: 2042188.585 | Z124: =Y124+SUM(D122:U122) -> 6081071.734 | AA124: 0 | AB124: 0 | AC124: 0 | AD124: =Y124 -> 2042188.585
C125: 1992 | D125: =IF(AND($C125-D$113>=$D$109,D$113,D$113 <=ROUND($AB$50,0)),OFFSET($Y127, -D$113, 0), 0) -> 0 | E125: 0 | F125: 0 | G125: 0 | H125: 0 | I125: 0 | J125: 0 | K125: 0 | L125: 0 | M125: 0 | N125: 0 | O125: 0 | P125: 0 | Q125: 2011896.961 | R125: 2026986.188 | S125: 2042188.585 | T125: 2057504.999 | U125: 2072936.286 | X125: =C123 -> 1990 | Y125: 2057504.999 | Z125: 8138576.733 | AA125: 0 | AB125: 0 | AC125: 0 | AD125: 2057504.999
C126: 1993 | D126: =IF(AND($C126-D$113>=$D$109,D$113,D$113 <=ROUND($AB$50,0)),OFFSET($Y128, -D$113, 0), 0) -> 0 | E126: 0 | F126: 0 | G126: 0 | H126: 0 | I126: 0 | J126: 0 | K126: 0 | L126: 0 | M126: 0 | N126: 0 | O126: 0 | P126: 0 | Q126: 2026986.188 | R126: 2042188.585 | S126: 2057504.999 | T126: 2072936.286 | U126: 2088483.309 | X126: 1991 | Y126: 2072936.286 | Z126: 10211513.02 | AA126: 0 | AB126: 0 | AC126: 0 | AD126: 2072936.286
C127: 1994 | D127: =IF(AND($C127-D$113>=$D$109,D$113,D$113 <=ROUND($AB$50,0)),OFFSET($Y129, -D$113, 0), 0) -> 0 | E127: 0 | F127: 0 | G127: 0 | H127: 0 | I127: 0 | J127: 0 | K127: 0 | L127: 0 | M127: 0 | N127: 0 | O127: 0 | P127: 0 | Q127: 2042188.585 | R127: 2057504.999 | S127: 2072936.286 | T127: 2088483.309 | U127: 2104146.933 | X127: 1992 | Y127: 2088483.309 | Z127: 12299996.33 | AA127: 0 | AB127: 0 | AC127: 0 | AD127: 2088483.309
C128: 1995 | D128: =IF(AND($C128-D$113>=$D$109,D$113,D$113 <=ROUND($AB$50,0)),OFFSET($Y130, -D$113, 0), 0) -> 0 | E128: 0 | F128: 0 | G128: 0 | H128: 0 | I128: 0 | J128: 0 | K128: 0 | L128: 0 | M128: 0 | N128: 0 | O128: 0 | P128: 0 | Q128: 2057504.999 | R128: 2072936.286 | S128: 2088483.309 | T128: 2104146.933 | U128: 2119928.035 | X128: 1993 | Y128: 2104146.933 | Z128: 12392246.3 | AA128: 0 | AB128: 0 | AC128: 0 | AD128: 2104146.933
C129: 1996 | D129: =IF(AND($C129-D$113>=$D$109,D$113,D$113 <=ROUND($AB$50,0)),OFFSET($Y131, -D$113, 0), 0) -> 0 | E129: 0 | F129: 0 | G129: 0 | H129: 0 | I129: 0 | J129: 0 | K129: 0 | L129: 0 | M129: 0 | N129: 0 | O129: 0 | P129: 0 | Q129: 2072936.286 | R129: 2088483.309 | S129: 2104146.933 | T129: 2119928.035 | U129: 2135827.496 | X129: 1994 | Y129: 2119928.035 | Z129: 12485188.15 | AA129: 0 | AB129: 0 | AC129: 0 | AD129: 2119928.035
C130: 1997 | D130: =IF(AND($C130-D$113>=$D$109,D$113,D$113 <=ROUND($AB$50,0)),OFFSET($Y132, -D$113, 0), 0) -> 0 | E130: 0 | F130: 0 | G130: 0 | H130: 0 | I130: 0 | J130: 0 | K130: 0 | L130: 0 | M130: 0 | N130: 0 | O130: 0 | P130: 0 | Q130: 2088483.309 | R130: 2104146.933 | S130: 2119928.035 | T130: 2135827.496 | U130: 2151846.202 | X130: 1995 | Y130: 2135827.496 | Z130: 12578827.06 | AA130: 0 | AB130: 0 | AC130: 0 | AD130: 2135827.496
C131: 1998 | D131: =IF(AND($C131-D$113>=$D$109,D$113,D$113 <=ROUND($AB$50,0)),OFFSET($Y133, -D$113, 0), 0) -> 0 | E131: 0 | F131: 0 | G131: 0 | H131: 0 | I131: 0 | J131: 0 | K131: 0 | L131: 0 | M131: 0 | N131: 0 | O131: 0 | P131: 0 | Q131: 2104146.933 | R131: 2119928.035 | S131: 2135827.496 | T131: 2151846.202 | U131: 2167985.048 | X131: 1996 | Y131: 2151846.202 | Z131: 12673168.26 | AA131: 0 | AB131: 0 | AC131: 0 | AD131: 2151846.202
C132: 1999 | D132: =IF(AND($C132-D$113>=$D$109,D$113,D$113 <=ROUND($AB$50,0)),OFFSET($Y134, -D$113, 0), 0) -> 0 | E132: 0 | F132: 0 | G132: 0 | H132: 0 | I132: 0 | J132: 0 | K132: 0 | L132: 0 | M132: 0 | N132: 0 | O132: 0 | P132: 0 | Q132: 2119928.035 | R132: 2135827.496 | S132: 2151846.202 | T132: 2167985.048 | U132: 2184244.936 | X132: 1997 | Y132: 2167985.048 | Z132: 12768217.02 | AA132: 0 | AB132: 0 | AC132: 0 | AD132: 2167985.048
C133: 2000 | D133: =IF(AND($C133-D$113>=$D$109,D$113,D$113 <=ROUND($AB$50,0)),OFFSET($Y135, -D$113, 0), 0) -> 0 | E133: 0 | F133: 0 | G133: 0 | H133: 0 | I133: 0 | J133: 0 | K133: 0 | L133: 0 | M133: 0 | N133: 0 | O133: 0 | P133: 0 | Q133: 2135827.496 | R133: 2151846.202 | S133: 2167985.048 | T133: 2184244.936 | U133: 2200626.773 | X133: 1998 | Y133: 2184244.936 | Z133: 12863978.65 | AA133: 0 | AB133: 0 | AC133: 0 | AD133: 2184244.936
C134: 2001 | D134: =IF(AND($C134-D$113>=$D$109,D$113,D$113 <=ROUND($AB$50,0)),OFFSET($Y136, -D$113, 0), 0) -> 0 | E134: 0 | F134: 0 | G134: 0 | H134: 0 | I134: 0 | J134: 0 | K134: 0 | L134: 0 | M134: 0 | N134: 0 | O134: 0 | P134: 0 | Q134: 2151846.202 | R134: 2167985.048 | S134: 2184244.936 | T134: 2200626.773 | U134: 2217131.474 | X134: 1999 | Y134: 2200626.773 | Z134: 12960458.49 | AA134: 0 | AB134: 0 | AC134: 0 | AD134: 2200626.773
C135: 2002 | D135: =IF(AND($C135-D$113>=$D$109,D$113,D$113 <=ROUND($AB$50,0)),OFFSET($Y137, -D$113, 0), 0) -> 0 | E135: 0 | F135: 0 | G135: 0 | H135: 0 | I135: 0 | J135: 0 | K135: 0 | L135: 0 | M135: 0 | N135: 0 | O135: 0 | P135: 0 | Q135: 2167985.048 | R135: 2184244.936 | S135: 2200626.773 | T135: 2217131.474 | U135: 2233759.96 | X135: 2000 | Y135: 2217131.474 | Z135: 13057661.93 | AA135: 0 | AB135: 0 | AC135: 0 | AD135: 2217131.474
C136: 2003 | D136: =IF(AND($C136-D$113>=$D$109,D$113,D$113 <=ROUND($AB$50,0)),OFFSET($Y138, -D$113, 0), 0) -> 0 | E136: 0 | F136: 0 | G136: 0 | H136: 0 | I136: 0 | J136: 0 | K136: 0 | L136: 0 | M136: 0 | N136: 0 | O136: 0 | P136: 0 | Q136: 2184244.936 | R136: 2200626.773 | S136: 2217131.474 | T136: 2233759.96 | U136: 2250513.16 | X136: 2001 | Y136: 2233759.96 | Z136: 13155594.39 | AA136: 0 | AB136: 0 | AC136: 0 | AD136: 2233759.96
C137: =C138-1 -> 2004 | D137: =IF(AND($C137-D$113>=$D$109,D$113,D$113 <=ROUND($AB$50,0)),OFFSET($Y139, -D$113, 0), 0) -> 0 | E137: 0 | F137: 0 | G137: 0 | H137: 0 | I137: 0 | J137: 0 | K137: 0 | L137: 0 | M137: 0 | N137: 0 | O137: 0 | P137: 0 | Q137: 2200626.773 | R137: 2217131.474 | S137: 2233759.96 | T137: 2250513.16 | U137: 2267392.009 | X137: 2002 | Y137: 2250513.16 | Z137: 13254261.35 | AA137: 0 | AB137: 0 | AC137: 0 | AD137: 2250513.16
C138: 2005 | D138: =IF(AND($C138-D$113>=$D$109,D$113,D$113 <=ROUND($AB$50,0)),OFFSET($Y140, -D$113, 0), 0) -> 0 | E138: 0 | F138: 0 | G138: 0 | H138: 0 | I138: 0 | J138: 0 | K138: 0 | L138: 0 | M138: 0 | N138: 0 | O138: 0 | P138: 0 | Q138: 2217131.474 | R138: 2233759.96 | S138: 2250513.16 | T138: 2267392.009 | U138: 2284397.449 | X138: 2003 | Y138: 2267392.009 | Z138: 13353668.31 | AA138: 0 | AB138: 0 | AC138: 0 | AD138: 2267392.009
C139: =C138+1 -> 2006 | D139: =IF(AND($C139-D$113>=$D$109,D$113,D$113 <=ROUND($AB$50,0)),OFFSET($Y141, -D$113, 0), 0) -> 0 | E139: 0 | F139: 0 | G139: 0 | H139: 0 | I139: 0 | J139: 0 | K139: 0 | L139: 0 | M139: 0 | N139: 0 | O139: 0 | P139: 0 | Q139: 2233759.96 | R139: 2250513.16 | S139: 2267392.009 | T139: 2284397.449 | U139: 2301530.429 | X139: 2004 | Y139: 2284397.449 | Z139: 13453820.82 | AA139: 0 | AB139: 0 | AC139: 0 | AD139: 2284397.449
C140: 2007 | D140: =IF(AND($C140-D$113>=$D$109,D$113,D$113 <=ROUND($AB$50,0)),OFFSET($Y142, -D$113, 0), 0) -> 0 | E140: 0 | F140: 0 | G140: 0 | H140: 0 | I140: 0 | J140: 0 | K140: 0 | L140: 0 | M140: 0 | N140: 0 | O140: 0 | P140: 0 | Q140: 2250513.16 | R140: 2267392.009 | S140: 2284397.449 | T140: 2301530.429 | U140: 2318791.908 | X140: 2005 | Y140: 2301530.429 | Z140: 13554724.48 | AA140: 0 | AB140: 0 | AC140: 0 | AD140: 2301530.429
C141: 2008 | D141: =IF(AND($C141-D$113>=$D$109,D$113,D$113 <=ROUND($AB$50,0)),OFFSET($Y143, -D$113, 0), 0) -> 0 | E141: 0 | F141: 0 | G141: 0 | H141: 0 | I141: 0 | J141: 0 | K141: 0 | L141: 0 | M141: 0 | N141: 0 | O141: 0 | P141: 0 | Q141: 2267392.009 | R141: 2284397.449 | S141: 2301530.429 | T141: 2318791.908 | U141: 2336182.847 | X141: 2006 | Y141: 2318791.908 | Z141: 13656384.91 | AA141: 0 | AB141: 0 | AC141: 0 | AD141: 2318791.908
C142: 2009 | D142: =IF(AND($C142-D$113>=$D$109,D$113,D$113 <=ROUND($AB$50,0)),OFFSET($Y144, -D$113, 0), 0) -> 0 | E142: 0 | F142: 0 | G142: 0 | H142: 0 | I142: 0 | J142: 0 | K142: 0 | L142: 0 | M142: 0 | N142: 0 | O142: 0 | P142: 0 | Q142: 2284397.449 | R142: 2301530.429 | S142: 2318791.908 | T142: 2336182.847 | U142: 2353704.218 | X142: 2007 | Y142: 2336182.847 | Z142: 13758807.8 | AA142: 0 | AB142: 0 | AC142: 0 | AD142: 2336182.847
C143: 2010 | D143: =IF(AND($C143-D$113>=$D$109,D$113,D$113 <=ROUND($AB$50,0)),OFFSET($Y145, -D$113, 0), 0) -> 0 | E143: 0 | F143: 0 | G143: 0 | H143: 0 | I143: 0 | J143: 0 | K143: 0 | L143: 0 | M143: 0 | N143: 0 | O143: 0 | P143: 0 | Q143: 2301530.429 | R143: 2318791.908 | S143: 2336182.847 | T143: 2353704.218 | U143: 2371357 | X143: 2008 | Y143: 2353704.218 | Z143: 13861998.86 | AA143: 0 | AB143: 0 | AC143: 0 | AD143: 2353704.218
C144: 2011 | D144: =IF(AND($C144-D$113>=$D$109,D$113,D$113 <=ROUND($AB$50,0)),OFFSET($Y146, -D$113, 0), 0) -> 0 | E144: 0 | F144: 0 | G144: 0 | H144: 0 | I144: 0 | J144: 0 | K144: 0 | L144: 0 | M144: 0 | N144: 0 | O144: 0 | P144: 0 | Q144: 2318791.908 | R144: 2336182.847 | S144: 2353704.218 | T144: 2371357 | U144: 2389142.178 | X144: 2009 | Y144: =$AA$50*$X$65 -> 2371357 | Z144: 13965963.85 | AA144: 0 | AB144: 0 | AC144: 0 | AD144: 2371357
C145: 2012 | D145: =IF(AND($C145-D$113>=$D$109,D$113,D$113 <=ROUND($AB$50,0)),OFFSET($Y147, -D$113, 0), 0) -> 0 | E145: 0 | F145: 0 | G145: 0 | H145: 0 | I145: 0 | J145: 0 | K145: 0 | L145: 0 | M145: 0 | N145: 0 | O145: 0 | P145: 0 | Q145: 2336182.847 | R145: 2353704.218 | S145: 2371357 | T145: 2389142.178 | U145: 2407060.744 | X145: 2010 | Y145: =$Y$144*(1+$Z$50)^(X145-$X$144) -> 2389142.178 | Z145: 14070708.58 | AA145: 0 | AB145: 0 | AC145: 0 | AD145: 2389142.178
C146: 2013 | D146: =IF(AND($C146-D$113>=$D$109,D$113,D$113 <=ROUND($AB$50,0)),OFFSET($Y148, -D$113, 0), 0) -> 0 | E146: 0 | F146: 0 | G146: 0 | H146: 0 | I146: 0 | J146: 0 | K146: 0 | L146: 0 | M146: 0 | N146: 0 | O146: 0 | P146: 0 | Q146: 2353704.218 | R146: 2371357 | S146: 2389142.178 | T146: 2407060.744 | U146: 2425113.699 | X146: 2011 | Y146: 2407060.744 | Z146: 14176238.89 | AA146: 0 | AB146: 0 | AC146: 0 | AD146: 2407060.744
C147: 2014 | D147: =IF(AND($C147-D$113>=$D$109,D$113,D$113 <=ROUND($AB$50,0)),OFFSET($Y149, -D$113, 0), 0) -> 0 | E147: 0 | F147: 0 | G147: 0 | H147: 0 | I147: 0 | J147: 0 | K147: 0 | L147: 0 | M147: 0 | N147: 0 | O147: 0 | P147: 0 | Q147: 2371357 | R147: 2389142.178 | S147: 2407060.744 | T147: 2425113.699 | U147: 2443302.052 | X147: 2012 | Y147: 2425113.699 | Z147: 14282560.69 | AA147: 0 | AB147: 0 | AC147: 0 | AD147: 2425113.699
C148: 2015 | D148: =IF(AND($C148-D$113>=$D$109,D$113,D$113 <=ROUND($AB$50,0)),OFFSET($Y150, -D$113, 0), 0) -> 0 | E148: 0 | F148: 0 | G148: 0 | H148: 0 | I148: 0 | J148: 0 | K148: 0 | L148: 0 | M148: 0 | N148: 0 | O148: 0 | P148: 0 | Q148: 2389142.178 | R148: 2407060.744 | S148: 2425113.699 | T148: 2443302.052 | U148: 2461626.818 | X148: 2013 | Y148: 2443302.052 | Z148: 14389679.89 | AA148: 0 | AB148: 0 | AC148: 0 | AD148: 2443302.052
C149: 2016 | D149: =IF(AND($C149-D$113>=$D$109,D$113,D$113 <=ROUND($AB$50,0)),OFFSET($Y151, -D$113, 0), 0) -> 0 | E149: 0 | F149: 0 | G149: 0 | H149: 0 | I149: 0 | J149: 0 | K149: 0 | L149: 0 | M149: 0 | N149: 0 | O149: 0 | P149: 0 | Q149: 2407060.744 | R149: 2425113.699 | S149: 2443302.052 | T149: 2461626.818 | U149: 2480089.019 | X149: 2014 | Y149: 2461626.818 | Z149: 14497602.49 | AA149: 0 | AB149: 0 | AC149: 0 | AD149: 2461626.818
C150: 2017 | D150: =IF(AND($C150-D$113>=$D$109,D$113,D$113 <=ROUND($AB$50,0)),OFFSET($Y152, -D$113, 0), 0) -> 0 | E150: 0 | F150: 0 | G150: 0 | H150: 0 | I150: 0 | J150: 0 | K150: 0 | L150: 0 | M150: 0 | N150: 0 | O150: 0 | P150: 0 | Q150: 2425113.699 | R150: 2443302.052 | S150: 2461626.818 | T150: 2480089.019 | U150: 2498689.686 | X150: 2015 | Y150: 2480089.019 | Z150: 14606334.51 | AA150: 0 | AB150: 0 | AC150: 0 | AD150: 2480089.019
C151: 2018 | D151: =IF(AND($C151-D$113>=$D$109,D$113,D$113 <=ROUND($AB$50,0)),OFFSET($Y153, -D$113, 0), 0) -> 0 | E151: 0 | F151: 0 | G151: 0 | H151: 0 | I151: 0 | J151: 0 | K151: 0 | L151: 0 | M151: 0 | N151: 0 | O151: 0 | P151: 0 | Q151: 2443302.052 | R151: 2461626.818 | S151: 2480089.019 | T151: 2498689.686 | U151: 2517429.859 | X151: 2016 | Y151: 2498689.686 | Z151: 14715882.02 | AA151: 0 | AB151: 0 | AC151: 0 | AD151: 2498689.686
C152: 2019 | D152: =IF(AND($C152-D$113>=$D$109,D$113,D$113 <=ROUND($AB$50,0)),OFFSET($Y154, -D$113, 0), 0) -> 0 | E152: 0 | F152: 0 | G152: 0 | H152: 0 | I152: 0 | J152: 0 | K152: 0 | L152: 0 | M152: 0 | N152: 0 | O152: 0 | P152: 0 | Q152: 2461626.818 | R152: 2480089.019 | S152: 2498689.686 | T152: 2517429.859 | U152: 2536310.583 | X152: 2017 | Y152: 2517429.859 | Z152: 14826251.13 | AA152: 0 | AB152: 0 | AC152: 0 | AD152: 2517429.859
C153: 2020 | D153: =IF(AND($C153-D$113>=$D$109,D$113,D$113 <=ROUND($AB$50,0)),OFFSET($Y155, -D$113, 0), 0) -> 0 | E153: 0 | F153: 0 | G153: 0 | H153: 0 | I153: 0 | J153: 0 | K153: 0 | L153: 0 | M153: 0 | N153: 0 | O153: 0 | P153: 0 | Q153: 2480089.019 | R153: 2498689.686 | S153: 2517429.859 | T153: 2536310.583 | U153: 2555332.912 | X153: 2018 | Y153: 2536310.583 | Z153: 14937448.02 | AA153: 0 | AB153: 0 | AC153: 0 | AD153: 2536310.583
C154: 2021 | D154: =IF(AND($C154-D$113>=$D$109,D$113,D$113 <=ROUND($AB$50,0)),OFFSET($Y156, -D$113, 0), 0) -> 0 | E154: 0 | F154: 0 | G154: 0 | H154: 0 | I154: 0 | J154: 0 | K154: 0 | L154: 0 | M154: 0 | N154: 0 | O154: 0 | P154: 0 | Q154: 2498689.686 | R154: 2517429.859 | S154: 2536310.583 | T154: 2555332.912 | U154: 2574497.909 | X154: 2019 | Y154: 2555332.912 | Z154: 15049478.88 | AA154: 0 | AB154: 0 | AC154: 0 | AD154: 2555332.912
C155: 2022 | D155: =IF(AND($C155-D$113>=$D$109,D$113,D$113 <=ROUND($AB$50,0)),OFFSET($Y157, -D$113, 0), 0) -> 0 | E155: 0 | F155: 0 | G155: 0 | H155: 0 | I155: 0 | J155: 0 | K155: 0 | L155: 0 | M155: 0 | N155: 0 | O155: 0 | P155: 0 | Q155: 2517429.859 | R155: 2536310.583 | S155: 2555332.912 | T155: 2574497.909 | U155: 2593806.643 | X155: 2020 | Y155: 2574497.909 | Z155: 15162349.97 | AA155: 0 | AB155: 0 | AC155: 0 | AD155: 2574497.909
C156: 2023 | D156: =IF(AND($C156-D$113>=$D$109,D$113,D$113 <=ROUND($AB$50,0)),OFFSET($Y158, -D$113, 0), 0) -> 0 | E156: 0 | F156: 0 | G156: 0 | H156: 0 | I156: 0 | J156: 0 | K156: 0 | L156: 0 | M156: 0 | N156: 0 | O156: 0 | P156: 0 | Q156: 2536310.583 | R156: 2555332.912 | S156: 2574497.909 | T156: 2593806.643 | U156: 2613260.193 | X156: 2021 | Y156: 2593806.643 | Z156: 15276067.59 | AA156: 0 | AB156: 0 | AC156: 0 | AD156: 2593806.643
C157: 2024 | D157: =IF(AND($C157-D$113>=$D$109,D$113,D$113 <=ROUND($AB$50,0)),OFFSET($Y159, -D$113, 0), 0) -> 0 | E157: 0 | F157: 0 | G157: 0 | H157: 0 | I157: 0 | J157: 0 | K157: 0 | L157: 0 | M157: 0 | N157: 0 | O157: 0 | P157: 0 | Q157: 2555332.912 | R157: 2574497.909 | S157: 2593806.643 | T157: 2613260.193 | U157: 2632859.645 | X157: 2022 | Y157: 2613260.193 | Z157: 15390638.1 | AA157: 0 | AB157: 0 | AC157: 0 | AD157: 2613260.193
C158: 2025 | D158: =IF(AND($C158-D$113>=$D$109,D$113,D$113 <=ROUND($AB$50,0)),OFFSET($Y160, -D$113, 0), 0) -> 0 | E158: 0 | F158: 0 | G158: 0 | H158: 0 | I158: 0 | J158: 0 | K158: 0 | L158: 0 | M158: 0 | N158: 0 | O158: 0 | P158: 0 | Q158: 2574497.909 | R158: 2593806.643 | S158: 2613260.193 | T158: 2632859.645 | U158: 2652606.092 | X158: 2023 | Y158: 2632859.645 | Z158: 15506067.89 | AA158: 0 | AB158: 0 | AC158: 0 | AD158: 2632859.645
C159: 2026 | D159: =IF(AND($C159-D$113>=$D$109,D$113,D$113 <=ROUND($AB$50,0)),OFFSET($Y161, -D$113, 0), 0) -> 0 | E159: 0 | F159: 0 | G159: 0 | H159: 0 | I159: 0 | J159: 0 | K159: 0 | L159: 0 | M159: 0 | N159: 0 | O159: 0 | P159: 0 | Q159: 2593806.643 | R159: 2613260.193 | S159: 2632859.645 | T159: 2652606.092 | U159: 2672500.638 | X159: 2024 | Y159: 2652606.092 | Z159: 15622363.39 | AA159: 0 | AB159: 0 | AC159: 0 | AD159: 2652606.092
C160: 2027 | D160: =IF(AND($C160-D$113>=$D$109,D$113,D$113 <=ROUND($AB$50,0)),OFFSET($Y162, -D$113, 0), 0) -> 0 | E160: 0 | F160: 0 | G160: 0 | H160: 0 | I160: 0 | J160: 0 | K160: 0 | L160: 0 | M160: 0 | N160: 0 | O160: 0 | P160: 0 | Q160: 2613260.193 | R160: 2632859.645 | S160: 2652606.092 | T160: 2672500.638 | U160: 2692544.393 | X160: 2025 | Y160: 2672500.638 | Z160: 15739531.12 | AA160: 0 | AB160: 0 | AC160: 0 | AD160: 2672500.638
C161: 2028 | D161: =IF(AND($C161-D$113>=$D$109,D$113,D$113 <=ROUND($AB$50,0)),OFFSET($Y163, -D$113, 0), 0) -> 0 | E161: 0 | F161: 0 | G161: 0 | H161: 0 | I161: 0 | J161: 0 | K161: 0 | L161: 0 | M161: 0 | N161: 0 | O161: 0 | P161: 0 | Q161: 2632859.645 | R161: 2652606.092 | S161: 2672500.638 | T161: 2692544.393 | U161: 2712738.475 | X161: 2026 | Y161: 2692544.393 | Z161: 15857577.6 | AA161: 0 | AB161: 0 | AC161: 0 | AD161: 2692544.393
C162: 2029 | D162: =IF(AND($C162-D$113>=$D$109,D$113,D$113 <=ROUND($AB$50,0)),OFFSET($Y164, -D$113, 0), 0) -> 0 | E162: 0 | F162: 0 | G162: 0 | H162: 0 | I162: 0 | J162: 0 | K162: 0 | L162: 0 | M162: 0 | N162: 0 | O162: 0 | P162: 0 | Q162: 2652606.092 | R162: 2672500.638 | S162: 2692544.393 | T162: 2712738.475 | U162: 2733084.014 | X162: 2027 | Y162: 2712738.475 | Z162: 15976509.44 | AA162: 0 | AB162: 0 | AC162: 0 | AD162: 2712738.475
C163: 2030 | D163: =IF(AND($C163-D$113>=$D$109,D$113,D$113 <=ROUND($AB$50,0)),OFFSET($Y165, -D$113, 0), 0) -> 0 | E163: 0 | F163: 0 | G163: 0 | H163: 0 | I163: 0 | J163: 0 | K163: 0 | L163: 0 | M163: 0 | N163: 0 | O163: 0 | P163: 0 | Q163: 2672500.638 | R163: 2692544.393 | S163: 2712738.475 | T163: 2733084.014 | U163: 2753582.144 | X163: 2028 | Y163: 2733084.014 | Z163: 16096333.26 | AA163: 0 | AB163: 0 | AC163: 0 | AD163: 2733084.014
C164: 2031 | D164: =IF(AND($C164-D$113>=$D$109,D$113,D$113 <=ROUND($AB$50,0)),OFFSET($Y166, -D$113, 0), 0) -> 0 | E164: 0 | F164: 0 | G164: 0 | H164: 0 | I164: 0 | J164: 0 | K164: 0 | L164: 0 | M164: 0 | N164: 0 | O164: 0 | P164: 0 | Q164: 2692544.393 | R164: 2712738.475 | S164: 2733084.014 | T164: 2753582.144 | U164: 2774234.01 | X164: 2029 | Y164: 2753582.144 | Z164: 16217055.76 | AA164: 0 | AB164: 0 | AC164: 0 | AD164: 2753582.144
C165: 2032 | D165: =IF(AND($C165-D$113>=$D$109,D$113,D$113 <=ROUND($AB$50,0)),OFFSET($Y167, -D$113, 0), 0) -> 0 | E165: 0 | F165: 0 | G165: 0 | H165: 0 | I165: 0 | J165: 0 | K165: 0 | L165: 0 | M165: 0 | N165: 0 | O165: 0 | P165: 0 | Q165: 2712738.475 | R165: 2733084.014 | S165: 2753582.144 | T165: 2774234.01 | U165: 2795040.765 | X165: 2030 | Y165: 2774234.01 | Z165: 16338683.67 | AA165: 0 | AB165: 0 | AC165: 0 | AD165: 2774234.01
C166: 2033 | D166: =IF(AND($C166-D$113>=$D$109,D$113,D$113 <=ROUND($AB$50,0)),OFFSET($Y168, -D$113, 0), 0) -> 0 | E166: 0 | F166: 0 | G166: 0 | H166: 0 | I166: 0 | J166: 0 | K166: 0 | L166: 0 | M166: 0 | N166: 0 | O166: 0 | P166: 0 | Q166: 2733084.014 | R166: 2753582.144 | S166: 2774234.01 | T166: 2795040.765 | U166: 2816003.571 | X166: 2031 | Y166: 2795040.765 | Z166: 16461223.8 | AA166: 0 | AB166: 0 | AC166: 0 | AD166: 2795040.765
C167: 2034 | D167: =IF(AND($C167-D$113>=$D$109,D$113,D$113 <=ROUND($AB$50,0)),OFFSET($Y169, -D$113, 0), 0) -> 0 | E167: 0 | F167: 0 | G167: 0 | H167: 0 | I167: 0 | J167: 0 | K167: 0 | L167: 0 | M167: 0 | N167: 0 | O167: 0 | P167: 0 | Q167: 2753582.144 | R167: 2774234.01 | S167: 2795040.765 | T167: 2816003.571 | U167: 2837123.598 | X167: 2032 | Y167: 2816003.571 | Z167: 16584682.98 | AA167: 0 | AB167: 0 | AC167: 0 | AD167: 2816003.571
X168: 2033 | Y168: 2837123.598 | Z168: 16709068.1 | AA168: 0 | AB168: 0 | AC168: 0 | AD168: 2837123.598
X169: 2034 | Y169: 2858402.025 | Z169: 16834386.11 | AA169: 0 | AB169: 0 | AC169: 0 | AD169: 2858402.025
C170: =C180 -> B 18 W - AC-DC, Basic Voltage 18 W Rep. Unit
E172: 1981 | F172: 1982 | G172: 1983 | H172: 1984 | I172: 1985 | J172: 1986 | K172: 1987 | L172: 1988 | M172: 1989 | N172: 1990 | O172: 1991 | P172: 1992 | Q172: 1993 | R172: 1994 | S172: 1995 | T172: 1996 | U172: 1997 | V172: 1998 | W172: 1999 | X172: 2000 | Y172: 2001 | Z172: 2002 | AA172: 2003 | AB172: 2004 | AC172: 2005 | AD172: 2006 | AE172: 2007 | AF172: 2008 | AG172: 2009 | AH172: 2010 | AI172: 2011 | AJ172: 2012 | AK172: 2013 | AL172: 2014 | AM172: 2015 | AN172: 2016 | AO172: 2017 | AP172: 2018 | AQ172: 2019 | AR172: 2020 | AS172: 2021 | AT172: 2022 | AU172: 2023 | AV172: 2024 | AW172: 2025 | AX172: 2026 | AY172: 2027 | AZ172: 2028 | BA172: 2029 | BB172: 2030 | BC172: 2031 | BD172: 2032 | BE172: 2033 | BF172: 2034
C173: 6P Shipments | D173: (units) | E173: N/A | F173: N/A | G173: N/A | H173: N/A | I173: N/A | J173: N/A | K173: N/A | L173: N/A | M173: N/A | N173: N/A | O173: N/A | P173: N/A | Q173: N/A | R173: N/A | S173: N/A | T173: N/A | U173: N/A | V173: N/A | W173: N/A | X173: N/A | Y173: N/A | Z173: N/A | AA173: N/A | AB173: N/A | AC173: N/A | AD173: N/A | AE173: N/A | AF173: N/A | AG173: N/A | AH173: N/A | AI173: N/A | AJ173: N/A | AK173: N/A | AL173: N/A | AM173: N/A | AN173: N/A | AO173: N/A | AP173: N/A | AQ173: N/A | AR173: N/A | AS173: N/A | AT173: N/A | AU173: N/A | AV173: N/A | AW173: N/A | AX173: N/A | AY173: N/A | AZ173: N/A | BA173: N/A | BB173: N/A | BC173: N/A | BD173: N/A | BE173: N/A | BF173: N/A
C174: Replacement Shipments | D174: (units) | E174: =TRANSPOSE(AA189:AA242) -> 0 | F174: 0 | G174: 0 | H174: 0 | I174: 0 | J174: 0 | K174: 0 | L174: 0 | M174: 0 | N174: 0 | O174: 0 | P174: 0 | Q174: 0 | R174: 0 | S174: 0 | T174: 0 | U174: 0 | V174: 0 | W174: 0 | X174: 0 | Y174: 0 | Z174: 0 | AA174: 0 | AB174: 0 | AC174: 0 | AD174: 0 | AE174: 0 | AF174: 0 | AG174: 0 | AH174: 0 | AI174: 0 | AJ174: 0 | AK174: 0 | AL174: 0 | AM174: 0 | AN174: 0 | AO174: 0 | AP174: 0 | AQ174: 0 | AR174: 0 | AS174: 0 | AT174: 0 | AU174: 0 | AV174: 0 | AW174: 0 | AX174: 0 | AY174: 0 | AZ174: 0 | BA174: 0 | BB174: 0 | BC174: 0 | BD174: 0 | BE174: 0 | BF174: 0
C175: Net New Shipments | D175: (units) | E175: =TRANSPOSE(AD189:AD242) -> 0 | F175: 0 | G175: 0 | H175: 0 | I175: 0 | J175: 0 | K175: 2329997.909 | L175: 2347472.893 | M175: 2365078.94 | N175: 2382817.032 | O175: 2400688.159 | P175: 2418693.321 | Q175: 2436833.521 | R175: 2455109.772 | S175: 2473523.095 | T175: 2492074.518 | U175: 2510765.077 | V175: 2529595.815 | W175: 2548567.784 | X175: 2567682.042 | Y175: 2586939.658 | Z175: 2606341.705 | AA175: 2625889.268 | AB175: 2645583.437 | AC175: 2665425.313 | AD175: 2685416.003 | AE175: 2705556.623 | AF175: 2725848.298 | AG175: 2746292.16 | AH175: 2766889.351 | AI175: 2787641.021 | AJ175: 2808548.329 | AK175: 2829612.441 | AL175: 2850834.535 | AM175: 2872215.794 | AN175: 2893757.412 | AO175: 2915460.593 | AP175: 2937326.547 | AQ175: 2959356.496 | AR175: 2981551.67 | AS175: 3003913.308 | AT175: 3026442.657 | AU175: 3049140.977 | AV175: 3072009.535 | AW175: 3095049.606 | AX175: 3118262.478 | AY175: 3141649.447 | AZ175: 3165211.818 | BA175: 3188950.906 | BB175: 3212868.038 | BC175: 3236964.548 | BD175: 3261241.783 | BE175: 3285701.096 | BF175: 3310343.854
C176: Total Model Shipments | D176: (units) | E176: =TRANSPOSE(AD189:AD242) -> 0 | F176: 0 | G176: 0 | H176: 0 | I176: 0 | J176: 0 | K176: 2329997.909 | L176: 2347472.893 | M176: 2365078.94 | N176: 2382817.032 | O176: 2400688.159 | P176: 2418693.321 | Q176: 2436833.521 | R176: 2455109.772 | S176: 2473523.095 | T176: 2492074.518 | U176: 2510765.077 | V176: 2529595.815 | W176: 2548567.784 | X176: 2567682.042 | Y176: 2586939.658 | Z176: 2606341.705 | AA176: 2625889.268 | AB176: 2645583.437 | AC176: 2665425.313 | AD176: 2685416.003 | AE176: 2705556.623 | AF176: 2725848.298 | AG176: 2746292.16 | AH176: 2766889.351 | AI176: 2787641.021 | AJ176: 2808548.329 | AK176: 2829612.441 | AL176: 2850834.535 | AM176: 2872215.794 | AN176: 2893757.412 | AO176: 2915460.593 | AP176: 2937326.547 | AQ176: 2959356.496 | AR176: 2981551.67 | AS176: 3003913.308 | AT176: 3026442.657 | AU176: 3049140.977 | AV176: 3072009.535 | AW176: 3095049.606 | AX176: 3118262.478 | AY176: 3141649.447 | AZ176: 3165211.818 | BA176: 3188950.906 | BB176: 3212868.038 | BC176: 3236964.548 | BD176: 3261241.783 | BE176: 3285701.096 | BF176: 3310343.854
C177: Model Installed Stock | D177: (units) | E177: =TRANSPOSE(Z189:Z242) -> 0 | F177: 0 | G177: 0 | H177: 0 | I177: 0 | J177: 0 | K177: 2329997.909 | L177: 4677470.802 | M177: 7042549.741 | N177: 9425366.773 | O177: 11826054.93 | P177: 14244748.25 | Q177: 14351583.86 | R177: 14459220.74 | S177: 14567664.9 | T177: 14676922.39 | U177: 14786999.3 | V177: 14897901.8 | W177: 15009636.06 | X177: 15122208.33 | Y177: 15235624.9 | Z177: 15349892.08 | AA177: 15465016.27 | AB177: 15581003.89 | AC177: 15697861.42 | AD177: 15815595.38 | AE177: 15934212.35 | AF177: 16053718.94 | AG177: 16174121.83 | AH177: 16295427.75 | AI177: 16417643.46 | AJ177: 16540775.78 | AK177: 16664831.6 | AL177: 16789817.84 | AM177: 16915741.47 | AN177: 17042609.53 | AO177: 17170429.1 | AP177: 17299207.32 | AQ177: 17428951.38 | AR177: 17559668.51 | AS177: 17691366.03 | AT177: 17824051.27 | AU177: 17957731.66 | AV177: 18092414.64 | AW177: 18228107.75 | AX177: 18364818.56 | AY177: 18502554.7 | AZ177: 18641323.86 | BA177: 18781133.79 | BB177: 18921992.29 | BC177: 19063907.24 | BD177: 19206886.54 | BE177: 19350938.19 | BF177: 19496070.23
C180: ='Product Classes'!H11&" - "&OFFSET('Product Classes'!$C$9,MATCH('Product Classes'!H11,MODEL_PCS,0),0) -> B 18 W - AC-DC, Basic Voltage 18 W Rep. Unit
C181: Segment | D181: Initial Year
C182: N/A | D182: 1987
C184: Quantity of Stock by AGE and YEAR
D185: Unit Age in Years | Y185: New Shipment | Z185: Stock | AA185: Replacements for Retiring Units | AB185: Shipment due to New Construction | AC185: Shipment due to Stock Buildout | AD185: Total Shipments
C186: Year | D186: 18 | E186: 17 | F186: 16 | G186: 15 | H186: 14 | I186: 13 | J186: 12 | K186: 11 | L186: 10 | M186: 9 | N186: 8 | O186: 7 | P186: 6 | Q186: 5 | R186: 4 | S186: 3 | T186: 2 | U186: 1 | X186: Year
C187: =C188-1 -> 1981 | D187: =IF(AND($C187-D$113>=$D$182,D$113,D$113 <=ROUND($AB$51,0)),OFFSET($Y189, -D$113, 0), 0) -> 0 | E187: 0 | F187: 0 | G187: 0 | H187: 0 | I187: 0 | J187: 0 | K187: 0 | L187: 0 | M187: 0 | N187: 0 | O187: 0 | P187: 0 | Q187: 0 | R187: 0 | S187: 0 | T187: 0 | U187: =IF(AND($C187-U$113>=$D$182,U$113,U$113 <=ROUND($AB$51,0)),OFFSET($Y189, -U$113, 0), 0) -> 0 | X187: =X188-1 -> 1979 | Y187: 0 | Z187: 0 | AA187: 0 | AB187: 0 | AC187: 0 | AD187: 0
C188: 1982 | D188: 0 | E188: 0 | F188: 0 | G188: 0 | H188: 0 | I188: 0 | J188: 0 | K188: 0 | L188: 0 | M188: 0 | N188: 0 | O188: 0 | P188: 0 | Q188: 0 | R188: 0 | S188: 0 | T188: 0 | U188: =IF(AND($C188-U$113>=$D$182,U$113,U$113 <=ROUND($AB$51,0)),OFFSET($Y190, -U$113, 0), 0) -> 0 | X188: 1980 | Y188: 0 | Z188: 0 | AA188: 0 | AB188: 0 | AC188: 0 | AD188: 0
C189: 1983 | D189: 0 | E189: 0 | F189: 0 | G189: 0 | H189: 0 | I189: 0 | J189: 0 | K189: 0 | L189: 0 | M189: 0 | N189: 0 | O189: 0 | P189: 0 | Q189: 0 | R189: 0 | S189: 0 | T189: 0 | U189: 0 | X189: 1981 | Y189: 0 | Z189: 0 | AA189: 0 | AB189: 0 | AC189: 0 | AD189: 0
C190: 1984 | D190: 0 | E190: 0 | F190: 0 | G190: 0 | H190: 0 | I190: 0 | J190: 0 | K190: 0 | L190: 0 | M190: 0 | N190: 0 | O190: 0 | P190: 0 | Q190: 0 | R190: 0 | S190: 0 | T190: 0 | U190: 0 | X190: 1982 | Y190: 0 | Z190: 0 | AA190: 0 | AB190: 0 | AC190: 0 | AD190: 0
C191: 1985 | D191: 0 | E191: 0 | F191: 0 | G191: 0 | H191: 0 | I191: 0 | J191: 0 | K191: 0 | L191: 0 | M191: 0 | N191: 0 | O191: 0 | P191: 0 | Q191: 0 | R191: 0 | S191: 0 | T191: 0 | U191: 0 | X191: 1983 | Y191: 0 | Z191: 0 | AA191: 0 | AB191: 0 | AC191: 0 | AD191: 0
C192: 1986 | D192: 0 | E192: 0 | F192: 0 | G192: 0 | H192: 0 | I192: 0 | J192: 0 | K192: 0 | L192: 0 | M192: 0 | N192: 0 | O192: 0 | P192: 0 | Q192: 0 | R192: 0 | S192: 0 | T192: 0 | U192: 0 | X192: 1984 | Y192: 0 | Z192: 0 | AA192: 0 | AB192: 0 | AC192: 0 | AD192: 0
C193: 1987 | D193: 0 | E193: 0 | F193: 0 | G193: 0 | H193: 0 | I193: 0 | J193: 0 | K193: 0 | L193: 0 | M193: 0 | N193: 0 | O193: 0 | P193: 0 | Q193: 0 | R193: 0 | S193: 0 | T193: 0 | U193: 0 | X193: 1985 | Y193: 0 | Z193: 0 | AA193: 0 | AB193: 0 | AC193: 0 | AD193: 0
C194: 1988 | D194: 0 | E194: 0 | F194: 0 | G194: 0 | H194: 0 | I194: 0 | J194: 0 | K194: 0 | L194: 0 | M194: 0 | N194: 0 | O194: 0 | P194: 0 | Q194: 0 | R194: 0 | S194: 0 | T194: 0 | U194: 2329997.909 | X194: 1986 | Y194: 0 | Z194: 0 | AA194: 0 | AB194: 0 | AC194: 0 | AD194: 0
C195: =C196-1 -> 1989 | D195: 0 | E195: 0 | F195: 0 | G195: 0 | H195: 0 | I195: 0 | J195: 0 | K195: 0 | L195: 0 | M195: 0 | N195: 0 | O195: 0 | P195: 0 | Q195: 0 | R195: 0 | S195: 0 | T195: 2329997.909 | U195: 2347472.893 | X195: 1987 | Y195: =$Y$217/((1+$Z$51)^($X$217-X195)) -> 2329997.909 | Z195: =Y195+SUM(D193:U193) -> 2329997.909 | AA195: 0 | AB195: 0 | AC195: 0 | AD195: =Y195 -> 2329997.909
C196: 1990 | D196: 0 | E196: 0 | F196: 0 | G196: 0 | H196: 0 | I196: 0 | J196: 0 | K196: 0 | L196: 0 | M196: 0 | N196: 0 | O196: 0 | P196: 0 | Q196: 0 | R196: 0 | S196: 2329997.909 | T196: 2347472.893 | U196: 2365078.94 | X196: 1988 | Y196: 2347472.893 | Z196: 4677470.802 | AA196: 0 | AB196: 0 | AC196: 0 | AD196: =Y196 -> 2347472.893
C197: 1991 | D197: 0 | E197: 0 | F197: 0 | G197: 0 | H197: 0 | I197: 0 | J197: 0 | K197: 0 | L197: 0 | M197: 0 | N197: 0 | O197: 0 | P197: 0 | Q197: 0 | R197: 2329997.909 | S197: 2347472.893 | T197: 2365078.94 | U197: 2382817.032 | X197: 1989 | Y197: 2365078.94 | Z197: =Y197+SUM(D195:U195) -> 7042549.741 | AA197: 0 | AB197: 0 | AC197: 0 | AD197: =Y197 -> 2365078.94
C198: 1992 | D198: 0 | E198: 0 | F198: 0 | G198: 0 | H198: 0 | I198: 0 | J198: 0 | K198: 0 | L198: 0 | M198: 0 | N198: 0 | O198: 0 | P198: 0 | Q198: 2329997.909 | R198: 2347472.893 | S198: 2365078.94 | T198: 2382817.032 | U198: 2400688.159 | X198: =C196 -> 1990 | Y198: 2382817.032 | Z198: 9425366.773 | AA198: 0 | AB198: 0 | AC198: 0 | AD198: 2382817.032
C199: 1993 | D199: 0 | E199: 0 | F199: 0 | G199: 0 | H199: 0 | I199: 0 | J199: 0 | K199: 0 | L199: 0 | M199: 0 | N199: 0 | O199: 0 | P199: 0 | Q199: 2347472.893 | R199: 2365078.94 | S199: 2382817.032 | T199: 2400688.159 | U199: 2418693.321 | X199: 1991 | Y199: 2400688.159 | Z199: 11826054.93 | AA199: 0 | AB199: 0 | AC199: 0 | AD199: 2400688.159
C200: 1994 | D200: 0 | E200: 0 | F200: 0 | G200: 0 | H200: 0 | I200: 0 | J200: 0 | K200: 0 | L200: 0 | M200: 0 | N200: 0 | O200: 0 | P200: 0 | Q200: 2365078.94 | R200: 2382817.032 | S200: 2400688.159 | T200: 2418693.321 | U200: 2436833.521 | X200: 1992 | Y200: 2418693.321 | Z200: 14244748.25 | AA200: 0 | AB200: 0 | AC200: 0 | AD200: 2418693.321
C201: 1995 | D201: 0 | E201: 0 | F201: 0 | G201: 0 | H201: 0 | I201: 0 | J201: 0 | K201: 0 | L201: 0 | M201: 0 | N201: 0 | O201: 0 | P201: 0 | Q201: 2382817.032 | R201: 2400688.159 | S201: 2418693.321 | T201: 2436833.521 | U201: 2455109.772 | X201: 1993 | Y201: 2436833.521 | Z201: 14351583.86 | AA201: 0 | AB201: 0 | AC201: 0 | AD201: 2436833.521
C202: 1996 | D202: =IF(AND($C202-D$113>=$D$182,D$113,D$113 <=ROUND($AB$51,0)),OFFSET($Y204, -D$113, 0), 0) -> 0 | E202: 0 | F202: 0 | G202: 0 | H202: 0 | I202: 0 | J202: 0 | K202: 0 | L202: 0 | M202: 0 | N202: 0 | O202: 0 | P202: 0 | Q202: 2400688.159 | R202: 2418693.321 | S202: 2436833.521 | T202: 2455109.772 | U202: 2473523.095 | X202: 1994 | Y202: 2455109.772 | Z202: 14459220.74 | AA202: 0 | AB202: 0 | AC202: 0 | AD202: 2455109.772
C203: 1997 | D203: 0 | E203: 0 | F203: 0 | G203: 0 | H203: 0 | I203: 0 | J203: 0 | K203: 0 | L203: 0 | M203: 0 | N203: 0 | O203: 0 | P203: 0 | Q203: 2418693.321 | R203: 2436833.521 | S203: 2455109.772 | T203: 2473523.095 | U203: 2492074.518 | X203: 1995 | Y203: 2473523.095 | Z203: 14567664.9 | AA203: 0 | AB203: 0 | AC203: 0 | AD203: 2473523.095
C204: 1998 | D204: 0 | E204: 0 | F204: 0 | G204: 0 | H204: 0 | I204: 0 | J204: 0 | K204: 0 | L204: 0 | M204: 0 | N204: 0 | O204: 0 | P204: 0 | Q204: 2436833.521 | R204: 2455109.772 | S204: 2473523.095 | T204: 2492074.518 | U204: 2510765.077 | X204: 1996 | Y204: 2492074.518 | Z204: 14676922.39 | AA204: 0 | AB204: 0 | AC204: 0 | AD204: 2492074.518
C205: 1999 | D205: 0 | E205: 0 | F205: 0 | G205: 0 | H205: 0 | I205: 0 | J205: 0 | K205: 0 | L205: 0 | M205: 0 | N205: 0 | O205: 0 | P205: 0 | Q205: 2455109.772 | R205: 2473523.095 | S205: 2492074.518 | T205: 2510765.077 | U205: 2529595.815 | X205: 1997 | Y205: 2510765.077 | Z205: 14786999.3 | AA205: 0 | AB205: 0 | AC205: 0 | AD205: 2510765.077
C206: 2000 | D206: 0 | E206: 0 | F206: 0 | G206: 0 | H206: 0 | I206: 0 | J206: 0 | K206: 0 | L206: 0 | M206: 0 | N206: 0 | O206: 0 | P206: 0 | Q206: 2473523.095 | R206: 2492074.518 | S206: 2510765.077 | T206: 2529595.815 | U206: 2548567.784 | X206: 1998 | Y206: 2529595.815 | Z206: 14897901.8 | AA206: 0 | AB206: 0 | AC206: 0 | AD206: 2529595.815
C207: 2001 | D207: 0 | E207: 0 | F207: 0 | G207: 0 | H207: 0 | I207: 0 | J207: 0 | K207: 0 | L207: 0 | M207: 0 | N207: 0 | O207: 0 | P207: 0 | Q207: 2492074.518 | R207: 2510765.077 | S207: 2529595.815 | T207: 2548567.784 | U207: 2567682.042 | X207: 1999 | Y207: 2548567.784 | Z207: 15009636.06 | AA207: 0 | AB207: 0 | AC207: 0 | AD207: 2548567.784
C208: 2002 | D208: 0 | E208: 0 | F208: 0 | G208: 0 | H208: 0 | I208: 0 | J208: 0 | K208: 0 | L208: 0 | M208: 0 | N208: 0 | O208: 0 | P208: 0 | Q208: 2510765.077 | R208: 2529595.815 | S208: 2548567.784 | T208: 2567682.042 | U208: 2586939.658 | X208: 2000 | Y208: 2567682.042 | Z208: 15122208.33 | AA208: 0 | AB208: 0 | AC208: 0 | AD208: 2567682.042
C209: 2003 | D209: 0 | E209: 0 | F209: 0 | G209: 0 | H209: 0 | I209: 0 | J209: 0 | K209: 0 | L209: 0 | M209: 0 | N209: 0 | O209: 0 | P209: 0 | Q209: 2529595.815 | R209: 2548567.784 | S209: 2567682.042 | T209: 2586939.658 | U209: 2606341.705 | X209: 2001 | Y209: 2586939.658 | Z209: 15235624.9 | AA209: 0 | AB209: 0 | AC209: 0 | AD209: 2586939.658
C210: =C211-1 -> 2004 | D210: 0 | E210: 0 | F210: 0 | G210: 0 | H210: 0 | I210: 0 | J210: 0 | K210: 0 | L210: 0 | M210: 0 | N210: 0 | O210: 0 | P210: 0 | Q210: 2548567.784 | R210: 2567682.042 | S210: 2586939.658 | T210: 2606341.705 | U210: 2625889.268 | X210: 2002 | Y210: 2606341.705 | Z210: 15349892.08 | AA210: 0 | AB210: 0 | AC210: 0 | AD210: 2606341.705
C211: 2005 | D211: 0 | E211: 0 | F211: 0 | G211: 0 | H211: 0 | I211: 0 | J211: 0 | K211: 0 | L211: 0 | M211: 0 | N211: 0 | O211: 0 | P211: 0 | Q211: 2567682.042 | R211: 2586939.658 | S211: 2606341.705 | T211: 2625889.268 | U211: 2645583.437 | X211: 2003 | Y211: 2625889.268 | Z211: 15465016.27 | AA211: 0 | AB211: 0 | AC211: 0 | AD211: 2625889.268
C212: =C211+1 -> 2006 | D212: 0 | E212: 0 | F212: 0 | G212: 0 | H212: 0 | I212: 0 | J212: 0 | K212: 0 | L212: 0 | M212: 0 | N212: 0 | O212: 0 | P212: 0 | Q212: 2586939.658 | R212: 2606341.705 | S212: 2625889.268 | T212: 2645583.437 | U212: 2665425.313 | X212: 2004 | Y212: 2645583.437 | Z212: 15581003.89 | AA212: 0 | AB212: 0 | AC212: 0 | AD212: 2645583.437
